Workbook

Sheet 단지추출
A1: 구미시 | J1: 유사평형제거 | L1: X | N1: 추출기준세대수 | P1: 0 | Q1: 세대이상 | X1: 매매가 최대(색상 최대) | AA1: 70000 | AH1: 인천광역시 연수구 | AJ1: 인천광역시 연수구 전체 등급 | AO1: 80 | AP1: 45000 | AQ1: 1000 | AR1: 6000 | AU1: 300 | AX1: 기준연도 | AY1: 기준월 | BH1: 200세대 이상 108단지
A2: 2022-01-01 | X2: 매매가 최소(색상 최소) | AA2: 10000 | AH2: 입지평가 및 투자후보 | AJ2: A- | AK2: A | AL2: A | AM2: A | AN2: C | AO2: 원금보전 | AR2: 수익성 | AT2: 환금성 | AV2: 투자후보 | AX2: =YEAR(A2) -> 2022 | AY2: 9 | BH2: 300세대 이상 69단지
A3: 단지명 | B3: 입주 연도 | C3: 총세 대수 | D3: 공급 (m2) | E3: 공급 면적 | F3: 전용 (m2) | G3: 전용 면적 | H3: 세대 | I3: 매매 최저가 | J3: 층 | K3: 전세 최고가 | L3: 층 | M3: 갭 | N3: 전세 가율 | O3: 매매 평단 | P3: 전세 평단 | Q3: 방 | R3: 욕 실 | S3: 구 조 | T3: 매/전/월 Type | U3: 비고 | W3: 공급 평형 | X3: 공급 면적 | Y3: 세대 | Z3: 매매가 | AA3: 전세가 | AB3: 갭 | AC3: 전세 가율 | AD3: 평단가 | AE3: 구 조 | AF3: 방/ 욕실 | AH3: 단지명 | AI3: 공급 면적 | AJ3: 직장 | AK3: 교통 | AL3: 학군 | AM3: 환경 | AN3: 공급 | AO3: 전세가율★ (80%↑) | AP3: 절대가★ (4.5억↓) | AQ3: 평단가 (1000↓) | AR3: 투자규모★ (갭6천↓) | AS3: 전고점 이하 | AT3: 평형★ (15~34평) | AU3: 단지규모★ (300^↑) | AV3: 투자후보 | AX3: 입주연도 | AY3: 입주월 | BB3: 2010 | BC3: 2000 | BD3: 1990 | BE3: 1990
A4: 동춘동 대우삼환 | B4: 94.05 | C4: 1776 | D4: 110.3 | E4: 33 | F4: 90.2 | G4: 27 | H4: 1064 | I4: 31000 | J4: 5 | K4: 26000 | L4: 14 | M4: =I4-K4 -> 5000 | N4: =IF(ISERROR(K4/I4),"",K4/I4) -> 0.8387096774 | O4: =I4/E4 -> 939.3939394 | P4: =K4/E4 -> 787.8787879 | Q4: 3 | R4: 2 | S4: 계 | T4: 110 | W4: =D4 -> 110.3 | X4: 33 | Y4: =H4 -> 1064 | Z4: 31000 | AA4: =K4 -> 26000 | AB4: =M4 -> 5000 | AC4: 0.8387096774 | AD4: 939.3939394 | AE4: =S4 -> 계 | AF4: =Q4&"/"&R4 -> 3/2 | AH4: =IF(A4="","",A4) -> 동춘동 대우삼환 | AI4: =IF(E4="","",E4) -> 33 | AJ4: =IF(AI4="","",$AJ$2) -> A- | AK4: A | AL4: A | AM4: B+ | AN4: =IF(AI4="","",$AN$2) -> C | AO4: =IF(N4="","",IF(N4>=$AO$1/100,"O","X")) -> O | AP4: =IF(I4="","",IF(I4<=$AP$1,"O","X")) -> O | AQ4: =IF(O4="","",IF(O4<=$AQ$1,"O","X")) -> O | AR4: =IF(M4="","",IF(M4<=$AR$1,"O","X")) -> O | AS4: X | AT4: =IF(OR(F4="",AI4=""),"",IF(AND((F4<=85),(AI4>=15)),"O","X")) -> X | AU4: =IF(C4="","",IF(C4>=$AU$1,"O","X")) -> O | AV4: =IF(AO4="","",IF(AND(AO4="O",AP4="O",AR4="O",AT4="O",AU4="O"),"후보","X")) -> X | AX4: =IF(B4="","",_xlfn.NUMBERVALUE(IF(_xlfn.NUMBERVALUE(RIGHT(B4,2))=0.1,IF(_xlfn.NUMBERVALUE(LEFT(RIGHT(B4,4),2))>70,"19"&LEFT(RIGHT(B4,4),2),"20"&LEFT(RIGHT(B4,4),2)),IF(_xlfn.NUMBERVALUE(LEFT(RIGHT(B4,5),2))>70,"19"&LEFT(RIGHT(B4,5),2),"20"&LEFT(RIGHT(B4,5),2))))) -> 1994 | AY4: =IF(B4="","",IF(_xlfn.NUMBERVALUE(RIGHT(B4,2))=0.1,1,_xlfn.NUMBERVALUE(RIGHT(B4,2)))) -> 5 | BA4: 20평대 | BB4: =SUMIFS(H:H,AX:AX,">"&BB1,E:E,"<30",E:E,">=20")+SUMIFS(H:H,AX:AX,"="&BB1,AY:AY,">="&#REF!,E:E,"<30",E:E,">=20") -> 0 | BC4: =SUMIFS(H:H,AX:AX,">"&BC1,AX:AX,"<"&BB1,E:E,"<30",E:E,">=20")+SUMIFS(H:H,AX:AX,"="&BC1,AY:AY,">="&#REF!,E:E,"<30",E:E,">=20")+SUMIFS(H:H,AX:AX,"="&BB1,AY:AY,"<"&#REF!,E:E,"<30",E:E,">=20") -> 0 | BD4: =SUMIFS(H:H,AX:AX,">"&BD1,AX:AX,"<"&BC1,E:E,"<30",E:E,">=20")+SUMIFS(H:H,AX:AX,"="&BD1,AY:AY,">="&#REF!,E:E,"<30",E:E,">=20")+SUMIFS(H:H,AX:AX,"="&BC1,AY:AY,"<"&#REF!,E:E,"<30",E:E,">=20") -> 0 | BE4: =SUMIFS(H:H,AX:AX,"<"&BD1,E:E,"<30",E:E,">=20")+SUMIFS(H:H,AX:AX,"="&BD1,AY:AY,"<"&#REF!,E:E,"<30",E:E,">=20") -> 0 | BF4: =SUM(BB4:BE4) -> 0
A5: 동춘동 대우삼환 | B5: 94.05 | C5: 1776 | D5: 123.7 | E5: 37 | F5: 102 | G5: 31 | H5: 456 | I5: 34000 | J5: 16 | K5: 28000 | M5: 6000 | N5: 0.8235294118 | O5: 918.9189189 | P5: 756.7567568 | Q5: 4 | R5: 2 | S5: 계 | T5: 123 | W5: 123.7 | X5: 37 | Y5: 456 | Z5: 34000 | AA5: 28000 | AB5: 6000 | AC5: 0.8235294118 | AD5: 918.9189189 | AE5: 계 | AF5: 4/2 | AH5: 동춘동 대우삼환 | AI5: 37 | AJ5: A- | AK5: A | AL5: A | AM5: B+ | AN5: C | AO5: O | AP5: O | AQ5: O | AR5: O | AS5: X | AT5: X | AU5: O | AV5: X | AX5: 1994 | AY5: 5 | BA5: 30평대 | BB5: =SUMIFS(H:H,AX:AX,">"&BB1,E:E,"<40",E:E,">=30")+SUMIFS(H:H,AX:AX,"="&BB1,AY:AY,">="&#REF!,E:E,"<40",E:E,">=30") -> 0 | BC5: =SUMIFS(H:H,AX:AX,">"&BC1,AX:AX,"<"&BB1,E:E,"<40",E:E,">=30")+SUMIFS(H:H,AX:AX,"="&BC1,AY:AY,">="&#REF!,E:E,"<40",E:E,">=30")+SUMIFS(H:H,AX:AX,"="&BB1,AY:AY,"<"&#REF!,E:E,"<40",E:E,">=30") -> 0 | BD5: =SUMIFS(H:H,AX:AX,">"&BD1,AX:AX,"<"&BC1,E:E,"<40",E:E,">=30")+SUMIFS(H:H,AX:AX,"="&BD1,AY:AY,">="&#REF!,E:E,"<40",E:E,">=30")+SUMIFS(H:H,AX:AX,"="&BC1,AY:AY,"<"&#REF!,E:E,"<40",E:E,">=30") -> 0 | BE5: =SUMIFS(H:H,AX:AX,"<"&BD1,E:E,"<40",E:E,">=30")+SUMIFS(H:H,AX:AX,"="&BD1,AY:AY,"<"&#REF!,E:E,"<40",E:E,">=30") -> 0 | BF5: =SUM(BB5:BE5) -> 0
A6: 동춘동 대우삼환 | B6: 94.05 | C6: 1776 | D6: 144.8 | E6: 44 | F6: 120.7 | G6: 37 | H6: 256 | I6: 39000 | J6: 5 | K6: 31000 | M6: 8000 | N6: 0.7948717949 | O6: 886.3636364 | P6: 704.5454545 | Q6: 4 | R6: 2 | S6: 계 | T6: 144 | W6: 144.8 | X6: 44 | Y6: 256 | Z6: 39000 | AA6: 31000 | AB6: 8000 | AC6: 0.7948717949 | AD6: 886.3636364 | AE6: 계 | AF6: 4/2 | AH6: 동춘동 대우삼환 | AI6: 44 | AJ6: A- | AK6: A | AL6: A | AM6: B+ | AN6: C | AO6: X | AP6: O | AQ6: O | AR6: X | AS6: X | AT6: X | AU6: O | AV6: X | AX6: 1994 | AY6: 5 | BA6: 40평대↑ | BB6: =SUMIFS(H:H,AX:AX,">"&BB1,E:E,">=40")+SUMIFS(H:H,AX:AX,"="&BB1,AY:AY,">="&#REF!,E:E,">=40") -> 0 | BC6: =SUMIFS(H:H,AX:AX,">"&BC1,AX:AX,"<"&BB1,E:E,">=40")+SUMIFS(H:H,AX:AX,"="&BC1,AY:AY,">="&#REF!,E:E,">=40")+SUMIFS(H:H,AX:AX,"="&BB1,AY:AY,"<"&#REF!,E:E,">=40") -> 0 | BD6: =SUMIFS(H:H,AX:AX,">"&BD1,AX:AX,"<"&BC1,E:E,">=40")+SUMIFS(H:H,AX:AX,"="&BD1,AY:AY,">="&#REF!,E:E,">=40")+SUMIFS(H:H,AX:AX,"="&BC1,AY:AY,"<"&#REF!,E:E,">=40") -> 0 | BE6: =SUMIFS(H:H,AX:AX,"<"&BD1,E:E,">=40")+SUMIFS(H:H,AX:AX,"="&BD1,AY:AY,"<"&#REF!,E:E,">=40") -> 0 | BF6: =SUM(BB6:BE6) -> 0
A7: 동춘동 한양2차 | B7: 95.08 | C7: 1440 | D7: 81.6 | E7: 25 | F7: 68.4 | G7: 21 | H7: 680 | I7: 25500 | J7: 4 | K7: 18000 | L7: 4 | M7: 7500 | N7: 0.7058823529 | O7: 1020 | P7: 720 | Q7: 3 | R7: 1 | S7: 계 | T7: 81 | W7: =D7 -> 81.6 | X7: 25 | Y7: =H7 -> 680 | Z7: 25500 | AA7: 18000 | AB7: 7500 | AC7: 0.7058823529 | AD7: 1020 | AE7: 계 | AF7: 3/1 | AH7: 동춘동 한양2차 | AI7: 25 | AJ7: A- | AK7: A | AL7: A | AM7: B+ | AN7: C | AO7: X | AP7: O | AQ7: X | AR7: X | AS7: X | AT7: O | AU7: O | AV7: X | AX7: 1995 | AY7: 8
A8: 동춘동 한양2차 | B8: 95.08 | C8: 1440 | D8: 99.7 | E8: 30 | F8: 85 | G8: 26 | H8: 760 | I8: 27000 | J8: 4 | K8: 22000 | L8: 2 | M8: 5000 | N8: 0.8148148148 | O8: 900 | P8: 733.3333333 | Q8: 4 | R8: 1 | S8: 계 | T8: 99 | W8: 99.7 | X8: 30 | Y8: 760 | Z8: 27000 | AA8: 22000 | AB8: 5000 | AC8: 0.8148148148 | AD8: 900 | AE8: 계 | AF8: 4/1 | AH8: 동춘동 한양2차 | AI8: 30 | AJ8: A- | AK8: A | AL8: A | AM8: B+ | AN8: C | AO8: O | AP8: O | AQ8: O | AR8: O | AS8: X | AT8: O | AU8: O | AV8: 후보 | AX8: 1995 | AY8: 8 | BB8: 10년 이하 | BC8: 10~20년 | BD8: 20~30년 | BE8: 30년 이상 | BF8: 합계
A9: 동춘동 동남 | B9: 94.12 | C9: 1350 | D9: 69.9 | E9: 21 | F9: 52.1 | G9: 16 | H9: 1350 | I9: 17000 | J9: 13 | K9: 16000 | L9: 6 | M9: 1000 | N9: 0.9411764706 | O9: 809.5238095 | P9: 761.9047619 | Q9: 2 | R9: 1 | S9: 복 | T9: 69 | W9: 69.9 | X9: 21 | Y9: 1350 | Z9: 17000 | AA9: 16000 | AB9: =M9 -> 1000 | AC9: =N9 -> 0.9411764706 | AD9: =O9 -> 809.5238095 | AE9: 복 | AF9: 2/1 | AH9: 동춘동 동남 | AI9: 21 | AJ9: A- | AK9: A | AL9: A | AM9: B+ | AN9: C | AO9: O | AP9: O | AQ9: O | AR9: O | AS9: X | AT9: O | AU9: O | AV9: 후보 | AX9: 1994 | AY9: 12 | BA9: 20평대 | BB9: =BB2/BF5 ->  | BC9: =BC2/BF5 ->  | BD9: =BD2/BF5 ->  | BE9: =BE2/BF5 ->  | BF9: =BF2/BF5 -> 
A10: 동춘동 연수풍림2차 | B10: 93.06 | C10: 1200 | D10: 61.2 | E10: 19 | F10: 45.4 | G10: 14 | H10: 600 | I10: 20000 | J10: 7 | K10: 16000 | L10: 6 | M10: 4000 | N10: 0.8 | O10: 1052.631579 | P10: 842.1052632 | Q10: 2 | R10: 1 | S10: 복 | T10: 61 | W10: 61.2 | X10: 19 | Y10: 600 | Z10: 20000 | AA10: 16000 | AB10: =M10 -> 4000 | AC10: 0.8 | AD10: 1052.631579 | AE10: 복 | AF10: 2/1 | AH10: 동춘동 연수풍림2차 | AI10: 19 | AJ10: A- | AK10: A | AL10: A | AM10: B+ | AN10: C | AO10: O | AP10: O | AQ10: X | AR10: O | AS10: X | AT10: O | AU10: O | AV10: 후보 | AX10: 1993 | AY10: 6 | BA10: 40평대↑ | BB10: =BB3/BF4 ->  | BC10: =BC3/BF4 ->  | BD10: =BD3/BF4 ->  | BE10: =BE3/BF4 ->  | BF10: =BF3/BF4 -> 
A11: 동춘동 연수풍림2차 | B11: 93.06 | C11: 1200 | D11: 104.5 | E11: 32 | F11: 84.2 | G11: 25 | H11: 600 | I11: 32000 | J11: 5 | K11: 26000 | L11: 8 | M11: 6000 | N11: 0.8125 | O11: 1000 | P11: 812.5 | Q11: 3 | R11: 2 | S11: 계 | T11: 104 | W11: 104.5 | X11: 32 | Y11: 600 | Z11: 32000 | AA11: 26000 | AB11: 6000 | AC11: 0.8125 | AD11: 1000 | AE11: 계 | AF11: 3/2 | AH11: 동춘동 연수풍림2차 | AI11: 32 | AJ11: A- | AK11: A | AL11: A | AM11: B+ | AN11: C | AO11: O | AP11: O | AQ11: O | AR11: O | AS11: X | AT11: O | AU11: O | AV11: 후보 | AX11: 1993 | AY11: 6 | BA11: 합계 | BB11: =BB4/BF4 ->  | BC11: =BC4/BF4 ->  | BD11: =BD4/BF4 ->  | BE11: =BE4/BF4 ->  | BF11: =BF4/BF4 -> 
A12: 동춘동 송도파크레인동일하이빌 | B12: 19.03 | C12: 1180 | D12: 93 | E12: 28 | F12: 66.9 | G12: 20 | H12: 89 | I12: 45000 | J12: 중 | K12: 29000 | M12: 16000 | N12: 0.6444444444 | O12: 1607.142857 | P12: 1035.714286 | Q12: 3 | R12: 2 | S12: 계 | T12: 93 | W12: =D12 -> 93 | X12: 28 | Y12: =H12 -> 89 | Z12: 45000 | AA12: 29000 | AB12: 16000 | AC12: 0.6444444444 | AD12: 1607.142857 | AE12: 계 | AF12: 3/2 | AH12: 동춘동 송도파크레인동일하이빌 | AI12: 28 | AJ12: A- | AK12: A | AL12: A | AM12: B+ | AN12: C | AO12: X | AP12: O | AQ12: X | AR12: X | AS12: X | AT12: O | AU12: O | AV12: X | AX12: 2019 | AY12: 3
A13: 동춘동 송도파크레인동일하이빌 | B13: 19.03 | C13: 1180 | D13: 102.2 | E13: 31 | F13: 74.2 | G13: 22 | H13: 264 | I13: 50000 | J13: 20 | K13: 30000 | M13: 20000 | N13: 0.6 | O13: 1612.903226 | P13: 967.7419355 | Q13: 3 | R13: 2 | S13: 계 | T13: 102 | W13: 102.2 | X13: 31 | Y13: 264 | Z13: 50000 | AA13: 30000 | AB13: 20000 | AC13: 0.6 | AD13: 1612.903226 | AE13: 계 | AF13: 3/2 | AH13: 동춘동 송도파크레인동일하이빌 | AI13: 31 | AJ13: A- | AK13: A | AL13: A | AM13: B+ | AN13: C | AO13: X | AP13: X | AQ13: X | AR13: X | AS13: X | AT13: O | AU13: O | AV13: X | AX13: 2019 | AY13: 3
A14: 동춘동 송도파크레인동일하이빌 | B14: 19.03 | C14: 1180 | D14: 112.8 | E14: 34 | F14: 84.9 | G14: 26 | H14: 330 | I14: 50000 | J14: 9 | K14: 33000 | L14: 28 | M14: 17000 | N14: 0.66 | O14: 1470.588235 | P14: 970.5882353 | Q14: 3 | R14: 2 | S14: 계 | T14: 112A | W14: 112.8 | X14: 34 | Y14: 330 | Z14: 50000 | AA14: 33000 | AB14: 17000 | AC14: 0.66 | AD14: 1470.588235 | AE14: 계 | AF14: 3/2 | AH14: 동춘동 송도파크레인동일하이빌 | AI14: 34 | AJ14: A- | AK14: A | AL14: A | AM14: B+ | AN14: C | AO14: X | AP14: X | AQ14: X | AR14: X | AS14: X | AT14: O | AU14: O | AV14: X | AX14: 2019 | AY14: 3
A15: 동춘동 송도파크레인동일하이빌 | B15: 19.03 | C15: 1180 | D15: 114.7 | E15: 35 | F15: 85 | G15: 26 | H15: 347 | I15: 49000 | J15: 중 | K15: 36000 | L15: 중 | M15: 13000 | N15: 0.7346938776 | O15: 1400 | P15: 1028.571429 | Q15: 3 | R15: 2 | S15: 계 | T15: 114B | W15: 114.7 | X15: 35 | Y15: 347 | Z15: 49000 | AA15: 36000 | AB15: 13000 | AC15: 0.7346938776 | AD15: 1400 | AE15: 계 | AF15: 3/2 | AH15: 동춘동 송도파크레인동일하이빌 | AI15: 35 | AJ15: A- | AK15: A | AL15: A | AM15: B+ | AN15: C | AO15: X | AP15: X | AQ15: X | AR15: X | AS15: X | AT15: O | AU15: O | AV15: X | AX15: 2019 | AY15: 3
A16: 동춘동 송도파크레인동일하이빌 | B16: 19.03 | C16: 1180 | D16: 124.6 | E16: 38 | F16: 93.7 | G16: 28 | H16: 150 | I16: 55000 | J16: 5 | K16: 40000 | L16: 26 | M16: 15000 | N16: 0.7272727273 | O16: 1447.368421 | P16: 1052.631579 | Q16: 4 | R16: 2 | S16: 계 | T16: 124 | W16: 124.6 | X16: 38 | Y16: 150 | Z16: 55000 | AA16: 40000 | AB16: 15000 | AC16: 0.7272727273 | AD16: 1447.368421 | AE16: 계 | AF16: 4/2 | AH16: 동춘동 송도파크레인동일하이빌 | AI16: 38 | AJ16: A- | AK16: A | AL16: A | AM16: B+ | AN16: C | AO16: X | AP16: X | AQ16: X | AR16: X | AS16: X | AT16: X | AU16: O | AV16: X | AX16: 2019 | AY16: 3
A17: 동춘동 삼성,럭키 | B17: 93.08 | C17: 1080 | D17: 114.1 | E17: 35 | F17: 95.8 | G17: 29 | H17: 960 | I17: 30000 | J17: 7 | K17: 26000 | M17: 4000 | N17: 0.8666666667 | O17: 857.1428571 | P17: 742.8571429 | Q17: 3 | R17: 2 | S17: 계 | T17: 114 | W17: =D17 -> 114.1 | X17: 35 | Y17: =H17 -> 960 | Z17: 30000 | AA17: 26000 | AB17: 4000 | AC17: 0.8666666667 | AD17: 857.1428571 | AE17: 계 | AF17: 3/2 | AH17: 동춘동 삼성,럭키 | AI17: 35 | AJ17: A- | AK17: A | AL17: A | AM17: B+ | AN17: C | AO17: O | AP17: O | AQ17: O | AR17: O | AS17: X | AT17: X | AU17: O | AV17: X | AX17: 1993 | AY17: 8
A18: 동춘동 삼성,럭키 | B18: 93.08 | C18: 1080 | D18: 139 | E18: 42 | F18: 119.4 | G18: 36 | H18: 120 | I18: 34000 | J18: 10 | K18: 28000 | M18: 6000 | N18: 0.8235294118 | O18: 809.5238095 | P18: 666.6666667 | Q18: 4 | R18: 2 | S18: 계 | T18: 139 | W18: 139 | X18: 42 | Y18: 120 | Z18: 34000 | AA18: 28000 | AB18: 6000 | AC18: 0.8235294118 | AD18: 809.5238095 | AE18: 계 | AF18: 4/2 | AH18: 동춘동 삼성,럭키 | AI18: 42 | AJ18: A- | AK18: A | AL18: A | AM18: B+ | AN18: C | AO18: O | AP18: O | AQ18: O | AR18: O | AS18: X | AT18: X | AU18: O | AV18: X | AX18: 1993 | AY18: 8
A19: 동춘동 무지개마을 | B19: 95.08 | C19: 1068 | D19: 78.6 | E19: 24 | F19: 59.8 | G19: 18 | H19: 534 | I19: 24000 | J19: 5 | K19: 22000 | L19: 9 | M19: 2000 | N19: 0.9166666667 | O19: 1000 | P19: 916.6666667 | Q19: 3 | R19: 1 | S19: 계 | T19: 78 | W19: 78.6 | X19: 24 | Y19: 534 | Z19: 24000 | AA19: 22000 | AB19: 2000 | AC19: 0.9166666667 | AD19: 1000 | AE19: 계 | AF19: 3/1 | AH19: 동춘동 무지개마을 | AI19: 24 | AJ19: A- | AK19: A | AL19: A | AM19: B+ | AN19: C | AO19: O | AP19: O | AQ19: O | AR19: O | AS19: X | AT19: O | AU19: O | AV19: 후보 | AX19: 1995 | AY19: 8
A20: 동춘동 무지개마을 | B20: 95.08 | C20: 1068 | D20: 106.2 | E20: 32 | F20: 85 | G20: 26 | H20: 534 | I20: 29500 | J20: 4 | K20: 26000 | L20: 5 | M20: 3500 | N20: 0.8813559322 | O20: 921.875 | P20: 812.5 | Q20: 3 | R20: 2 | S20: 계 | T20: 106 | W20: 106.2 | X20: 32 | Y20: 534 | Z20: 29500 | AA20: 26000 | AB20: 3500 | AC20: 0.8813559322 | AD20: 921.875 | AE20: 계 | AF20: 3/2 | AH20: 동춘동 무지개마을 | AI20: 32 | AJ20: A- | AK20: A | AL20: A | AM20: B+ | AN20: C | AO20: O | AP20: O | AQ20: O | AR20: O | AS20: X | AT20: O | AU20: O | AV20: 후보 | AX20: 1995 | AY20: 8
A21: 동춘동 연수타운(금호,동아) | B21: 93.04 | C21: 1056 | D21: 115.3 | E21: 35 | F21: 94.8 | G21: 29 | H21: 120 | I21: 31500 | J21: 6 | K21: 26000 | M21: 5500 | N21: 0.8253968254 | O21: 900 | P21: 742.8571429 | Q21: 3 | R21: 2 | S21: 계 | T21: 115 | W21: =D21 -> 115.3 | X21: 35 | Y21: =H21 -> 120 | Z21: 31500 | AA21: 26000 | AB21: 5500 | AC21: 0.8253968254 | AD21: 900 | AE21: 계 | AF21: 3/2 | AH21: 동춘동 연수타운(금호,동아) | AI21: 35 | AJ21: A- | AK21: A | AL21: A | AM21: B+ | AN21: C | AO21: O | AP21: O | AQ21: O | AR21: O | AS21: X | AT21: X | AU21: O | AV21: X | AX21: 1993 | AY21: 4
A22: 동춘동 연수타운(금호,동아) | B22: 93.04 | C22: 1056 | D22: 124 | E22: 38 | F22: 102 | G22: 31 | H22: 616 | I22: 32000 | J22: 8 | K22: 26000 | M22: 6000 | N22: 0.8125 | O22: 842.1052632 | P22: 684.2105263 | Q22: 4 | R22: 2 | S22: 계 | T22: 124 | W22: 124 | X22: 38 | Y22: 616 | Z22: 32000 | AA22: 26000 | AB22: 6000 | AC22: 0.8125 | AD22: 842.1052632 | AE22: 계 | AF22: 4/2 | AH22: 동춘동 연수타운(금호,동아) | AI22: 38 | AJ22: A- | AK22: A | AL22: A | AM22: B+ | AN22: C | AO22: O | AP22: O | AQ22: O | AR22: O | AS22: X | AT22: X | AU22: O | AV22: X | AX22: 1993 | AY22: 4
A23: 동춘동 연수타운(금호,동아) | B23: 93.04 | C23: 1056 | D23: 163.7 | E23: 50 | F23: 134.6 | G23: 41 | H23: 320 | I23: 38000 | J23: 7 | K23: 29000 | L23: 14 | M23: 9000 | N23: 0.7631578947 | O23: 760 | P23: 580 | Q23: 4 | R23: 2 | S23: 계 | T23: 163 | W23: 163.7 | X23: 50 | Y23: 320 | Z23: 38000 | AA23: 29000 | AB23: 9000 | AC23: 0.7631578947 | AD23: 760 | AE23: 계 | AF23: 4/2 | AH23: 동춘동 연수타운(금호,동아) | AI23: 50 | AJ23: A- | AK23: A | AL23: A | AM23: B+ | AN23: C | AO23: X | AP23: O | AQ23: O | AR23: X | AS23: X | AT23: X | AU23: O | AV23: X | AX23: 1993 | AY23: 4
A24: 동춘동 연수서해그랑블1단지 | B24: 17.11 | C24: 1043 | D24: 94.9 | E24: 29 | F24: 70.8 | G24: 21 | H24: 197 | I24: 40000 | J24: 4 | K24: 29000 | L24: 중 | M24: =I24-K24 -> 11000 | N24: =IF(ISERROR(K24/I24),"",K24/I24) -> 0.725 | O24: =I24/E24 -> 1379.310345 | P24: =K24/E24 -> 1000 | Q24: 3 | R24: 2 | S24: 계 | T24: 94A | W24: 94.9 | X24: 29 | Y24: 197 | Z24: 40000 | AA24: =K24 -> 29000 | AB24: 11000 | AC24: 0.725 | AD24: 1379.310345 | AE24: =S24 -> 계 | AF24: =Q24&"/"&R24 -> 3/2 | AH24: 동춘동 연수서해그랑블1단지 | AI24: 29 | AJ24: =IF(AI24="","",$AJ$2) -> A- | AK24: A | AL24: A | AM24: B+ | AN24: =IF(AI24="","",$AN$2) -> C | AO24: =IF(N24="","",IF(N24>=$AO$1/100,"O","X")) -> X | AP24: =IF(I24="","",IF(I24<=$AP$1,"O","X")) -> O | AQ24: =IF(O24="","",IF(O24<=$AQ$1,"O","X")) -> X | AR24: =IF(M24="","",IF(M24<=$AR$1,"O","X")) -> X | AS24: X | AT24: =IF(OR(F24="",AI24=""),"",IF(AND((F24<=85),(AI24>=15)),"O","X")) -> O | AU24: =IF(C24="","",IF(C24>=$AU$1,"O","X")) -> O | AV24: =IF(AO24="","",IF(AND(AO24="O",AP24="O",AR24="O",AT24="O",AU24="O"),"후보","X")) -> X | AX24: 2017 | AY24: 11
A25: 동춘동 연수서해그랑블1단지 | B25: 17.11 | C25: 1043 | D25: 94.9 | E25: 29 | F25: 70.8 | G25: 21 | H25: 264 | I25: 39000 | J25: 4 | K25: 29000 | M25: 10000 | N25: 0.7435897436 | O25: 1344.827586 | P25: 1000 | Q25: 3 | R25: 2 | S25: 계 | T25: 94B | W25: 94.9 | X25: 29 | Y25: 264 | Z25: 39000 | AA25: 29000 | AB25: 10000 | AC25: 0.7435897436 | AD25: 1344.827586 | AE25: 계 | AF25: 3/2 | AH25: 동춘동 연수서해그랑블1단지 | AI25: 29 | AJ25: A- | AK25: A | AL25: A | AM25: B+ | AN25: C | AO25: X | AP25: O | AQ25: X | AR25: X | AS25: X | AT25: O | AU25: O | AV25: X | AX25: 2017 | AY25: 11
A26: 동춘동 연수서해그랑블1단지 | B26: 17.11 | C26: 1043 | D26: 112.6 | E26: 34 | F26: 85 | G26: 26 | H26: 65 | I26: 45000 | J26: 4 | K26: 33000 | L26: 중 | M26: 12000 | N26: 0.7333333333 | O26: 1323.529412 | P26: 970.5882353 | Q26: 3 | R26: 3 | S26: 계 | T26: 112D | W26: 112.6 | X26: 34 | Y26: 65 | Z26: 45000 | AA26: 33000 | AB26: =M26 -> 12000 | AC26: 0.7333333333 | AD26: 1323.529412 | AE26: 계 | AF26: 3/3 | AH26: 동춘동 연수서해그랑블1단지 | AI26: 34 | AJ26: A- | AK26: A | AL26: A | AM26: B+ | AN26: C | AO26: X | AP26: O | AQ26: X | AR26: X | AS26: X | AT26: O | AU26: O | AV26: X | AX26: 2017 | AY26: 11
A27: 동춘동 연수서해그랑블1단지 | B27: 17.11 | C27: 1043 | D27: 112.9 | E27: 34 | F27: 85 | G27: 26 | H27: 468 | I27: 45000 | J27: 중 | K27: 35000 | M27: 10000 | N27: 0.7777777778 | O27: 1323.529412 | P27: 1029.411765 | Q27: 4 | R27: 2 | S27: 계 | T27: 112C | W27: 112.9 | X27: 34 | Y27: 468 | Z27: 45000 | AA27: 35000 | AB27: 10000 | AC27: 0.7777777778 | AD27: 1323.529412 | AE27: 계 | AF27: 4/2 | AH27: 동춘동 연수서해그랑블1단지 | AI27: 34 | AJ27: A- | AK27: A | AL27: A | AM27: B+ | AN27: C | AO27: X | AP27: O | AQ27: X | AR27: X | AS27: X | AT27: O | AU27: O | AV27: X | AX27: 2017 | AY27: 11
A28: 동춘동 연수서해그랑블1단지 | B28: 17.11 | C28: 1043 | D28: 114.5 | E28: 35 | F28: 84.8 | G28: 26 | H28: 8 | I28: 50000 | K28: 35000 | M28: 15000 | N28: 0.7 | O28: 1428.571429 | P28: 1000 | Q28: 4 | R28: 2 | S28: 계 | T28: 114A | W28: 114.5 | X28: 35 | Y28: 8 | Z28: 50000 | AA28: 35000 | AB28: 15000 | AC28: 0.7 | AD28: 1428.571429 | AE28: 계 | AF28: 4/2 | AH28: 동춘동 연수서해그랑블1단지 | AI28: 35 | AJ28: A- | AK28: A | AL28: A | AM28: B+ | AN28: C | AO28: X | AP28: X | AQ28: X | AR28: X | AS28: X | AT28: O | AU28: O | AV28: X | AX28: 2017 | AY28: 11
A29: 동춘동 연수서해그랑블1단지 | B29: 17.11 | C29: 1043 | D29: 114.9 | E29: 35 | F29: 84.4 | G29: 26 | H29: 16 | I29: 50000 | K29: 35000 | M29: 15000 | N29: 0.7 | O29: 1428.571429 | P29: 1000 | Q29: 4 | R29: 2 | S29: 계 | T29: 114B | W29: 114.9 | X29: 35 | Y29: 16 | Z29: 50000 | AA29: 35000 | AB29: 15000 | AC29: 0.7 | AD29: 1428.571429 | AE29: 계 | AF29: 4/2 | AH29: 동춘동 연수서해그랑블1단지 | AI29: 35 | AJ29: A- | AK29: A | AL29: A | AM29: B+ | AN29: C | AO29: X | AP29: X | AQ29: X | AR29: X | AS29: X | AT29: O | AU29: O | AV29: X | AX29: 2017 | AY29: 11
A30: 동춘동 연수서해그랑블1단지 | B30: 17.11 | C30: 1043 | D30: 140.5 | E30: 43 | F30: 105.7 | G30: 32 | H30: 25 | I30: 55000 | K30: 38000 | M30: 17000 | N30: 0.6909090909 | O30: 1279.069767 | P30: 883.7209302 | Q30: 5 | R30: 2 | S30: 계 | T30: 140 | W30: 140.5 | X30: 43 | Y30: 25 | Z30: 55000 | AA30: 38000 | AB30: 17000 | AC30: 0.6909090909 | AD30: 1279.069767 | AE30: 계 | AF30: 5/2 | AH30: 동춘동 연수서해그랑블1단지 | AI30: 43 | AJ30: A- | AK30: A | AL30: A | AM30: B+ | AN30: C | AO30: X | AP30: X | AQ30: X | AR30: X | AS30: X | AT30: X | AU30: O | AV30: X | AX30: 2017 | AY30: 11
A31: 동춘동 현대1차 | B31: 93.01 | C31: 1040 | D31: 108.9 | E31: 33 | F31: 85 | G31: 26 | H31: 1040 | I31: 34500 | J31: 4 | K31: 26000 | L31: 3 | M31: =I31-K31 -> 8500 | N31: =IF(ISERROR(K31/I31),"",K31/I31) -> 0.7536231884 | O31: =I31/E31 -> 1045.454545 | P31: =K31/E31 -> 787.8787879 | Q31: 3 | R31: 2 | S31: 계 | T31: 108 | W31: =D31 -> 108.9 | X31: =E31 -> 33 | Y31: =H31 -> 1040 | Z31: =I31 -> 34500 | AA31: =K31 -> 26000 | AB31: =M31 -> 8500 | AC31: =N31 -> 0.7536231884 | AD31: =O31 -> 1045.454545 | AE31: =S31 -> 계 | AF31: =Q31&"/"&R31 -> 3/2 | AH31: 동춘동 현대1차 | AI31: 33 | AJ31: =IF(AI31="","",$AJ$2) -> A- | AK31: A | AL31: A | AM31: B+ | AN31: =IF(AI31="","",$AN$2) -> C | AO31: =IF(N31="","",IF(N31>=$AO$1/100,"O","X")) -> X | AP31: =IF(I31="","",IF(I31<=$AP$1,"O","X")) -> O | AQ31: =IF(O31="","",IF(O31<=$AQ$1,"O","X")) -> X | AR31: =IF(M31="","",IF(M31<=$AR$1,"O","X")) -> X | AS31: X | AT31: =IF(OR(F31="",AI31=""),"",IF(AND((F31<=85),(AI31>=15)),"O","X")) -> O | AU31: =IF(C31="","",IF(C31>=$AU$1,"O","X")) -> O | AV31: =IF(AO31="","",IF(AND(AO31="O",AP31="O",AR31="O",AT31="O",AU31="O"),"후보","X")) -> X | AX31: 1993 | AY31: 1
A32: 동춘동 송도파크자이 | B32: 19.05 | C32: 1023 | D32: 100.5 | E32: 30 | F32: 77 | G32: 23 | H32: 111 | I32: 55000 | J32: 12 | K32: 30000 | M32: =I32-K32 -> 25000 | N32: =IF(ISERROR(K32/I32),"",K32/I32) -> 0.5454545455 | O32: =I32/E32 -> 1833.333333 | P32: =K32/E32 -> 1000 | Q32: 3 | R32: 2 | S32: 계 | T32: 100B | W32: =D32 -> 100.5 | X32: 30 | Y32: =H32 -> 111 | Z32: 55000 | AA32: =K32 -> 30000 | AB32: =M32 -> 25000 | AC32: 0.5454545455 | AD32: 1833.333333 | AE32: =S32 -> 계 | AF32: =Q32&"/"&R32 -> 3/2 | AH32: 동춘동 송도파크자이 | AI32: 30 | AJ32: =IF(AI32="","",$AJ$2) -> A- | AK32: A | AL32: A | AM32: B+ | AN32: =IF(AI32="","",$AN$2) -> C | AO32: =IF(N32="","",IF(N32>=$AO$1/100,"O","X")) -> X | AP32: =IF(I32="","",IF(I32<=$AP$1,"O","X")) -> X | AQ32: =IF(O32="","",IF(O32<=$AQ$1,"O","X")) -> X | AR32: =IF(M32="","",IF(M32<=$AR$1,"O","X")) -> X | AS32: X | AT32: =IF(OR(F32="",AI32=""),"",IF(AND((F32<=85),(AI32>=15)),"O","X")) -> O | AU32: =IF(C32="","",IF(C32>=$AU$1,"O","X")) -> O | AV32: =IF(AO32="","",IF(AND(AO32="O",AP32="O",AR32="O",AT32="O",AU32="O"),"후보","X")) -> X | AX32: 2019 | AY32: 5
A33: 동춘동 송도파크자이 | B33: 19.05 | C33: 1023 | D33: 100.6 | E33: 30 | F33: 76.8 | G33: 23 | H33: 142 | I33: 55000 | K33: 30000 | M33: 25000 | N33: 0.5454545455 | O33: 1833.333333 | P33: 1000 | Q33: 3 | R33: 2 | S33: 계 | T33: 100A | W33: 100.6 | X33: 30 | Y33: 142 | Z33: 55000 | AA33: 30000 | AB33: 25000 | AC33: 0.5454545455 | AD33: 1833.333333 | AE33: 계 | AF33: 3/2 | AH33: 동춘동 송도파크자이 | AI33: 30 | AJ33: A- | AK33: A | AL33: A | AM33: B+ | AN33: C | AO33: X | AP33: X | AQ33: X | AR33: X | AS33: X | AT33: O | AU33: O | AV33: X | AX33: 2019 | AY33: 5
A34: 동춘동 송도파크자이 | B34: 19.05 | C34: 1023 | D34: 109.8 | E34: 33 | F34: 84.9 | G34: 26 | H34: 296 | I34: 60000 | J34: 고 | K34: 33000 | L34: 고 | M34: 27000 | N34: 0.55 | O34: 1818.181818 | P34: 1000 | Q34: 3 | R34: 2 | S34: 계 | T34: 109B | W34: 109.8 | X34: 33 | Y34: 296 | Z34: 60000 | AA34: 33000 | AB34: 27000 | AC34: 0.55 | AD34: 1818.181818 | AE34: 계 | AF34: 3/2 | AH34: 동춘동 송도파크자이 | AI34: 33 | AJ34: A- | AK34: A | AL34: A | AM34: B+ | AN34: C | AO34: X | AP34: X | AQ34: X | AR34: X | AS34: X | AT34: O | AU34: O | AV34: X | AX34: 2019 | AY34: 5
A35: 동춘동 송도파크자이 | B35: 19.05 | C35: 1023 | D35: 109.9 | E35: 33 | F35: 84.9 | G35: 26 | H35: 381 | I35: 60000 | J35: 28 | K35: 38000 | L35: 중 | M35: 22000 | N35: 0.6333333333 | O35: 1818.181818 | P35: 1151.515152 | Q35: 3 | R35: 2 | S35: 계 | T35: 109A | W35: 109.9 | X35: 33 | Y35: 381 | Z35: 60000 | AA35: 38000 | AB35: 22000 | AC35: 0.6333333333 | AD35: 1818.181818 | AE35: 계 | AF35: 3/2 | AH35: 동춘동 송도파크자이 | AI35: 33 | AJ35: A- | AK35: A | AL35: A | AM35: B+ | AN35: C | AO35: X | AP35: X | AQ35: X | AR35: X | AS35: X | AT35: O | AU35: O | AV35: X | AX35: 2019 | AY35: 5
A36: 동춘동 송도파크자이 | B36: 19.05 | C36: 1023 | D36: 111.9 | E36: 34 | F36: 84.8 | G36: 26 | H36: 3 | I36: 60000 | K36: 38000 | M36: 22000 | N36: 0.6333333333 | O36: 1764.705882 | P36: 1117.647059 | Q36: 2 | R36: 2 | S36: 계 | T36: 111P | W36: 111.9 | X36: 34 | Y36: 3 | Z36: 60000 | AA36: 38000 | AB36: 22000 | AC36: 0.6333333333 | AD36: 1764.705882 | AE36: 계 | AF36: 2/2 | AH36: 동춘동 송도파크자이 | AI36: 34 | AJ36: A- | AK36: A | AL36: A | AM36: B+ | AN36: C | AO36: X | AP36: X | AQ36: X | AR36: X | AS36: X | AT36: O | AU36: O | AV36: X | AX36: 2019 | AY36: 5
A37: 동춘동 송도파크자이 | B37: 19.05 | C37: 1023 | D37: 131.2 | E37: 40 | F37: 102 | G37: 31 | H37: 87 | I37: 70000 | K37: 40000 | M37: 30000 | N37: 0.5714285714 | O37: 1750 | P37: 1000 | Q37: 4 | R37: 2 | S37: 계 | T37: 131A | W37: 131.2 | X37: 40 | Y37: 87 | Z37: 70000 | AA37: 40000 | AB37: 30000 | AC37: 0.5714285714 | AD37: 1750 | AE37: 계 | AF37: 4/2 | AH37: 동춘동 송도파크자이 | AI37: 40 | AJ37: A- | AK37: A | AL37: A | AM37: B+ | AN37: C | AO37: X | AP37: X | AQ37: X | AR37: X | AS37: X | AT37: X | AU37: O | AV37: X | AX37: 2019 | AY37: 5
A38: 동춘동 송도파크자이 | B38: 19.05 | C38: 1023 | D38: 132.7 | E38: 40 | F38: 101.2 | G38: 31 | H38: 3 | I38: 70000 | K38: 40000 | M38: 30000 | N38: 0.5714285714 | O38: 1750 | P38: 1000 | Q38: 4 | R38: 2 | S38: 계 | T38: 132P | W38: 132.7 | X38: 40 | Y38: 3 | Z38: 70000 | AA38: 40000 | AB38: 30000 | AC38: 0.5714285714 | AD38: 1750 | AE38: 계 | AF38: 4/2 | AH38: 동춘동 송도파크자이 | AI38: 40 | AJ38: A- | AK38: A | AL38: A | AM38: B+ | AN38: C | AO38: X | AP38: X | AQ38: X | AR38: X | AS38: X | AT38: X | AU38: O | AV38: X | AX38: 2019 | AY38: 5
A39: 동춘동 한양1차 | B39: 94.12 | C39: 1020 | D39: 106.8 | E39: 32 | F39: 85.3 | G39: 26 | H39: 9 | I39: 31000 | K39: 26000 | M39: 5000 | N39: 0.8387096774 | O39: 968.75 | P39: 812.5 | Q39: 3 | R39: 2 | S39: 계 | T39: 106 | W39: 106.8 | X39: 32 | Y39: 9 | Z39: 31000 | AA39: 26000 | AB39: 5000 | AC39: 0.8387096774 | AD39: 968.75 | AE39: 계 | AF39: 3/2 | AH39: 동춘동 한양1차 | AI39: 32 | AJ39: A- | AK39: A | AL39: A | AM39: B+ | AN39: C | AO39: O | AP39: O | AQ39: O | AR39: O | AS39: X | AT39: X | AU39: O | AV39: X | AX39: 1994 | AY39: 12
A40: 동춘동 한양1차 | B40: 94.12 | C40: 1020 | D40: 111.3 | E40: 34 | F40: 88.9 | G40: 27 | H40: 393 | I40: 31500 | J40: 16 | K40: 27000 | L40: 5 | M40: 4500 | N40: 0.8571428571 | O40: 926.4705882 | P40: 794.1176471 | Q40: 3 | R40: 2 | S40: 계 | T40: 111A | W40: 111.3 | X40: 34 | Y40: 393 | Z40: 31500 | AA40: 27000 | AB40: 4500 | AC40: 0.8571428571 | AD40: 926.4705882 | AE40: 계 | AF40: 3/2 | AH40: 동춘동 한양1차 | AI40: 34 | AJ40: A- | AK40: A | AL40: A | AM40: B+ | AN40: C | AO40: O | AP40: O | AQ40: O | AR40: O | AS40: X | AT40: X | AU40: O | AV40: X | AX40: 1994 | AY40: 12
A41: 동춘동 한양1차 | B41: 94.12 | C41: 1020 | D41: 112 | E41: 34 | F41: 90.2 | G41: 27 | H41: 11 | I41: 31500 | K41: 27500 | L41: 중 | M41: 4000 | N41: 0.873015873 | O41: 926.4705882 | P41: 808.8235294 | Q41: 3 | R41: 2 | S41: 계 | T41: 112B | W41: 112 | X41: 34 | Y41: 11 | Z41: 31500 | AA41: 27500 | AB41: 4000 | AC41: 0.873015873 | AD41: 926.4705882 | AE41: 계 | AF41: 3/2 | AH41: 동춘동 한양1차 | AI41: 34 | AJ41: A- | AK41: A | AL41: A | AM41: B+ | AN41: C | AO41: O | AP41: O | AQ41: O | AR41: O | AS41: X | AT41: X | AU41: O | AV41: X | AX41: 1994 | AY41: 12
A42: 동춘동 한양1차 | B42: 94.12 | C42: 1020 | D42: 126.6 | E42: 38 | F42: 101.9 | G42: 31 | H42: 451 | I42: 32000 | J42: 8 | K42: 26000 | M42: 6000 | N42: 0.8125 | O42: 842.1052632 | P42: 684.2105263 | Q42: 4 | R42: 2 | S42: 계 | T42: 126 | W42: 126.6 | X42: 38 | Y42: 451 | Z42: 32000 | AA42: 26000 | AB42: 6000 | AC42: 0.8125 | AD42: 842.1052632 | AE42: 계 | AF42: 4/2 | AH42: 동춘동 한양1차 | AI42: 38 | AJ42: A- | AK42: A | AL42: A | AM42: B+ | AN42: C | AO42: O | AP42: O | AQ42: O | AR42: O | AS42: X | AT42: X | AU42: O | AV42: X | AX42: 1994 | AY42: 12
A43: 동춘동 한양1차 | B43: 94.12 | C43: 1020 | D43: 144.3 | E43: 44 | F43: 119.3 | G43: 36 | H43: 4 | I43: 38000 | K43: 27000 | M43: 11000 | N43: 0.7105263158 | O43: 863.6363636 | P43: 613.6363636 | Q43: 3 | R43: 2 | S43: 계 | T43: 144 | W43: 144.3 | X43: 44 | Y43: 4 | Z43: 38000 | AA43: 27000 | AB43: 11000 | AC43: 0.7105263158 | AD43: 863.6363636 | AE43: 계 | AF43: 3/2 | AH43: 동춘동 한양1차 | AI43: 44 | AJ43: A- | AK43: A | AL43: A | AM43: B+ | AN43: C | AO43: X | AP43: O | AQ43: O | AR43: X | AS43: X | AT43: X | AU43: O | AV43: X | AX43: 1994 | AY43: 12
A44: 동춘동 한양1차 | B44: 94.12 | C44: 1020 | D44: 161.5 | E44: 49 | F44: 133.4 | G44: 40 | H44: 152 | I44: 42000 | J44: 6 | K44: 28000 | M44: 14000 | N44: 0.6666666667 | O44: 857.1428571 | P44: 571.4285714 | Q44: 4 | R44: 2 | S44: 계 | T44: 161 | W44: 161.5 | X44: 49 | Y44: 152 | Z44: 42000 | AA44: 28000 | AB44: 14000 | AC44: 0.6666666667 | AD44: 857.1428571 | AE44: 계 | AF44: 4/2 | AH44: 동춘동 한양1차 | AI44: 49 | AJ44: A- | AK44: A | AL44: A | AM44: B+ | AN44: C | AO44: X | AP44: O | AQ44: O | AR44: X | AS44: X | AT44: X | AU44: O | AV44: X | AX44: 1994 | AY44: 12
A45: 동춘동 건영 | B45: 94.04 | C45: 970 | D45: 87.1 | E45: 26 | F45: 73.7 | G45: 22 | H45: 50 | I45: 23000 | K45: 20000 | M45: =I45-K45 -> 3000 | N45: =IF(ISERROR(K45/I45),"",K45/I45) -> 0.8695652174 | O45: =I45/E45 -> 884.6153846 | P45: =K45/E45 -> 769.2307692 | Q45: 3 | R45: 1 | S45: 계 | T45: 87 | W45: =D45 -> 87.1 | X45: 26 | Y45: =H45 -> 50 | Z45: 23000 | AA45: =K45 -> 20000 | AB45: 3000 | AC45: 0.8695652174 | AD45: 884.6153846 | AE45: =S45 -> 계 | AF45: =Q45&"/"&R45 -> 3/1 | AH45: 동춘동 건영 | AI45: 26 | AJ45: =IF(AI45="","",$AJ$2) -> A- | AK45: A | AL45: A | AM45: B+ | AN45: =IF(AI45="","",$AN$2) -> C | AO45: =IF(N45="","",IF(N45>=$AO$1/100,"O","X")) -> O | AP45: =IF(I45="","",IF(I45<=$AP$1,"O","X")) -> O | AQ45: =IF(O45="","",IF(O45<=$AQ$1,"O","X")) -> O | AR45: =IF(M45="","",IF(M45<=$AR$1,"O","X")) -> O | AS45: X | AT45: =IF(OR(F45="",AI45=""),"",IF(AND((F45<=85),(AI45>=15)),"O","X")) -> O | AU45: =IF(C45="","",IF(C45>=$AU$1,"O","X")) -> O | AV45: =IF(AO45="","",IF(AND(AO45="O",AP45="O",AR45="O",AT45="O",AU45="O"),"후보","X")) -> 후보 | AX45: 1994 | AY45: 4
A46: 동춘동 건영 | B46: 94.04 | C46: 970 | D46: 99.4 | E46: 30 | F46: 84.9 | G46: 26 | H46: 920 | I46: 25000 | J46: 4 | K46: 23000 | M46: =I46-K46 -> 2000 | N46: =IF(ISERROR(K46/I46),"",K46/I46) -> 0.92 | O46: =I46/E46 -> 833.3333333 | P46: =K46/E46 -> 766.6666667 | Q46: 3 | R46: 2 | S46: 계 | T46: 99 | W46: 99.4 | X46: 30 | Y46: 920 | Z46: 25000 | AA46: =K46 -> 23000 | AB46: 2000 | AC46: 0.92 | AD46: 833.3333333 | AE46: =S46 -> 계 | AF46: =Q46&"/"&R46 -> 3/2 | AH46: 동춘동 건영 | AI46: 30 | AJ46: =IF(AI46="","",$AJ$2) -> A- | AK46: A | AL46: A | AM46: B+ | AN46: =IF(AI46="","",$AN$2) -> C | AO46: =IF(N46="","",IF(N46>=$AO$1/100,"O","X")) -> O | AP46: =IF(I46="","",IF(I46<=$AP$1,"O","X")) -> O | AQ46: =IF(O46="","",IF(O46<=$AQ$1,"O","X")) -> O | AR46: =IF(M46="","",IF(M46<=$AR$1,"O","X")) -> O | AS46: X | AT46: =IF(OR(F46="",AI46=""),"",IF(AND((F46<=85),(AI46>=15)),"O","X")) -> O | AU46: =IF(C46="","",IF(C46>=$AU$1,"O","X")) -> O | AV46: =IF(AO46="","",IF(AND(AO46="O",AP46="O",AR46="O",AT46="O",AU46="O"),"후보","X")) -> 후보 | AX46: 1994 | AY46: 4
A47: 동춘동 동춘마을 | B47: 94.06 | C47: 930 | D47: 79 | E47: 24 | F47: 59.4 | G47: 18 | H47: 930 | I47: 20500 | J47: 3 | K47: 17000 | L47: 4 | M47: =I47-K47 -> 3500 | N47: =IF(ISERROR(K47/I47),"",K47/I47) -> 0.8292682927 | O47: =I47/E47 -> 854.1666667 | P47: =K47/E47 -> 708.3333333 | Q47: 3 | R47: 1 | S47: 계 | T47: 79 | W47: 79 | X47: 24 | Y47: 930 | Z47: 20500 | AA47: =K47 -> 17000 | AB47: =M47 -> 3500 | AC47: =N47 -> 0.8292682927 | AD47: =O47 -> 854.1666667 | AE47: =S47 -> 계 | AF47: =Q47&"/"&R47 -> 3/1 | AH47: 동춘동 동춘마을 | AI47: 24 | AJ47: =IF(AI47="","",$AJ$2) -> A- | AK47: A | AL47: A | AM47: B+ | AN47: =IF(AI47="","",$AN$2) -> C | AO47: =IF(N47="","",IF(N47>=$AO$1/100,"O","X")) -> O | AP47: =IF(I47="","",IF(I47<=$AP$1,"O","X")) -> O | AQ47: =IF(O47="","",IF(O47<=$AQ$1,"O","X")) -> O | AR47: =IF(M47="","",IF(M47<=$AR$1,"O","X")) -> O | AS47: X | AT47: =IF(OR(F47="",AI47=""),"",IF(AND((F47<=85),(AI47>=15)),"O","X")) -> O | AU47: =IF(C47="","",IF(C47>=$AU$1,"O","X")) -> O | AV47: =IF(AO47="","",IF(AND(AO47="O",AP47="O",AR47="O",AT47="O",AU47="O"),"후보","X")) -> 후보 | AX47: 1994 | AY47: 6
A48: 동춘동 현대,대림2차 | B48: 94.06 | C48: 700 | D48: 113.2 | E48: 34 | F48: 96.2 | G48: 29 | H48: 130 | I48: 33000 | J48: 5 | K48: 24000 | L48: 3 | M48: =I48-K48 -> 9000 | N48: =IF(ISERROR(K48/I48),"",K48/I48) -> 0.7272727273 | O48: =I48/E48 -> 970.5882353 | P48: =K48/E48 -> 705.8823529 | Q48: 3 | R48: 2 | S48: 계 | T48: 113A | W48: =D48 -> 113.2 | X48: 34 | Y48: =H48 -> 130 | Z48: 33000 | AA48: =K48 -> 24000 | AB48: =M48 -> 9000 | AC48: 0.7272727273 | AD48: 970.5882353 | AE48: =S48 -> 계 | AF48: =Q48&"/"&R48 -> 3/2 | AH48: 동춘동 현대,대림2차 | AI48: 34 | AJ48: =IF(AI48="","",$AJ$2) -> A- | AK48: A | AL48: A | AM48: B+ | AN48: =IF(AI48="","",$AN$2) -> C | AO48: =IF(N48="","",IF(N48>=$AO$1/100,"O","X")) -> X | AP48: =IF(I48="","",IF(I48<=$AP$1,"O","X")) -> O | AQ48: =IF(O48="","",IF(O48<=$AQ$1,"O","X")) -> O | AR48: =IF(M48="","",IF(M48<=$AR$1,"O","X")) -> X | AS48: X | AT48: =IF(OR(F48="",AI48=""),"",IF(AND((F48<=85),(AI48>=15)),"O","X")) -> X | AU48: =IF(C48="","",IF(C48>=$AU$1,"O","X")) -> O | AV48: =IF(AO48="","",IF(AND(AO48="O",AP48="O",AR48="O",AT48="O",AU48="O"),"후보","X")) -> X | AX48: 1994 | AY48: 6
A49: 동춘동 현대,대림2차 | B49: 94.06 | C49: 700 | D49: 113.4 | E49: 34 | F49: 96.7 | G49: 29 | H49: 130 | I49: 31000 | J49: 4 | K49: 23000 | L49: 5 | M49: 8000 | N49: 0.7419354839 | O49: 911.7647059 | P49: 676.4705882 | Q49: 3 | R49: 2 | S49: 계 | T49: 113B | W49: 113.4 | X49: 34 | Y49: 130 | Z49: 31000 | AA49: 23000 | AB49: 8000 | AC49: 0.7419354839 | AD49: 911.7647059 | AE49: 계 | AF49: 3/2 | AH49: 동춘동 현대,대림2차 | AI49: 34 | AJ49: A- | AK49: A | AL49: A | AM49: B+ | AN49: C | AO49: X | AP49: O | AQ49: O | AR49: X | AS49: X | AT49: X | AU49: O | AV49: X | AX49: 1994 | AY49: 6
A50: 동춘동 현대,대림2차 | B50: 94.06 | C50: 700 | D50: 123.3 | E50: 37 | F50: 101.7 | G50: 31 | H50: 180 | I50: 32500 | J50: 5 | K50: 29000 | L50: 2 | M50: 3500 | N50: 0.8923076923 | O50: 878.3783784 | P50: 783.7837838 | Q50: 4 | R50: 2 | S50: 계 | T50: 123A | W50: 123.3 | X50: 37 | Y50: 180 | Z50: 32500 | AA50: 29000 | AB50: 3500 | AC50: 0.8923076923 | AD50: 878.3783784 | AE50: 계 | AF50: 4/2 | AH50: 동춘동 현대,대림2차 | AI50: 37 | AJ50: A- | AK50: A | AL50: A | AM50: B+ | AN50: C | AO50: O | AP50: O | AQ50: O | AR50: O | AS50: X | AT50: X | AU50: O | AV50: X | AX50: 1994 | AY50: 6
A51: 동춘동 현대,대림2차 | B51: 94.06 | C51: 700 | D51: 123.7 | E51: 37 | F51: 101.9 | G51: 31 | H51: 180 | I51: 33000 | J51: 12 | K51: 27000 | L51: 12 | M51: 6000 | N51: 0.8181818182 | O51: 891.8918919 | P51: 729.7297297 | Q51: 4 | R51: 2 | S51: 계 | T51: 123B | W51: 123.7 | X51: 37 | Y51: 180 | Z51: 33000 | AA51: 27000 | AB51: 6000 | AC51: 0.8181818182 | AD51: 891.8918919 | AE51: 계 | AF51: 4/2 | AH51: 동춘동 현대,대림2차 | AI51: 37 | AJ51: A- | AK51: A | AL51: A | AM51: B+ | AN51: C | AO51: O | AP51: O | AQ51: O | AR51: O | AS51: X | AT51: X | AU51: O | AV51: X | AX51: 1994 | AY51: 6
A52: 동춘동 현대,대림2차 | B52: 94.06 | C52: 700 | D52: 158.8 | E52: 48 | F52: 134.1 | G52: 41 | H52: 40 | I52: 43000 | J52: 7 | K52: 32000 | M52: 11000 | N52: 0.7441860465 | O52: 895.8333333 | P52: 666.6666667 | Q52: 4 | R52: 2 | S52: 계 | T52: 158B | W52: 158.8 | X52: 48 | Y52: 40 | Z52: 43000 | AA52: 32000 | AB52: 11000 | AC52: 0.7441860465 | AD52: 895.8333333 | AE52: 계 | AF52: 4/2 | AH52: 동춘동 현대,대림2차 | AI52: 48 | AJ52: A- | AK52: A | AL52: A | AM52: B+ | AN52: C | AO52: X | AP52: O | AQ52: O | AR52: X | AS52: X | AT52: X | AU52: O | AV52: X | AX52: 1994 | AY52: 6
A53: 동춘동 현대,대림2차 | B53: 94.06 | C53: 700 | D53: 159 | E53: 48 | F53: 133.8 | G53: 40 | H53: 40 | I53: 43000 | K53: 32000 | M53: 11000 | N53: 0.7441860465 | O53: 895.8333333 | P53: 666.6666667 | Q53: 4 | R53: 2 | S53: 계 | T53: 159A | W53: 159 | X53: 48 | Y53: 40 | Z53: 43000 | AA53: 32000 | AB53: 11000 | AC53: 0.7441860465 | AD53: 895.8333333 | AE53: 계 | AF53: 4/2 | AH53: 동춘동 현대,대림2차 | AI53: 48 | AJ53: A- | AK53: A | AL53: A | AM53: B+ | AN53: C | AO53: X | AP53: O | AQ53: O | AR53: X | AS53: X | AT53: X | AU53: O | AV53: X | AX53: 1994 | AY53: 6
A54: 동춘동 인천연수풍림3차 | B54: 93.12 | C54: 440 | D54: 99.2 | E54: 30 | F54: 84.3 | G54: 26 | H54: 440 | I54: 26500 | J54: 4 | K54: 22000 | L54: 4 | M54: =I54-K54 -> 4500 | N54: =IF(ISERROR(K54/I54),"",K54/I54) -> 0.8301886792 | O54: =I54/E54 -> 883.3333333 | P54: =K54/E54 -> 733.3333333 | Q54: 3 | R54: 2 | S54: 계 | T54: 99 | W54: =D54 -> 99.2 | X54: 30 | Y54: =H54 -> 440 | Z54: 26500 | AA54: =K54 -> 22000 | AB54: =M54 -> 4500 | AC54: 0.8301886792 | AD54: 883.3333333 | AE54: =S54 -> 계 | AF54: =Q54&"/"&R54 -> 3/2 | AH54: 동춘동 인천연수풍림3차 | AI54: 30 | AJ54: =IF(AI54="","",$AJ$2) -> A- | AK54: A | AL54: A | AM54: B+ | AN54: =IF(AI54="","",$AN$2) -> C | AO54: =IF(N54="","",IF(N54>=$AO$1/100,"O","X")) -> O | AP54: =IF(I54="","",IF(I54<=$AP$1,"O","X")) -> O | AQ54: =IF(O54="","",IF(O54<=$AQ$1,"O","X")) -> O | AR54: =IF(M54="","",IF(M54<=$AR$1,"O","X")) -> O | AS54: X | AT54: =IF(OR(F54="",AI54=""),"",IF(AND((F54<=85),(AI54>=15)),"O","X")) -> O | AU54: =IF(C54="","",IF(C54>=$AU$1,"O","X")) -> O | AV54: =IF(AO54="","",IF(AND(AO54="O",AP54="O",AR54="O",AT54="O",AU54="O"),"후보","X")) -> 후보 | AX54: 1993 | AY54: 12
A55: 동춘동 대림3차 | B55: 93.07 | C55: 408 | D55: 64.5 | E55: 20 | F55: 53 | G55: 16 | H55: 408 | I55: 16000 | J55: 4 | K55: 13000 | M55: 3000 | N55: 0.8125 | O55: 800 | P55: 650 | Q55: 2 | R55: 1 | S55: 계 | T55: 64 | W55: 64.5 | X55: 20 | Y55: 408 | Z55: 16000 | AA55: 13000 | AB55: 3000 | AC55: 0.8125 | AD55: 800 | AE55: 계 | AF55: 2/1 | AH55: 동춘동 대림3차 | AI55: 20 | AJ55: A- | AK55: A | AL55: A | AM55: B+ | AN55: C | AO55: O | AP55: O | AQ55: O | AR55: O | AS55: X | AT55: O | AU55: O | AV55: 후보 | AX55: 1993 | AY55: 7
A56: 동춘동 아주 | B56: 94.04 | C56: 348 | D56: 98.7 | E56: 30 | F56: 84.8 | G56: 26 | H56: 348 | I56: 21500 | J56: 5 | K56: 18000 | M56: 3500 | N56: 0.8372093023 | O56: 716.6666667 | P56: 600 | Q56: 3 | R56: 2 | S56: 계 | T56: 98 | W56: 98.7 | X56: 30 | Y56: 348 | Z56: 21500 | AA56: 18000 | AB56: 3500 | AC56: 0.8372093023 | AD56: 716.6666667 | AE56: 계 | AF56: 3/2 | AH56: 동춘동 아주 | AI56: 30 | AJ56: A- | AK56: A | AL56: A | AM56: B+ | AN56: C | AO56: O | AP56: O | AQ56: O | AR56: O | AS56: X | AT56: O | AU56: O | AV56: 후보 | AX56: 1994 | AY56: 4
A57: 동춘동 연수대우3차 | B57: 93.12 | C57: 344 | D57: 115.1 | E57: 35 | F57: 99.1 | G57: 30 | H57: 60 | I57: 28000 | J57: 3 | K57: 21000 | M57: 7000 | N57: 0.75 | O57: 800 | P57: 600 | Q57: 3 | R57: 2 | S57: 계 | T57: 115A | W57: =D57 -> 115.1 | X57: 35 | Y57: =H57 -> 60 | Z57: 28000 | AA57: 21000 | AB57: =M57 -> 7000 | AC57: 0.75 | AD57: 800 | AE57: 계 | AF57: 3/2 | AH57: 동춘동 연수대우3차 | AI57: 35 | AJ57: A- | AK57: A | AL57: A | AM57: B+ | AN57: C | AO57: X | AP57: O | AQ57: O | AR57: X | AS57: X | AT57: X | AU57: O | AV57: X | AX57: 1993 | AY57: 12
A58: 동춘동 연수대우3차 | B58: 93.12 | C58: 344 | D58: 116 | E58: 35 | F58: 100 | G58: 30 | H58: 140 | I58: 26000 | J58: 3 | K58: 21000 | M58: 5000 | N58: 0.8076923077 | O58: 742.8571429 | P58: 600 | Q58: 4 | R58: 2 | S58: 계 | T58: 116B | W58: 116 | X58: 35 | Y58: 140 | Z58: 26000 | AA58: 21000 | AB58: 5000 | AC58: 0.8076923077 | AD58: 742.8571429 | AE58: 계 | AF58: 4/2 | AH58: 동춘동 연수대우3차 | AI58: 35 | AJ58: A- | AK58: A | AL58: A | AM58: B+ | AN58: C | AO58: O | AP58: O | AQ58: O | AR58: O | AS58: X | AT58: X | AU58: O | AV58: X | AX58: 1993 | AY58: 12
A59: 동춘동 연수대우3차 | B59: 93.12 | C59: 344 | D59: 157.9 | E59: 48 | F59: 134.1 | G59: 41 | H59: 84 | I59: 38000 | J59: 2 | K59: 30000 | L59: 5 | M59: 8000 | N59: 0.7894736842 | O59: 791.6666667 | P59: 625 | Q59: 4 | R59: 2 | S59: 계 | T59: 157 | W59: 157.9 | X59: 48 | Y59: 84 | Z59: 38000 | AA59: 30000 | AB59: 8000 | AC59: 0.7894736842 | AD59: 791.6666667 | AE59: 계 | AF59: 4/2 | AH59: 동춘동 연수대우3차 | AI59: 48 | AJ59: A- | AK59: A | AL59: A | AM59: B+ | AN59: C | AO59: X | AP59: O | AQ59: O | AR59: X | AS59: X | AT59: X | AU59: O | AV59: X | AX59: 1993 | AY59: 12
A60: 동춘동 연수대우3차 | B60: 93.12 | C60: 344 | D60: 158.2 | E60: 48 | F60: 134 | G60: 41 | H60: 60 | I60: 38000 | J60: 3 | K60: 30000 | M60: 8000 | N60: 0.7894736842 | O60: 791.6666667 | P60: 625 | Q60: 4 | R60: 2 | S60: 계 | T60: 158S | W60: 158.2 | X60: 48 | Y60: 60 | Z60: 38000 | AA60: 30000 | AB60: 8000 | AC60: 0.7894736842 | AD60: 791.6666667 | AE60: 계 | AF60: 4/2 | AH60: 동춘동 연수대우3차 | AI60: 48 | AJ60: A- | AK60: A | AL60: A | AM60: B+ | AN60: C | AO60: X | AP60: O | AQ60: O | AR60: X | AS60: X | AT60: X | AU60: O | AV60: X | AX60: 1993 | AY60: 12
A61: 동춘동 대동 | B61: 94.05 | C61: 336 | D61: 105.1 | E61: 32 | F61: 84.6 | G61: 26 | H61: 168 | I61: 25000 | J61: 5 | K61: 20000 | L61: 2 | M61: 5000 | N61: 0.8 | O61: 781.25 | P61: 625 | Q61: 3 | R61: 2 | S61: 계 | T61: 105 | W61: =D61 -> 105.1 | X61: =E61 -> 32 | Y61: =H61 -> 168 | Z61: =I61 -> 25000 | AA61: 20000 | AB61: =M61 -> 5000 | AC61: =N61 -> 0.8 | AD61: =O61 -> 781.25 | AE61: 계 | AF61: 3/2 | AH61: 동춘동 대동 | AI61: 32 | AJ61: A- | AK61: A | AL61: A | AM61: B+ | AN61: C | AO61: O | AP61: O | AQ61: O | AR61: O | AS61: X | AT61: O | AU61: O | AV61: 후보 | AX61: 1994 | AY61: 5
A62: 동춘동 인천연수서해그랑블포레스트 | B62: 19.04 | C62: 334 | D62: 79.4 | E62: 24 | F62: 59.9 | G62: 18 | H62: 315 | I62: 31000 | J62: 10 | K62: 25000 | M62: 6000 | N62: 0.8064516129 | O62: 1291.666667 | P62: 1041.666667 | Q62: 3 | R62: 2 | S62: 계 | T62: 79 | W62: 79.4 | X62: 24 | Y62: 315 | Z62: 31000 | AA62: 25000 | AB62: =M62 -> 6000 | AC62: 0.8064516129 | AD62: 1291.666667 | AE62: 계 | AF62: 3/2 | AH62: 동춘동 인천연수서해그랑블포레스트 | AI62: 24 | AJ62: A- | AK62: A | AL62: A | AM62: B+ | AN62: C | AO62: O | AP62: O | AQ62: X | AR62: O | AS62: X | AT62: O | AU62: O | AV62: 후보 | AX62: 2019 | AY62: 4
A63: 동춘동 인천연수서해그랑블포레스트 | B63: 19.04 | C63: 334 | D63: 103 | E63: 31 | F63: 77.8 | G63: 24 | H63: 19 | I63: 34000 | K63: 26000 | M63: 8000 | N63: 0.7647058824 | O63: 1096.774194 | P63: 838.7096774 | Q63: 3 | R63: 2 | S63: 계 | T63: 103 | W63: 103 | X63: 31 | Y63: 19 | Z63: 34000 | AA63: 26000 | AB63: 8000 | AC63: 0.7647058824 | AD63: 1096.774194 | AE63: 계 | AF63: 3/2 | AH63: 동춘동 인천연수서해그랑블포레스트 | AI63: 31 | AJ63: A- | AK63: A | AL63: A | AM63: B+ | AN63: C | AO63: X | AP63: O | AQ63: X | AR63: X | AS63: X | AT63: O | AU63: O | AV63: X | AX63: 2019 | AY63: 4
A64: 동춘동 롯데 | B64: 93.08 | C64: 320 | D64: 115.5 | E64: 35 | F64: 99.9 | G64: 30 | H64: 210 | I64: 27700 | J64: 4 | K64: 23000 | M64: 4700 | N64: 0.8303249097 | O64: 791.4285714 | P64: 657.1428571 | Q64: 3 | R64: 2 | S64: 계 | T64: 115 | W64: 115.5 | X64: 35 | Y64: 210 | Z64: 27700 | AA64: 23000 | AB64: 4700 | AC64: 0.8303249097 | AD64: 791.4285714 | AE64: 계 | AF64: 3/2 | AH64: 동춘동 롯데 | AI64: 35 | AJ64: A- | AK64: A | AL64: A | AM64: B+ | AN64: C | AO64: O | AP64: O | AQ64: O | AR64: O | AS64: X | AT64: X | AU64: O | AV64: X | AX64: 1993 | AY64: 8
A65: 동춘동 롯데 | B65: 93.08 | C65: 320 | D65: 153.5 | E65: 46 | F65: 134.7 | G65: 41 | H65: 110 | I65: 35000 | J65: 2 | K65: 25000 | M65: 10000 | N65: 0.7142857143 | O65: 760.8695652 | P65: 543.4782609 | Q65: 4 | R65: 2 | S65: 계 | T65: 153 | W65: 153.5 | X65: 46 | Y65: 110 | Z65: 35000 | AA65: 25000 | AB65: 10000 | AC65: 0.7142857143 | AD65: 760.8695652 | AE65: 계 | AF65: 4/2 | AH65: 동춘동 롯데 | AI65: 46 | AJ65: A- | AK65: A | AL65: A | AM65: B+ | AN65: C | AO65: X | AP65: O | AQ65: O | AR65: X | AS65: X | AT65: X | AU65: O | AV65: X | AX65: 1993 | AY65: 8
A66: 동춘동 동일하이빌파크포레 | B66: 19.03 | C66: 281 | D66: 84.6 | E66: 26 | F66: 60 | G66: 18 | H66: 181 | I66: 36000 | J66: 8 | K66: 28000 | M66: 8000 | N66: 0.7777777778 | O66: 1384.615385 | P66: 1076.923077 | Q66: 3 | R66: 2 | S66: 계 | T66: 84 | W66: 84.6 | X66: 26 | Y66: 181 | Z66: 36000 | AA66: 28000 | AB66: 8000 | AC66: 0.7777777778 | AD66: 1384.615385 | AE66: 계 | AF66: 3/2 | AH66: 동춘동 동일하이빌파크포레 | AI66: 26 | AJ66: A- | AK66: A | AL66: A | AM66: B+ | AN66: C | AO66: X | AP66: O | AQ66: X | AR66: X | AS66: X | AT66: O | AU66: X | AV66: X | AX66: 2019 | AY66: 3
A67: 동춘동 동일하이빌파크포레 | B67: 19.03 | C67: 281 | D67: 112 | E67: 34 | F67: 84.9 | G67: 26 | H67: 100 | I67: 47000 | J67: 16 | K67: 35000 | M67: 12000 | N67: 0.7446808511 | O67: 1382.352941 | P67: 1029.411765 | Q67: 3 | R67: 2 | S67: 계 | T67: 111 | W67: 112 | X67: 34 | Y67: 100 | Z67: 47000 | AA67: 35000 | AB67: 12000 | AC67: 0.7446808511 | AD67: 1382.352941 | AE67: 계 | AF67: 3/2 | AH67: 동춘동 동일하이빌파크포레 | AI67: 34 | AJ67: A- | AK67: A | AL67: A | AM67: B+ | AN67: C | AO67: X | AP67: X | AQ67: X | AR67: X | AS67: X | AT67: O | AU67: X | AV67: X | AX67: 2019 | AY67: 3
A68: 동춘동 하나 | B68: 94.09 | C68: 264 | D68: 116.6 | E68: 35 | F68: 99.4 | G68: 30 | H68: 168 | I68: 33000 | J68: 4 | K68: 28000 | M68: 5000 | N68: 0.8484848485 | O68: 942.8571429 | P68: 800 | Q68: 4 | R68: 2 | S68: 계 | T68: 116 | W68: 116.6 | X68: 35 | Y68: 168 | Z68: 33000 | AA68: 28000 | AB68: 5000 | AC68: 0.8484848485 | AD68: 942.8571429 | AE68: 계 | AF68: 4/2 | AH68: =IF(A68="","",A68) -> 동춘동 하나 | AI68: =IF(E68="","",E68) -> 35 | AJ68: A- | AK68: A | AL68: A | AM68: B+ | AN68: C | AO68: O | AP68: O | AQ68: O | AR68: O | AS68: X | AT68: X | AU68: X | AV68: X | AX68: =IF(B68="","",_xlfn.NUMBERVALUE(IF(_xlfn.NUMBERVALUE(RIGHT(B68,2))=0.1,IF(_xlfn.NUMBERVALUE(LEFT(RIGHT(B68,4),2))>70,"19"&LEFT(RIGHT(B68,4),2),"20"&LEFT(RIGHT(B68,4),2)),IF(_xlfn.NUMBERVALUE(LEFT(RIGHT(B68,5),2))>70,"19"&LEFT(RIGHT(B68,5),2),"20"&LEFT(RIGHT(B68,5),2))))) -> 1994 | AY68: =IF(B68="","",IF(_xlfn.NUMBERVALUE(RIGHT(B68,2))=0.1,1,_xlfn.NUMBERVALUE(RIGHT(B68,2)))) -> 9
A69: 동춘동 하나 | B69: 94.09 | C69: 264 | D69: 153.2 | E69: 46 | F69: 131.2 | G69: 40 | H69: 96 | I69: 41000 | J69: 4 | K69: 33000 | M69: 8000 | N69: 0.8048780488 | O69: 891.3043478 | P69: 717.3913043 | Q69: 4 | R69: 2 | S69: 계 | T69: 153 | W69: 153.2 | X69: 46 | Y69: 96 | Z69: 41000 | AA69: 33000 | AB69: 8000 | AC69: 0.8048780488 | AD69: 891.3043478 | AE69: 계 | AF69: 4/2 | AH69: 동춘동 하나 | AI69: 46 | AJ69: A- | AK69: A | AL69: A | AM69: B+ | AN69: C | AO69: O | AP69: O | AQ69: O | AR69: X | AS69: X | AT69: X | AU69: X | AV69: X | AX69: 1994 | AY69: 9
A70: 동춘동 인천연수서해그랑블3단지 | B70: 19.09 | C70: 251 | D70: 77.4 | E70: 23 | F70: 59.6 | G70: 18 | H70: 60 | I70: 32000 | J70: 9 | K70: 24000 | M70: 8000 | N70: 0.75 | O70: 1391.304348 | P70: 1043.478261 | Q70: 3 | R70: 2 | S70: 계 | T70: 77B | W70: 77.4 | X70: 23 | Y70: 60 | Z70: 32000 | AA70: 24000 | AB70: 8000 | AC70: 0.75 | AD70: 1391.304348 | AE70: 계 | AF70: 3/2 | AH70: 동춘동 인천연수서해그랑블3단지 | AI70: 23 | AJ70: A- | AK70: A | AL70: A | AM70: B+ | AN70: C | AO70: X | AP70: O | AQ70: X | AR70: X | AS70: X | AT70: O | AU70: X | AV70: X | AX70: 2019 | AY70: 9
A71: 동춘동 인천연수서해그랑블3단지 | B71: 19.09 | C71: 251 | D71: 77.7 | E71: 24 | F71: 60 | G71: 18 | H71: 191 | I71: 32000 | J71: 9 | K71: 24000 | M71: 8000 | N71: 0.75 | O71: 1333.333333 | P71: 1000 | Q71: 3 | R71: 2 | S71: 계 | T71: 77A | W71: 77.7 | X71: 24 | Y71: 191 | Z71: 32000 | AA71: 24000 | AB71: 8000 | AC71: 0.75 | AD71: 1333.333333 | AE71: 계 | AF71: 3/2 | AH71: 동춘동 인천연수서해그랑블3단지 | AI71: 24 | AJ71: A- | AK71: A | AL71: A | AM71: B+ | AN71: C | AO71: X | AP71: O | AQ71: X | AR71: X | AS71: X | AT71: O | AU71: X | AV71: X | AX71: 2019 | AY71: 9
A72: 선학동 뉴서울1차 | B72: 92.1 | C72: 720 | D72: 102.5 | E72: 31 | F72: 84.5 | G72: 26 | H72: 540 | I72: 24500 | J72: 10 | K72: 21000 | L72: 10 | M72: 3500 | N72: 0.8571428571 | O72: 790.3225806 | P72: 677.4193548 | Q72: 3 | R72: 2 | S72: 계 | T72: 102 | W72: 102.5 | X72: 31 | Y72: 540 | Z72: 24500 | AA72: 21000 | AB72: 3500 | AC72: 0.8571428571 | AD72: 790.3225806 | AE72: 계 | AF72: 3/2 | AH72: 선학동 뉴서울1차 | AI72: 31 | AJ72: A- | AK72: A | AL72: C | AM72: C | AN72: C | AO72: O | AP72: O | AQ72: O | AR72: O | AS72: X | AT72: O | AU72: O | AV72: 후보 | AX72: 1992 | AY72: 1 | BA72: 20평대 | BB72: =SUMIFS(H:H,AX:AX,">"&BB69,E:E,"<30",E:E,">=20")+SUMIFS(H:H,AX:AX,"="&BB69,AY:AY,">="&AY68,E:E,"<30",E:E,">=20") -> 0 | BC72: =SUMIFS(H:H,AX:AX,">"&BC69,AX:AX,"<"&BB69,E:E,"<30",E:E,">=20")+SUMIFS(H:H,AX:AX,"="&BC69,AY:AY,">="&AY68,E:E,"<30",E:E,">=20")+SUMIFS(H:H,AX:AX,"="&BB69,AY:AY,"<"&AY68,E:E,"<30",E:E,">=20") -> 0 | BD72: =SUMIFS(H:H,AX:AX,">"&BD69,AX:AX,"<"&BC69,E:E,"<30",E:E,">=20")+SUMIFS(H:H,AX:AX,"="&BD69,AY:AY,">="&AY68,E:E,"<30",E:E,">=20")+SUMIFS(H:H,AX:AX,"="&BC69,AY:AY,"<"&AY68,E:E,"<30",E:E,">=20") -> 0 | BE72: =SUMIFS(H:H,AX:AX,"<"&BD69,E:E,"<30",E:E,">=20")+SUMIFS(H:H,AX:AX,"="&BD69,AY:AY,"<"&AY68,E:E,"<30",E:E,">=20") -> 0 | BF72: =SUM(BB72:BE72) -> 0
A73: 선학동 뉴서울1차 | B73: 92.1 | C73: 720 | D73: 147.7 | E73: 45 | F73: 126.9 | G73: 38 | H73: 180 | I73: 28500 | J73: 8 | K73: 24000 | M73: 4500 | N73: 0.8421052632 | O73: 633.3333333 | P73: 533.3333333 | Q73: 4 | R73: 2 | S73: 계 | T73: 147 | W73: 147.7 | X73: 45 | Y73: 180 | Z73: 28500 | AA73: 24000 | AB73: 4500 | AC73: 0.8421052632 | AD73: 633.3333333 | AE73: 계 | AF73: 4/2 | AH73: 선학동 뉴서울1차 | AI73: 45 | AJ73: A- | AK73: A | AL73: C | AM73: C | AN73: C | AO73: O | AP73: O | AQ73: O | AR73: O | AS73: X | AT73: X | AU73: O | AV73: X | AX73: 1992 | AY73: 1 | BA73: 30평대 | BB73: =SUMIFS(H:H,AX:AX,">"&BB69,E:E,"<40",E:E,">=30")+SUMIFS(H:H,AX:AX,"="&BB69,AY:AY,">="&AY68,E:E,"<40",E:E,">=30") -> 0 | BC73: =SUMIFS(H:H,AX:AX,">"&BC69,AX:AX,"<"&BB69,E:E,"<40",E:E,">=30")+SUMIFS(H:H,AX:AX,"="&BC69,AY:AY,">="&AY68,E:E,"<40",E:E,">=30")+SUMIFS(H:H,AX:AX,"="&BB69,AY:AY,"<"&AY68,E:E,"<40",E:E,">=30") -> 0 | BD73: =SUMIFS(H:H,AX:AX,">"&BD69,AX:AX,"<"&BC69,E:E,"<40",E:E,">=30")+SUMIFS(H:H,AX:AX,"="&BD69,AY:AY,">="&AY68,E:E,"<40",E:E,">=30")+SUMIFS(H:H,AX:AX,"="&BC69,AY:AY,"<"&AY68,E:E,"<40",E:E,">=30") -> 0 | BE73: =SUMIFS(H:H,AX:AX,"<"&BD69,E:E,"<40",E:E,">=30")+SUMIFS(H:H,AX:AX,"="&BD69,AY:AY,"<"&AY68,E:E,"<40",E:E,">=30") -> 0 | BF73: =SUM(BB73:BE73) -> 0
A74: 선학동 금호타운 | B74: 93.01 | C74: 540 | D74: 104.4 | E74: 32 | F74: 84.9 | G74: 26 | H74: 252 | I74: 28300 | J74: 4 | K74: 23000 | M74: 5300 | N74: 0.8127208481 | O74: 884.375 | P74: 718.75 | Q74: 3 | R74: 2 | S74: 계 | T74: 104 | W74: =D74 -> 104.4 | X74: 32 | Y74: =H74 -> 252 | Z74: 28300 | AA74: 23000 | AB74: 5300 | AC74: 0.8127208481 | AD74: 884.375 | AE74: 계 | AF74: 3/2 | AH74: 선학동 금호타운 | AI74: 32 | AJ74: A- | AK74: A | AL74: C | AM74: C | AN74: C | AO74: O | AP74: O | AQ74: O | AR74: O | AS74: X | AT74: O | AU74: O | AV74: 후보 | AX74: 1993 | AY74: 1 | BA74: 합계 | BB74: =SUM(BB70:BB73) -> 0 | BC74: =SUM(BC70:BC73) -> 0 | BD74: =SUM(BD70:BD73) -> 0 | BE74: =SUM(BE70:BE73) -> 0 | BF74: =SUM(BB74:BE74) -> 0
A75: 선학동 금호타운 | B75: 93.01 | C75: 540 | D75: 122.2 | E75: 37 | F75: 101.9 | G75: 31 | H75: 216 | I75: 28500 | J75: 4 | K75: 27000 | L75: 10 | M75: 1500 | N75: 0.9473684211 | O75: 770.2702703 | P75: 729.7297297 | Q75: 4 | R75: 2 | S75: 계 | T75: 122 | W75: 122.2 | X75: 37 | Y75: 216 | Z75: 28500 | AA75: 27000 | AB75: 1500 | AC75: 0.9473684211 | AD75: 770.2702703 | AE75: 계 | AF75: 4/2 | AH75: 선학동 금호타운 | AI75: 37 | AJ75: A- | AK75: A | AL75: C | AM75: C | AN75: C | AO75: O | AP75: O | AQ75: O | AR75: O | AS75: X | AT75: X | AU75: O | AV75: X | AX75: 1993 | AY75: 1
A76: 선학동 금호타운 | B76: 93.01 | C76: 540 | D76: 146.6 | E76: 44 | F76: 124.1 | G76: 38 | H76: 72 | I76: 34000 | J76: 9 | K76: 28000 | M76: 6000 | N76: 0.8235294118 | O76: 772.7272727 | P76: 636.3636364 | Q76: 4 | R76: 2 | S76: 계 | T76: 146 | W76: 146.6 | X76: 44 | Y76: 72 | Z76: 34000 | AA76: 28000 | AB76: 6000 | AC76: 0.8235294118 | AD76: 772.7272727 | AE76: 계 | AF76: 4/2 | AH76: 선학동 금호타운 | AI76: 44 | AJ76: A- | AK76: A | AL76: C | AM76: C | AN76: C | AO76: O | AP76: O | AQ76: O | AR76: O | AS76: X | AT76: X | AU76: O | AV76: X | AX76: 1993 | AY76: 1 | BB76: 10년 이하 | BC76: 10~20년 | BD76: 20~30년 | BE76: 30년 이상 | BF76: 합계
A77: 선학동 윤성 | B77: 95.08 | C77: 423 | D77: 81.4 | E77: 25 | F77: 59.9 | G77: 18 | H77: 248 | I77: 16500 | J77: 10 | K77: 14000 | M77: 2500 | N77: 0.8484848485 | O77: 660 | P77: 560 | Q77: 2 | R77: 1 | S77: 복 | T77: 81 | W77: =D77 -> 81.4 | X77: =E77 -> 25 | Y77: =H77 -> 248 | Z77: =I77 -> 16500 | AA77: 14000 | AB77: 2500 | AC77: 0.8484848485 | AD77: 660 | AE77: 복 | AF77: 2/1 | AH77: 선학동 윤성 | AI77: 25 | AJ77: A- | AK77: A | AL77: C | AM77: C | AN77: C | AO77: O | AP77: O | AQ77: O | AR77: O | AS77: X | AT77: O | AU77: O | AV77: 후보 | AX77: 1995 | AY77: 8 | BA77: 20평대 | BB77: =BB70/BF73 ->  | BC77: =BC70/BF73 ->  | BD77: =BD70/BF73 ->  | BE77: =BE70/BF73 ->  | BF77: =BF70/BF73 -> 
A78: 선학동 윤성 | B78: 95.08 | C78: 423 | D78: 103.1 | E78: 31 | F78: 84.9 | G78: 26 | H78: 175 | I78: 24000 | J78: 9 | K78: 19000 | M78: 5000 | N78: 0.7916666667 | O78: 774.1935484 | P78: 612.9032258 | Q78: 3 | R78: 2 | S78: 계 | T78: 103 | W78: =D78 -> 103.1 | X78: =E78 -> 31 | Y78: =H78 -> 175 | Z78: =I78 -> 24000 | AA78: 19000 | AB78: =M78 -> 5000 | AC78: 0.7916666667 | AD78: 774.1935484 | AE78: 계 | AF78: 3/2 | AH78: 선학동 윤성 | AI78: 31 | AJ78: A- | AK78: A | AL78: C | AM78: C | AN78: C | AO78: X | AP78: O | AQ78: O | AR78: O | AS78: X | AT78: O | AU78: O | AV78: X | AX78: 1995 | AY78: 8 | BA78: 30평대 | BB78: =BB71/BF73 ->  | BC78: =BC71/BF73 ->  | BD78: =BD71/BF73 ->  | BE78: =BE71/BF73 ->  | BF78: =BF71/BF73 -> 
A79: 선학동 대동 | B79: 92.05 | C79: 390 | D79: 88.4 | E79: 27 | F79: 73.4 | G79: 22 | H79: 60 | I79: 20600 | J79: 13 | K79: 17500 | M79: 3100 | N79: 0.8495145631 | O79: 762.962963 | P79: 648.1481481 | Q79: 3 | R79: 1 | S79: 계 | T79: 88 | W79: =D79 -> 88.4 | X79: 27 | Y79: =H79 -> 60 | Z79: 20600 | AA79: 17500 | AB79: 3100 | AC79: 0.8495145631 | AD79: 762.962963 | AE79: 계 | AF79: 3/1 | AH79: 선학동 대동 | AI79: 27 | AJ79: A- | AK79: A | AL79: C | AM79: C | AN79: C | AO79: O | AP79: O | AQ79: O | AR79: O | AS79: X | AT79: O | AU79: O | AV79: 후보 | AX79: 1992 | AY79: 5 | BA79: 합계 | BB79: =BB72/BF72 ->  | BC79: =BC72/BF72 ->  | BD79: =BD72/BF72 ->  | BE79: =BE72/BF72 ->  | BF79: =BF72/BF72 -> 
A80: 선학동 대동 | B80: 92.05 | C80: 390 | D80: 100.3 | E80: 30 | F80: 84.1 | G80: 25 | H80: 150 | I80: 23000 | J80: 6 | K80: 21500 | M80: 1500 | N80: 0.9347826087 | O80: 766.6666667 | P80: 716.6666667 | Q80: 3 | R80: 2 | S80: 계 | T80: 100 | W80: 100.3 | X80: 30 | Y80: 150 | Z80: 23000 | AA80: 21500 | AB80: 1500 | AC80: 0.9347826087 | AD80: 766.6666667 | AE80: 계 | AF80: 3/2 | AH80: 선학동 대동 | AI80: 30 | AJ80: A- | AK80: A | AL80: C | AM80: C | AN80: C | AO80: O | AP80: O | AQ80: O | AR80: O | AS80: X | AT80: O | AU80: O | AV80: 후보 | AX80: 1992 | AY80: 5
A81: 선학동 대동 | B81: 92.05 | C81: 390 | D81: 100.9 | E81: 31 | F81: 84.4 | G81: 26 | H81: 180 | M81: 0 | O81: 0 | P81: 0 | Q81: 3 | R81: 2 | S81: 계 | T81: 100 | W81: 100.9 | X81: 31 | Y81: 180 | Z81: 0 | AA81: 0 | AB81: =M81 -> 0 | AC81: =N81 ->  | AD81: =O81 -> 0 | AE81: 계 | AF81: 3/2 | AH81: =IF(A81="","",A81) -> 선학동 대동 | AI81: =IF(E81="","",E81) -> 31 | AJ81: A- | AK81: A | AL81: C | AM81: C | AN81: C | AQ81: O | AR81: O | AS81: X | AT81: O | AU81: O | AX81: 1992 | AY81: 5
A82: 선학동 아주 | B82: 92.05 | C82: 390 | D82: 100.3 | E82: 30 | F82: 84.1 | G82: 25 | H82: 300 | I82: 21600 | J82: 10 | K82: 21000 | L82: 9 | M82: 600 | N82: 0.9722222222 | O82: 720 | P82: 700 | Q82: 3 | R82: 2 | S82: 계 | T82: 100B | W82: =D82 -> 100.3 | X82: 30 | Y82: =H82 -> 300 | Z82: 21600 | AA82: 21000 | AB82: =M82 -> 600 | AC82: 0.9722222222 | AD82: 720 | AE82: 계 | AF82: 3/2 | AH82: =IF(A82="","",A82) -> 선학동 아주 | AI82: =IF(E82="","",E82) -> 30 | AJ82: A- | AK82: A | AL82: C | AM82: C | AN82: C | AO82: O | AP82: O | AQ82: O | AR82: O | AS82: X | AT82: O | AU82: O | AV82: 후보 | AX82: 1992 | AY82: 5
A83: 선학동 아주 | B83: 92.05 | C83: 390 | D83: 100.9 | E83: 31 | F83: 84.4 | G83: 26 | H83: 90 | I83: 21600 | K83: 21000 | M83: 600 | N83: 0.9722222222 | O83: 696.7741935 | P83: 677.4193548 | Q83: 3 | R83: 2 | S83: 계 | T83: 100A | W83: 100.9 | X83: 31 | Y83: 90 | Z83: 21600 | AA83: 21000 | AB83: 600 | AC83: 0.9722222222 | AD83: 696.7741935 | AE83: 계 | AF83: 3/2 | AH83: =IF(A83="","",A83) -> 선학동 아주 | AI83: =IF(E83="","",E83) -> 31 | AJ83: A- | AK83: A | AL83: C | AM83: C | AN83: C | AO83: O | AP83: O | AQ83: O | AR83: O | AS83: X | AT83: O | AU83: O | AV83: 후보 | AX83: 1992 | AY83: 5
A84: 선학동 대진 | B84: 91.06 | C84: 300 | D84: 81.1 | E84: 25 | F84: 64.4 | G84: 19 | H84: 180 | I84: 15500 | J84: 5 | K84: 13000 | M84: 2500 | N84: 0.8387096774 | O84: 620 | P84: 520 | Q84: 2 | R84: 1 | S84: 계 | T84: 81 | W84: 81.1 | X84: 25 | Y84: 180 | Z84: 15500 | AA84: 13000 | AB84: 2500 | AC84: 0.8387096774 | AD84: 620 | AE84: 계 | AF84: 2/1 | AH84: =IF(A84="","",A84) -> 선학동 대진 | AI84: =IF(E84="","",E84) -> 25 | AJ84: A- | AK84: A | AL84: C | AM84: C | AN84: C | AO84: O | AP84: O | AQ84: O | AR84: O | AS84: X | AT84: O | AU84: O | AV84: 후보 | AX84: 1991 | AY84: 6
A85: 선학동 대진 | B85: 91.06 | C85: 300 | D85: 107.1 | E85: 32 | F85: 84.7 | G85: 26 | H85: 120 | I85: 20000 | J85: 5 | K85: 16000 | M85: 4000 | N85: 0.8 | O85: 625 | P85: 500 | Q85: 3 | R85: 1 | S85: 계 | T85: 107 | W85: 107.1 | X85: 32 | Y85: 120 | Z85: 20000 | AA85: 16000 | AB85: 4000 | AC85: 0.8 | AD85: 625 | AE85: 계 | AF85: 3/1 | AH85: =IF(A85="","",A85) -> 선학동 대진 | AI85: =IF(E85="","",E85) -> 32 | AJ85: A- | AK85: A | AL85: C | AM85: C | AN85: C | AO85: O | AP85: O | AQ85: O | AR85: O | AS85: X | AT85: O | AU85: O | AV85: 후보 | AX85: 1991 | AY85: 6
A86: 선학동 정광 | B86: 91.06 | C86: 300 | D86: 81.1 | E86: 25 | F86: 64.4 | G86: 19 | H86: 180 | I86: 16000 | J86: 5 | K86: 14000 | M86: =I86-K86 -> 2000 | N86: =IF(ISERROR(K86/I86),"",K86/I86) -> 0.875 | O86: =I86/E86 -> 640 | P86: =K86/E86 -> 560 | Q86: 2 | R86: 1 | S86: 계 | T86: 81 | W86: 81.1 | X86: 25 | Y86: 180 | Z86: 16000 | AA86: =K86 -> 14000 | AB86: 2000 | AC86: 0.875 | AD86: 640 | AE86: =S86 -> 계 | AF86: =Q86&"/"&R86 -> 2/1 | AH86: =IF(A86="","",A86) -> 선학동 정광 | AI86: =IF(E86="","",E86) -> 25 | AJ86: =IF(AI86="","",$AJ$2) -> A- | AK86: A | AL86: C | AM86: C | AN86: =IF(AI86="","",$AN$2) -> C | AO86: =IF(N86="","",IF(N86>=$AO$1/100,"O","X")) -> O | AP86: =IF(I86="","",IF(I86<=$AP$1,"O","X")) -> O | AQ86: =IF(O86="","",IF(O86<=$AQ$1,"O","X")) -> O | AR86: =IF(M86="","",IF(M86<=$AR$1,"O","X")) -> O | AS86: X | AT86: =IF(OR(F86="",AI86=""),"",IF(AND((F86<=85),(AI86>=15)),"O","X")) -> O | AU86: =IF(C86="","",IF(C86>=$AU$1,"O","X")) -> O | AV86: =IF(AO86="","",IF(AND(AO86="O",AP86="O",AR86="O",AT86="O",AU86="O"),"후보","X")) -> 후보 | AX86: 1991 | AY86: 6
A87: 선학동 정광 | B87: 91.06 | C87: 300 | D87: 107.1 | E87: 32 | F87: 84.7 | G87: 26 | H87: 120 | I87: 20000 | J87: 5 | K87: 16000 | M87: 4000 | N87: 0.8 | O87: 625 | P87: 500 | Q87: 3 | R87: 1 | S87: 계 | T87: 107 | W87: 107.1 | X87: 32 | Y87: 120 | Z87: 20000 | AA87: 16000 | AB87: 4000 | AC87: 0.8 | AD87: 625 | AE87: 계 | AF87: 3/1 | AH87: =IF(A87="","",A87) -> 선학동 정광 | AI87: =IF(E87="","",E87) -> 32 | AJ87: A- | AK87: A | AL87: C | AM87: C | AN87: C | AO87: O | AP87: O | AQ87: O | AR87: O | AS87: X | AT87: O | AU87: O | AV87: 후보 | AX87: 1991 | AY87: 6
A88: 선학동 태산 | B88: 91.06 | C88: 300 | D88: 81.1 | E88: 25 | F88: 64.4 | G88: 19 | H88: 180 | I88: 15500 | J88: 4 | K88: 14000 | L88: 2 | M88: 1500 | N88: 0.9032258065 | O88: 620 | P88: 560 | Q88: 2 | R88: 1 | S88: 계 | T88: 81 | W88: 81.1 | X88: 25 | Y88: 180 | Z88: 15500 | AA88: 14000 | AB88: 1500 | AC88: 0.9032258065 | AD88: 620 | AE88: 계 | AF88: 2/1 | AH88: =IF(A88="","",A88) -> 선학동 태산 | AI88: =IF(E88="","",E88) -> 25 | AJ88: A- | AK88: A | AL88: C | AM88: C | AN88: C | AO88: O | AP88: O | AQ88: O | AR88: O | AS88: X | AT88: O | AU88: O | AV88: 후보 | AX88: 1991 | AY88: 6
A89: 선학동 태산 | B89: 91.06 | C89: 300 | D89: 107.1 | E89: 32 | F89: 84.7 | G89: 26 | H89: 120 | I89: 20500 | J89: 4 | K89: 15500 | M89: 5000 | N89: 0.756097561 | O89: 640.625 | P89: 484.375 | Q89: 3 | R89: 1 | S89: 계 | T89: 107 | W89: 107.1 | X89: 32 | Y89: 120 | Z89: 20500 | AA89: 15500 | AB89: 5000 | AC89: 0.756097561 | AD89: 640.625 | AE89: 계 | AF89: 3/1 | AH89: =IF(A89="","",A89) -> 선학동 태산 | AI89: =IF(E89="","",E89) -> 32 | AJ89: A- | AK89: A | AL89: C | AM89: C | AN89: C | AO89: X | AP89: O | AQ89: O | AR89: O | AS89: X | AT89: O | AU89: O | AV89: X | AX89: 1991 | AY89: 6
A90: 연수동 우성2차 | B90: 95.04 | C90: 2044 | D90: 56.3 | E90: 17 | F90: 40.5 | G90: 12 | H90: 528 | I90: 18500 | J90: 3 | K90: 15500 | L90: 중 | M90: 3000 | N90: 0.8378378378 | O90: 1088.235294 | P90: 911.7647059 | Q90: 2 | R90: 1 | S90: 복 | T90: 56 | W90: =D90 -> 56.3 | X90: 17 | Y90: =H90 -> 528 | Z90: 18500 | AA90: 15500 | AB90: 3000 | AC90: 0.8378378378 | AD90: 1088.235294 | AE90: 복 | AF90: 2/1 | AH90: =IF(A90="","",A90) -> 연수동 우성2차 | AI90: =IF(E90="","",E90) -> 17 | AJ90: A- | AK90: A | AL90: B- | AM90: B- | AN90: C | AO90: O | AP90: O | AQ90: X | AR90: O | AS90: X | AT90: O | AU90: O | AV90: 후보 | AX90: 1995 | AY90: 4 | BA90: 20평대 | BB90: =SUMIFS(H:H,AX:AX,">"&BB87,E:E,"<30",E:E,">=20")+SUMIFS(H:H,AX:AX,"="&BB87,AY:AY,">="&AY86,E:E,"<30",E:E,">=20") -> 0 | BC90: =SUMIFS(H:H,AX:AX,">"&BC87,AX:AX,"<"&BB87,E:E,"<30",E:E,">=20")+SUMIFS(H:H,AX:AX,"="&BC87,AY:AY,">="&AY86,E:E,"<30",E:E,">=20")+SUMIFS(H:H,AX:AX,"="&BB87,AY:AY,"<"&AY86,E:E,"<30",E:E,">=20") -> 0 | BD90: =SUMIFS(H:H,AX:AX,">"&BD87,AX:AX,"<"&BC87,E:E,"<30",E:E,">=20")+SUMIFS(H:H,AX:AX,"="&BD87,AY:AY,">="&AY86,E:E,"<30",E:E,">=20")+SUMIFS(H:H,AX:AX,"="&BC87,AY:AY,"<"&AY86,E:E,"<30",E:E,">=20") -> 0 | BE90: =SUMIFS(H:H,AX:AX,"<"&BD87,E:E,"<30",E:E,">=20")+SUMIFS(H:H,AX:AX,"="&BD87,AY:AY,"<"&AY86,E:E,"<30",E:E,">=20") -> 0 | BF90: =SUM(BB90:BE90) -> 0
A91: 연수동 우성2차 | B91: 95.04 | C91: 2044 | D91: 77.4 | E91: 23 | F91: 59.6 | G91: 18 | H91: 888 | I91: 29500 | J91: 9 | K91: 25000 | L91: 10 | M91: 4500 | N91: 0.8474576271 | O91: 1282.608696 | P91: 1086.956522 | Q91: 3 | R91: 1 | S91: 계 | T91: 77 | W91: 77.4 | X91: 23 | Y91: 888 | Z91: 29500 | AA91: 25000 | AB91: 4500 | AC91: 0.8474576271 | AD91: 1282.608696 | AE91: 계 | AF91: 3/1 | AH91: 연수동 우성2차 | AI91: 23 | AJ91: A- | AK91: A | AL91: B- | AM91: B- | AN91: C | AO91: O | AP91: O | AQ91: X | AR91: O | AS91: X | AT91: O | AU91: O | AV91: 후보 | AX91: 1995 | AY91: 4 | BA91: 30평대 | BB91: =SUMIFS(H:H,AX:AX,">"&BB87,E:E,"<40",E:E,">=30")+SUMIFS(H:H,AX:AX,"="&BB87,AY:AY,">="&AY86,E:E,"<40",E:E,">=30") -> 0 | BC91: =SUMIFS(H:H,AX:AX,">"&BC87,AX:AX,"<"&BB87,E:E,"<40",E:E,">=30")+SUMIFS(H:H,AX:AX,"="&BC87,AY:AY,">="&AY86,E:E,"<40",E:E,">=30")+SUMIFS(H:H,AX:AX,"="&BB87,AY:AY,"<"&AY86,E:E,"<40",E:E,">=30") -> 0 | BD91: =SUMIFS(H:H,AX:AX,">"&BD87,AX:AX,"<"&BC87,E:E,"<40",E:E,">=30")+SUMIFS(H:H,AX:AX,"="&BD87,AY:AY,">="&AY86,E:E,"<40",E:E,">=30")+SUMIFS(H:H,AX:AX,"="&BC87,AY:AY,"<"&AY86,E:E,"<40",E:E,">=30") -> 0 | BE91: =SUMIFS(H:H,AX:AX,"<"&BD87,E:E,"<40",E:E,">=30")+SUMIFS(H:H,AX:AX,"="&BD87,AY:AY,"<"&AY86,E:E,"<40",E:E,">=30") -> 0 | BF91: =SUM(BB91:BE91) -> 0
A92: 연수동 우성2차 | B92: 95.04 | C92: 2044 | D92: 104.2 | E92: 32 | F92: 84.8 | G92: 26 | H92: 628 | I92: 36000 | J92: 6 | K92: 28000 | L92: 18 | M92: 8000 | N92: 0.7777777778 | O92: 1125 | P92: 875 | Q92: 3 | R92: 2 | S92: 계 | T92: 104 | W92: 104.2 | X92: 32 | Y92: 628 | Z92: 36000 | AA92: 28000 | AB92: 8000 | AC92: 0.7777777778 | AD92: 1125 | AE92: 계 | AF92: 3/2 | AH92: 연수동 우성2차 | AI92: 32 | AJ92: A- | AK92: A | AL92: B- | AM92: B- | AN92: C | AO92: X | AP92: O | AQ92: X | AR92: X | AS92: X | AT92: O | AU92: O | AV92: X | AX92: 1995 | AY92: 4 | BA92: 40평대↑ | BB92: =SUMIFS(H:H,AX:AX,">"&BB87,E:E,">=40")+SUMIFS(H:H,AX:AX,"="&BB87,AY:AY,">="&AY86,E:E,">=40") -> 0 | BC92: =SUMIFS(H:H,AX:AX,">"&BC87,AX:AX,"<"&BB87,E:E,">=40")+SUMIFS(H:H,AX:AX,"="&BC87,AY:AY,">="&AY86,E:E,">=40")+SUMIFS(H:H,AX:AX,"="&BB87,AY:AY,"<"&AY86,E:E,">=40") -> 0 | BD92: =SUMIFS(H:H,AX:AX,">"&BD87,AX:AX,"<"&BC87,E:E,">=40")+SUMIFS(H:H,AX:AX,"="&BD87,AY:AY,">="&AY86,E:E,">=40")+SUMIFS(H:H,AX:AX,"="&BC87,AY:AY,"<"&AY86,E:E,">=40") -> 0 | BE92: =SUMIFS(H:H,AX:AX,"<"&BD87,E:E,">=40")+SUMIFS(H:H,AX:AX,"="&BD87,AY:AY,"<"&AY86,E:E,">=40") -> 0 | BF92: =SUM(BB92:BE92) -> 0
A93: 연수동 솔밭마을 | B93: 93.05 | C93: 1200 | D93: 69.8 | E93: 21 | F93: 49.6 | G93: 15 | H93: 1200 | I93: 15900 | J93: 6 | K93: 15000 | L93: 3 | M93: 900 | N93: 0.9433962264 | O93: 757.1428571 | P93: 714.2857143 | Q93: 2 | R93: 1 | S93: 복 | T93: 69 | W93: =D93 -> 69.8 | X93: =E93 -> 21 | Y93: =H93 -> 1200 | Z93: =I93 -> 15900 | AA93: 15000 | AB93: =M93 -> 900 | AC93: 0.9433962264 | AD93: 757.1428571 | AE93: 복 | AF93: 2/1 | AH93: 연수동 솔밭마을 | AI93: 21 | AJ93: A- | AK93: A | AL93: B- | AM93: B- | AN93: C | AO93: O | AP93: O | AQ93: O | AR93: O | AS93: X | AT93: O | AU93: O | AV93: 후보 | AX93: 1993 | AY93: 5
A94: 연수동 연수주공3단지 | B94: 93.11 | C94: 1170 | D94: 61.3 | E94: 19 | F94: 44.7 | G94: 14 | H94: 1170 | I94: 14000 | J94: 7 | K94: 13000 | L94: 3 | M94: 1000 | N94: 0.9285714286 | O94: 736.8421053 | P94: 684.2105263 | Q94: 2 | R94: 1 | S94: 복 | T94: 61 | W94: =D94 -> 61.3 | X94: =E94 -> 19 | Y94: =H94 -> 1170 | Z94: =I94 -> 14000 | AA94: 13000 | AB94: 1000 | AC94: 0.9285714286 | AD94: 736.8421053 | AE94: 복 | AF94: 2/1 | AH94: 연수동 연수주공3단지 | AI94: 19 | AJ94: A- | AK94: A | AL94: B- | AM94: B- | AN94: C | AO94: O | AP94: O | AQ94: O | AR94: O | AS94: X | AT94: O | AU94: O | AV94: 후보 | AX94: 1993 | AY94: 11 | BA94: 10평대 | BB94: =BB87/BF91 ->  | BC94: =BC87/BF91 ->  | BD94: =BD87/BF91 ->  | BE94: =BE87/BF91 ->  | BF94: =BF87/BF91 -> 
A95: 연수동 연수우성1차 | B95: 94.09 | C95: 1088 | D95: 126.4 | E95: 38 | F95: 102 | G95: 31 | H95: 714 | I95: 35000 | J95: 4 | K95: 29000 | L95: 15 | M95: 6000 | N95: 0.8285714286 | O95: 921.0526316 | P95: 763.1578947 | Q95: 4 | R95: 2 | S95: 계 | T95: 126 | W95: =D95 -> 126.4 | X95: 38 | Y95: =H95 -> 714 | Z95: 35000 | AA95: 29000 | AB95: =M95 -> 6000 | AC95: 0.8285714286 | AD95: 921.0526316 | AE95: 계 | AF95: 4/2 | AH95: 연수동 연수우성1차 | AI95: 38 | AJ95: A- | AK95: A | AL95: B- | AM95: B- | AN95: C | AO95: O | AP95: O | AQ95: O | AR95: O | AS95: X | AT95: X | AU95: O | AV95: X | AX95: 1994 | AY95: 9 | BA95: 30평대 | BB95: =BB88/BF90 ->  | BC95: =BC88/BF90 ->  | BD95: =BD88/BF90 ->  | BE95: =BE88/BF90 ->  | BF95: =BF88/BF90 -> 
A96: 연수동 연수우성1차 | B96: 94.09 | C96: 1088 | D96: 159.4 | E96: 48 | F96: 131.9 | G96: 40 | H96: 72 | I96: 45000 | J96: 고 | K96: 31000 | M96: 14000 | N96: 0.6888888889 | O96: 937.5 | P96: 645.8333333 | Q96: 4 | R96: 2 | S96: 계 | T96: 159 | W96: 159.4 | X96: 48 | Y96: 72 | Z96: 45000 | AA96: 31000 | AB96: 14000 | AC96: 0.6888888889 | AD96: 937.5 | AE96: 계 | AF96: 4/2 | AH96: 연수동 연수우성1차 | AI96: 48 | AJ96: A- | AK96: A | AL96: B- | AM96: B- | AN96: C | AO96: X | AP96: O | AQ96: O | AR96: X | AS96: X | AT96: X | AU96: O | AV96: X | AX96: 1994 | AY96: 9 | BA96: 40평대↑ | BB96: =BB89/BF90 ->  | BC96: =BC89/BF90 ->  | BD96: =BD89/BF90 ->  | BE96: =BE89/BF90 ->  | BF96: =BF89/BF90 -> 
A97: 연수동 연수우성1차 | B97: 94.09 | C97: 1088 | D97: 161.3 | E97: 49 | F97: 133.6 | G97: 40 | H97: 178 | I97: 38000 | J97: 4 | K97: 31000 | M97: 7000 | N97: 0.8157894737 | O97: 775.5102041 | P97: 632.6530612 | Q97: 4 | R97: 2 | S97: 계 | T97: 161 | W97: 161.3 | X97: 49 | Y97: 178 | Z97: 38000 | AA97: 31000 | AB97: 7000 | AC97: 0.8157894737 | AD97: 775.5102041 | AE97: 계 | AF97: 4/2 | AH97: 연수동 연수우성1차 | AI97: 49 | AJ97: A- | AK97: A | AL97: B- | AM97: B- | AN97: C | AO97: O | AP97: O | AQ97: O | AR97: X | AS97: X | AT97: X | AU97: O | AV97: X | AX97: 1994 | AY97: 9 | BA97: 합계 | BB97: =BB90/BF90 ->  | BC97: =BC90/BF90 ->  | BD97: =BD90/BF90 ->  | BE97: =BE90/BF90 ->  | BF97: =BF90/BF90 -> 
A98: 연수동 연수우성1차 | B98: 94.09 | C98: 1088 | D98: 189.7 | E98: 57 | F98: 160 | G98: 48 | H98: 124 | I98: 45000 | J98: 6 | K98: 32000 | M98: 13000 | N98: 0.7111111111 | O98: 789.4736842 | P98: 561.4035088 | Q98: 5 | R98: 2 | S98: 계 | T98: 189 | W98: 189.7 | X98: 57 | Y98: 124 | Z98: 45000 | AA98: 32000 | AB98: 13000 | AC98: 0.7111111111 | AD98: 789.4736842 | AE98: 계 | AF98: 5/2 | AH98: 연수동 연수우성1차 | AI98: 57 | AJ98: A- | AK98: A | AL98: B- | AM98: B- | AN98: C | AO98: X | AP98: O | AQ98: O | AR98: X | AS98: X | AT98: X | AU98: O | AV98: X | AX98: 1994 | AY98: 9
A99: 연수동 승기마을 | B99: 92.05 | C99: 1000 | D99: 38 | E99: 12 | F99: 26.8 | G99: 8 | H99: 1000 | I99: 8500 | J99: 6 | K99: 8500 | M99: 0 | N99: 1 | O99: 708.3333333 | P99: 708.3333333 | Q99: 1 | R99: 1 | S99: 복 | T99: 38 | W99: =D99 -> 38 | X99: 12 | Y99: =H99 -> 1000 | Z99: 8500 | AA99: 8500 | AB99: =M99 -> 0 | AC99: =N99 -> 1 | AD99: =O99 -> 708.3333333 | AE99: 복 | AF99: 1/1 | AH99: 연수동 승기마을 | AI99: 12 | AJ99: A- | AK99: A | AL99: B- | AM99: B- | AN99: C | AO99: O | AP99: O | AQ99: O | AR99: O | AS99: X | AT99: X | AU99: O | AV99: X | AX99: 1992 | AY99: 5
A100: 연수동 연수주공2단지 | B100: 92.06 | C100: 960 | D100: 60.3 | E100: 18 | F100: 41.3 | G100: 12 | H100: 240 | I100: 13500 | J100: 10 | K100: 12500 | L100: 7 | M100: 1000 | N100: 0.9259259259 | O100: 750 | P100: 694.4444444 | Q100: 2 | R100: 1 | S100: 복 | T100: 60 | W100: 60.3 | X100: 18 | Y100: 240 | Z100: 13500 | AA100: 12500 | AB100: =M100 -> 1000 | AC100: 0.9259259259 | AD100: 750 | AE100: 복 | AF100: 2/1 | AH100: 연수동 연수주공2단지 | AI100: 18 | AJ100: A- | AK100: A | AL100: B- | AM100: B- | AN100: C | AO100: O | AP100: O | AQ100: O | AR100: O | AS100: X | AT100: O | AU100: O | AV100: 후보 | AX100: 1992 | AY100: 6
A101: 연수동 연수주공2단지 | B101: 92.06 | C101: 960 | D101: 73 | E101: 22 | F101: 49.9 | G101: 15 | H101: 720 | I101: 16000 | J101: 6 | K101: 15000 | L101: 6 | M101: 1000 | N101: 0.9375 | O101: 727.2727273 | P101: 681.8181818 | Q101: 2 | R101: 1 | S101: 복 | T101: 72 | W101: 73 | X101: 22 | Y101: 720 | Z101: 16000 | AA101: 15000 | AB101: 1000 | AC101: 0.9375 | AD101: 727.2727273 | AE101: 복 | AF101: 2/1 | AH101: 연수동 연수주공2단지 | AI101: 22 | AJ101: A- | AK101: A | AL101: B- | AM101: B- | AN101: C | AO101: O | AP101: O | AQ101: O | AR101: O | AS101: X | AT101: O | AU101: O | AV101: 후보 | AX101: 1992 | AY101: 6
A102: 연수동 연수유천 | B102: 93.09 | C102: 788 | D102: 77.2 | E102: 23 | F102: 60.1 | G102: 18 | H102: 234 | I102: 20000 | J102: 9 | K102: 18000 | M102: 2000 | N102: 0.9 | O102: 869.5652174 | P102: 782.6086957 | Q102: 3 | R102: 1 | S102: 계 | T102: 77 | W102: 77.2 | X102: 23 | Y102: 234 | Z102: 20000 | AA102: 18000 | AB102: 2000 | AC102: 0.9 | AD102: 869.5652174 | AE102: 계 | AF102: 3/1 | AH102: 연수동 연수유천 | AI102: 23 | AJ102: A- | AK102: A | AL102: B- | AM102: B- | AN102: C | AO102: O | AP102: O | AQ102: O | AR102: O | AS102: X | AT102: O | AU102: O | AV102: 후보 | AX102: 1993 | AY102: 9
A103: 연수동 연수유천 | B103: 93.09 | C103: 788 | D103: 103.7 | E103: 31 | F103: 84.9 | G103: 26 | H103: 554 | I103: 24500 | J103: 11 | K103: 21000 | L103: 9 | M103: 3500 | N103: 0.8571428571 | O103: 790.3225806 | P103: 677.4193548 | Q103: 3 | R103: 2 | S103: 계 | T103: 103 | W103: 103.7 | X103: 31 | Y103: 554 | Z103: 24500 | AA103: 21000 | AB103: 3500 | AC103: 0.8571428571 | AD103: 790.3225806 | AE103: 계 | AF103: 3/2 | AH103: 연수동 연수유천 | AI103: 31 | AJ103: A- | AK103: A | AL103: B- | AM103: B- | AN103: C | AO103: O | AP103: O | AQ103: O | AR103: O | AS103: X | AT103: O | AU103: O | AV103: 후보 | AX103: 1993 | AY103: 9
A104: 연수동 연수풍림1차 | B104: 92.03 | C104: 769 | D104: 87.5 | E104: 26 | F104: 69.7 | G104: 21 | H104: 164 | I104: 24000 | J104: 12 | K104: 22000 | M104: 2000 | N104: 0.9166666667 | O104: 923.0769231 | P104: 846.1538462 | Q104: 3 | R104: 1 | S104: 계 | T104: 87 | W104: =D104 -> 87.5 | X104: 26 | Y104: =H104 -> 164 | Z104: 24000 | AA104: 22000 | AB104: 2000 | AC104: 0.9166666667 | AD104: 923.0769231 | AE104: 계 | AF104: 3/1 | AH104: 연수동 연수풍림1차 | AI104: 26 | AJ104: A- | AK104: A | AL104: B- | AM104: B- | AN104: C | AO104: O | AP104: O | AQ104: O | AR104: O | AS104: X | AT104: O | AU104: O | AV104: 후보 | AX104: 1992 | AY104: 3
A105: 연수동 연수풍림1차 | B105: 92.03 | C105: 769 | D105: 103.4 | E105: 31 | F105: 84.8 | G105: 26 | H105: 270 | I105: 25000 | J105: 7 | K105: 22000 | L105: 12 | M105: 3000 | N105: 0.88 | O105: 806.4516129 | P105: 709.6774194 | Q105: 3 | R105: 2 | S105: 계 | T105: 103 | W105: 103.4 | X105: 31 | Y105: 270 | Z105: 25000 | AA105: 22000 | AB105: 3000 | AC105: 0.88 | AD105: 806.4516129 | AE105: 계 | AF105: 3/2 | AH105: 연수동 연수풍림1차 | AI105: 31 | AJ105: A- | AK105: A | AL105: B- | AM105: B- | AN105: C | AO105: O | AP105: O | AQ105: O | AR105: O | AS105: X | AT105: O | AU105: O | AV105: 후보 | AX105: 1992 | AY105: 3
A106: 연수동 연수풍림1차 | B106: 92.03 | C106: 769 | D106: 104.8 | E106: 32 | F106: 85 | G106: 26 | H106: 335 | I106: 26000 | J106: 5 | K106: 24500 | L106: 8 | M106: 1500 | N106: 0.9423076923 | O106: 812.5 | P106: 765.625 | Q106: 3 | R106: 2 | S106: 계 | T106: 104S | W106: 104.8 | X106: 32 | Y106: 335 | Z106: 26000 | AA106: 24500 | AB106: 1500 | AC106: 0.9423076923 | AD106: 812.5 | AE106: 계 | AF106: 3/2 | AH106: 연수동 연수풍림1차 | AI106: 32 | AJ106: A- | AK106: A | AL106: B- | AM106: B- | AN106: C | AO106: O | AP106: O | AQ106: O | AR106: O | AS106: X | AT106: O | AU106: O | AV106: 후보 | AX106: 1992 | AY106: 3
A107: 연수동 대동 | B107: 93.05 | C107: 768 | D107: 72.4 | E107: 22 | F107: 52.1 | G107: 16 | H107: 384 | I107: 23000 | J107: 12 | K107: 18500 | L107: 10 | M107: 4500 | N107: 0.8043478261 | O107: 1045.454545 | P107: 840.9090909 | Q107: 3 | R107: 1 | S107: 계 | T107: 72 | W107: =D107 -> 72.4 | X107: =E107 -> 22 | Y107: =H107 -> 384 | Z107: =I107 -> 23000 | AA107: 18500 | AB107: 4500 | AC107: 0.8043478261 | AD107: 1045.454545 | AE107: 계 | AF107: 3/1 | AH107: 연수동 대동 | AI107: 22 | AJ107: A- | AK107: A | AL107: B- | AM107: B- | AN107: C | AO107: O | AP107: O | AQ107: X | AR107: O | AS107: X | AT107: O | AU107: O | AV107: 후보 | AX107: 1993 | AY107: 5
A108: 연수동 대동 | B108: 93.05 | C108: 768 | D108: 94.8 | E108: 29 | F108: 75.1 | G108: 23 | H108: 384 | I108: 30500 | J108: 9 | K108: 24000 | L108: 9 | M108: 6500 | N108: 0.7868852459 | O108: 1051.724138 | P108: 827.5862069 | Q108: 3 | R108: 1 | S108: 계 | T108: 94 | W108: 94.8 | X108: 29 | Y108: 384 | Z108: 30500 | AA108: 24000 | AB108: 6500 | AC108: 0.7868852459 | AD108: 1051.724138 | AE108: 계 | AF108: 3/1 | AH108: 연수동 대동 | AI108: 29 | AJ108: A- | AK108: A | AL108: B- | AM108: B- | AN108: C | AO108: X | AP108: O | AQ108: X | AR108: X | AS108: X | AT108: O | AU108: O | AV108: X | AX108: 1993 | AY108: 5
A109: 연수동 대림 | B109: 93.05 | C109: 640 | D109: 77.8 | E109: 24 | F109: 62.5 | G109: 19 | H109: 240 | I109: 25500 | J109: 10 | K109: 23000 | L109: 9 | M109: 2500 | N109: 0.9019607843 | O109: 1062.5 | P109: 958.3333333 | Q109: 3 | R109: 1 | S109: 계 | T109: 77 | W109: 77.8 | X109: 24 | Y109: 240 | Z109: 25500 | AA109: 23000 | AB109: 2500 | AC109: 0.9019607843 | AD109: 1062.5 | AE109: 계 | AF109: 3/1 | AH109: 연수동 대림 | AI109: 24 | AJ109: A- | AK109: A | AL109: B- | AM109: B- | AN109: C | AO109: O | AP109: O | AQ109: X | AR109: O | AS109: X | AT109: O | AU109: O | AV109: 후보 | AX109: 1993 | AY109: 5
A110: 연수동 대림 | B110: 93.05 | C110: 640 | D110: 105.2 | E110: 32 | F110: 84.8 | G110: 26 | H110: 400 | I110: 30000 | K110: 23000 | L110: 7 | M110: 7000 | N110: 0.7666666667 | O110: 937.5 | P110: 718.75 | Q110: 3 | R110: 2 | S110: 계 | T110: 105 | W110: 105.2 | X110: 32 | Y110: 400 | Z110: 30000 | AA110: 23000 | AB110: 7000 | AC110: 0.7666666667 | AD110: 937.5 | AE110: 계 | AF110: 3/2 | AH110: 연수동 대림 | AI110: 32 | AJ110: A- | AK110: A | AL110: B- | AM110: B- | AN110: C | AO110: X | AP110: O | AQ110: O | AR110: X | AS110: X | AT110: O | AU110: O | AV110: X | AX110: 1993 | AY110: 5
A111: 연수동 영남 | B111: 92.12 | C111: 622 | D111: 106.2 | E111: 32 | F111: 84.8 | G111: 26 | H111: 336 | I111: 20000 | J111: 5 | K111: 17000 | L111: 6 | M111: 3000 | N111: 0.85 | O111: 625 | P111: 531.25 | Q111: 3 | R111: 2 | S111: 계 | T111: 106A | W111: 106.2 | X111: 32 | Y111: 336 | Z111: 20000 | AA111: 17000 | AB111: 3000 | AC111: 0.85 | AD111: 625 | AE111: 계 | AF111: 3/2 | AH111: 연수동 영남 | AI111: 32 | AJ111: A- | AK111: A | AL111: B- | AM111: B- | AN111: C | AO111: O | AP111: O | AQ111: O | AR111: O | AS111: X | AT111: O | AU111: O | AV111: 후보 | AX111: 1992 | AY111: 12
A112: 연수동 영남 | B112: 92.12 | C112: 622 | D112: 106.6 | E112: 32 | F112: 84.9 | G112: 26 | H112: 286 | I112: 20000 | K112: 17000 | M112: 3000 | N112: 0.85 | O112: 625 | P112: 531.25 | Q112: 3 | R112: 2 | S112: 계 | T112: 106B | W112: 106.6 | X112: 32 | Y112: 286 | Z112: 20000 | AA112: 17000 | AB112: 3000 | AC112: 0.85 | AD112: 625 | AE112: 계 | AF112: 3/2 | AH112: 연수동 영남 | AI112: 32 | AJ112: A- | AK112: A | AL112: B- | AM112: B- | AN112: C | AO112: O | AP112: O | AQ112: O | AR112: O | AS112: X | AT112: O | AU112: O | AV112: 후보 | AX112: 1992 | AY112: 12
A113: 연수동 연수경남 | B113: 93.05 | C113: 620 | D113: 89.3 | E113: 27 | F113: 70.3 | G113: 21 | H113: 246 | I113: 25000 | J113: 10 | K113: 22000 | L113: 9 | M113: 3000 | N113: 0.88 | O113: 925.9259259 | P113: 814.8148148 | Q113: 3 | R113: 1 | S113: 계 | T113: 89 | W113: 89.3 | X113: 27 | Y113: 246 | Z113: 25000 | AA113: 22000 | AB113: 3000 | AC113: 0.88 | AD113: 925.9259259 | AE113: 계 | AF113: 3/1 | AH113: 연수동 연수경남 | AI113: 27 | AJ113: A- | AK113: A | AL113: B- | AM113: B- | AN113: C | AO113: O | AP113: O | AQ113: O | AR113: O | AS113: X | AT113: O | AU113: O | AV113: 후보 | AX113: 1993 | AY113: 5
A114: 연수동 연수경남 | B114: 93.05 | C114: 620 | D114: 104.7 | E114: 32 | F114: 84.9 | G114: 26 | H114: 374 | I114: 27000 | J114: 7 | K114: 22000 | L114: 12 | M114: 5000 | N114: 0.8148148148 | O114: 843.75 | P114: 687.5 | Q114: 3 | R114: 2 | S114: 계 | T114: 104 | W114: 104.7 | X114: 32 | Y114: 374 | Z114: 27000 | AA114: 22000 | AB114: 5000 | AC114: 0.8148148148 | AD114: 843.75 | AE114: 계 | AF114: 3/2 | AH114: 연수동 연수경남 | AI114: 32 | AJ114: A- | AK114: A | AL114: B- | AM114: B- | AN114: C | AO114: O | AP114: O | AQ114: O | AR114: O | AS114: X | AT114: O | AU114: O | AV114: 후보 | AX114: 1993 | AY114: 5
A115: 연수동 세경 | B115: 97.08 | C115: 567 | D115: 46.7 | E115: 14 | F115: 36.3 | G115: 11 | H115: 72 | I115: 11700 | J115: 10 | K115: 9500 | M115: 2200 | N115: 0.811965812 | O115: 835.7142857 | P115: 678.5714286 | Q115: 1 | R115: 1 | S115: 계 | T115: 46 | W115: 46.7 | X115: 14 | Y115: 72 | Z115: 11700 | AA115: 9500 | AB115: 2200 | AC115: 0.811965812 | AD115: 835.7142857 | AE115: 계 | AF115: 1/1 | AH115: 연수동 세경 | AI115: 14 | AJ115: A- | AK115: A | AL115: B- | AM115: B- | AN115: C | AO115: O | AP115: O | AQ115: O | AR115: O | AS115: X | AT115: X | AU115: O | AV115: X | AX115: 1997 | AY115: 8
A116: 연수동 세경 | B116: 97.08 | C116: 567 | D116: 66.6 | E116: 20 | F116: 51.8 | G116: 16 | H116: 495 | I116: 16000 | J116: 11 | K116: 13000 | L116: 1 | M116: 3000 | N116: 0.8125 | O116: 800 | P116: 650 | Q116: 2 | R116: 1 | S116: 계 | T116: 66 | W116: 66.6 | X116: 20 | Y116: 495 | Z116: 16000 | AA116: 13000 | AB116: =M116 -> 3000 | AC116: 0.8125 | AD116: 800 | AE116: 계 | AF116: 2/1 | AH116: 연수동 세경 | AI116: 20 | AJ116: A- | AK116: A | AL116: B- | AM116: B- | AN116: C | AO116: O | AP116: O | AQ116: O | AR116: O | AS116: X | AT116: O | AU116: O | AV116: 후보 | AX116: 1997 | AY116: 8
A117: 연수동 태산 | B117: 94.05 | C117: 420 | D117: 105.3 | E117: 32 | F117: 84.6 | G117: 26 | H117: 420 | I117: 25000 | J117: 6 | K117: 22000 | L117: 2 | M117: 3000 | N117: 0.88 | O117: 781.25 | P117: 687.5 | Q117: 3 | R117: 2 | S117: 계 | T117: 105 | W117: 105.3 | X117: 32 | Y117: 420 | Z117: 25000 | AA117: 22000 | AB117: =M117 -> 3000 | AC117: =N117 -> 0.88 | AD117: =O117 -> 781.25 | AE117: 계 | AF117: 3/2 | AH117: 연수동 태산 | AI117: 32 | AJ117: A- | AK117: A | AL117: B- | AM117: B- | AN117: C | AO117: O | AP117: O | AQ117: O | AR117: O | AS117: X | AT117: O | AU117: O | AV117: 후보 | AX117: 1994 | AY117: 5
A118: 연수동 동남 | B118: 94.02 | C118: 420 | D118: 111.5 | E118: 34 | F118: 91.7 | G118: 28 | H118: 210 | I118: 27000 | J118: 5 | K118: 20500 | M118: =I118-K118 -> 6500 | N118: =IF(ISERROR(K118/I118),"",K118/I118) -> 0.7592592593 | O118: =I118/E118 -> 794.1176471 | P118: =K118/E118 -> 602.9411765 | Q118: 3 | R118: 2 | S118: 계 | T118: 111 | W118: =D118 -> 111.5 | X118: 34 | Y118: =H118 -> 210 | Z118: 27000 | AA118: =K118 -> 20500 | AB118: =M118 -> 6500 | AC118: 0.7592592593 | AD118: 794.1176471 | AE118: =S118 -> 계 | AF118: =Q118&"/"&R118 -> 3/2 | AH118: 연수동 동남 | AI118: 34 | AJ118: =IF(AI118="","",$AJ$2) -> A- | AK118: A | AL118: B- | AM118: B- | AN118: =IF(AI118="","",$AN$2) -> C | AO118: =IF(N118="","",IF(N118>=$AO$1/100,"O","X")) -> X | AP118: =IF(I118="","",IF(I118<=$AP$1,"O","X")) -> O | AQ118: =IF(O118="","",IF(O118<=$AQ$1,"O","X")) -> O | AR118: =IF(M118="","",IF(M118<=$AR$1,"O","X")) -> X | AS118: X | AT118: =IF(OR(F118="",AI118=""),"",IF(AND((F118<=85),(AI118>=15)),"O","X")) -> X | AU118: =IF(C118="","",IF(C118>=$AU$1,"O","X")) -> O | AV118: =IF(AO118="","",IF(AND(AO118="O",AP118="O",AR118="O",AT118="O",AU118="O"),"후보","X")) -> X | AX118: 1994 | AY118: 2
A119: 연수동 동남 | B119: 94.02 | C119: 420 | D119: 125.8 | E119: 38 | F119: 104.9 | G119: 32 | H119: 150 | I119: 27500 | J119: 14 | K119: 21500 | M119: 6000 | N119: 0.7818181818 | O119: 723.6842105 | P119: 565.7894737 | Q119: 4 | R119: 2 | S119: 계 | T119: 125 | W119: 125.8 | X119: 38 | Y119: 150 | Z119: 27500 | AA119: 21500 | AB119: 6000 | AC119: 0.7818181818 | AD119: 723.6842105 | AE119: 계 | AF119: 4/2 | AH119: 연수동 동남 | AI119: 38 | AJ119: A- | AK119: A | AL119: B- | AM119: B- | AN119: C | AO119: X | AP119: O | AQ119: O | AR119: O | AS119: X | AT119: X | AU119: O | AV119: X | AX119: 1994 | AY119: 2
A120: 연수동 동남 | B120: 94.02 | C120: 420 | D120: 146.5 | E120: 44 | F120: 124.1 | G120: 38 | H120: 60 | I120: 32000 | J120: 12 | K120: 22500 | M120: 9500 | N120: 0.703125 | O120: 727.2727273 | P120: 511.3636364 | Q120: 4 | R120: 2 | S120: 계 | T120: 146 | W120: 146.5 | X120: 44 | Y120: 60 | Z120: 32000 | AA120: 22500 | AB120: 9500 | AC120: 0.703125 | AD120: 727.2727273 | AE120: 계 | AF120: 4/2 | AH120: 연수동 동남 | AI120: 44 | AJ120: A- | AK120: A | AL120: B- | AM120: B- | AN120: C | AO120: X | AP120: O | AQ120: O | AR120: X | AS120: X | AT120: X | AU120: O | AV120: X | AX120: 1994 | AY120: 2
A121: 연수동 성일 | B121: 94.1 | C121: 414 | D121: 54.7 | E121: 17 | F121: 39.7 | G121: 12 | H121: 192 | I121: 13000 | J121: 6 | K121: 12500 | L121: 6 | M121: 500 | N121: 0.9615384615 | O121: 764.7058824 | P121: 735.2941176 | Q121: 2 | R121: 1 | S121: 복 | T121: 54 | W121: =D121 -> 54.7 | X121: =E121 -> 17 | Y121: =H121 -> 192 | Z121: =I121 -> 13000 | AA121: 12500 | AB121: 500 | AC121: 0.9615384615 | AD121: 764.7058824 | AE121: 복 | AF121: 2/1 | AH121: 연수동 성일 | AI121: 17 | AJ121: A- | AK121: A | AL121: B- | AM121: B- | AN121: C | AO121: O | AP121: O | AQ121: O | AR121: O | AS121: X | AT121: O | AU121: O | AV121: 후보 | AX121: 1994 | AY121: 1
A122: 연수동 성일 | B122: 94.1 | C122: 414 | D122: 81.8 | E122: 25 | F122: 59.8 | G122: 18 | H122: 222 | I122: 17000 | J122: 9 | K122: 15000 | M122: 2000 | N122: 0.8823529412 | O122: 680 | P122: 600 | Q122: 3 | R122: 1 | S122: 복 | T122: 81 | W122: 81.8 | X122: 25 | Y122: 222 | Z122: 17000 | AA122: 15000 | AB122: 2000 | AC122: 0.8823529412 | AD122: 680 | AE122: 복 | AF122: 3/1 | AH122: 연수동 성일 | AI122: 25 | AJ122: A- | AK122: A | AL122: B- | AM122: B- | AN122: C | AO122: O | AP122: O | AQ122: O | AR122: O | AS122: X | AT122: O | AU122: O | AV122: 후보 | AX122: 1994 | AY122: 1
A123: 연수동 문남마을 | B123: 94.12 | C123: 400 | D123: 59.7 | E123: 18 | F123: 49.2 | G123: 15 | H123: 400 | I123: 15000 | J123: 4 | K123: 13000 | L123: 5 | M123: 2000 | N123: 0.8666666667 | O123: 833.3333333 | P123: 722.2222222 | Q123: 2 | R123: 1 | S123: 계 | T123: 59 | W123: 59.7 | X123: 18 | Y123: 400 | Z123: 15000 | AA123: 13000 | AB123: =M123 -> 2000 | AC123: =N123 -> 0.8666666667 | AD123: =O123 -> 833.3333333 | AE123: 계 | AF123: 2/1 | AH123: 연수동 문남마을 | AI123: 18 | AJ123: A- | AK123: A | AL123: B- | AM123: B- | AN123: C | AO123: O | AP123: O | AQ123: O | AR123: O | AS123: X | AT123: O | AU123: O | AV123: 후보 | AX123: 1994 | AY123: 12
A124: 연수동 대우 | B124: 92.06 | C124: 390 | D124: 120.9 | E124: 37 | F124: 101.8 | G124: 31 | H124: 271 | I124: 29500 | J124: 6 | K124: 23500 | M124: 6000 | N124: 0.7966101695 | O124: 797.2972973 | P124: 635.1351351 | Q124: 4 | R124: 2 | S124: 계 | T124: 120 | W124: 120.9 | X124: 37 | Y124: 271 | Z124: 29500 | AA124: 23500 | AB124: =M124 -> 6000 | AC124: 0.7966101695 | AD124: 797.2972973 | AE124: 계 | AF124: 4/2 | AH124: 연수동 대우 | AI124: 37 | AJ124: A- | AK124: A | AL124: B- | AM124: B- | AN124: C | AO124: X | AP124: O | AQ124: O | AR124: O | AS124: X | AT124: X | AU124: O | AV124: X | AX124: 1992 | AY124: 6
A125: 연수동 대우 | B125: 92.06 | C125: 390 | D125: 149.6 | E125: 45 | F125: 127.9 | G125: 39 | H125: 119 | I125: 30500 | J125: 8 | K125: 26500 | M125: 4000 | N125: 0.868852459 | O125: 677.7777778 | P125: 588.8888889 | Q125: 4 | R125: 2 | S125: 계 | T125: 149 | W125: 149.6 | X125: 45 | Y125: 119 | Z125: 30500 | AA125: 26500 | AB125: 4000 | AC125: 0.868852459 | AD125: 677.7777778 | AE125: 계 | AF125: 4/2 | AH125: 연수동 대우 | AI125: 45 | AJ125: A- | AK125: A | AL125: B- | AM125: B- | AN125: C | AO125: O | AP125: O | AQ125: O | AR125: O | AS125: X | AT125: X | AU125: O | AV125: X | AX125: 1992 | AY125: 6
A126: 연수동 연수시영1차 | B126: 92.05 | C126: 370 | D126: 62.5 | E126: 19 | F126: 44.2 | G126: 13 | H126: 150 | I126: 14500 | J126: 5 | K126: 13000 | M126: 1500 | N126: 0.8965517241 | O126: 763.1578947 | P126: 684.2105263 | Q126: 2 | R126: 1 | S126: 복 | T126: 62 | W126: 62.5 | X126: 19 | Y126: 150 | Z126: 14500 | AA126: 13000 | AB126: 1500 | AC126: 0.8965517241 | AD126: 763.1578947 | AE126: 복 | AF126: 2/1 | AH126: 연수동 연수시영1차 | AI126: 19 | AJ126: A- | AK126: A | AL126: B- | AM126: B- | AN126: C | AO126: O | AP126: O | AQ126: O | AR126: O | AS126: X | AT126: O | AU126: O | AV126: 후보 | AX126: 1992 | AY126: 5
A127: 연수동 연수시영1차 | B127: 92.05 | C127: 370 | D127: 70.3 | E127: 21 | F127: 50.7 | G127: 15 | H127: 220 | I127: 16500 | J127: 6 | K127: 15000 | L127: 13 | M127: 1500 | N127: 0.9090909091 | O127: 785.7142857 | P127: 714.2857143 | Q127: 2 | R127: 1 | S127: 복 | T127: 70 | W127: 70.3 | X127: 21 | Y127: 220 | Z127: 16500 | AA127: 15000 | AB127: 1500 | AC127: 0.9090909091 | AD127: 785.7142857 | AE127: 복 | AF127: 2/1 | AH127: 연수동 연수시영1차 | AI127: 21 | AJ127: A- | AK127: A | AL127: B- | AM127: B- | AN127: C | AO127: O | AP127: O | AQ127: O | AR127: O | AS127: X | AT127: O | AU127: O | AV127: 후보 | AX127: 1992 | AY127: 5
A128: 연수동 효정 | B128: 94.03 | C128: 312 | D128: 102.6 | E128: 31 | F128: 85 | G128: 26 | H128: 312 | I128: 23500 | J128: 11 | K128: 22000 | L128: 5 | M128: 1500 | N128: 0.9361702128 | O128: 758.0645161 | P128: 709.6774194 | Q128: 3 | R128: 2 | S128: 계 | T128: 102 | W128: 102.6 | X128: 31 | Y128: 312 | Z128: 23500 | AA128: 22000 | AB128: =M128 -> 1500 | AC128: 0.9361702128 | AD128: 758.0645161 | AE128: 계 | AF128: 3/2 | AH128: 연수동 효정 | AI128: 31 | AJ128: A- | AK128: A | AL128: B- | AM128: B- | AN128: C | AO128: O | AP128: O | AQ128: O | AR128: O | AS128: X | AT128: O | AU128: O | AV128: 후보 | AX128: 1994 | AY128: 3
A129: 연수동 우주 | B129: 92.06 | C129: 230 | D129: 109.1 | E129: 33 | F129: 85 | G129: 26 | H129: 230 | I129: 20200 | J129: 4 | K129: 17000 | L129: 4 | M129: 3200 | N129: 0.8415841584 | O129: 612.1212121 | P129: 515.1515152 | Q129: 3 | R129: 2 | S129: 계 | T129: 109 | W129: 109.1 | X129: 33 | Y129: 230 | Z129: 20200 | AA129: 17000 | AB129: 3200 | AC129: 0.8415841584 | AD129: 612.1212121 | AE129: 계 | AF129: 3/2 | AH129: 연수동 우주 | AI129: 33 | AJ129: A- | AK129: A | AL129: B- | AM129: B- | AN129: C | AO129: O | AP129: O | AQ129: O | AR129: O | AS129: X | AT129: O | AU129: X | AV129: X | AX129: 1992 | AY129: 6
A130: 연수동 인향 | B130: 92.06 | C130: 220 | D130: 109.1 | E130: 33 | F130: 85 | G130: 26 | H130: 220 | I130: 20500 | J130: 3 | K130: 16000 | L130: 4 | M130: 4500 | N130: 0.7804878049 | O130: 621.2121212 | P130: 484.8484848 | Q130: 3 | R130: 2 | S130: 계 | T130: 109 | W130: 109.1 | X130: 33 | Y130: 220 | Z130: 20500 | AA130: 16000 | AB130: 4500 | AC130: 0.7804878049 | AD130: 621.2121212 | AE130: 계 | AF130: 3/2 | AH130: 연수동 인향 | AI130: =IF(E130="","",E130) -> 33 | AJ130: A- | AK130: A | AL130: B- | AM130: B- | AN130: C | AO130: X | AP130: O | AQ130: O | AR130: O | AS130: X | AT130: O | AU130: X | AV130: X | AX130: 1992 | AY130: 6
A131: 연수동 태경 | B131: 92.07 | C131: 220 | D131: 109.8 | E131: 33 | F131: 84.9 | G131: 26 | H131: 220 | I131: 20700 | J131: 3 | K131: 16000 | M131: 4700 | N131: 0.7729468599 | O131: 627.2727273 | P131: 484.8484848 | Q131: 3 | R131: 2 | S131: 계 | T131: 109 | W131: 109.8 | X131: 33 | Y131: 220 | Z131: 20700 | AA131: 16000 | AB131: 4700 | AC131: 0.7729468599 | AD131: 627.2727273 | AE131: 계 | AF131: 3/2 | AH131: =IF(A131="","",A131) -> 연수동 태경 | AI131: =IF(E131="","",E131) -> 33 | AJ131: A- | AK131: A | AL131: B- | AM131: B- | AN131: C | AO131: X | AP131: O | AQ131: O | AR131: O | AS131: X | AT131: O | AU131: X | AV131: X | AX131: 1992 | AY131: 7
AX132: 2011 | AY132: 4
AX133: 2011 | AY133: 4
AX134: 2011 | AY134: 4
AX135: 2015 | AY135: 7
AX136: 2015 | AY136: 7
AX137: 2015 | AY137: 7
AX138: 2012 | AY138: 5
AX139: 2012 | AY139: 5
AX140: 2012 | AY140: 5
AX141: 2012 | AY141: 5
AX142: 2011 | AY142: 2
AX143: 2011 | AY143: 2
AX144: 2011 | AY144: 2
AX145: 2012 | AY145: 7
AX146: 2012 | AY146: 7
AX147: 2012 | AY147: 7
AX148: 2012 | AY148: 7
AX149: 2011 | AY149: 2
AX150: 2011 | AY150: 2
AX151: 2011 | AY151: 2
AX152: 2011 | AY152: 2
AX153: 2011 | AY153: 2
AX154: 2009 | AY154: 9
AX155: 2009 | AY155: 9
AX156: 2009 | AY156: 9
AX157: 2009 | AY157: 9
AX158: 2009 | AY158: 9
AX159: 2010 | AY159: 3
AX160: 2010 | AY160: 3
AX161: 2010 | AY161: 3
AX162: 2010 | AY162: 3
AX163: 2005 | AY163: 6
AX164: 2005 | AY164: 6
AX165: 2005 | AY165: 6
AX166: 2005 | AY166: 3
AX167: 2005 | AY167: 3
AX168: 2005 | AY168: 7
AX169: 2015 | AY169: 8
AX170: 2015 | AY170: 8
AX171: 2015 | AY171: 8
AX172: 2015 | AY172: 8
AX173: 2012 | AY173: 7
AX174: 2012 | AY174: 7
AX175: 2012 | AY175: 7
AX176: 2012 | AY176: 7
AX177: 2010 | AY177: 4
AX178: 2010 | AY178: 4
AX179: 2010 | AY179: 4
AX180: 2010 | AY180: 4
AX181: 2010 | AY181: 4
AX182: 2009 | AY182: 9
AX183: 2009 | AY183: 9
AX184: 2009 | AY184: 9
AX185: 2009 | AY185: 9
AX186: 2015 | AY186: 1
AX187: 2015 | AY187: 1
AX188: 2015 | AY188: 1
AX189: 2009 | AY189: 9
AX190: 2009 | AY190: 9
AX191: 2009 | AY191: 9
AX192: 2009 | AY192: 9
AX193: 2005 | AY193: 3
AX194: 2005 | AY194: 3
AX195: 2005 | AY195: 3
AX196: 1994 | AY196: 5 | BA196: 20평대 | BB196: 0 | BC196: 0 | BD196: 0 | BE196: 0 | BF196: 0
AX197: 1994 | AY197: 5 | BA197: 30평대 | BB197: 0 | BC197: 0 | BD197: 0 | BE197: 0 | BF197: 0
AX198: 1994 | AY198: 5 | BA198: 40평대↑ | BB198: 0 | BC198: 0 | BD198: 0 | BE198: 0 | BF198: 0
AX199: 1995 | AY199: 8
AX200: 1995 | AY200: 8 | BB200: 10년 이하 | BC200: 10~20년 | BD200: 20~30년 | BE200: 30년 이상 | BF200: 합계
... 198 more rows

Sheet 단지추출_가격표용
A1: =단지추출!A1 -> 구미시 | J1: 유사평형제거 | L1: O | N1: 추출기준세대수 | P1: 30 | Q1: 세대이상
A2: =단지추출!A2 -> 2022-01-01
A3: 단지명 | B3: 입주 연도 | C3: 총세 대수 | D3: 공급 (m2) | E3: 공급 면적 | F3: 전용 (m2) | G3: 전용 면적 | H3: 세대 | I3: 매매 최저가 | J3: 층 | K3: 전세 최고가 | L3: 층 | M3: 갭 | N3: 전세 가율 | O3: 매매 평단 | P3: 전세 평단 | Q3: 방 | R3: 욕 실 | S3: 구 조 | T3: 매/전/월 Type | U3: 비고
A4: 동춘동 송도파크자이 | B4: 19.05 | C4: 1023 | D4: 131.2 | E4: 40 | F4: 102 | G4: 31 | H4: 87 | I4: 70000 | K4: 40000 | M4: =I4-K4 -> 30000 | N4: =IF(ISERROR(K4/I4),"",K4/I4) -> 0.5714285714 | O4: =I4/E4 -> 1750 | P4: =K4/E4 -> 1000 | Q4: 4 | R4: 2 | S4: 계 | T4: 131A
A5: 동춘동 송도파크자이 | B5: 19.05 | C5: 1023 | D5: 109.9 | E5: 33 | F5: 84.9 | G5: 26 | H5: 381 | I5: 60000 | J5: 28 | K5: 38000 | L5: 중 | M5: 22000 | N5: 0.6333333333 | O5: 1818.181818 | P5: 1151.515152 | Q5: 3 | R5: 2 | S5: 계 | T5: 109A
A6: 동춘동 송도파크레인동일하이빌 | B6: 19.03 | C6: 1180 | D6: 124.6 | E6: 38 | F6: 93.7 | G6: 28 | H6: 150 | I6: 55000 | J6: 5 | K6: 40000 | L6: 26 | M6: 15000 | N6: 0.7272727273 | O6: 1447.368421 | P6: 1052.631579 | Q6: 4 | R6: 2 | S6: 계 | T6: 124
A7: 동춘동 송도파크자이 | B7: 19.05 | C7: 1023 | D7: 100.6 | E7: 30 | F7: 76.8 | G7: 23 | H7: 142 | I7: 55000 | K7: 30000 | M7: 25000 | N7: 0.5454545455 | O7: 1833.333333 | P7: 1000 | Q7: 3 | R7: 2 | S7: 계 | T7: 100A
A8: 동춘동 송도파크레인동일하이빌 | B8: 19.03 | C8: 1180 | D8: 102.2 | E8: 31 | F8: 74.2 | G8: 22 | H8: 264 | I8: 50000 | J8: 20 | K8: 30000 | M8: 20000 | N8: 0.6 | O8: 1612.903226 | P8: 967.7419355 | Q8: 3 | R8: 2 | S8: 계 | T8: 102
A9: 동춘동 송도파크레인동일하이빌 | B9: 19.03 | C9: 1180 | D9: 114.7 | E9: 35 | F9: 85 | G9: 26 | H9: 347 | I9: 49000 | J9: 중 | K9: 36000 | L9: 중 | M9: 13000 | N9: 0.7346938776 | O9: 1400 | P9: 1028.571429 | Q9: 3 | R9: 2 | S9: 계 | T9: 114B
A10: 동춘동 동일하이빌파크포레 | B10: 19.03 | C10: 281 | D10: 112 | E10: 34 | F10: 84.9 | G10: 26 | H10: 100 | I10: 47000 | J10: 16 | K10: 35000 | M10: 12000 | N10: 0.7446808511 | O10: 1382.352941 | P10: 1029.411765 | Q10: 3 | R10: 2 | S10: 계 | T10: 111
A11: 동춘동 송도파크레인동일하이빌 | B11: 19.03 | C11: 1180 | D11: 93 | E11: 28 | F11: 66.9 | G11: 20 | H11: 89 | I11: 45000 | J11: 중 | K11: 29000 | M11: 16000 | N11: 0.6444444444 | O11: 1607.142857 | P11: 1035.714286 | Q11: 3 | R11: 2 | S11: 계 | T11: 93
A12: 동춘동 연수서해그랑블1단지 | B12: 17.11 | C12: 1043 | D12: 112.9 | E12: 34 | F12: 85 | G12: 26 | H12: 468 | I12: 45000 | J12: 중 | K12: 35000 | M12: 10000 | N12: 0.7777777778 | O12: 1323.529412 | P12: 1029.411765 | Q12: 4 | R12: 2 | S12: 계 | T12: 112C
A13: 연수동 연수우성1차 | B13: 94.09 | C13: 1088 | D13: 189.7 | E13: 57 | F13: 160 | G13: 48 | H13: 124 | I13: 45000 | J13: 6 | K13: 32000 | M13: 13000 | N13: 0.7111111111 | O13: 789.4736842 | P13: 561.4035088 | Q13: 5 | R13: 2 | S13: 계 | T13: 189
A14: 동춘동 현대,대림2차 | B14: 94.06 | C14: 700 | D14: 159 | E14: 48 | F14: 133.8 | G14: 40 | H14: 40 | I14: 43000 | K14: 32000 | M14: 11000 | N14: 0.7441860465 | O14: 895.8333333 | P14: 666.6666667 | Q14: 4 | R14: 2 | S14: 계 | T14: 159A
A15: 동춘동 한양1차 | B15: 94.12 | C15: 1020 | D15: 161.5 | E15: 49 | F15: 133.4 | G15: 40 | H15: 152 | I15: 42000 | J15: 6 | K15: 28000 | M15: 14000 | N15: 0.6666666667 | O15: 857.1428571 | P15: 571.4285714 | Q15: 4 | R15: 2 | S15: 계 | T15: 161
A16: 동춘동 하나 | B16: 94.09 | C16: 264 | D16: 153.2 | E16: 46 | F16: 131.2 | G16: 40 | H16: 96 | I16: 41000 | J16: 4 | K16: 33000 | M16: 8000 | N16: 0.8048780488 | O16: 891.3043478 | P16: 717.3913043 | Q16: 4 | R16: 2 | S16: 계 | T16: 153
A17: 동춘동 대우삼환 | B17: 94.05 | C17: 1776 | D17: 144.8 | E17: 44 | F17: 120.7 | G17: 37 | H17: 256 | I17: 39000 | J17: 5 | K17: 31000 | M17: 8000 | N17: 0.7948717949 | O17: 886.3636364 | P17: 704.5454545 | Q17: 4 | R17: 2 | S17: 계 | T17: 144
A18: 동춘동 연수서해그랑블1단지 | B18: 17.11 | C18: 1043 | D18: 94.9 | E18: 29 | F18: 70.8 | G18: 21 | H18: 264 | I18: 39000 | J18: 4 | K18: 29000 | M18: 10000 | N18: 0.7435897436 | O18: 1344.827586 | P18: 1000 | Q18: 3 | R18: 2 | S18: 계 | T18: 94B
A19: 동춘동 연수타운(금호,동아) | B19: 93.04 | C19: 1056 | D19: 163.7 | E19: 50 | F19: 134.6 | G19: 41 | H19: 320 | I19: 38000 | J19: 7 | K19: 29000 | L19: 14 | M19: 9000 | N19: 0.7631578947 | O19: 760 | P19: 580 | Q19: 4 | R19: 2 | S19: 계 | T19: 163
A20: 동춘동 연수대우3차 | B20: 93.12 | C20: 344 | D20: 157.9 | E20: 48 | F20: 134.1 | G20: 41 | H20: 84 | I20: 38000 | J20: 2 | K20: 30000 | L20: 5 | M20: 8000 | N20: 0.7894736842 | O20: 791.6666667 | P20: 625 | Q20: 4 | R20: 2 | S20: 계 | T20: 157
A21: 연수동 연수우성1차 | B21: 94.09 | C21: 1088 | D21: 161.3 | E21: 49 | F21: 133.6 | G21: 40 | H21: 178 | I21: 38000 | J21: 4 | K21: 31000 | M21: 7000 | N21: 0.8157894737 | O21: 775.5102041 | P21: 632.6530612 | Q21: 4 | R21: 2 | S21: 계 | T21: 161
A22: 동춘동 동일하이빌파크포레 | B22: 19.03 | C22: 281 | D22: 84.6 | E22: 26 | F22: 60 | G22: 18 | H22: 181 | I22: 36000 | J22: 8 | K22: 28000 | M22: 8000 | N22: 0.7777777778 | O22: 1384.615385 | P22: 1076.923077 | Q22: 3 | R22: 2 | S22: 계 | T22: 84
A23: 연수동 우성2차 | B23: 95.04 | C23: 2044 | D23: 104.2 | E23: 32 | F23: 84.8 | G23: 26 | H23: 628 | I23: 36000 | J23: 6 | K23: 28000 | L23: 18 | M23: 8000 | N23: 0.7777777778 | O23: 1125 | P23: 875 | Q23: 3 | R23: 2 | S23: 계 | T23: 104
A24: 동춘동 롯데 | B24: 93.08 | C24: 320 | D24: 153.5 | E24: 46 | F24: 134.7 | G24: 41 | H24: 110 | I24: 35000 | J24: 2 | K24: 25000 | M24: 10000 | N24: 0.7142857143 | O24: 760.8695652 | P24: 543.4782609 | Q24: 4 | R24: 2 | S24: 계 | T24: 153
A25: 연수동 연수우성1차 | B25: 94.09 | C25: 1088 | D25: 126.4 | E25: 38 | F25: 102 | G25: 31 | H25: 714 | I25: 35000 | J25: 4 | K25: 29000 | L25: 15 | M25: 6000 | N25: 0.8285714286 | O25: 921.0526316 | P25: 763.1578947 | Q25: 4 | R25: 2 | S25: 계 | T25: 126
A26: 동춘동 현대1차 | B26: 93.01 | C26: 1040 | D26: 108.9 | E26: 33 | F26: 85 | G26: 26 | H26: 1040 | I26: 34500 | J26: 4 | K26: 26000 | L26: 3 | M26: 8500 | N26: 0.7536231884 | O26: 1045.454545 | P26: 787.8787879 | Q26: 3 | R26: 2 | S26: 계 | T26: 108
A27: 동춘동 대우삼환 | B27: 94.05 | C27: 1776 | D27: 123.7 | E27: 37 | F27: 102 | G27: 31 | H27: 456 | I27: 34000 | J27: 16 | K27: 28000 | M27: 6000 | N27: 0.8235294118 | O27: 918.9189189 | P27: 756.7567568 | Q27: 4 | R27: 2 | S27: 계 | T27: 123
A28: 동춘동 삼성,럭키 | B28: 93.08 | C28: 1080 | D28: 139 | E28: 42 | F28: 119.4 | G28: 36 | H28: 120 | I28: 34000 | J28: 10 | K28: 28000 | M28: 6000 | N28: 0.8235294118 | O28: 809.5238095 | P28: 666.6666667 | Q28: 4 | R28: 2 | S28: 계 | T28: 139
A29: 선학동 금호타운 | B29: 93.01 | C29: 540 | D29: 146.6 | E29: 44 | F29: 124.1 | G29: 38 | H29: 72 | I29: 34000 | J29: 9 | K29: 28000 | M29: 6000 | N29: 0.8235294118 | O29: 772.7272727 | P29: 636.3636364 | Q29: 4 | R29: 2 | S29: 계 | T29: 146
A30: 동춘동 현대,대림2차 | B30: 94.06 | C30: 700 | D30: 123.7 | E30: 37 | F30: 101.9 | G30: 31 | H30: 180 | I30: 33000 | J30: 12 | K30: 27000 | L30: 12 | M30: 6000 | N30: 0.8181818182 | O30: 891.8918919 | P30: 729.7297297 | Q30: 4 | R30: 2 | S30: 계 | T30: 123B
A31: 동춘동 하나 | B31: 94.09 | C31: 264 | D31: 116.6 | E31: 35 | F31: 99.4 | G31: 30 | H31: 168 | I31: 33000 | J31: 4 | K31: 28000 | M31: 5000 | N31: 0.8484848485 | O31: 942.8571429 | P31: 800 | Q31: 4 | R31: 2 | S31: 계 | T31: 116
A32: 동춘동 연수풍림2차 | B32: 93.06 | C32: 1200 | D32: 104.5 | E32: 32 | F32: 84.2 | G32: 25 | H32: 600 | I32: 32000 | J32: 5 | K32: 26000 | L32: 8 | M32: 6000 | N32: 0.8125 | O32: 1000 | P32: 812.5 | Q32: 3 | R32: 2 | S32: 계 | T32: 104
A33: 동춘동 연수타운(금호,동아) | B33: 93.04 | C33: 1056 | D33: 124 | E33: 38 | F33: 102 | G33: 31 | H33: 616 | I33: 32000 | J33: 8 | K33: 26000 | M33: 6000 | N33: 0.8125 | O33: 842.1052632 | P33: 684.2105263 | Q33: 4 | R33: 2 | S33: 계 | T33: 124
A34: 동춘동 한양1차 | B34: 94.12 | C34: 1020 | D34: 126.6 | E34: 38 | F34: 101.9 | G34: 31 | H34: 451 | I34: 32000 | J34: 8 | K34: 26000 | M34: 6000 | N34: 0.8125 | O34: 842.1052632 | P34: 684.2105263 | Q34: 4 | R34: 2 | S34: 계 | T34: 126
A35: 동춘동 인천연수서해그랑블3단지 | B35: 19.09 | C35: 251 | D35: 77.7 | E35: 24 | F35: 60 | G35: 18 | H35: 191 | I35: 32000 | J35: 9 | K35: 24000 | M35: 8000 | N35: 0.75 | O35: 1333.333333 | P35: 1000 | Q35: 3 | R35: 2 | S35: 계 | T35: 77A
A36: 연수동 동남 | B36: 94.02 | C36: 420 | D36: 146.5 | E36: 44 | F36: 124.1 | G36: 38 | H36: 60 | I36: 32000 | J36: 12 | K36: 22500 | M36: =I36-K36 -> 9500 | N36: =IF(ISERROR(K36/I36),"",K36/I36) -> 0.703125 | O36: =I36/E36 -> 727.2727273 | P36: =K36/E36 -> 511.3636364 | Q36: 4 | R36: 2 | S36: 계 | T36: 146
A37: 동춘동 연수타운(금호,동아) | B37: 93.04 | C37: 1056 | D37: 115.3 | E37: 35 | F37: 94.8 | G37: 29 | H37: 120 | I37: 31500 | J37: 6 | K37: 26000 | M37: 5500 | N37: 0.8253968254 | O37: 900 | P37: 742.8571429 | Q37: 3 | R37: 2 | S37: 계 | T37: 115
A38: 동춘동 한양1차 | B38: 94.12 | C38: 1020 | D38: 111.3 | E38: 34 | F38: 88.9 | G38: 27 | H38: 393 | I38: 31500 | J38: 16 | K38: 27000 | L38: 5 | M38: 4500 | N38: 0.8571428571 | O38: 926.4705882 | P38: 794.1176471 | Q38: 3 | R38: 2 | S38: 계 | T38: 111A
A39: 동춘동 대우삼환 | B39: 94.05 | C39: 1776 | D39: 110.3 | E39: 33 | F39: 90.2 | G39: 27 | H39: 1064 | I39: 31000 | J39: 5 | K39: 26000 | L39: 14 | M39: 5000 | N39: 0.8387096774 | O39: 939.3939394 | P39: 787.8787879 | Q39: 3 | R39: 2 | S39: 계 | T39: 110
A40: 동춘동 현대,대림2차 | B40: 94.06 | C40: 700 | D40: 113.4 | E40: 34 | F40: 96.7 | G40: 29 | H40: 130 | I40: 31000 | J40: 4 | K40: 23000 | L40: 5 | M40: 8000 | N40: 0.7419354839 | O40: 911.7647059 | P40: 676.4705882 | Q40: 3 | R40: 2 | S40: 계 | T40: 113B
A41: 동춘동 인천연수서해그랑블포레스트 | B41: 19.04 | C41: 334 | D41: 79.4 | E41: 24 | F41: 59.9 | G41: 18 | H41: 315 | I41: 31000 | J41: 10 | K41: 25000 | M41: 6000 | N41: 0.8064516129 | O41: 1291.666667 | P41: 1041.666667 | Q41: 3 | R41: 2 | S41: 계 | T41: 79
A42: 연수동 대동 | B42: 93.05 | C42: 768 | D42: 94.8 | E42: 29 | F42: 75.1 | G42: 23 | H42: 384 | I42: 30500 | J42: 9 | K42: 24000 | L42: 9 | M42: 6500 | N42: 0.7868852459 | O42: 1051.724138 | P42: 827.5862069 | Q42: 3 | R42: 1 | S42: 계 | T42: 94
A43: 연수동 대우 | B43: 92.06 | C43: 390 | D43: 149.6 | E43: 45 | F43: 127.9 | G43: 39 | H43: 119 | I43: 30500 | J43: 8 | K43: 26500 | M43: 4000 | N43: 0.868852459 | O43: 677.7777778 | P43: 588.8888889 | Q43: 4 | R43: 2 | S43: 계 | T43: 149
A44: 동춘동 삼성,럭키 | B44: 93.08 | C44: 1080 | D44: 114.1 | E44: 35 | F44: 95.8 | G44: 29 | H44: 960 | I44: 30000 | J44: 7 | K44: 26000 | M44: 4000 | N44: 0.8666666667 | O44: 857.1428571 | P44: 742.8571429 | Q44: 3 | R44: 2 | S44: 계 | T44: 114
A45: 연수동 대림 | B45: 93.05 | C45: 640 | D45: 105.2 | E45: 32 | F45: 84.8 | G45: 26 | H45: 400 | I45: 30000 | K45: 23000 | L45: 7 | M45: 7000 | N45: 0.7666666667 | O45: 937.5 | P45: 718.75 | Q45: 3 | R45: 2 | S45: 계 | T45: 105
A46: 동춘동 무지개마을 | B46: 95.08 | C46: 1068 | D46: 106.2 | E46: 32 | F46: 85 | G46: 26 | H46: 534 | I46: 29500 | J46: 4 | K46: 26000 | L46: 5 | M46: 3500 | N46: 0.8813559322 | O46: 921.875 | P46: 812.5 | Q46: 3 | R46: 2 | S46: 계 | T46: 106
A47: 연수동 우성2차 | B47: 95.04 | C47: 2044 | D47: 77.4 | E47: 23 | F47: 59.6 | G47: 18 | H47: 888 | I47: 29500 | J47: 9 | K47: 25000 | L47: 10 | M47: 4500 | N47: 0.8474576271 | O47: 1282.608696 | P47: 1086.956522 | Q47: 3 | R47: 1 | S47: 계 | T47: 77
A48: 연수동 대우 | B48: 92.06 | C48: 390 | D48: 120.9 | E48: 37 | F48: 101.8 | G48: 31 | H48: 271 | I48: 29500 | J48: 6 | K48: 23500 | M48: 6000 | N48: 0.7966101695 | O48: 797.2972973 | P48: 635.1351351 | Q48: 4 | R48: 2 | S48: 계 | T48: 120
A49: 선학동 뉴서울1차 | B49: 92.1 | C49: 720 | D49: 147.7 | E49: 45 | F49: 126.9 | G49: 38 | H49: 180 | I49: 28500 | J49: 8 | K49: 24000 | M49: 4500 | N49: 0.8421052632 | O49: 633.3333333 | P49: 533.3333333 | Q49: 4 | R49: 2 | S49: 계 | T49: 147
A50: 선학동 금호타운 | B50: 93.01 | C50: 540 | D50: 122.2 | E50: 37 | F50: 101.9 | G50: 31 | H50: 216 | I50: 28500 | J50: 4 | K50: 27000 | L50: 10 | M50: 1500 | N50: 0.9473684211 | O50: 770.2702703 | P50: 729.7297297 | Q50: 4 | R50: 2 | S50: 계 | T50: 122
A51: 선학동 금호타운 | B51: 93.01 | C51: 540 | D51: 104.4 | E51: 32 | F51: 84.9 | G51: 26 | H51: 252 | I51: 28300 | J51: 4 | K51: 23000 | M51: 5300 | N51: 0.8127208481 | O51: 884.375 | P51: 718.75 | Q51: 3 | R51: 2 | S51: 계 | T51: 104
A52: 동춘동 롯데 | B52: 93.08 | C52: 320 | D52: 115.5 | E52: 35 | F52: 99.9 | G52: 30 | H52: 210 | I52: 27700 | J52: 4 | K52: 23000 | M52: 4700 | N52: 0.8303249097 | O52: 791.4285714 | P52: 657.1428571 | Q52: 3 | R52: 2 | S52: 계 | T52: 115
A53: 연수동 동남 | B53: 94.02 | C53: 420 | D53: 125.8 | E53: 38 | F53: 104.9 | G53: 32 | H53: 150 | I53: 27500 | J53: 14 | K53: 21500 | M53: 6000 | N53: 0.7818181818 | O53: 723.6842105 | P53: 565.7894737 | Q53: 4 | R53: 2 | S53: 계 | T53: 125
A54: 동춘동 한양2차 | B54: 95.08 | C54: 1440 | D54: 99.7 | E54: 30 | F54: 85 | G54: 26 | H54: 760 | I54: 27000 | J54: 4 | K54: 22000 | L54: 2 | M54: 5000 | N54: 0.8148148148 | O54: 900 | P54: 733.3333333 | Q54: 4 | R54: 1 | S54: 계 | T54: 99
A55: 연수동 연수경남 | B55: 93.05 | C55: 620 | D55: 104.7 | E55: 32 | F55: 84.9 | G55: 26 | H55: 374 | I55: 27000 | J55: 7 | K55: 22000 | L55: 12 | M55: 5000 | N55: 0.8148148148 | O55: 843.75 | P55: 687.5 | Q55: 3 | R55: 2 | S55: 계 | T55: 104
A56: 연수동 동남 | B56: 94.02 | C56: 420 | D56: 111.5 | E56: 34 | F56: 91.7 | G56: 28 | H56: 210 | I56: 27000 | J56: 5 | K56: 20500 | M56: 6500 | N56: 0.7592592593 | O56: 794.1176471 | P56: 602.9411765 | Q56: 3 | R56: 2 | S56: 계 | T56: 111
A57: 동춘동 인천연수풍림3차 | B57: 93.12 | C57: 440 | D57: 99.2 | E57: 30 | F57: 84.3 | G57: 26 | H57: 440 | I57: 26500 | J57: 4 | K57: 22000 | L57: 4 | M57: 4500 | N57: 0.8301886792 | O57: 883.3333333 | P57: 733.3333333 | Q57: 3 | R57: 2 | S57: 계 | T57: 99
A58: 동춘동 연수대우3차 | B58: 93.12 | C58: 344 | D58: 116 | E58: 35 | F58: 100 | G58: 30 | H58: 140 | I58: 26000 | J58: 3 | K58: 21000 | M58: 5000 | N58: 0.8076923077 | O58: 742.8571429 | P58: 600 | Q58: 4 | R58: 2 | S58: 계 | T58: 116B
A59: 연수동 연수풍림1차 | B59: 92.03 | C59: 769 | D59: 104.8 | E59: 32 | F59: 85 | G59: 26 | H59: 335 | I59: 26000 | J59: 5 | K59: 24500 | L59: 8 | M59: 1500 | N59: 0.9423076923 | O59: 812.5 | P59: 765.625 | Q59: 3 | R59: 2 | S59: 계 | T59: 104S
A60: 동춘동 한양2차 | B60: 95.08 | C60: 1440 | D60: 81.6 | E60: 25 | F60: 68.4 | G60: 21 | H60: 680 | I60: 25500 | J60: 4 | K60: 18000 | L60: 4 | M60: 7500 | N60: 0.7058823529 | O60: 1020 | P60: 720 | Q60: 3 | R60: 1 | S60: 계 | T60: 81
A61: 연수동 대림 | B61: 93.05 | C61: 640 | D61: 77.8 | E61: 24 | F61: 62.5 | G61: 19 | H61: 240 | I61: 25500 | J61: 10 | K61: 23000 | L61: 9 | M61: 2500 | N61: 0.9019607843 | O61: 1062.5 | P61: 958.3333333 | Q61: 3 | R61: 1 | S61: 계 | T61: 77
A62: 동춘동 건영 | B62: 94.04 | C62: 970 | D62: 99.4 | E62: 30 | F62: 84.9 | G62: 26 | H62: 920 | I62: 25000 | J62: 4 | K62: 23000 | M62: 2000 | N62: 0.92 | O62: 833.3333333 | P62: 766.6666667 | Q62: 3 | R62: 2 | S62: 계 | T62: 99
A63: 동춘동 대동 | B63: 94.05 | C63: 336 | D63: 105.1 | E63: 32 | F63: 84.6 | G63: 26 | H63: 168 | I63: 25000 | J63: 5 | K63: 20000 | L63: 2 | M63: 5000 | N63: 0.8 | O63: 781.25 | P63: 625 | Q63: 3 | R63: 2 | S63: 계 | T63: 105
A64: 연수동 연수경남 | B64: 93.05 | C64: 620 | D64: 89.3 | E64: 27 | F64: 70.3 | G64: 21 | H64: 246 | I64: 25000 | J64: 10 | K64: 22000 | L64: 9 | M64: 3000 | N64: 0.88 | O64: 925.9259259 | P64: 814.8148148 | Q64: 3 | R64: 1 | S64: 계 | T64: 89
A65: 연수동 태산 | B65: 94.05 | C65: 420 | D65: 105.3 | E65: 32 | F65: 84.6 | G65: 26 | H65: 420 | I65: 25000 | J65: 6 | K65: 22000 | L65: 2 | M65: 3000 | N65: 0.88 | O65: 781.25 | P65: 687.5 | Q65: 3 | R65: 2 | S65: 계 | T65: 105
A66: 선학동 뉴서울1차 | B66: 92.1 | C66: 720 | D66: 102.5 | E66: 31 | F66: 84.5 | G66: 26 | H66: 540 | I66: 24500 | J66: 10 | K66: 21000 | L66: 10 | M66: 3500 | N66: 0.8571428571 | O66: 790.3225806 | P66: 677.4193548 | Q66: 3 | R66: 2 | S66: 계 | T66: 102
A67: 연수동 연수유천 | B67: 93.09 | C67: 788 | D67: 103.7 | E67: 31 | F67: 84.9 | G67: 26 | H67: 554 | I67: 24500 | J67: 11 | K67: 21000 | L67: 9 | M67: 3500 | N67: 0.8571428571 | O67: 790.3225806 | P67: 677.4193548 | Q67: 3 | R67: 2 | S67: 계 | T67: 103
A68: 동춘동 무지개마을 | B68: 95.08 | C68: 1068 | D68: 78.6 | E68: 24 | F68: 59.8 | G68: 18 | H68: 534 | I68: 24000 | J68: 5 | K68: 22000 | L68: 9 | M68: =I68-K68 -> 2000 | N68: =IF(ISERROR(K68/I68),"",K68/I68) -> 0.9166666667 | O68: =I68/E68 -> 1000 | P68: =K68/E68 -> 916.6666667 | Q68: 3 | R68: 1 | S68: 계 | T68: 78
A69: 선학동 윤성 | B69: 95.08 | C69: 423 | D69: 103.1 | E69: 31 | F69: 84.9 | G69: 26 | H69: 175 | I69: 24000 | J69: 9 | K69: 19000 | M69: 5000 | N69: 0.7916666667 | O69: 774.1935484 | P69: 612.9032258 | Q69: 3 | R69: 2 | S69: 계 | T69: 103
A70: 연수동 연수풍림1차 | B70: 92.03 | C70: 769 | D70: 87.5 | E70: 26 | F70: 69.7 | G70: 21 | H70: 164 | I70: 24000 | J70: 12 | K70: 22000 | M70: 2000 | N70: 0.9166666667 | O70: 923.0769231 | P70: 846.1538462 | Q70: 3 | R70: 1 | S70: 계 | T70: 87
A71: 연수동 효정 | B71: 94.03 | C71: 312 | D71: 102.6 | E71: 31 | F71: 85 | G71: 26 | H71: 312 | I71: 23500 | J71: 11 | K71: 22000 | L71: 5 | M71: 1500 | N71: 0.9361702128 | O71: 758.0645161 | P71: 709.6774194 | Q71: 3 | R71: 2 | S71: 계 | T71: 102
A72: 동춘동 건영 | B72: 94.04 | C72: 970 | D72: 87.1 | E72: 26 | F72: 73.7 | G72: 22 | H72: 50 | I72: 23000 | K72: 20000 | M72: 3000 | N72: 0.8695652174 | O72: 884.6153846 | P72: 769.2307692 | Q72: 3 | R72: 1 | S72: 계 | T72: 87
A73: 연수동 대동 | B73: 93.05 | C73: 768 | D73: 72.4 | E73: 22 | F73: 52.1 | G73: 16 | H73: 384 | I73: 23000 | J73: 12 | K73: 18500 | L73: 10 | M73: 4500 | N73: 0.8043478261 | O73: 1045.454545 | P73: 840.9090909 | Q73: 3 | R73: 1 | S73: 계 | T73: 72
A74: 선학동 아주 | B74: 92.05 | C74: 390 | D74: 100.3 | E74: 30 | F74: 84.1 | G74: 25 | H74: 300 | I74: 21600 | J74: 10 | K74: 21000 | L74: 9 | M74: 600 | N74: 0.9722222222 | O74: 720 | P74: 700 | Q74: 3 | R74: 2 | S74: 계 | T74: 100B
A75: 동춘동 아주 | B75: 94.04 | C75: 348 | D75: 98.7 | E75: 30 | F75: 84.8 | G75: 26 | H75: 348 | I75: 21500 | J75: 5 | K75: 18000 | M75: 3500 | N75: 0.8372093023 | O75: 716.6666667 | P75: 600 | Q75: 3 | R75: 2 | S75: 계 | T75: 98
A76: 연수동 태경 | B76: 92.07 | C76: 220 | D76: 109.8 | E76: 33 | F76: 84.9 | G76: 26 | H76: 220 | I76: 20700 | J76: 3 | K76: 16000 | M76: 4700 | N76: 0.7729468599 | O76: 627.2727273 | P76: 484.8484848 | Q76: 3 | R76: 2 | S76: 계 | T76: 109
A77: 선학동 대동 | B77: 92.05 | C77: 390 | D77: 88.4 | E77: 27 | F77: 73.4 | G77: 22 | H77: 60 | I77: 20600 | J77: 13 | K77: 17500 | M77: 3100 | N77: 0.8495145631 | O77: 762.962963 | P77: 648.1481481 | Q77: 3 | R77: 1 | S77: 계 | T77: 88
A78: 동춘동 동춘마을 | B78: 94.06 | C78: 930 | D78: 79 | E78: 24 | F78: 59.4 | G78: 18 | H78: 930 | I78: 20500 | J78: 3 | K78: 17000 | L78: 4 | M78: 3500 | N78: 0.8292682927 | O78: 854.1666667 | P78: 708.3333333 | Q78: 3 | R78: 1 | S78: 계 | T78: 79
A79: 선학동 태산 | B79: 91.06 | C79: 300 | D79: 107.1 | E79: 32 | F79: 84.7 | G79: 26 | H79: 120 | I79: 20500 | J79: 4 | K79: 15500 | M79: 5000 | N79: 0.756097561 | O79: 640.625 | P79: 484.375 | Q79: 3 | R79: 1 | S79: 계 | T79: 107
A80: 연수동 인향 | B80: 92.06 | C80: 220 | D80: 109.1 | E80: 33 | F80: 85 | G80: 26 | H80: 220 | I80: 20500 | J80: 3 | K80: 16000 | L80: 4 | M80: 4500 | N80: 0.7804878049 | O80: 621.2121212 | P80: 484.8484848 | Q80: 3 | R80: 2 | S80: 계 | T80: 109
A81: 연수동 우주 | B81: 92.06 | C81: 230 | D81: 109.1 | E81: 33 | F81: 85 | G81: 26 | H81: 230 | I81: 20200 | J81: 4 | K81: 17000 | L81: 4 | M81: 3200 | N81: 0.8415841584 | O81: 612.1212121 | P81: 515.1515152 | Q81: 3 | R81: 2 | S81: 계 | T81: 109
A82: 동춘동 연수풍림2차 | B82: 93.06 | C82: 1200 | D82: 61.2 | E82: 19 | F82: 45.4 | G82: 14 | H82: 600 | I82: 20000 | J82: 7 | K82: 16000 | L82: 6 | M82: 4000 | N82: 0.8 | O82: 1052.631579 | P82: 842.1052632 | Q82: 2 | R82: 1 | S82: 복 | T82: 61
A83: 선학동 대진 | B83: 91.06 | C83: 300 | D83: 107.1 | E83: 32 | F83: 84.7 | G83: 26 | H83: 120 | I83: 20000 | J83: 5 | K83: 16000 | M83: 4000 | N83: 0.8 | O83: 625 | P83: 500 | Q83: 3 | R83: 1 | S83: 계 | T83: 107
A84: 선학동 정광 | B84: 91.06 | C84: 300 | D84: 107.1 | E84: 32 | F84: 84.7 | G84: 26 | H84: 120 | I84: 20000 | J84: 5 | K84: 16000 | M84: 4000 | N84: 0.8 | O84: 625 | P84: 500 | Q84: 3 | R84: 1 | S84: 계 | T84: 107
A85: 연수동 연수유천 | B85: 93.09 | C85: 788 | D85: 77.2 | E85: 23 | F85: 60.1 | G85: 18 | H85: 234 | I85: 20000 | J85: 9 | K85: 18000 | M85: 2000 | N85: 0.9 | O85: 869.5652174 | P85: 782.6086957 | Q85: 3 | R85: 1 | S85: 계 | T85: 77
A86: 연수동 영남 | B86: 92.12 | C86: 622 | D86: 106.2 | E86: 32 | F86: 84.8 | G86: 26 | H86: 336 | I86: 20000 | J86: 5 | K86: 17000 | L86: 6 | M86: 3000 | N86: 0.85 | O86: 625 | P86: 531.25 | Q86: 3 | R86: 2 | S86: 계 | T86: 106A
A87: 연수동 우성2차 | B87: 95.04 | C87: 2044 | D87: 56.3 | E87: 17 | F87: 40.5 | G87: 12 | H87: 528 | I87: 18500 | J87: 3 | K87: 15500 | L87: 중 | M87: 3000 | N87: 0.8378378378 | O87: 1088.235294 | P87: 911.7647059 | Q87: 2 | R87: 1 | S87: 복 | T87: 56
A88: 동춘동 동남 | B88: 94.12 | C88: 1350 | D88: 69.9 | E88: 21 | F88: 52.1 | G88: 16 | H88: 1350 | I88: 17000 | J88: 13 | K88: 16000 | L88: 6 | M88: 1000 | N88: 0.9411764706 | O88: 809.5238095 | P88: 761.9047619 | Q88: 2 | R88: 1 | S88: 복 | T88: 69
A89: 연수동 성일 | B89: 94.1 | C89: 414 | D89: 81.8 | E89: 25 | F89: 59.8 | G89: 18 | H89: 222 | I89: 17000 | J89: 9 | K89: 15000 | M89: 2000 | N89: 0.8823529412 | O89: 680 | P89: 600 | Q89: 3 | R89: 1 | S89: 복 | T89: 81
A90: 선학동 윤성 | B90: 95.08 | C90: 423 | D90: 81.4 | E90: 25 | F90: 59.9 | G90: 18 | H90: 248 | I90: 16500 | J90: 10 | K90: 14000 | M90: 2500 | N90: 0.8484848485 | O90: 660 | P90: 560 | Q90: 2 | R90: 1 | S90: 복 | T90: 81
A91: 연수동 연수시영1차 | B91: 92.05 | C91: 370 | D91: 70.3 | E91: 21 | F91: 50.7 | G91: 15 | H91: 220 | I91: 16500 | J91: 6 | K91: 15000 | L91: 13 | M91: 1500 | N91: 0.9090909091 | O91: 785.7142857 | P91: 714.2857143 | Q91: 2 | R91: 1 | S91: 복 | T91: 70
A92: 동춘동 대림3차 | B92: 93.07 | C92: 408 | D92: 64.5 | E92: 20 | F92: 53 | G92: 16 | H92: 408 | I92: 16000 | J92: 4 | K92: 13000 | M92: 3000 | N92: 0.8125 | O92: 800 | P92: 650 | Q92: 2 | R92: 1 | S92: 계 | T92: 64
A93: 선학동 정광 | B93: 91.06 | C93: 300 | D93: 81.1 | E93: 25 | F93: 64.4 | G93: 19 | H93: 180 | I93: 16000 | J93: 5 | K93: 14000 | M93: 2000 | N93: 0.875 | O93: 640 | P93: 560 | Q93: 2 | R93: 1 | S93: 계 | T93: 81
A94: 연수동 연수주공2단지 | B94: 92.06 | C94: 960 | D94: 73 | E94: 22 | F94: 49.9 | G94: 15 | H94: 720 | I94: 16000 | J94: 6 | K94: 15000 | L94: 6 | M94: 1000 | N94: 0.9375 | O94: 727.2727273 | P94: 681.8181818 | Q94: 2 | R94: 1 | S94: 복 | T94: 72
A95: 연수동 세경 | B95: 97.08 | C95: 567 | D95: 66.6 | E95: 20 | F95: 51.8 | G95: 16 | H95: 495 | I95: 16000 | J95: 11 | K95: 13000 | L95: 1 | M95: 3000 | N95: 0.8125 | O95: 800 | P95: 650 | Q95: 2 | R95: 1 | S95: 계 | T95: 66
A96: 연수동 솔밭마을 | B96: 93.05 | C96: 1200 | D96: 69.8 | E96: 21 | F96: 49.6 | G96: 15 | H96: 1200 | I96: 15900 | J96: 6 | K96: 15000 | L96: 3 | M96: 900 | N96: 0.9433962264 | O96: 757.1428571 | P96: 714.2857143 | Q96: 2 | R96: 1 | S96: 복 | T96: 69
A97: 선학동 대진 | B97: 91.06 | C97: 300 | D97: 81.1 | E97: 25 | F97: 64.4 | G97: 19 | H97: 180 | I97: 15500 | J97: 5 | K97: 13000 | M97: 2500 | N97: 0.8387096774 | O97: 620 | P97: 520 | Q97: 2 | R97: 1 | S97: 계 | T97: 81
A98: 선학동 태산 | B98: 91.06 | C98: 300 | D98: 81.1 | E98: 25 | F98: 64.4 | G98: 19 | H98: 180 | I98: 15500 | J98: 4 | K98: 14000 | L98: 2 | M98: 1500 | N98: 0.9032258065 | O98: 620 | P98: 560 | Q98: 2 | R98: 1 | S98: 계 | T98: 81
A99: 연수동 문남마을 | B99: 94.12 | C99: 400 | D99: 59.7 | E99: 18 | F99: 49.2 | G99: 15 | H99: 400 | I99: 15000 | J99: 4 | K99: 13000 | L99: 5 | M99: 2000 | N99: 0.8666666667 | O99: 833.3333333 | P99: 722.2222222 | Q99: 2 | R99: 1 | S99: 계 | T99: 59
A100: 연수동 연수시영1차 | B100: 92.05 | C100: 370 | D100: 62.5 | E100: 19 | F100: 44.2 | G100: 13 | H100: 150 | I100: 14500 | J100: 5 | K100: 13000 | M100: =I100-K100 -> 1500 | N100: =IF(ISERROR(K100/I100),"",K100/I100) -> 0.8965517241 | O100: =I100/E100 -> 763.1578947 | P100: =K100/E100 -> 684.2105263 | Q100: 2 | R100: 1 | S100: 복 | T100: 62
A101: 연수동 연수주공3단지 | B101: 93.11 | C101: 1170 | D101: 61.3 | E101: 19 | F101: 44.7 | G101: 14 | H101: 1170 | I101: 14000 | J101: 7 | K101: 13000 | L101: 3 | M101: 1000 | N101: 0.9285714286 | O101: 736.8421053 | P101: 684.2105263 | Q101: 2 | R101: 1 | S101: 복 | T101: 61
A102: 연수동 연수주공2단지 | B102: 92.06 | C102: 960 | D102: 60.3 | E102: 18 | F102: 41.3 | G102: 12 | H102: 240 | I102: 13500 | J102: 10 | K102: 12500 | L102: 7 | M102: 1000 | N102: 0.9259259259 | O102: 750 | P102: 694.4444444 | Q102: 2 | R102: 1 | S102: 복 | T102: 60
A103: 연수동 성일 | B103: 94.1 | C103: 414 | D103: 54.7 | E103: 17 | F103: 39.7 | G103: 12 | H103: 192 | I103: 13000 | J103: 6 | K103: 12500 | L103: 6 | M103: 500 | N103: 0.9615384615 | O103: 764.7058824 | P103: 735.2941176 | Q103: 2 | R103: 1 | S103: 복 | T103: 54
A104: 연수동 세경 | B104: 97.08 | C104: 567 | D104: 46.7 | E104: 14 | F104: 36.3 | G104: 11 | H104: 72 | I104: 11700 | J104: 10 | K104: 9500 | M104: 2200 | N104: 0.811965812 | O104: 835.7142857 | P104: 678.5714286 | Q104: 1 | R104: 1 | S104: 계 | T104: 46
A105: 연수동 승기마을 | B105: 92.05 | C105: 1000 | D105: 38 | E105: 12 | F105: 26.8 | G105: 8 | H105: 1000 | I105: 8500 | J105: 6 | K105: 8500 | M105: 0 | N105: 1 | O105: 708.3333333 | P105: 708.3333333 | Q105: 1 | R105: 1 | S105: 복 | T105: 38
A106: 선학동 대동 | B106: 92.05 | C106: 390 | D106: 100.9 | E106: 31 | F106: 84.4 | G106: 26 | H106: 180 | M106: 0 | O106: 0 | P106: 0 | Q106: 3 | R106: 2 | S106: 계 | T106: 100

Sheet 동별가격표
A4: 동1 | D4: 동춘동 | E4: 선학동
A5: 동2 | E5: 연수동
A6: 동3
A7: 전체 | D7: =D4&IF(D5="","",","&D5)&IF(D6="","",","&D6) -> 동춘동 | E7: =E4&IF(E5="","",","&E5)&IF(E6="","",","&E6) -> 선학동,연수동
A8: 8 | B8: ~
A9: 7 | B9: ~ | C9: 8
A10: 6 | B10: ~ | C10: 7 | D10: 송도파크자이(33평/6.0)
A11: 5 | B11: ~ | C11: 6 | D11: 송도파크자이(30평/5.5) 송도파크레인동일하이빌(31평/5.0)
A12: 4 | B12: ~ | C12: 5 | D12: 송도파크레인동일하이빌(35평/4.9) 동일하이빌파크포레(34평/4.7) 송도파크레인동일하이빌(28평/4.5) 연수서해그랑블1단지(34평/4.5)
A13: 3 | B13: ~ | C13: 4 | D13: 연수서해그랑블1단지(29평/3.9) 동일하이빌파크포레(26평/3.6) 현대1차(33평/3.5) 연수풍림2차(32평/3.2) 인천연수서해그랑블3단지(24평/3.2) 인천연수서해그랑블포레스트(24평/3.1) | E13: 우성2차(32평/3.6) 대동(29평/3.1) 대림(32평/3.0)
A14: 2.5 | B14: ~ | C14: 3 | D14: 무지개마을(32평/3.0) 한양2차(30평/2.7) 인천연수풍림3차(30평/2.7) 한양2차(25평/2.6) 건영(30평/2.5) 대동(32평/2.5) | E14: 우성2차(23평/3.0) 금호타운(32평/2.8) 연수경남(32평/2.7) 연수풍림1차(32평/2.6) 대림(24평/2.6) 연수경남(27평/2.5) 태산(32평/2.5)
A15: 2 | B15: ~ | C15: 2.5 | D15: 무지개마을(24평/2.4) 건영(26평/2.3) 아주(30평/2.2) 동춘마을(24평/2.1) 연수풍림2차(19평/2.0) | E15: 뉴서울1차(31평/2.5) 연수유천(31평/2.5) 윤성(31평/2.4) 연수풍림1차(26평/2.4) 효정(31평/2.4) 대동(22평/2.3) 아주(30평/2.2) 태경(33평/2.1) 대동(27평/2.1) 태산(32평/2.1) 인향(33평/2.1) 우주(33평/2.0) 대진(32평/2.0) 정광(32평/2.0) 연수유천(23평/2.0) 영남(32평/2.0)
A16: 1.5 | B16: ~ | C16: 2 | D16: 동남(21평/1.7) 대림3차(20평/1.6) | E16: 우성2차(17평/1.9) 성일(25평/1.7) 윤성(25평/1.7) 연수시영1차(21평/1.7) 정광(25평/1.6) 연수주공2단지(22평/1.6) 세경(20평/1.6) 솔밭마을(21평/1.6) 대진(25평/1.6) 태산(25평/1.6) 문남마을(18평/1.5)
A17: 1 | B17: ~ | C17: 1.5 | E17: 연수시영1차(19평/1.5) 연수주공3단지(19평/1.4) 연수주공2단지(18평/1.4) 성일(17평/1.3)
A20: 30평대 | D20: =D7 -> 동춘동 | E20: =E7 -> 선학동,연수동
A21: =IF(A8="","",A8) -> 8 | B21: =IF(B8="","",B8) -> ~ | C21: =IF(C8="","",C8) -> 
A22: =IF(A9="","",A9) -> 7 | B22: ~ | C22: 8
A23: 6 | B23: ~ | C23: 7 | D23: 송도파크자이('19/6.0)
A24: 5 | B24: ~ | C24: 6 | D24: 송도파크자이('19/5.5) 송도파크레인동일하이빌('19/5.0)
A25: 4 | B25: ~ | C25: 5 | D25: 송도파크레인동일하이빌('19/4.9) 동일하이빌파크포레('19/4.7) 연수서해그랑블1단지('17/4.5)
A26: 3 | B26: ~ | C26: 4 | D26: 현대1차('93/3.5) 연수풍림2차('93/3.2) | E26: 우성2차('95/3.6) 대림('93/3.0)
A27: 2.5 | B27: ~ | C27: 3 | D27: 무지개마을('95/3.0) 한양2차('95/2.7) 인천연수풍림3차('93/2.7) 건영('94/2.5) 대동('94/2.5) | E27: 금호타운('93/2.8) 연수경남('93/2.7) 연수풍림1차('92/2.6) 태산('94/2.5)
A28: 2 | B28: ~ | C28: 2.5 | D28: 아주('94/2.2) | E28: 뉴서울1차('92/2.5) 연수유천('93/2.5) 윤성('95/2.4) 효정('94/2.4) 아주('92/2.2) 태경('92/2.1) 태산('91/2.1) 인향('92/2.1) 우주('92/2.0) 대진('91/2.0) 정광('91/2.0) 영남('92/2.0)
A29: 1.5 | B29: ~ | C29: 2
A30: 1 | B30: ~ | C30: 1.5
A33: 20평대(방3) | D33: =D20 -> 동춘동 | E33: =E20 -> 선학동,연수동
A34: =IF(A21="","",A21) -> 8 | B34: =IF(B21="","",B21) -> ~ | C34: =IF(C21="","",C21) -> 
A35: =IF(A22="","",A22) -> 7 | B35: ~ | C35: 8
A36: 6 | B36: ~ | C36: 7
A37: 5 | B37: ~ | C37: 6
A38: 4 | B38: ~ | C38: 5 | D38: 송도파크레인동일하이빌('19/4.5)
A39: 3 | B39: ~ | C39: 4 | D39: 연수서해그랑블1단지('17/3.9) 동일하이빌파크포레('19/3.6) 인천연수서해그랑블3단지('19/3.2) 인천연수서해그랑블포레스트('19/3.1) | E39: 대동('93/3.1)
A40: 2.5 | B40: ~ | C40: 3 | D40: 한양2차('95/2.6) | E40: 우성2차('95/3.0) 대림('93/2.6) 연수경남('93/2.5)
A41: 2 | B41: ~ | C41: 2.5 | D41: 무지개마을('95/2.4) 건영('94/2.3) 동춘마을('94/2.1) | E41: 연수풍림1차('92/2.4) 대동('93/2.3) 대동('92/2.1) 연수유천('93/2.0)
A42: 1.5 | B42: ~ | C42: 2 | E42: 성일('94/1.7)
A43: 1 | B43: ~ | C43: 1.5
A46: 20평대(방2) | D46: =D33 -> 동춘동 | E46: =E33 -> 선학동,연수동
A47: =IF(A34="","",A34) -> 8 | B47: =IF(B34="","",B34) -> ~ | C47: =IF(C34="","",C34) -> 
A48: =IF(A35="","",A35) -> 7 | B48: ~ | C48: 8
A49: 6 | B49: ~ | C49: 7
A50: 5 | B50: ~ | C50: 6
A51: 4 | B51: ~ | C51: 5
A52: 3 | B52: ~ | C52: 4
A53: 2.5 | B53: ~ | C53: 3
A54: 2 | B54: ~ | C54: 2.5
A55: 1.5 | B55: ~ | C55: 2 | D55: 동남('94/1.7) 대림3차('93/1.6) | E55: 윤성('95/1.7) 연수시영1차('92/1.7) 정광('91/1.6) 연수주공2단지('92/1.6) 세경('97/1.6) 솔밭마을('93/1.6) 대진('91/1.6) 태산('91/1.6)
A56: 1 | B56: ~ | C56: 1.5
A59: 10평대 | D59: =D46 -> 동춘동 | E59: =E46 -> 선학동,연수동
A60: =IF(A47="","",A47) -> 8 | B60: =IF(B47="","",B47) -> ~ | C60: =IF(C47="","",C47) -> 
A61: =IF(A48="","",A48) -> 7 | B61: ~ | C61: 8
A62: 6 | B62: ~ | C62: 7
A63: 5 | B63: ~ | C63: 6
A64: 4 | B64: ~ | C64: 5
A65: 3 | B65: ~ | C65: 4
A66: 2.5 | B66: ~ | C66: 3
A67: 2 | B67: ~ | C67: 2.5 | D67: 연수풍림2차('93/2.0)
A68: 1.5 | B68: ~ | C68: 2 | E68: 우성2차('95/1.9) 문남마을('94/1.5)
A69: 1 | B69: ~ | C69: 1.5 | E69: 연수시영1차('92/1.5) 연수주공3단지('93/1.4) 연수주공2단지('92/1.4) 성일('94/1.3)

Sheet 정보입력(KB)
A1: 동 이름 : | B1: 동춘동
A2: 송도파크자이
A3: 인천광역시 연수구 동춘동 동춘1구역 7블록
A4: 공급면적 | B4: 총세대 | C4: 준공월
A5: 100~132㎡ | B5: 1023세대 | C5: 2019.05
A6: 단지정보
A7: 시세/실거래가
A8: 매물보기
A9: 관리비
A10: 학교정보
A11: 평면도
A12: 동호수
A13: 평면도
A15: 기본형
A16: 100.47Bm²
A17: 공급/전용면적 100.47B/76.98m² 평
A18: 방수3개
A19: 욕실수2개
A20: 세대수111세대
A22: 기본형
A23: 100.57Am²
A24: 공급/전용면적 100.57A/76.76m² 평
A25: 방수3개
A26: 욕실수2개
A27: 세대수142세대
A29: 기본형
A30: 109.8Bm²
A31: 공급/전용면적 109.8B/84.92m² 평
A32: 방수3개
A33: 욕실수2개
A34: 세대수296세대
A36: 기본형
A37: 109.89Am²
A38: 공급/전용면적 109.89A/84.89m² 평
A39: 방수3개
A40: 욕실수2개
A41: 세대수381세대
A43: 기본형
A44: 111.92Pm²
A45: 공급/전용면적 111.92P/84.8m² 평
A46: 방수2개
A47: 욕실수2개
A48: 세대수3세대
A50: 기본형
A51: 131.23Am²
A52: 공급/전용면적 131.23A/101.95m² 평
A53: 방수4개
A54: 욕실수2개
A55: 세대수87세대
A57: 기본형
A58: 132.74Pm²
A59: 공급/전용면적 132.74P/101.2m² 평
A60: 방수4개
A61: 욕실수2개
A62: 세대수3세대

Sheet 정보입력
A1: [관동동] | C1: 1 | D1: 죽림마을7단지한림풀에버 | E1: 2013.09 | F1: 1497 | G1: =H1/3.3 -> 27.56969697 | H1: 90.98 | I1: =J1/3.3 -> 19.62424242 | J1: 64.76 | K1: 172 | P1: 0 | Q1: 0 | R1: 0 | S1: 0 | T1: 3 | U1: 2 | V1: 계단식 | W1: 90A | AX1: 기준연도 | AY1: 기준월
A2: [관동동] | C2: 1 | D2: 죽림마을7단지한림풀에버 | E2: 2013.09 | F2: 1497 | G2: =H2/3.3 -> 27.67575758 | H2: 91.33 | I2: =J2/3.3 -> 19.62121212 | J2: 64.75 | K2: 160 | P2: 0 | Q2: 0 | R2: 0 | S2: 0 | T2: 3 | U2: 2 | V2: 계단식 | W2: 91B | AX2: =YEAR(A2) ->  | AY2: 9
A3: [관동동] | C3: 1 | D3: 죽림마을7단지한림풀에버 | E3: 2013.09 | F3: 1497 | G3: 34.07575758 | H3: 112.45 | I3: 25.75454545 | J3: 84.99 | K3: 587 | P3: 0 | Q3: 0 | R3: 0 | S3: 0 | T3: 3 | U3: 2 | V3: 계단식 | W3: 112A | AX3: 입주연도 | AY3: 입주월 | BB3: =AX2-10 ->  | BC3: =BB3-10 ->  | BD3: =BC3-10 ->  | BE3: =AX2-30 -> 
A4: [관동동] | C4: 1 | D4: 죽림마을7단지한림풀에버 | E4: 2013.09 | F4: 1497 | G4: 34.19090909 | H4: 112.83 | I4: 25.73333333 | J4: 84.92 | K4: 578 | P4: 0 | Q4: 0 | R4: 0 | S4: 0 | T4: 3 | U4: 2 | V4: 계단식 | W4: 112B | AX4: =IF(B4="","",_xlfn.NUMBERVALUE(IF(_xlfn.NUMBERVALUE(RIGHT(B4,2))=0.1,IF(_xlfn.NUMBERVALUE(LEFT(RIGHT(B4,4),2))>70,"19"&LEFT(RIGHT(B4,4),2),"20"&LEFT(RIGHT(B4,4),2)),IF(_xlfn.NUMBERVALUE(LEFT(RIGHT(B4,5),2))>70,"19"&LEFT(RIGHT(B4,5),2),"20"&LEFT(RIGHT(B4,5),2))))) ->  | AY4: =IF(B4="","",IF(_xlfn.NUMBERVALUE(RIGHT(B4,2))=0.1,1,_xlfn.NUMBERVALUE(RIGHT(B4,2)))) ->  | BB4: 10년 이하 | BC4: 10~20년 | BD4: 20~30년 | BE4: 30년 이상 | BF4: 합계
A5: [관동동] | C5: 1 | D5: 팔판마을3단지부영e그린타운 | E5: 2004.05 | F5: 1304 | G5: 23.3 | H5: 76.89 | I5: 18.17575758 | J5: 59.98 | K5: 1304 | P5: 0 | Q5: 0 | R5: 0 | S5: 0 | T5: 3 | U5: 2 | V5: 계단식 | W5: 76 | AX5: =IF(B5="","",_xlfn.NUMBERVALUE(IF(_xlfn.NUMBERVALUE(RIGHT(B5,2))=0.1,IF(_xlfn.NUMBERVALUE(LEFT(RIGHT(B5,4),2))>70,"19"&LEFT(RIGHT(B5,4),2),"20"&LEFT(RIGHT(B5,4),2)),IF(_xlfn.NUMBERVALUE(LEFT(RIGHT(B5,5),2))>70,"19"&LEFT(RIGHT(B5,5),2),"20"&LEFT(RIGHT(B5,5),2))))) ->  | AY5: =IF(B5="","",IF(_xlfn.NUMBERVALUE(RIGHT(B5,2))=0.1,1,_xlfn.NUMBERVALUE(RIGHT(B5,2)))) ->  | BA5: 10평대 | BB5: =SUMIFS(H:H,AX:AX,">"&BB3,E:E,"<20")+SUMIFS(H:H,AX:AX,"="&BB3,AY:AY,">="&AY2,E:E,"<20") -> 0 | BC5: =SUMIFS(H:H,AX:AX,">"&BC3,AX:AX,"<"&BB3,E:E,"<20")+SUMIFS(H:H,AX:AX,"="&BC3,AY:AY,">="&AY2,E:E,"<20")+SUMIFS(H:H,AX:AX,"="&BB3,AY:AY,"<"&AY2,E:E,"<20") -> 0 | BD5: =SUMIFS(H:H,AX:AX,">"&BD3,AX:AX,"<"&BC3,E:E,"<20")+SUMIFS(H:H,AX:AX,"="&BD3,AY:AY,">="&AY2,E:E,"<20")+SUMIFS(H:H,AX:AX,"="&BC3,AY:AY,"<"&AY2,E:E,"<20") -> 0 | BE5: =SUMIFS(H:H,AX:AX,"<"&BD3,E:E,"<20")+SUMIFS(H:H,AX:AX,"="&BD3,AY:AY,"<"&AY2,E:E,"<20") -> 0 | BF5: =SUM(BB5:BE5) -> 0
A6: [관동동] | C6: 1 | D6: 팔판마을1단지부영e그린타운 | E6: 2005.06 | F6: 794 | G6: 31.92121212 | H6: 105.34 | I6: 25.69090909 | J6: 84.78 | K6: 794 | P6: 0 | Q6: 0 | R6: 0 | S6: 0 | T6: 3 | U6: 2 | V6: 계단식 | W6: 105 | BA6: 20평대 | BB6: =SUMIFS(H:H,AX:AX,">"&BB3,E:E,"<30",E:E,">=20")+SUMIFS(H:H,AX:AX,"="&BB3,AY:AY,">="&AY2,E:E,"<30",E:E,">=20") -> 0 | BC6: =SUMIFS(H:H,AX:AX,">"&BC3,AX:AX,"<"&BB3,E:E,"<30",E:E,">=20")+SUMIFS(H:H,AX:AX,"="&BC3,AY:AY,">="&AY2,E:E,"<30",E:E,">=20")+SUMIFS(H:H,AX:AX,"="&BB3,AY:AY,"<"&AY2,E:E,"<30",E:E,">=20") -> 0 | BD6: =SUMIFS(H:H,AX:AX,">"&BD3,AX:AX,"<"&BC3,E:E,"<30",E:E,">=20")+SUMIFS(H:H,AX:AX,"="&BD3,AY:AY,">="&AY2,E:E,"<30",E:E,">=20")+SUMIFS(H:H,AX:AX,"="&BC3,AY:AY,"<"&AY2,E:E,"<30",E:E,">=20") -> 0 | BE6: =SUMIFS(H:H,AX:AX,"<"&BD3,E:E,"<30",E:E,">=20")+SUMIFS(H:H,AX:AX,"="&BD3,AY:AY,"<"&AY2,E:E,"<30",E:E,">=20") -> 0 | BF6: =SUM(BB6:BE6) -> 0
A7: [관동동] | C7: 1 | D7: 김해율하서희스타힐스 | E7: 2017.02 | F7: 682 | G7: 27.88787879 | H7: 92.03 | I7: 21.07272727 | J7: 69.54 | K7: 132 | P7: 0 | Q7: 0 | R7: 0 | S7: 0 | T7: 3 | U7: 2 | V7: 계단식 | W7: 92A | BA7: 30평대 | BB7: =SUMIFS(H:H,AX:AX,">"&BB3,E:E,"<40",E:E,">=30")+SUMIFS(H:H,AX:AX,"="&BB3,AY:AY,">="&AY2,E:E,"<40",E:E,">=30") -> 0 | BC7: =SUMIFS(H:H,AX:AX,">"&BC3,AX:AX,"<"&BB3,E:E,"<40",E:E,">=30")+SUMIFS(H:H,AX:AX,"="&BC3,AY:AY,">="&AY2,E:E,"<40",E:E,">=30")+SUMIFS(H:H,AX:AX,"="&BB3,AY:AY,"<"&AY2,E:E,"<40",E:E,">=30") -> 0 | BD7: =SUMIFS(H:H,AX:AX,">"&BD3,AX:AX,"<"&BC3,E:E,"<40",E:E,">=30")+SUMIFS(H:H,AX:AX,"="&BD3,AY:AY,">="&AY2,E:E,"<40",E:E,">=30")+SUMIFS(H:H,AX:AX,"="&BC3,AY:AY,"<"&AY2,E:E,"<40",E:E,">=30") -> 0 | BE7: =SUMIFS(H:H,AX:AX,"<"&BD3,E:E,"<40",E:E,">=30")+SUMIFS(H:H,AX:AX,"="&BD3,AY:AY,"<"&AY2,E:E,"<40",E:E,">=30") -> 0 | BF7: =SUM(BB7:BE7) -> 0
A8: [관동동] | C8: 2 | D8: =HYPERLINK("https://land.naver.com/article/groundPlan.nhn?rletNo=2291&cortarNo=2818510500","연수풍림2차") -> 연수풍림2차 | E8: 1993.06 | F8: 682 | G8: 33.68484848 | H8: 111.16 | I8: 25.68787879 | J8: 84.77 | K8: 158 | P8: 0 | Q8: 0 | R8: 0 | S8: 0 | T8: 3 | U8: 2 | V8: 계단식 | W8: 111B | BA8: 40평대↑ | BB8: =SUMIFS(H:H,AX:AX,">"&BB3,E:E,">=40")+SUMIFS(H:H,AX:AX,"="&BB3,AY:AY,">="&AY2,E:E,">=40") -> 292.45 | BC8: =SUMIFS(H:H,AX:AX,">"&BC3,AX:AX,"<"&BB3,E:E,">=40")+SUMIFS(H:H,AX:AX,"="&BC3,AY:AY,">="&AY2,E:E,">=40")+SUMIFS(H:H,AX:AX,"="&BB3,AY:AY,"<"&AY2,E:E,">=40") -> 402.24 | BD8: =SUMIFS(H:H,AX:AX,">"&BD3,AX:AX,"<"&BC3,E:E,">=40")+SUMIFS(H:H,AX:AX,"="&BD3,AY:AY,">="&AY2,E:E,">=40")+SUMIFS(H:H,AX:AX,"="&BC3,AY:AY,"<"&AY2,E:E,">=40") -> 402.24 | BE8: =SUMIFS(H:H,AX:AX,"<"&BD3,E:E,">=40")+SUMIFS(H:H,AX:AX,"="&BD3,AY:AY,"<"&AY2,E:E,">=40") -> 310.91 | BF8: =SUM(BB8:BE8) -> 1407.84
A9: [관동동] | C9: 3 | D9: =HYPERLINK("https://land.naver.com/article/groundPlan.nhn?rletNo=114950&cortarNo=2818510500","송도파크레인동일하이빌") -> 송도파크레인동일하이빌 | E9: 2019.03 | F9: 682 | G9: 33.76666667 | H9: 111.43 | I9: 25.75151515 | J9: 84.98 | K9: 129 | P9: 0 | Q9: 0 | R9: 0 | S9: 0 | T9: 4 | U9: 2 | V9: 계단식 | W9: 111D | BA9: 합계 | BB9: =SUM(BB5:BB8) -> 292.45 | BC9: =SUM(BC5:BC8) -> 402.24 | BD9: =SUM(BD5:BD8) -> 402.24 | BE9: =SUM(BE5:BE8) -> 310.91 | BF9: =SUM(BB9:BE9) -> 1407.84
A10: [관동동] | C10: 4 | D10: =HYPERLINK("https://land.naver.com/article/groundPlan.nhn?rletNo=114950&cortarNo=2818510500","송도파크레인동일하이빌") -> 송도파크레인동일하이빌 | E10: 2019.03 | F10: 682 | G10: 33.91515152 | H10: 111.92 | I10: 25.73636364 | J10: 84.93 | K10: 263 | P10: 0 | Q10: 0 | R10: 0 | S10: 0 | T10: 4 | U10: 2 | V10: 계단식 | W10: 111C
A11: [관동동] | C11: 1 | D11: 힐스테이트김해 | E11: 2019.08 | F11: 630 | G11: 24.40909091 | H11: 80.55 | I11: 18.14242424 | J11: 59.87 | K11: 16 | P11: 0 | Q11: 0 | R11: 0 | S11: 0 | T11: 3 | U11: 2 | V11: 계단식 | W11: 80B | BB11: 10년 이하 | BC11: 10~20년 | BD11: 20~30년 | BE11: 30년 이상 | BF11: 합계
A12: [관동동] | C12: 2 | D12: 힐스테이트김해 | E12: 2020.08 | F12: 630 | G12: 24.62424242 | H12: 81.26 | I12: 18.17575758 | J12: 59.98 | K12: 196 | P12: 0 | Q12: 0 | R12: 0 | S12: 0 | T12: 3 | U12: 2 | V12: 계단식 | W12: 81A | BA12: 10평대 | BB12: =BB5/BF9 -> 0 | BC12: =BC5/BF9 -> 0 | BD12: =BD5/BF9 -> 0 | BE12: =BE5/BF9 -> 0 | BF12: =BF5/BF9 -> 0
A13: [관동동] | C13: 3 | D13: 힐스테이트김해 | E13: 2021.08 | F13: 630 | G13: 24.65151515 | H13: 81.35 | I13: 18.14545455 | J13: 59.88 | K13: 88 | P13: 0 | Q13: 0 | R13: 0 | S13: 0 | T13: 3 | U13: 2 | V13: 계단식 | W13: 81C | BA13: 20평대 | BB13: =BB6/BF9 -> 0 | BC13: =BC6/BF9 -> 0 | BD13: =BD6/BF9 -> 0 | BE13: =BE6/BF9 -> 0 | BF13: =BF6/BF9 -> 0
A14: [관동동] | C14: 4 | D14: 힐스테이트김해 | E14: 2022.08 | F14: 630 | G14: 33.27575758 | H14: 109.81 | I14: 25.68181818 | J14: 84.75 | K14: 330 | P14: 0 | Q14: 0 | R14: 0 | S14: 0 | T14: 3 | U14: 2 | V14: 계단식 | W14: 109 | BA14: 30평대 | BB14: =BB7/BF9 -> 0 | BC14: =BC7/BF9 -> 0 | BD14: =BD7/BF9 -> 0 | BE14: =BE7/BF9 -> 0 | BF14: =BF7/BF9 -> 0
A15: [관동동] | C15: 1 | D15: =HYPERLINK("https://land.naver.com/article/groundPlan.nhn?rletNo=17357&cortarNo=4825013000","팔판마을6단지푸르지오") -> 팔판마을6단지푸르지오 | E15: 2005.03 | F15: 588 | G15: 36.14242424 | H15: 119.27 | I15: 27.62121212 | J15: 91.15 | K15: 100 | P15: 0 | Q15: 0 | R15: 0 | S15: 0 | T15: 3 | U15: 2 | V15: 계단식 | W15: 119A | BA15: 40평대↑ | BB15: =BB8/BF9 -> 0.2077295715 | BC15: =BC8/BF9 -> 0.2857142857 | BD15: =BD8/BF9 -> 0.2857142857 | BE15: =BE8/BF9 -> 0.220841857 | BF15: =BF8/BF9 -> 1
A16: [관동동] | C16: 2 | D16: =HYPERLINK("https://land.naver.com/article/groundPlan.nhn?rletNo=17357&cortarNo=4825013000","팔판마을6단지푸르지오") -> 팔판마을6단지푸르지오 | E16: 2005.03 | F16: 588 | G16: 36.20606061 | H16: 119.48 | I16: 28.08181818 | J16: 92.67 | K16: 228 | P16: 0 | Q16: 0 | R16: 0 | S16: 0 | T16: 3 | U16: 2 | V16: 계단식 | W16: 119B | BA16: 합계 | BB16: =BB9/BF9 -> 0.2077295715 | BC16: =BC9/BF9 -> 0.2857142857 | BD16: =BD9/BF9 -> 0.2857142857 | BE16: =BE9/BF9 -> 0.220841857 | BF16: =BF9/BF9 -> 1
A17: [관동동] | C17: 3 | D17: =HYPERLINK("https://land.naver.com/article/groundPlan.nhn?rletNo=17357&cortarNo=4825013000","팔판마을6단지푸르지오") -> 팔판마을6단지푸르지오 | E17: 2005.03 | F17: 588 | G17: 36.65151515 | H17: 120.95 | I17: 28.92727273 | J17: 95.46 | K17: 80 | P17: 0 | Q17: 0 | R17: 0 | S17: 0 | T17: 4 | U17: 2 | V17: 계단식 | W17: 120C
A18: [관동동] | C18: 4 | D18: =HYPERLINK("https://land.naver.com/article/groundPlan.nhn?rletNo=17357&cortarNo=4825013000","팔판마을6단지푸르지오") -> 팔판마을6단지푸르지오 | E18: 2005.03 | F18: 588 | G18: 42.91212121 | H18: 141.61 | I18: 35.62424242 | J18: 117.56 | K18: 60 | P18: 0 | Q18: 0 | R18: 0 | S18: 0 | T18: 4 | U18: 2 | V18: 계단식 | W18: 141
A19: [관동동] | C19: 5 | D19: =HYPERLINK("https://land.naver.com/article/groundPlan.nhn?rletNo=17357&cortarNo=4825013000","팔판마을6단지푸르지오") -> 팔판마을6단지푸르지오 | E19: 2005.03 | F19: 588 | G19: 50.6 | H19: 166.98 | I19: 41.99393939 | J19: 138.58 | K19: 120 | P19: 0 | Q19: 0 | R19: 0 | S19: 0 | T19: 4 | U19: 2 | V19: 계단식 | W19: 166
A20: [관동동] | C20: 1 | D20: =HYPERLINK("https://land.naver.com/article/groundPlan.nhn?rletNo=13400&cortarNo=4825013000","팔판마을4단지푸르지오") -> 팔판마을4단지푸르지오 | E20: 2005.06 | F20: 481 | G20: 36.04242424 | H20: 118.94 | I20: 27.62121212 | J20: 91.15 | K20: 36 | P20: 0 | Q20: 0 | R20: 0 | S20: 0 | T20: 3 | U20: 2 | V20: 복도식 | W20: 118A
A21: [관동동] | C21: 2 | D21: =HYPERLINK("https://land.naver.com/article/groundPlan.nhn?rletNo=13400&cortarNo=4825013000","팔판마을4단지푸르지오") -> 팔판마을4단지푸르지오 | E21: 2005.06 | F21: 481 | G21: 36.18787879 | H21: 119.42 | I21: 28.08181818 | J21: 92.67 | K21: 291 | P21: 0 | Q21: 0 | R21: 0 | S21: 0 | T21: 3 | U21: 2 | V21: 복도식 | W21: 119B
A22: [관동동] | C22: 3 | D22: =HYPERLINK("https://land.naver.com/article/groundPlan.nhn?rletNo=13400&cortarNo=4825013000","팔판마을4단지푸르지오") -> 팔판마을4단지푸르지오 | E22: 2005.06 | F22: 481 | G22: 36.89393939 | H22: 121.75 | I22: 28.92727273 | J22: 95.46 | K22: 34 | P22: 0 | Q22: 0 | R22: 0 | S22: 0 | T22: 4 | U22: 2 | V22: 복도식 | W22: 121C
A23: [관동동] | C23: 4 | D23: =HYPERLINK("https://land.naver.com/article/groundPlan.nhn?rletNo=13400&cortarNo=4825013000","팔판마을4단지푸르지오") -> 팔판마을4단지푸르지오 | E23: 2005.06 | F23: 481 | G23: 42.91212121 | H23: 141.61 | I23: 35.62424242 | J23: 117.56 | K23: 60 | P23: 0 | Q23: 0 | R23: 0 | S23: 0 | T23: 4 | U23: 2 | V23: 복도식 | W23: 141
A24: [관동동] | C24: 5 | D24: =HYPERLINK("https://land.naver.com/article/groundPlan.nhn?rletNo=13400&cortarNo=4825013000","팔판마을4단지푸르지오") -> 팔판마을4단지푸르지오 | E24: 2005.06 | F24: 481 | G24: 50.7 | H24: 167.31 | I24: 41.99393939 | J24: 138.58 | K24: 60 | P24: 0 | Q24: 0 | R24: 0 | S24: 0 | T24: 4 | U24: 2 | V24: 복도식 | W24: 167
A25: [관동동] | C25: 1 | D25: =HYPERLINK("https://land.naver.com/article/groundPlan.nhn?rletNo=17358&cortarNo=4825013000","팔판마을5단지푸르지오") -> 팔판마을5단지푸르지오 | E25: 2005.03 | F25: 389 | G25: 36.02727273 | H25: 118.89 | I25: 27.62121212 | J25: 91.15 | K25: 84 | P25: 0 | Q25: 0 | R25: 0 | S25: 0 | T25: 3 | U25: 2 | V25: 계단식 | W25: 118A
A26: [관동동] | C26: 2 | D26: =HYPERLINK("https://land.naver.com/article/groundPlan.nhn?rletNo=17358&cortarNo=4825013000","팔판마을5단지푸르지오") -> 팔판마을5단지푸르지오 | E26: 2005.03 | F26: 389 | G26: 36.23636364 | H26: 119.58 | I26: 28.08181818 | J26: 92.67 | K26: 173 | P26: 0 | Q26: 0 | R26: 0 | S26: 0 | T26: 3 | U26: 2 | V26: 계단식 | W26: 119B
A27: [관동동] | C27: 3 | D27: =HYPERLINK("https://land.naver.com/article/groundPlan.nhn?rletNo=17358&cortarNo=4825013000","팔판마을5단지푸르지오") -> 팔판마을5단지푸르지오 | E27: 2005.03 | F27: 389 | G27: 36.64545455 | H27: 120.93 | I27: 28.92727273 | J27: 95.46 | K27: 72 | P27: 0 | Q27: 0 | R27: 0 | S27: 0 | T27: 4 | U27: 2 | V27: 계단식 | W27: 120C
A28: [관동동] | C28: 4 | D28: =HYPERLINK("https://land.naver.com/article/groundPlan.nhn?rletNo=17358&cortarNo=4825013000","팔판마을5단지푸르지오") -> 팔판마을5단지푸르지오 | E28: 2005.03 | F28: 389 | G28: 42.91212121 | H28: 141.61 | I28: 35.62424242 | J28: 117.56 | K28: 60 | P28: 0 | Q28: 0 | R28: 0 | S28: 0 | T28: 4 | U28: 2 | V28: 계단식 | W28: 141
A29: [관동동] | C29: 1 | D29: =HYPERLINK("https://land.naver.com/article/groundPlan.nhn?rletNo=102427&cortarNo=4825013000","율곡마을세영리첼") -> 율곡마을세영리첼 | E29: 2009.01 | F29: 348 | G29: 32.82727273 | H29: 108.33 | I29: 25.75151515 | J29: 84.98 | K29: 94 | P29: 0 | Q29: 0 | R29: 0 | S29: 0 | T29: 3 | U29: 2 | V29: 계단식 | W29: 108
A30: [관동동] | C30: 2 | D30: =HYPERLINK("https://land.naver.com/article/groundPlan.nhn?rletNo=102427&cortarNo=4825013000","율곡마을세영리첼") -> 율곡마을세영리첼 | E30: 2009.01 | F30: 348 | G30: 33.5030303 | H30: 110.56 | I30: 25.75454545 | J30: 84.99 | K30: 156 | P30: 0 | Q30: 0 | R30: 0 | S30: 0 | T30: 3 | U30: 2 | V30: 계단식 | W30: 110A
A31: [관동동] | C31: 3 | D31: =HYPERLINK("https://land.naver.com/article/groundPlan.nhn?rletNo=102427&cortarNo=4825013000","율곡마을세영리첼") -> 율곡마을세영리첼 | E31: 2009.01 | F31: 348 | G31: 33.5030303 | H31: 110.56 | I31: 25.75454545 | J31: 84.99 | K31: 98 | P31: 0 | Q31: 0 | R31: 0 | S31: 0 | T31: 3 | U31: 2 | V31: 계단식 | W31: 110B
A32: [관동동] | C32: 1 | D32: =HYPERLINK("https://land.naver.com/article/groundPlan.nhn?rletNo=110892&cortarNo=4825013000","김해관동일동미라주더스타") -> 김해관동일동미라주더스타 | E32: 2017.1 | F32: 286 | G32: 33.80909091 | H32: 111.57 | I32: 25.75454545 | J32: 84.99 | K32: 187 | P32: 0 | Q32: 0 | R32: 0 | S32: 0 | T32: 3 | U32: 2 | V32: 계단식 | W32: 111A
A33: [관동동] | C33: 2 | D33: =HYPERLINK("https://land.naver.com/article/groundPlan.nhn?rletNo=110892&cortarNo=4825013000","김해관동일동미라주더스타") -> 김해관동일동미라주더스타 | E33: 2017.1 | F33: 286 | G33: 34.08484848 | H33: 112.48 | I33: 25.73636364 | J33: 84.93 | K33: 71 | P33: 0 | Q33: 0 | R33: 0 | S33: 0 | T33: 3 | U33: 2 | V33: 계단식 | W33: 112B
A34: [관동동] | C34: 3 | D34: =HYPERLINK("https://land.naver.com/article/groundPlan.nhn?rletNo=110892&cortarNo=4825013000","김해관동일동미라주더스타") -> 김해관동일동미라주더스타 | E34: 2017.1 | F34: 286 | G34: 39.77878788 | H34: 131.27 | I34: 30.25151515 | J34: 99.83 | K34: 20 | P34: 0 | Q34: 0 | R34: 0 | S34: 0 | T34: 3 | U34: 2 | V34: 계단식 | W34: 131
A35: [관동동] | C35: 4 | D35: =HYPERLINK("https://land.naver.com/article/groundPlan.nhn?rletNo=110892&cortarNo=4825013000","김해관동일동미라주더스타") -> 김해관동일동미라주더스타 | E35: 2017.1 | F35: 286 | G35: 40.61818182 | H35: 134.04 | I35: 31.08787879 | J35: 102.59 | K35: 8 | P35: 0 | Q35: 0 | R35: 0 | S35: 0 | T35: 3 | U35: 2 | V35: 계단식 | W35: 134
A36: [관동동] | C36: 1 | D36: =HYPERLINK("https://land.naver.com/article/groundPlan.nhn?rletNo=103538&cortarNo=4825013000","죽림마을14단지동원로얄듀크") -> 죽림마을14단지동원로얄듀크 | E36: 2013.06 | F36: 230 | G36: 33.65151515 | H36: 111.05 | I36: 25.75454545 | J36: 84.99 | K36: 94 | P36: 0 | Q36: 0 | R36: 0 | S36: 0 | T36: 3 | U36: 2 | V36: 계단식 | W36: 111A
A37: [관동동] | C37: 2 | D37: =HYPERLINK("https://land.naver.com/article/groundPlan.nhn?rletNo=103538&cortarNo=4825013000","죽림마을14단지동원로얄듀크") -> 죽림마을14단지동원로얄듀크 | E37: 2013.06 | F37: 230 | G37: 33.70606061 | H37: 111.23 | I37: 25.75151515 | J37: 84.98 | K37: 50 | P37: 0 | Q37: 0 | R37: 0 | S37: 0 | T37: 3 | U37: 2 | V37: 계단식 | W37: 111C
A38: [관동동] | C38: 3 | D38: =HYPERLINK("https://land.naver.com/article/groundPlan.nhn?rletNo=103538&cortarNo=4825013000","죽림마을14단지동원로얄듀크") -> 죽림마을14단지동원로얄듀크 | E38: 2013.06 | F38: 230 | G38: 33.80909091 | H38: 111.57 | I38: 25.75151515 | J38: 84.98 | K38: 86 | P38: 0 | Q38: 0 | R38: 0 | S38: 0 | T38: 3 | U38: 2 | V38: 계단식 | W38: 111B
A39: [관동동] | C39: 1 | D39: =HYPERLINK("https://land.naver.com/article/groundPlan.nhn?rletNo=19736&cortarNo=4825013000","팔판마을2단지부영그린타운8차") -> 팔판마을2단지부영그린타운8차 | E39: 2005.06 | F39: 224 | G39: 31.72727273 | H39: 104.7 | I39: 25.69090909 | J39: 84.78 | K39: 224 | P39: 0 | Q39: 0 | R39: 0 | S39: 0 | T39: 3 | U39: 2 | V39: 계단식 | W39: 104
A40: [구산동] | C40: 1 | D40: =HYPERLINK("https://land.naver.com/article/groundPlan.nhn?rletNo=11129&cortarNo=4825010600","구지마을2단지한일유앤아이") -> 구지마을2단지한일유앤아이 | E40: 2004.06 | F40: 1308 | G40: 23.75151515 | H40: 78.38 | I40: 18.11212121 | J40: 59.77 | K40: 1308 | P40: 0 | Q40: 0 | R40: 0 | S40: 0 | T40: 3 | U40: 2 | V40: 계단식 | W40: 78
A41: [구산동] | C41: 1 | D41: =HYPERLINK("https://land.naver.com/article/groundPlan.nhn?rletNo=25417&cortarNo=4825010600","구지마을1단지동원") -> 구지마을1단지동원 | E41: 2001.12 | F41: 954 | G41: 21.21212121 | H41: 70 | I41: 15.12424242 | J41: 49.91 | K41: 400 | P41: 0 | Q41: 0 | R41: 0 | S41: 0 | T41: 2 | U41: 1 | V41: 계단식 | W41: 70
A42: [구산동] | C42: 2 | D42: =HYPERLINK("https://land.naver.com/article/groundPlan.nhn?rletNo=25417&cortarNo=4825010600","구지마을1단지동원") -> 구지마을1단지동원 | E42: 2001.12 | F42: 954 | G42: 24.53030303 | H42: 80.95 | I42: 18.17575758 | J42: 59.98 | K42: 554 | P42: 0 | Q42: 0 | R42: 0 | S42: 0 | T42: 3 | U42: 1 | V42: 계단식 | W42: 80
A43: [구산동] | C43: 1 | D43: =HYPERLINK("https://land.naver.com/article/groundPlan.nhn?rletNo=6067&cortarNo=4825010600","광남백조") -> 광남백조 | E43: 1994.01 | F43: 836 | G43: 14.94242424 | H43: 49.31 | I43: 11.50909091 | J43: 37.98 | K43: 24 | P43: 0 | Q43: 0 | R43: 0 | S43: 0 | T43: 2 | U43: 1 | V43: 계단식 | W43: 49
A44: [구산동] | C44: 2 | D44: =HYPERLINK("https://land.naver.com/article/groundPlan.nhn?rletNo=6067&cortarNo=4825010600","광남백조") -> 광남백조 | E44: 1994.01 | F44: 836 | G44: 21.87878788 | H44: 72.2 | I44: 18.20606061 | J44: 60.08 | K44: 812 | P44: 0 | Q44: 0 | R44: 0 | S44: 0 | T44: 3 | U44: 1 | V44: 계단식 | W44: 72
A45: [구산동] | C45: 1 | D45: =HYPERLINK("https://land.naver.com/article/groundPlan.nhn?rletNo=6093&cortarNo=4825010600","김해구산주공3단지") -> 김해구산주공3단지 | E45: 2000.03 | F45: 810 | G45: 20.69393939 | H45: 68.29 | I45: 16.96666667 | J45: 55.99 | K45: 1 | P45: 0 | Q45: 0 | R45: 0 | S45: 0 | T45: 3 | U45: 1 | V45: 계단식 | W45: 68B
A46: [구산동] | C46: 2 | D46: =HYPERLINK("https://land.naver.com/article/groundPlan.nhn?rletNo=6093&cortarNo=4825010600","김해구산주공3단지") -> 김해구산주공3단지 | E46: 2000.03 | F46: 810 | G46: 21.85757576 | H46: 72.13 | I46: 18.13333333 | J46: 59.84 | K46: 30 | P46: 0 | Q46: 0 | R46: 0 | S46: 0 | T46: 3 | U46: 1 | V46: 계단식 | W46: 72C
A47: [구산동] | C47: 3 | D47: =HYPERLINK("https://land.naver.com/article/groundPlan.nhn?rletNo=6093&cortarNo=4825010600","김해구산주공3단지") -> 김해구산주공3단지 | E47: 2000.03 | F47: 810 | G47: 21.90606061 | H47: 72.29 | I47: 18.17878788 | J47: 59.99 | K47: 599 | P47: 0 | Q47: 0 | R47: 0 | S47: 0 | T47: 3 | U47: 1 | V47: 계단식 | W47: 72A
A48: [구산동] | C48: 4 | D48: =HYPERLINK("https://land.naver.com/article/groundPlan.nhn?rletNo=6093&cortarNo=4825010600","김해구산주공3단지") -> 김해구산주공3단지 | E48: 2000.03 | F48: 810 | G48: 29.51212121 | H48: 97.39 | I48: 25.72727273 | J48: 84.9 | K48: 180 | P48: 0 | Q48: 0 | R48: 0 | S48: 0 | T48: 3 | U48: 2 | V48: 계단식 | W48: 97
A49: [구산동] | C49: 1 | D49: =HYPERLINK("https://land.naver.com/article/groundPlan.nhn?rletNo=23141&cortarNo=4825010600","한라비발디") -> 한라비발디 | E49: 2007.08 | F49: 749 | G49: 34.2030303 | H49: 112.87 | I49: 25.75151515 | J49: 84.98 | K49: 389 | P49: 0 | Q49: 0 | R49: 0 | S49: 0 | T49: 3 | U49: 2 | V49: 계단식 | W49: 112
A50: [구산동] | C50: 2 | D50: =HYPERLINK("https://land.naver.com/article/groundPlan.nhn?rletNo=23141&cortarNo=4825010600","한라비발디") -> 한라비발디 | E50: 2007.08 | F50: 749 | G50: 46.18787879 | H50: 152.42 | I50: 38.53333333 | J50: 127.16 | K50: 210 | P50: 0 | Q50: 0 | R50: 0 | S50: 0 | T50: 4 | U50: 2 | V50: 계단식 | W50: 152
A51: [구산동] | C51: 3 | D51: =HYPERLINK("https://land.naver.com/article/groundPlan.nhn?rletNo=23141&cortarNo=4825010600","한라비발디") -> 한라비발디 | E51: 2007.08 | F51: 749 | G51: 55.4 | H51: 182.82 | I51: 47.14545455 | J51: 155.58 | K51: 150 | P51: 0 | Q51: 0 | R51: 0 | S51: 0 | T51: 4 | U51: 2 | V51: 계단식 | W51: 182
A52: [구산동] | C52: 1 | D52: =HYPERLINK("https://land.naver.com/article/groundPlan.nhn?rletNo=103540&cortarNo=4825010600","구산이진캐스빌2단지") -> 구산이진캐스빌2단지 | E52: 2013.09 | F52: 668 | G52: 28.58484848 | H52: 94.33 | I52: 22.15454545 | J52: 73.11 | K52: 122 | P52: 0 | Q52: 0 | R52: 0 | S52: 0 | T52: 3 | U52: 2 | V52: 계단식 | W52: 94
A53: [구산동] | C53: 2 | D53: 구산이진캐스빌2단지 | E53: 2013.09 | F53: 668 | G53: 33.26969697 | H53: 109.79 | I53: 25.75151515 | J53: 84.98 | K53: 242 | P53: 0 | Q53: 0 | R53: 0 | S53: 0 | T53: 3 | U53: 2 | V53: 계단식 | W53: 109A | AX53: =_xlfn.NUMBERVALUE(LEFT($A$2,4)) ->  | AY53: =_xlfn.NUMBERVALUE(MID($A$2,6,2)) -> 0
A54: [구산동] | C54: 3 | D54: 구산이진캐스빌2단지 | E54: 2013.09 | F54: 668 | G54: 33.62121212 | H54: 110.95 | I54: 25.75454545 | J54: 84.99 | K54: 235 | P54: 0 | Q54: 0 | R54: 0 | S54: 0 | T54: 3 | U54: 2 | V54: 계단식 | W54: 110B
A55: [구산동] | C55: 4 | D55: 구산이진캐스빌2단지 | E55: 2013.09 | F55: 668 | G55: 43.72121212 | H55: 144.28 | I55: 34.45757576 | J55: 113.71 | K55: 62 | P55: 0 | Q55: 0 | R55: 0 | S55: 0 | T55: 4 | U55: 2 | V55: 계단식 | W55: 144 | AX55: 입주연도 | AY55: 입주월 | BB55: =AX54-10 -> -10 | BC55: =BB55-10 -> -20 | BD55: =BC55-10 -> -30 | BE55: =AX54-30 -> -30
A56: [구산동] | C56: 5 | D56: 구산이진캐스빌2단지 | E56: 2013.09 | F56: 668 | G56: 64.55151515 | H56: 213.02 | I56: 50.43333333 | J56: 166.43 | K56: 5 | P56: 0 | Q56: 0 | R56: 0 | S56: 0 | T56: 4 | U56: 2 | V56: 계단식 | W56: 213
A57: [구산동] | C57: 6 | D57: 구산이진캐스빌2단지 | E57: 2013.09 | F57: 668 | G57: 84.41515152 | H57: 278.57 | I57: 66.67575758 | J57: 220.03 | K57: 2 | P57: 0 | Q57: 0 | R57: 0 | S57: 0 | T57: 4 | U57: 2 | V57: 계단식 | W57: 278 | AX57: =IF(B57="","",_xlfn.NUMBERVALUE(IF(_xlfn.NUMBERVALUE(LEFT(RIGHT(B57,5),2))>70,"19"&LEFT(RIGHT(B57,5),2),"20"&LEFT(RIGHT(B57,5),2)))) ->  | AY57: =IF(B57="","",_xlfn.NUMBERVALUE(RIGHT(B57,2))) ->  | BB57: 10년 이하 | BC57: 10~20년 | BD57: 20~30년 | BE57: 30년 이상 | BF57: 합계
A58: [구산동] | C58: 1 | D58: =HYPERLINK("https://land.naver.com/article/groundPlan.nhn?rletNo=6089&cortarNo=4825010600","구산주공2단지") -> 구산주공2단지 | E58: 1992.05 | F58: 623 | G58: 17.43030303 | H58: 57.52 | I58: 12.68181818 | J58: 41.85 | K58: 623 | P58: 0 | Q58: 0 | R58: 0 | S58: 0 | T58: 2 | U58: 1 | V58: 복도식 | W58: 57 | AX58: =IF(B58="","",_xlfn.NUMBERVALUE(IF(_xlfn.NUMBERVALUE(LEFT(RIGHT(B58,5),2))>70,"19"&LEFT(RIGHT(B58,5),2),"20"&LEFT(RIGHT(B58,5),2)))) ->  | AY58: =IF(B58="","",_xlfn.NUMBERVALUE(RIGHT(B58,2))) ->  | BA58: 10평대 | BB58: =SUMIFS(H:H,AX:AX,">"&BB57,E:E,"<20")+SUMIFS(H:H,AX:AX,"="&BB57,AY:AY,">="&AY56,E:E,"<20") -> 0 | BC58: =SUMIFS(H:H,AX:AX,">"&BC57,AX:AX,"<"&BB57,E:E,"<20")+SUMIFS(H:H,AX:AX,"="&BC57,AY:AY,">="&AY56,E:E,"<20")+SUMIFS(H:H,AX:AX,"="&BB57,AY:AY,"<"&AY56,E:E,"<20") -> 0 | BD58: =SUMIFS(H:H,AX:AX,">"&BD57,AX:AX,"<"&BC57,E:E,"<20")+SUMIFS(H:H,AX:AX,"="&BD57,AY:AY,">="&AY56,E:E,"<20")+SUMIFS(H:H,AX:AX,"="&BC57,AY:AY,"<"&AY56,E:E,"<20") -> 0 | BE58: =SUMIFS(H:H,AX:AX,"<"&BD57,E:E,"<20")+SUMIFS(H:H,AX:AX,"="&BD57,AY:AY,"<"&AY56,E:E,"<20") -> 0 | BF58: =SUM(BB58:BE58) -> 0
A59: [구산동] | C59: 1 | D59: =HYPERLINK("https://land.naver.com/article/groundPlan.nhn?rletNo=103201&cortarNo=4825010600","일동미라주") -> 일동미라주 | E59: 2013.06 | F59: 596 | G59: 34.87575758 | H59: 115.09 | I59: 25.61818182 | J59: 84.54 | K59: 116 | P59: 0 | Q59: 0 | R59: 0 | S59: 0 | T59: 3 | U59: 2 | V59: 계단식 | W59: 115C
A60: [구산동] | C60: 2 | D60: 일동미라주 | E60: 2013.06 | F60: 596 | G60: 25.40909091 | H60: 83.85 | I60: 18.01515152 | J60: 59.45 | K60: 2 | P60: 0 | Q60: 0 | R60: 0 | S60: 0 | T60: 3 | U60: 2 | V60: 계단식 | W60: 83F | AX60: =IF(B60="","",_xlfn.NUMBERVALUE(IF(_xlfn.NUMBERVALUE(LEFT(RIGHT(B60,5),2))>70,"19"&LEFT(RIGHT(B60,5),2),"20"&LEFT(RIGHT(B60,5),2)))) ->  | AY60: =IF(B60="","",_xlfn.NUMBERVALUE(RIGHT(B60,2))) ->  | BA60: 30평대 | BB60: =SUMIFS(H:H,AX:AX,">"&#REF!,E:E,"<40",E:E,">=30")+SUMIFS(H:H,AX:AX,"="&#REF!,AY:AY,">="&AY57,E:E,"<40",E:E,">=30") -> 0 | BC60: =SUMIFS(H:H,AX:AX,">"&#REF!,AX:AX,"<"&#REF!,E:E,"<40",E:E,">=30")+SUMIFS(H:H,AX:AX,"="&#REF!,AY:AY,">="&AY57,E:E,"<40",E:E,">=30")+SUMIFS(H:H,AX:AX,"="&#REF!,AY:AY,"<"&AY57,E:E,"<40",E:E,">=30") -> 0 | BD60: =SUMIFS(H:H,AX:AX,">"&#REF!,AX:AX,"<"&#REF!,E:E,"<40",E:E,">=30")+SUMIFS(H:H,AX:AX,"="&#REF!,AY:AY,">="&AY57,E:E,"<40",E:E,">=30")+SUMIFS(H:H,AX:AX,"="&#REF!,AY:AY,"<"&AY57,E:E,"<40",E:E,">=30") -> 0 | BE60: =SUMIFS(H:H,AX:AX,"<"&#REF!,E:E,"<40",E:E,">=30")+SUMIFS(H:H,AX:AX,"="&#REF!,AY:AY,"<"&AY57,E:E,"<40",E:E,">=30") -> 0 | BF60: =SUM(BB60:BE60) -> 0
A61: [구산동] | C61: 3 | D61: 일동미라주 | E61: 2013.06 | F61: 596 | G61: 25.58484848 | H61: 84.43 | I61: 18.14545455 | J61: 59.88 | K61: 60 | P61: 0 | Q61: 0 | R61: 0 | S61: 0 | T61: 3 | U61: 2 | V61: 계단식 | W61: 84E
A62: [구산동] | C62: 4 | D62: 일동미라주 | E62: 2013.06 | F62: 596 | G62: 25.79090909 | H62: 85.11 | I62: 18.17272727 | J62: 59.97 | K62: 117 | P62: 0 | Q62: 0 | R62: 0 | S62: 0 | T62: 3 | U62: 2 | V62: 계단식 | W62: 85D | AX62: =IF(B62="","",_xlfn.NUMBERVALUE(IF(_xlfn.NUMBERVALUE(LEFT(RIGHT(B62,5),2))>70,"19"&LEFT(RIGHT(B62,5),2),"20"&LEFT(RIGHT(B62,5),2)))) ->  | AY62: =IF(B62="","",_xlfn.NUMBERVALUE(RIGHT(B62,2))) ->  | BA62: 40평대↑ | BB62: =SUMIFS(H:H,AX:AX,">"&BB58,E:E,">=40")+SUMIFS(H:H,AX:AX,"="&BB58,AY:AY,">="&#REF!,E:E,">=40") -> 265.05 | BC62: =SUMIFS(H:H,AX:AX,">"&BC58,AX:AX,"<"&BB58,E:E,">=40")+SUMIFS(H:H,AX:AX,"="&BC58,AY:AY,">="&#REF!,E:E,">=40")+SUMIFS(H:H,AX:AX,"="&BB58,AY:AY,"<"&#REF!,E:E,">=40") -> 0 | BD62: =SUMIFS(H:H,AX:AX,">"&BD58,AX:AX,"<"&BC58,E:E,">=40")+SUMIFS(H:H,AX:AX,"="&BD58,AY:AY,">="&#REF!,E:E,">=40")+SUMIFS(H:H,AX:AX,"="&BC58,AY:AY,"<"&#REF!,E:E,">=40") -> 0 | BE62: =SUMIFS(H:H,AX:AX,"<"&BD58,E:E,">=40")+SUMIFS(H:H,AX:AX,"="&BD58,AY:AY,"<"&#REF!,E:E,">=40") -> 0 | BF62: =SUM(BB62:BE62) -> 265.05
A63: [구산동] | C63: 5 | D63: 일동미라주 | E63: 2013.06 | F63: 596 | G63: 25.87878788 | H63: 85.4 | I63: 18.03636364 | J63: 59.52 | K63: 2 | P63: 0 | Q63: 0 | R63: 0 | S63: 0 | T63: 3 | U63: 2 | V63: 계단식 | W63: 85B
A64: [구산동] | C64: 6 | D64: 일동미라주 | E64: 2013.06 | F64: 596 | G64: 26.00606061 | H64: 85.82 | I64: 18.13333333 | J64: 59.84 | K64: 127 | P64: 0 | Q64: 0 | R64: 0 | S64: 0 | T64: 3 | U64: 2 | V64: 계단식 | W64: 85A | AX64: =IF(B64="","",_xlfn.NUMBERVALUE(IF(_xlfn.NUMBERVALUE(LEFT(RIGHT(B64,5),2))>70,"19"&LEFT(RIGHT(B64,5),2),"20"&LEFT(RIGHT(B64,5),2)))) ->  | AY64: =IF(B64="","",_xlfn.NUMBERVALUE(RIGHT(B64,2))) ->  | BA64: 합계 | BB64: =SUM(BB60:BB63) -> 265.05 | BC64: =SUM(BC60:BC63) -> 0 | BD64: =SUM(BD60:BD63) -> 0 | BE64: =SUM(BE60:BE63) -> 0 | BF64: =SUM(BB64:BE64) -> 265.05
A65: [구산동] | C65: 7 | D65: 일동미라주 | E65: 2013.06 | F65: 596 | G65: 26.00606061 | H65: 85.82 | I65: 18.13333333 | J65: 59.84 | K65: 6 | P65: 0 | Q65: 0 | R65: 0 | S65: 0 | T65: 3 | U65: 2 | V65: 계단식 | W65: 85C
A66: [구산동] | C66: 8 | D66: 일동미라주 | E66: 2013.06 | F66: 596 | G66: =H66/3.3 -> 31.95757576 | H66: 105.46 | I66: =J66/3.3 -> 24.87878788 | J66: 82.1 | K66: 59 | P66: 0 | Q66: 0 | R66: 0 | S66: 0 | T66: 3 | U66: 2 | V66: 계단식 | W66: 105A
A67: [구산동] | C67: 9 | D67: 일동미라주 | E67: 2013.06 | F67: 596 | G67: 31.95757576 | H67: 105.46 | I67: 24.87878788 | J67: 82.1 | K67: 1 | P67: 0 | Q67: 0 | R67: 0 | S67: 0 | T67: 3 | U67: 2 | V67: 계단식 | W67: 105B
A68: [구산동] | C68: 10 | D68: 일동미라주 | E68: 2013.06 | F68: 596 | G68: 34.86363636 | H68: 115.05 | I68: 25.73030303 | J68: 84.91 | K68: 104 | P68: 0 | Q68: 0 | R68: 0 | S68: 0 | T68: 3 | U68: 2 | V68: 계단식 | W68: 115A
A69: [구산동] | C69: 11 | D69: 일동미라주 | E69: 2013.06 | F69: 596 | G69: 34.86363636 | H69: 115.05 | I69: 25.73030303 | J69: 84.91 | K69: 2 | P69: 0 | Q69: 0 | R69: 0 | S69: 0 | T69: 3 | U69: 2 | V69: 계단식 | W69: 115B
A70: [구산동] | C70: 1 | D70: =HYPERLINK("https://land.naver.com/article/groundPlan.nhn?rletNo=6076&cortarNo=4825010600","시영") -> 시영 | E70: 1994.01 | F70: 567 | G70: 20.01818182 | H70: 66.06 | I70: 15.11515152 | J70: 49.88 | K70: 413 | P70: 0 | Q70: 0 | R70: 0 | S70: 0 | T70: 2 | U70: 1 | V70: 복도식 | W70: 66
A71: [구산동] | C71: 2 | D71: =HYPERLINK("https://land.naver.com/article/groundPlan.nhn?rletNo=6076&cortarNo=4825010600","시영") -> 시영 | E71: 1994.01 | F71: 567 | G71: 23.71515152 | H71: 78.26 | I71: 18.10909091 | J71: 59.76 | K71: 154 | P71: 0 | Q71: 0 | R71: 0 | S71: 0 | T71: 3 | U71: 1 | V71: 복도식 | W71: 78
A72: [구산동] | C72: 1 | D72: =HYPERLINK("https://land.naver.com/article/groundPlan.nhn?rletNo=16547&cortarNo=4825010600","김해구산주공5단지") -> 김해구산주공5단지 | E72: 1999.02 | F72: 560 | G72: 18.54242424 | H72: 61.19 | I72: 14.88787879 | J72: 49.13 | K72: 140 | P72: 0 | Q72: 0 | R72: 0 | S72: 0 | T72: 2 | U72: 1 | V72: 복도식 | W72: 61
A73: [구산동] | C73: 2 | D73: =HYPERLINK("https://land.naver.com/article/groundPlan.nhn?rletNo=16547&cortarNo=4825010600","김해구산주공5단지") -> 김해구산주공5단지 | E73: 1999.02 | F73: 560 | G73: 21.90606061 | H73: 72.29 | I73: 18.17878788 | J73: 59.99 | K73: 120 | P73: 0 | Q73: 0 | R73: 0 | S73: 0 | T73: 3 | U73: 1 | V73: 복도식 | W73: 72
A74: [구산동] | C74: 3 | D74: =HYPERLINK("https://land.naver.com/article/groundPlan.nhn?rletNo=16547&cortarNo=4825010600","김해구산주공5단지") -> 김해구산주공5단지 | E74: 1999.02 | F74: 560 | G74: 22.64242424 | H74: 74.72 | I74: 18.17878788 | J74: 59.99 | K74: 300 | P74: 0 | Q74: 0 | R74: 0 | S74: 0 | T74: 3 | U74: 1 | V74: 복도식 | W74: 74
A75: [구산동] | C75: 1 | D75: =HYPERLINK("https://land.naver.com/article/groundPlan.nhn?rletNo=103539&cortarNo=4825010600","구산이진캐스빌1단지") -> 구산이진캐스빌1단지 | E75: 2013.09 | F75: 510 | G75: 29.01818182 | H75: 95.76 | I75: 22.15454545 | J75: 73.11 | K75: 223 | P75: 0 | Q75: 0 | R75: 0 | S75: 0 | T75: 3 | U75: 2 | V75: 계단식 | W75: 95
A76: [구산동] | C76: 2 | D76: 구산이진캐스빌1단지 | E76: 2013.09 | F76: 510 | G76: 33.18181818 | H76: 109.5 | I76: 25.75151515 | J76: 84.98 | K76: 113 | P76: 0 | Q76: 0 | R76: 0 | S76: 0 | T76: 3 | U76: 2 | V76: 계단식 | W76: 109A
A77: [구산동] | C77: 3 | D77: 구산이진캐스빌1단지 | E77: 2013.09 | F77: 510 | G77: 33.53333333 | H77: 110.66 | I77: 25.75454545 | J77: 84.99 | K77: 138 | P77: 0 | Q77: 0 | R77: 0 | S77: 0 | T77: 3 | U77: 2 | V77: 계단식 | W77: 110B
A78: [구산동] | C78: 4 | D78: 구산이진캐스빌1단지 | E78: 2013.09 | F78: 510 | G78: 43.90909091 | H78: 144.9 | I78: 34.45757576 | J78: 113.71 | K78: 32 | P78: 0 | Q78: 0 | R78: 0 | S78: 0 | T78: 4 | U78: 2 | V78: 계단식 | W78: 144
A79: [구산동] | C79: 5 | D79: 구산이진캐스빌1단지 | E79: 2013.09 | F79: 510 | G79: 64.7969697 | H79: 213.83 | I79: 50.43333333 | J79: 166.43 | K79: 3 | P79: 0 | Q79: 0 | R79: 0 | S79: 0 | T79: 4 | U79: 2 | V79: 계단식 | W79: 213
A80: [구산동] | C80: 6 | D80: 구산이진캐스빌1단지 | E80: 2013.09 | F80: 510 | G80: 84.33636364 | H80: 278.31 | I80: 66.67575758 | J80: 220.03 | K80: 1 | P80: 0 | Q80: 0 | R80: 0 | S80: 0 | T80: 4 | U80: 2 | V80: 계단식 | W80: 278
A81: [구산동] | C81: 1 | D81: =HYPERLINK("https://land.naver.com/article/groundPlan.nhn?rletNo=16545&cortarNo=4825010600","김해구산주공4단지") -> 김해구산주공4단지 | E81: 1999.02 | F81: 503 | G81: 19.39090909 | H81: 63.99 | I81: 15.03636364 | J81: 49.62 | K81: 503 | P81: 0 | Q81: 0 | R81: 0 | S81: 0 | T81: 2 | U81: 1 | V81: 복도식 | W81: 63
A82: [구산동] | C82: 1 | D82: =HYPERLINK("https://land.naver.com/article/groundPlan.nhn?rletNo=6071&cortarNo=4825010600","대동") -> 대동 | E82: 1993.05 | F82: 240 | G82: 33.75757576 | H82: 111.4 | I82: 28.03636364 | J82: 92.52 | K82: 45 | P82: 0 | Q82: 0 | R82: 0 | S82: 0 | T82: 3 | U82: 2 | V82: 계단식 | W82: 111
A83: [구산동] | C83: 2 | D83: =HYPERLINK("https://land.naver.com/article/groundPlan.nhn?rletNo=6071&cortarNo=4825010600","대동") -> 대동 | E83: 1993.05 | F83: 240 | G83: 37.4969697 | H83: 123.74 | I83: 31.52727273 | J83: 104.04 | K83: 60 | P83: 0 | Q83: 0 | R83: 0 | S83: 0 | T83: 3 | U83: 2 | V83: 계단식 | W83: 123
A84: [구산동] | C84: 3 | D84: =HYPERLINK("https://land.naver.com/article/groundPlan.nhn?rletNo=6071&cortarNo=4825010600","대동") -> 대동 | E84: 1993.05 | F84: 240 | G84: 47.05757576 | H84: 155.29 | I84: 40.43636364 | J84: 133.44 | K84: 120 | P84: 0 | Q84: 0 | R84: 0 | S84: 0 | T84: 4 | U84: 2 | V84: 계단식 | W84: 155A
A85: [구산동] | C85: 4 | D85: =HYPERLINK("https://land.naver.com/article/groundPlan.nhn?rletNo=6071&cortarNo=4825010600","대동") -> 대동 | E85: 1993.05 | F85: 240 | G85: 47.14848485 | H85: 155.59 | I85: 40.52121212 | J85: 133.72 | K85: 15 | P85: 0 | Q85: 0 | R85: 0 | S85: 0 | T85: 4 | U85: 2 | V85: 계단식 | W85: 155B
A86: [구산동] | C86: 1 | D86: =HYPERLINK("https://land.naver.com/article/groundPlan.nhn?rletNo=104583&cortarNo=4825010600","구산아이파크") -> 구산아이파크 | E86: 2013.12 | F86: 203 | G86: 29.06060606 | H86: 95.9 | I86: 22.08484848 | J86: 72.88 | K86: 16 | P86: 0 | Q86: 0 | R86: 0 | S86: 0 | T86: 3 | U86: 2 | V86: 계단식 | W86: 95B
A87: [구산동] | C87: 2 | D87: =HYPERLINK("https://land.naver.com/article/groundPlan.nhn?rletNo=104583&cortarNo=4825010600","구산아이파크") -> 구산아이파크 | E87: 2013.12 | F87: 203 | G87: 29.75757576 | H87: 98.2 | I87: 22.05454545 | J87: 72.78 | K87: 34 | P87: 0 | Q87: 0 | R87: 0 | S87: 0 | T87: 3 | U87: 2 | V87: 계단식 | W87: 98A
A88: [구산동] | C88: 3 | D88: =HYPERLINK("https://land.naver.com/article/groundPlan.nhn?rletNo=104583&cortarNo=4825010600","구산아이파크") -> 구산아이파크 | E88: 2013.12 | F88: 203 | G88: 33.70909091 | H88: 111.24 | I88: 25.74242424 | J88: 84.95 | K88: 19 | P88: 0 | Q88: 0 | R88: 0 | S88: 0 | T88: 3 | U88: 2 | V88: 계단식 | W88: 111A
A89: [구산동] | C89: 4 | D89: =HYPERLINK("https://land.naver.com/article/groundPlan.nhn?rletNo=104583&cortarNo=4825010600","구산아이파크") -> 구산아이파크 | E89: 2013.12 | F89: 203 | G89: 33.81515152 | H89: 111.59 | I89: 25.75454545 | J89: 84.99 | K89: 78 | P89: 0 | Q89: 0 | R89: 0 | S89: 0 | T89: 3 | U89: 2 | V89: 계단식 | W89: 111B
A90: [구산동] | C90: 5 | D90: =HYPERLINK("https://land.naver.com/article/groundPlan.nhn?rletNo=104583&cortarNo=4825010600","구산아이파크") -> 구산아이파크 | E90: 2013.12 | F90: 203 | G90: 34.4030303 | H90: 113.53 | I90: 25.75454545 | J90: 84.99 | K90: 56 | P90: 0 | Q90: 0 | R90: 0 | S90: 0 | T90: 3 | U90: 2 | V90: 계단식 | W90: 113C
A91: [구산동] | C91: 1 | D91: =HYPERLINK("https://land.naver.com/article/groundPlan.nhn?rletNo=6061&cortarNo=4825010600","거송월드타운") -> 거송월드타운 | E91: 1990.12 | F91: 154 | G91: 28.55757576 | H91: 94.24 | I91: 23.11212121 | J91: 76.27 | K91: 22 | P91: 0 | Q91: 0 | R91: 0 | S91: 0 | T91: 3 | U91: 1 | V91: 계단식 | W91: 94
A92: [구산동] | C92: 1 | D92: =HYPERLINK("https://land.naver.com/article/groundPlan.nhn?rletNo=6061&cortarNo=4825010600","거송월드타운") -> 거송월드타운 | E92: 1990.12 | F92: 154 | G92: 29.8969697 | H92: 98.66 | I92: 24.32121212 | J92: 80.26 | K92: 66 | P92: 0 | Q92: 0 | R92: 0 | S92: 0 | T92: 3 | U92: 1 | V92: 계단식 | W92: 98
A93: [구산동] | C93: 1 | D93: =HYPERLINK("https://land.naver.com/article/groundPlan.nhn?rletNo=6061&cortarNo=4825010600","거송월드타운") -> 거송월드타운 | E93: 1990.12 | F93: 154 | G93: 31.59393939 | H93: 104.26 | I93: 25.74545455 | J93: 84.96 | K93: 66 | P93: 0 | Q93: 0 | R93: 0 | S93: 0 | T93: 3 | U93: 2 | V93: 계단식 | W93: 104
A94: [내덕동] | C94: 1 | D94: =HYPERLINK("https://land.naver.com/article/groundPlan.nhn?rletNo=111279&cortarNo=4825012400","내덕서희스타힐스") -> 내덕서희스타힐스 | E94: 2016.12 | F94: 990 | G94: 24.65757576 | H94: 81.37 | I94: 18.15454545 | J94: 59.91 | K94: 305 | P94: 0 | Q94: 0 | R94: 0 | S94: 0 | T94: 3 | U94: 2 | V94: 계단식 | W94: 81A
A95: [내덕동] | C95: 2 | D95: =HYPERLINK("https://land.naver.com/article/groundPlan.nhn?rletNo=111279&cortarNo=4825012400","내덕서희스타힐스") -> 내덕서희스타힐스 | E95: 2016.12 | F95: 990 | G95: 24.77575758 | H95: 81.76 | I95: 18.14848485 | J95: 59.89 | K95: 18 | P95: 0 | Q95: 0 | R95: 0 | S95: 0 | T95: 3 | U95: 2 | V95: 계단식 | W95: 81B
A96: [내덕동] | C96: 3 | D96: =HYPERLINK("https://land.naver.com/article/groundPlan.nhn?rletNo=111279&cortarNo=4825012400","내덕서희스타힐스") -> 내덕서희스타힐스 | E96: 2016.12 | F96: 990 | G96: 27.23333333 | H96: 89.87 | I96: 19.93636364 | J96: 65.79 | K96: 321 | P96: 0 | Q96: 0 | R96: 0 | S96: 0 | T96: 3 | U96: 2 | V96: 계단식 | W96: 89
A97: [내덕동] | C97: 4 | D97: =HYPERLINK("https://land.naver.com/article/groundPlan.nhn?rletNo=111279&cortarNo=4825012400","내덕서희스타힐스") -> 내덕서희스타힐스 | E97: 2016.12 | F97: 990 | G97: 30.57272727 | H97: 100.89 | I97: 22.60606061 | J97: 74.6 | K97: 346 | P97: 0 | Q97: 0 | R97: 0 | S97: 0 | T97: 3 | U97: 2 | V97: 계단식 | W97: 100
A98: [내동] | C98: 1 | D98: =HYPERLINK("https://land.naver.com/article/groundPlan.nhn?rletNo=16555&cortarNo=4825010800","내동한일") -> 내동한일 | E98: 1986.07 | F98: 936 | G98: 18.73636364 | H98: 61.83 | I98: 13.2 | J98: 43.56 | K98: 192 | P98: 0 | Q98: 0 | R98: 0 | S98: 0 | T98: 2 | U98: 1 | V98: 복도식 | W98: 61
A99: [내동] | C99: 2 | D99: =HYPERLINK("https://land.naver.com/article/groundPlan.nhn?rletNo=16555&cortarNo=4825010800","내동한일") -> 내동한일 | E99: 1986.07 | F99: 936 | G99: 23.13030303 | H99: 76.33 | I99: 17.36363636 | J99: 57.3 | K99: 744 | P99: 0 | Q99: 0 | R99: 0 | S99: 0 | T99: 2 | U99: 1 | V99: 복도식 | W99: 76
A100: [내동] | C100: 1 | D100: =HYPERLINK("https://land.naver.com/article/groundPlan.nhn?rletNo=6113&cortarNo=4825010800","삼성") -> 삼성 | E100: 1996.06 | F100: 862 | G100: 22.46363636 | H100: 74.13 | I100: 18.08181818 | J100: 59.67 | K100: 220 | P100: 0 | Q100: 0 | R100: 0 | S100: 0 | T100: 3 | U100: 1 | V100: 계단식 | W100: 74A
A101: [내동] | C101: 2 | D101: =HYPERLINK("https://land.naver.com/article/groundPlan.nhn?rletNo=6113&cortarNo=4825010800","삼성") -> 삼성 | E101: 1996.06 | F101: 862 | G101: 22.47575758 | H101: 74.17 | I101: 18.14545455 | J101: 59.88 | K101: 240 | P101: 0 | Q101: 0 | R101: 0 | S101: 0 | T101: 3 | U101: 1 | V101: 계단식 | W101: 74B
A102: [내동] | C102: 3 | D102: =HYPERLINK("https://land.naver.com/article/groundPlan.nhn?rletNo=6113&cortarNo=4825010800","삼성") -> 삼성 | E102: 1996.06 | F102: 862 | G102: 30.11212121 | H102: 99.37 | I102: 25.75454545 | J102: 84.99 | K102: 402 | P102: 0 | Q102: 0 | R102: 0 | S102: 0 | T102: 3 | U102: 2 | V102: 계단식 | W102: 99
A103: [내동] | C103: 1 | D103: =HYPERLINK("https://land.naver.com/article/groundPlan.nhn?rletNo=6107&cortarNo=4825010800","동아1차") -> 동아1차 | E103: 1997.01 | F103: 720 | G103: 36.56060606 | H103: 120.65 | I103: 30.3030303 | J103: 100 | K103: 300 | P103: 0 | Q103: 0 | R103: 0 | S103: 0 | T103: 4 | U103: 2 | V103: 계단식 | W103: 120
A104: [내동] | C104: 2 | D104: =HYPERLINK("https://land.naver.com/article/groundPlan.nhn?rletNo=6107&cortarNo=4825010800","동아1차") -> 동아1차 | E104: 1997.01 | F104: 720 | G104: 45.65454545 | H104: 150.66 | I104: 38.69393939 | J104: 127.69 | K104: 360 | P104: 0 | Q104: 0 | R104: 0 | S104: 0 | T104: 4 | U104: 2 | V104: 계단식 | W104: 150
A105: [내동] | C105: 3 | D105: =HYPERLINK("https://land.naver.com/article/groundPlan.nhn?rletNo=6107&cortarNo=4825010800","동아1차") -> 동아1차 | E105: 1997.01 | F105: 720 | G105: 58.74848485 | H105: 193.87 | I105: 49.99090909 | J105: 164.97 | K105: 60 | P105: 0 | Q105: 0 | R105: 0 | S105: 0 | T105: 5 | U105: 2 | V105: 계단식 | W105: 193
A106: [내동] | C106: 1 | D106: =HYPERLINK("https://land.naver.com/article/groundPlan.nhn?rletNo=6159&cortarNo=4825010800","홍익") -> 홍익 | E106: 1990.07 | F106: 708 | G106: 20.10909091 | H106: 66.36 | I106: 18.11515152 | J106: 59.78 | K106: 708 | P106: 0 | Q106: 0 | R106: 0 | S106: 0 | T106: 3 | U106: 1 | V106: 계단식 | W106: 66
A107: [내동] | C107: 1 | D107: =HYPERLINK("https://land.naver.com/article/groundPlan.nhn?rletNo=6100&cortarNo=4825010800","건영") -> 건영 | E107: 1998.12 | F107: 558 | G107: 25.99393939 | H107: 85.78 | I107: 25.73636364 | J107: 84.93 | K107: 120 | P107: 0 | Q107: 0 | R107: 0 | S107: 0 | T107: 3 | U107: 2 | V107: 계단식 | W107: 85
A108: [내동] | C108: 2 | D108: =HYPERLINK("https://land.naver.com/article/groundPlan.nhn?rletNo=6100&cortarNo=4825010800","건영") -> 건영 | E108: 1998.12 | F108: 558 | G108: 34.35454545 | H108: 113.37 | I108: 30.29090909 | J108: 99.96 | K108: 408 | P108: 0 | Q108: 0 | R108: 0 | S108: 0 | T108: 4 | U108: 2 | V108: 계단식 | W108: 113
A109: [내동] | C109: 3 | D109: =HYPERLINK("https://land.naver.com/article/groundPlan.nhn?rletNo=6100&cortarNo=4825010800","건영") -> 건영 | E109: 1998.12 | F109: 558 | G109: 45.00909091 | H109: 148.53 | I109: 40.85151515 | J109: 134.81 | K109: 30 | P109: 0 | Q109: 0 | R109: 0 | S109: 0 | T109: 4 | U109: 2 | V109: 계단식 | W109: 148
A110: [내동] | C110: 1 | D110: =HYPERLINK("https://land.naver.com/article/groundPlan.nhn?rletNo=6105&cortarNo=4825010800","내외대우") -> 내외대우 | E110: 1996.06 | F110: 504 | G110: 29.67575758 | H110: 97.93 | I110: 25.74242424 | J110: 84.95 | K110: 150 | P110: 0 | Q110: 0 | R110: 0 | S110: 0 | T110: 3 | U110: 2 | V110: 계단식 | W110: 97B
A111: [내동] | C111: 2 | D111: =HYPERLINK("https://land.naver.com/article/groundPlan.nhn?rletNo=6105&cortarNo=4825010800","내외대우") -> 내외대우 | E111: 1996.06 | F111: 504 | G111: 21.86060606 | H111: 72.14 | I111: 17.95757576 | J111: 59.26 | K111: 88 | P111: 0 | Q111: 0 | R111: 0 | S111: 0 | T111: 3 | U111: 1 | V111: 계단식 | W111: 72A
A112: [내동] | C112: 3 | D112: =HYPERLINK("https://land.naver.com/article/groundPlan.nhn?rletNo=6105&cortarNo=4825010800","내외대우") -> 내외대우 | E112: 1996.06 | F112: 504 | G112: 22.06666667 | H112: 72.82 | I112: 18.12727273 | J112: 59.82 | K112: 116 | P112: 0 | Q112: 0 | R112: 0 | S112: 0 | T112: 3 | U112: 1 | V112: 계단식 | W112: 72B
A113: [내동] | C113: 4 | D113: =HYPERLINK("https://land.naver.com/article/groundPlan.nhn?rletNo=6105&cortarNo=4825010800","내외대우") -> 내외대우 | E113: 1996.06 | F113: 504 | G113: 29.49090909 | H113: 97.32 | I113: 25.57878788 | J113: 84.41 | K113: 150 | P113: 0 | Q113: 0 | R113: 0 | S113: 0 | T113: 3 | U113: 2 | V113: 계단식 | W113: 97A
A114: [내동] | C114: 1 | D114: =HYPERLINK("https://land.naver.com/article/groundPlan.nhn?rletNo=6120&cortarNo=4825010800","현대2차") -> 현대2차 | E114: 1996.03 | F114: 493 | G114: 29.51515152 | H114: 97.4 | I114: 25.74545455 | J114: 84.96 | K114: 233 | P114: 0 | Q114: 0 | R114: 0 | S114: 0 | T114: 3 | U114: 2 | V114: 계단식 | W114: 97
A115: [내동] | C115: 2 | D115: =HYPERLINK("https://land.naver.com/article/groundPlan.nhn?rletNo=6120&cortarNo=4825010800","현대2차") -> 현대2차 | E115: 1996.03 | F115: 493 | G115: 34.6030303 | H115: 114.19 | I115: 30.88484848 | J115: 101.92 | K115: 204 | P115: 0 | Q115: 0 | R115: 0 | S115: 0 | T115: 4 | U115: 2 | V115: 계단식 | W115: 114
A116: [내동] | C116: 3 | D116: =HYPERLINK("https://land.naver.com/article/groundPlan.nhn?rletNo=6120&cortarNo=4825010800","현대2차") -> 현대2차 | E116: 1996.03 | F116: 493 | G116: 45.44242424 | H116: 149.96 | I116: 40.8 | J116: 134.64 | K116: 56 | P116: 0 | Q116: 0 | R116: 0 | S116: 0 | T116: 4 | U116: 2 | V116: 계단식 | W116: 149
A117: [내동] | C117: 1 | D117: =HYPERLINK("https://land.naver.com/article/groundPlan.nhn?rletNo=16556&cortarNo=4825010800","한진") -> 한진 | E117: 1992.05 | F117: 474 | G117: 20.95151515 | H117: 69.14 | I117: 15.05454545 | J117: 49.68 | K117: 299 | P117: 0 | Q117: 0 | R117: 0 | S117: 0 | T117: 2 | U117: 1 | V117: 복도식 | W117: 69
A118: [내동] | C118: 1 | D118: =HYPERLINK("https://land.naver.com/article/groundPlan.nhn?rletNo=6127&cortarNo=4825010800","현대4차") -> 현대4차 | E118: 1998.06 | F118: 419 | G118: 28.84242424 | H118: 95.18 | I118: 25.45757576 | J118: 84.01 | K118: 1 | P118: 0 | Q118: 0 | R118: 0 | S118: 0 | T118: 3 | U118: 2 | V118: 계단식 | W118: 95A
A119: [내동] | C119: 2 | D119: 현대4차 | E119: 1998.06 | F119: 419 | G119: 29.16666667 | H119: 96.25 | I119: 25.74545455 | J119: 84.96 | K119: 209 | P119: 0 | Q119: 0 | R119: 0 | S119: 0 | T119: 3 | U119: 1 | V119: 계단식 | W119: 96B
A120: [내동] | C120: 3 | D120: 현대4차 | E120: 1998.06 | F120: 419 | G120: 34.27878788 | H120: 113.12 | I120: 30.25757576 | J120: 99.85 | K120: 119 | P120: 0 | Q120: 0 | R120: 0 | S120: 0 | T120: 3 | U120: 2 | V120: 계단식 | W120: 113A
A121: [내동] | C121: 4 | D121: 현대4차 | E121: 1998.06 | F121: 419 | G121: 34.3 | H121: 113.19 | I121: 30.27575758 | J121: 99.91 | K121: 30 | P121: 0 | Q121: 0 | R121: 0 | S121: 0 | T121: 4 | U121: 2 | V121: 계단식 | W121: 113B
A122: [내동] | C122: 5 | D122: 현대4차 | E122: 1998.06 | F122: 419 | G122: =H122/3.3 -> 46.27272727 | H122: 152.7 | I122: =J122/3.3 -> 40.84242424 | J122: 134.78 | K122: 30 | P122: 0 | Q122: 0 | R122: 0 | S122: 0 | T122: 4 | U122: 2 | V122: 계단식 | W122: 152
A123: [내동] | C123: 6 | D123: 현대4차 | E123: 1998.06 | F123: 419 | G123: 56.57575758 | H123: 186.7 | I123: 49.93636364 | J123: 164.79 | K123: 30 | P123: 0 | Q123: 0 | R123: 0 | S123: 0 | T123: 5 | U123: 2 | V123: 계단식 | W123: 186
A124: [내동] | C124: 1 | D124: =HYPERLINK("https://land.naver.com/article/groundPlan.nhn?rletNo=12902&cortarNo=4825010800","동부") -> 동부 | E124: 1996.12 | F124: 402 | G124: 22.5030303 | H124: 74.26 | I124: 18.17575758 | J124: 59.98 | K124: 134 | P124: 0 | Q124: 0 | R124: 0 | S124: 0 | T124: 3 | U124: 1 | V124: 계단식 | W124: 74
A125: [내동] | C125: 2 | D125: =HYPERLINK("https://land.naver.com/article/groundPlan.nhn?rletNo=12902&cortarNo=4825010800","동부") -> 동부 | E125: 1996.12 | F125: 402 | G125: 25.97272727 | H125: 85.71 | I125: 22.1030303 | J125: 72.94 | K125: 88 | P125: 0 | Q125: 0 | R125: 0 | S125: 0 | T125: 3 | U125: 1 | V125: 계단식 | W125: 85
A126: [내동] | C126: 3 | D126: =HYPERLINK("https://land.naver.com/article/groundPlan.nhn?rletNo=12902&cortarNo=4825010800","동부") -> 동부 | E126: 1996.12 | F126: 402 | G126: 30.30606061 | H126: 100.01 | I126: 25.73333333 | J126: 84.92 | K126: 180 | P126: 0 | Q126: 0 | R126: 0 | S126: 0 | T126: 3 | U126: 2 | V126: 계단식 | W126: 100
A127: [내동] | C127: 1 | D127: =HYPERLINK("https://land.naver.com/article/groundPlan.nhn?rletNo=6115&cortarNo=4825010800","현대1차") -> 현대1차 | E127: 1995.09 | F127: 402 | G127: 22.78484848 | H127: 75.19 | I127: 18.16666667 | J127: 59.95 | K127: 180 | P127: 0 | Q127: 0 | R127: 0 | S127: 0 | T127: 3 | U127: 1 | V127: 계단식 | W127: 75
A128: [내동] | C128: 2 | D128: =HYPERLINK("https://land.naver.com/article/groundPlan.nhn?rletNo=6115&cortarNo=4825010800","현대1차") -> 현대1차 | E128: 1995.09 | F128: 402 | G128: 32.28787879 | H128: 106.55 | I128: 25.74545455 | J128: 84.96 | K128: 222 | P128: 0 | Q128: 0 | R128: 0 | S128: 0 | T128: 3 | U128: 2 | V128: 계단식 | W128: 106
A129: [내동] | C129: 1 | D129: =HYPERLINK("https://land.naver.com/article/groundPlan.nhn?rletNo=6124&cortarNo=4825010800","현대3차") -> 현대3차 | E129: 1998.04 | F129: 376 | G129: 28.95757576 | H129: 95.56 | I129: 25.45757576 | J129: 84.01 | K129: 1 | P129: 0 | Q129: 0 | R129: 0 | S129: 0 | T129: 3 | U129: 2 | V129: 계단식 | W129: 95A
A130: [내동] | C130: 2 | D130: =HYPERLINK("https://land.naver.com/article/groundPlan.nhn?rletNo=6124&cortarNo=4825010800","현대3차") -> 현대3차 | E130: 1998.04 | F130: 376 | G130: 29.28484848 | H130: 96.64 | I130: 25.74545455 | J130: 84.96 | K130: 166 | P130: 0 | Q130: 0 | R130: 0 | S130: 0 | T130: 3 | U130: 2 | V130: 계단식 | W130: 96B
A131: [내동] | C131: 3 | D131: =HYPERLINK("https://land.naver.com/article/groundPlan.nhn?rletNo=6124&cortarNo=4825010800","현대3차") -> 현대3차 | E131: 1998.04 | F131: 376 | G131: 34.41818182 | H131: 113.58 | I131: 30.25757576 | J131: 99.85 | K131: 89 | P131: 0 | Q131: 0 | R131: 0 | S131: 0 | T131: 3 | U131: 2 | V131: 계단식 | W131: 113A
A132: [내동] | C132: 4 | D132: =HYPERLINK("https://land.naver.com/article/groundPlan.nhn?rletNo=6124&cortarNo=4825010800","현대3차") -> 현대3차 | E132: 1998.04 | F132: 376 | G132: 34.43939394 | H132: 113.65 | I132: 30.27575758 | J132: 99.91 | K132: 60 | P132: 0 | Q132: 0 | R132: 0 | S132: 0 | T132: 4 | U132: 2 | V132: 계단식 | W132: 113B
A133: [내동] | C133: 5 | D133: =HYPERLINK("https://land.naver.com/article/groundPlan.nhn?rletNo=6124&cortarNo=4825010800","현대3차") -> 현대3차 | E133: 1998.04 | F133: 376 | G133: 46.45757576 | H133: 153.31 | I133: 40.84242424 | J133: 134.78 | K133: 60 | P133: 0 | Q133: 0 | R133: 0 | S133: 0 | T133: 4 | U133: 2 | V133: 계단식 | W133: 153
A134: [내동] | C134: 1 | D134: =HYPERLINK("https://land.naver.com/article/groundPlan.nhn?rletNo=6110&cortarNo=4825010800","동아2차") -> 동아2차 | E134: 1998.01 | F134: 324 | G134: 29.7 | H134: 98.01 | I134: 25.75454545 | J134: 84.99 | K134: 150 | P134: 0 | Q134: 0 | R134: 0 | S134: 0 | T134: 3 | U134: 2 | V134: 계단식 | W134: 98
A135: [내동] | C135: 2 | D135: =HYPERLINK("https://land.naver.com/article/groundPlan.nhn?rletNo=6110&cortarNo=4825010800","동아2차") -> 동아2차 | E135: 1998.01 | F135: 324 | G135: 34.26363636 | H135: 113.07 | I135: 30.24848485 | J135: 99.82 | K135: 126 | P135: 0 | Q135: 0 | R135: 0 | S135: 0 | T135: 3 | U135: 2 | V135: 계단식 | W135: 113
A136: [내동] | C136: 3 | D136: =HYPERLINK("https://land.naver.com/article/groundPlan.nhn?rletNo=6110&cortarNo=4825010800","동아2차") -> 동아2차 | E136: 1998.01 | F136: 324 | G136: 45.62727273 | H136: 150.57 | I136: 40.83939394 | J136: 134.77 | K136: 48 | P136: 0 | Q136: 0 | R136: 0 | S136: 0 | T136: 4 | U136: 2 | V136: 계단식 | W136: 150
A137: [대성동] | B137: 127356 | C137: 2 | D137: =HYPERLINK("https://land.naver.com/article/groundPlan.nhn?rletNo=127356&cortarNo=4825010500","동호맨션") -> 동호맨션 | E137: 1989.05 | F137: 40 | G137: 23.52 | H137: 77.75 | I137: 20.99 | J137: 69.39 | K137: 5 | P137: 0 | Q137: 0 | R137: 0 | S137: 0 | T137: 3 | U137: 1 | V137: 계단식 | W137: 77A
A138: [대성동] | B138: 110345 | C138: 1 | D138: =HYPERLINK("https://land.naver.com/article/groundPlan.nhn?rletNo=110345&cortarNo=4825010500","부림") -> 부림 | E138: 1986.01 | F138: 58 | G138: 20.44 | H138: 67.58 | I138: 17.95 | J138: 59.35 | K138: 58 | P138: 0 | Q138: 0 | R138: 0 | S138: 0 | T138: 3 | U138: 1 | V138: 계단식 | W138: 67
A139: [대성동] | B139: 124419 | C139: 1 | D139: =HYPERLINK("https://land.naver.com/article/groundPlan.nhn?rletNo=124419&cortarNo=4825010500","대성") -> 대성 | E139: 1985.04 | F139: 69 | G139: 18.11 | H139: 59.88 | I139: 15.98 | J139: 52.83 | K139: 21 | P139: 0 | Q139: 0 | R139: 0 | S139: 0 | T139: 2 | U139: 1 | V139: 계단식 | W139: 59
A140: [대성동] | B140: 124419 | C140: 2 | D140: =HYPERLINK("https://land.naver.com/article/groundPlan.nhn?rletNo=124419&cortarNo=4825010500","대성") -> 대성 | E140: 1985.04 | F140: 69 | G140: 18.82 | H140: 62.22 | I140: 16.69 | J140: 55.17 | K140: 48 | P140: 0 | Q140: 0 | R140: 0 | S140: 0 | T140: 2 | U140: 1 | V140: 계단식 | W140: 62
A141: [대성동] | B141: 126098 | C141: 1 | D141: =HYPERLINK("https://land.naver.com/article/groundPlan.nhn?rletNo=126098&cortarNo=4825010500","북부") -> 북부 | E141: 1984.02 | F141: 40 | G141: 18.16 | H141: 60.02 | I141: 15.98 | J141: 52.82 | K141: 15 | P141: 0 | Q141: 0 | R141: 0 | S141: 0 | T141: 2 | U141: 1 | V141: 계단식 | W141: 60
A142: [대성동] | B142: 126098 | C142: 2 | D142: =HYPERLINK("https://land.naver.com/article/groundPlan.nhn?rletNo=126098&cortarNo=4825010500","북부") -> 북부 | E142: 1984.02 | F142: 40 | G142: 19.96 | H142: 65.97 | I142: 17.78 | J142: 58.77 | K142: 25 | P142: 0 | Q142: 0 | R142: 0 | S142: 0 | T142: 3 | U142: 1 | V142: 계단식 | W142: 65
A143: [대성동] | B143: 127356 | C143: 1 | D143: =HYPERLINK("https://land.naver.com/article/groundPlan.nhn?rletNo=127356&cortarNo=4825010500","동호맨션") -> 동호맨션 | E143: 1989.05 | F143: 40 | G143: 23.46 | H143: 77.56 | I143: 20.94 | J143: 69.21 | K143: 30 | P143: 0 | Q143: 0 | R143: 0 | S143: 0 | T143: 3 | U143: 1 | V143: 계단식 | W143: 77
A144: [대성동] | B144: 127356 | C144: 3 | D144: =HYPERLINK("https://land.naver.com/article/groundPlan.nhn?rletNo=127356&cortarNo=4825010500","동호맨션") -> 동호맨션 | E144: 1989.05 | F144: 40 | G144: 23.71 | H144: 78.39 | I144: 21.18 | J144: 70.01 | K144: 5 | P144: 0 | Q144: 0 | R144: 0 | S144: 0 | T144: 3 | U144: 1 | V144: 계단식 | W144: 78B
A145: [대성동] | B145: 23241 | C145: 1 | D145: =HYPERLINK("https://land.naver.com/article/groundPlan.nhn?rletNo=23241&cortarNo=4825010500","가람") -> 가람 | E145: 1995.09 | F145: 108 | G145: 12.27 | H145: 40.55 | I145: 8.98 | J145: 29.7 | K145: 22 | P145: 0 | Q145: 0 | R145: 0 | S145: 0 | T145: 3 | U145: 2 | V145: 계단식 | W145: 40
A146: [대성동] | B146: 23241 | C146: 2 | D146: =HYPERLINK("https://land.naver.com/article/groundPlan.nhn?rletNo=23241&cortarNo=4825010500","가람") -> 가람 | E146: 1995.09 | F146: 108 | G146: 23.98 | H146: 79.27 | I146: 18.35 | J146: 60.66 | K146: 11 | P146: 0 | Q146: 0 | R146: 0 | S146: 0 | T146: 3 | U146: 2 | V146: 복합식 | W146: 79
A147: [대성동] | B147: 23241 | C147: 3 | D147: =HYPERLINK("https://land.naver.com/article/groundPlan.nhn?rletNo=23241&cortarNo=4825010500","가람") -> 가람 | E147: 1995.09 | F147: 108 | G147: 28.48 | H147: 94.15 | I147: 21.62 | J147: 71.46 | K147: 45 | P147: 0 | Q147: 0 | R147: 0 | S147: 0 | T147: 3 | U147: 2 | V147: 계단식 | W147: 94 | AX147: =IF(B147="","",_xlfn.NUMBERVALUE(IF(_xlfn.NUMBERVALUE(LEFT(RIGHT(B147,5),2))>70,"19"&LEFT(RIGHT(B147,5),2),"20"&LEFT(RIGHT(B147,5),2)))) -> 2023 | AY147: =IF(B147="","",_xlfn.NUMBERVALUE(RIGHT(B147,2))) -> 41 | BA147: 20평대 | BB147: =BB140/BF143 ->  | BC147: =BC140/BF143 ->  | BD147: =BD140/BF143 ->  | BE147: =BE140/BF143 ->  | BF147: =BF140/BF143 -> 
A148: [대성동] | B148: 23241 | C148: 4 | D148: =HYPERLINK("https://land.naver.com/article/groundPlan.nhn?rletNo=23241&cortarNo=4825010500","가람") -> 가람 | E148: 1995.09 | F148: 108 | G148: 28.66 | H148: 94.76 | I148: 24.95 | J148: 82.47 | K148: 30 | P148: 0 | Q148: 0 | R148: 0 | S148: 0 | T148: 3 | U148: 2 | V148: 계단식 | W148: 94 | AX148: =IF(B148="","",_xlfn.NUMBERVALUE(IF(_xlfn.NUMBERVALUE(LEFT(RIGHT(B148,5),2))>70,"19"&LEFT(RIGHT(B148,5),2),"20"&LEFT(RIGHT(B148,5),2)))) -> 2023 | AY148: =IF(B148="","",_xlfn.NUMBERVALUE(RIGHT(B148,2))) -> 41 | BA148: 30평대 | BB148: =BB141/BF143 ->  | BC148: =BC141/BF143 ->  | BD148: =BD141/BF143 ->  | BE148: =BE141/BF143 ->  | BF148: =BF141/BF143 -> 
A149: [대성동] | B149: 6167 | C149: 1 | D149: =HYPERLINK("https://land.naver.com/article/groundPlan.nhn?rletNo=6167&cortarNo=4825010500","홍익") -> 홍익 | E149: 1990.07 | F149: 134 | G149: 23.03 | H149: 76.14 | I149: 21.09 | J149: 69.72 | K149: 42 | P149: 0 | Q149: 0 | R149: 0 | S149: 0 | T149: 3 | U149: 1 | V149: 계단식 | W149: 76 | AX149: =IF(B149="","",_xlfn.NUMBERVALUE(IF(_xlfn.NUMBERVALUE(LEFT(RIGHT(B149,5),2))>70,"19"&LEFT(RIGHT(B149,5),2),"20"&LEFT(RIGHT(B149,5),2)))) -> 2061 | AY149: =IF(B149="","",_xlfn.NUMBERVALUE(RIGHT(B149,2))) -> 67 | BA149: 40평대↑ | BB149: =BB142/BF143 ->  | BC149: =BC142/BF143 ->  | BD149: =BD142/BF143 ->  | BE149: =BE142/BF143 ->  | BF149: =BF142/BF143 -> 
A150: [대성동] | B150: 6167 | C150: 2 | D150: =HYPERLINK("https://land.naver.com/article/groundPlan.nhn?rletNo=6167&cortarNo=4825010500","홍익") -> 홍익 | E150: 1990.07 | F150: 134 | G150: 23.63 | H150: 78.1 | I150: 21.68 | J150: 71.67 | K150: 30 | P150: 0 | Q150: 0 | R150: 0 | S150: 0 | T150: 3 | U150: 1 | V150: 계단식 | W150: 78
A151: [대성동] | B151: 6167 | C151: 3 | D151: =HYPERLINK("https://land.naver.com/article/groundPlan.nhn?rletNo=6167&cortarNo=4825010500","홍익") -> 홍익 | E151: 1990.07 | F151: 134 | G151: 24.24 | H151: 80.14 | I151: 22.3 | J151: 73.71 | K151: 18 | P151: 0 | Q151: 0 | R151: 0 | S151: 0 | T151: 3 | U151: 1 | V151: 계단식 | W151: 80
A152: [대성동] | B152: 6167 | C152: 4 | D152: =HYPERLINK("https://land.naver.com/article/groundPlan.nhn?rletNo=6167&cortarNo=4825010500","홍익") -> 홍익 | E152: 1990.07 | F152: 134 | G152: 26.5 | H152: 87.61 | I152: 24.21 | J152: 80.03 | K152: 12 | P152: 0 | Q152: 0 | R152: 0 | S152: 0 | T152: 3 | U152: 1 | V152: 복합식 | W152: 87
A153: [대성동] | B153: 6167 | C153: 5 | D153: =HYPERLINK("https://land.naver.com/article/groundPlan.nhn?rletNo=6167&cortarNo=4825010500","홍익") -> 홍익 | E153: 1990.07 | F153: 134 | G153: 27.94 | H153: 92.38 | I153: 24.63 | J153: 81.41 | K153: 32 | P153: 0 | Q153: 0 | R153: 0 | S153: 0 | T153: 3 | U153: 2 | V153: 계단식 | W153: 92
A154: [대청동] | C154: 1 | D154: =HYPERLINK("https://land.naver.com/article/groundPlan.nhn?rletNo=23946&cortarNo=4825012900","갑오마을4단지부영") -> 갑오마을4단지부영 | E154: 2002.07 | F154: 760 | G154: 31.23030303 | H154: 103.06 | I154: 24.46666667 | J154: 80.74 | K154: 760 | P154: 0 | Q154: 0 | R154: 0 | S154: 0 | T154: 3 | U154: 2 | V154: 계단식 | W154: 162
A155: [대청동] | C155: 1 | D155: =HYPERLINK("https://land.naver.com/article/groundPlan.nhn?rletNo=23965&cortarNo=4825012900","갑오마을7단지부영") -> 갑오마을7단지부영 | E155: 2002.09 | F155: 730 | G155: 23.89090909 | H155: 78.84 | I155: 17.90909091 | J155: 59.1 | K155: 730 | P155: 0 | Q155: 0 | R155: 0 | S155: 0 | T155: 3 | U155: 2 | V155: 계단식 | W155: 72B
A156: [대청동] | C156: 1 | D156: =HYPERLINK("https://land.naver.com/article/groundPlan.nhn?rletNo=23947&cortarNo=4825012900","갑오마을6단지부영") -> 갑오마을6단지부영 | E156: 2002.07 | F156: 606 | G156: 31.06363636 | H156: 102.51 | I156: 24.46666667 | J156: 80.74 | K156: 606 | P156: 0 | Q156: 0 | R156: 0 | S156: 0 | T156: 3 | U156: 2 | V156: 계단식 | W156: 72C
A157: [대청동] | C157: 1 | D157: =HYPERLINK("https://land.naver.com/article/groundPlan.nhn?rletNo=100977&cortarNo=4825012900","갑오마을2단지주공") -> 갑오마을2단지주공 | E157: 2002.11 | F157: 495 | G157: 21.83030303 | H157: 72.04 | I157: 15.6030303 | J157: 51.49 | K157: 171 | P157: 0 | Q157: 0 | R157: 0 | S157: 0 | T157: 2 | U157: 1 | V157: 계단식 | W157: 72A
A158: [대청동] | C158: 2 | D158: =HYPERLINK("https://land.naver.com/article/groundPlan.nhn?rletNo=100977&cortarNo=4825012900","갑오마을2단지주공") -> 갑오마을2단지주공 | E158: 2002.11 | F158: 495 | G158: 21.92727273 | H158: 72.36 | I158: 15.67272727 | J158: 51.72 | K158: 76 | P158: 0 | Q158: 0 | R158: 0 | S158: 0 | T158: 2 | U158: 1 | V158: 계단식 | W158: 83
A159: [대청동] | C159: 3 | D159: =HYPERLINK("https://land.naver.com/article/groundPlan.nhn?rletNo=100977&cortarNo=4825012900","갑오마을2단지주공") -> 갑오마을2단지주공 | E159: 2002.11 | F159: 495 | G159: 21.93636364 | H159: 72.39 | I159: 15.67878788 | J159: 51.74 | K159: 108 | P159: 0 | Q159: 0 | R159: 0 | S159: 0 | T159: 2 | U159: 1 | V159: 계단식 | W159: 152
A160: [대청동] | C160: 4 | D160: =HYPERLINK("https://land.naver.com/article/groundPlan.nhn?rletNo=100977&cortarNo=4825012900","갑오마을2단지주공") -> 갑오마을2단지주공 | E160: 2002.11 | F160: 495 | G160: 25.28484848 | H160: 83.44 | I160: 18.07272727 | J160: 59.64 | K160: 140 | P160: 0 | Q160: 0 | R160: 0 | S160: 0 | T160: 3 | U160: 1 | V160: 계단식 | W160: 186
A161: [대청동] | C161: 1 | D161: =HYPERLINK("https://land.naver.com/article/groundPlan.nhn?rletNo=23945&cortarNo=4825012900","갑오마을5단지부영") -> 갑오마을5단지부영 | E161: 2002.08 | F161: 400 | G161: 31.08181818 | H161: 102.57 | I161: 24.46666667 | J161: 80.74 | K161: 400 | P161: 0 | Q161: 0 | R161: 0 | S161: 0 | T161: 3 | U161: 2 | V161: 계단식 | W161: 126
A162: [대청동] | C162: 1 | D162: =HYPERLINK("https://land.naver.com/article/groundPlan.nhn?rletNo=17355&cortarNo=4825012900","갑오마을8단지푸르지오") -> 갑오마을8단지푸르지오 | E162: 2005.01 | F162: 304 | G162: 46.06060606 | H162: 152 | I162: 38.28484848 | J162: 126.34 | K162: 160 | P162: 0 | Q162: 0 | R162: 0 | S162: 0 | T162: 4 | U162: 2 | V162: 계단식 | W162: 140
A163: [대청동] | C163: 2 | D163: =HYPERLINK("https://land.naver.com/article/groundPlan.nhn?rletNo=17355&cortarNo=4825012900","갑오마을8단지푸르지오") -> 갑오마을8단지푸르지오 | E163: 2005.01 | F163: 304 | G163: 56.45757576 | H163: 186.31 | I163: 47.9030303 | J163: 158.08 | K163: 144 | P163: 0 | Q163: 0 | R163: 0 | S163: 0 | T163: 4 | U163: 2 | V163: 계단식 | W163: 102
A164: [대청동] | C164: 1 | D164: =HYPERLINK("https://land.naver.com/article/groundPlan.nhn?rletNo=6389&cortarNo=4825012900","갑오마을3단지대동다숲") -> 갑오마을3단지대동다숲 | E164: 2000.07 | F164: 298 | G164: 49.35151515 | H164: 162.86 | I164: 38.32727273 | J164: 126.48 | K164: 160 | P164: 0 | Q164: 0 | R164: 0 | S164: 0 | T164: 4 | U164: 2 | V164: 계단식 | W164: 103
A165: [대청동] | C165: 2 | D165: =HYPERLINK("https://land.naver.com/article/groundPlan.nhn?rletNo=6389&cortarNo=4825012900","갑오마을3단지대동다숲") -> 갑오마을3단지대동다숲 | E165: 2000.07 | F165: 298 | G165: 37.57575758 | H165: 124 | I165: 32.31212121 | J165: 106.63 | K165: 138 | P165: 0 | Q165: 0 | R165: 0 | S165: 0 | T165: 3 | U165: 2 | V165: 계단식 | W165: 102
A166: [대청동] | C166: 1 | D166: =HYPERLINK("https://land.naver.com/article/groundPlan.nhn?rletNo=13422&cortarNo=4825012900","갑오마을9단지푸르지오") -> 갑오마을9단지푸르지오 | E166: 2005.08 | F166: 298 | G166: 37.45757576 | H166: 123.61 | I166: 30.91212121 | J166: 102.01 | K166: 28 | P166: 0 | Q166: 0 | R166: 0 | S166: 0 | T166: 3 | U166: 2 | V166: 복합식 | W166: 78
A167: [대청동] | C167: 2 | D167: =HYPERLINK("https://land.naver.com/article/groundPlan.nhn?rletNo=13422&cortarNo=4825012900","갑오마을9단지푸르지오") -> 갑오마을9단지푸르지오 | E167: 2005.08 | F167: 298 | G167: 38.52424242 | H167: 127.13 | I167: 30.93636364 | J167: 102.09 | K167: 80 | P167: 0 | Q167: 0 | R167: 0 | S167: 0 | T167: 3 | U167: 2 | V167: 복합식 | W167: 124
A168: [대청동] | C168: 3 | D168: =HYPERLINK("https://land.naver.com/article/groundPlan.nhn?rletNo=13422&cortarNo=4825012900","갑오마을9단지푸르지오") -> 갑오마을9단지푸르지오 | E168: 2005.08 | F168: 298 | G168: 44.61212121 | H168: 147.22 | I168: 36.66969697 | J168: 121.01 | K168: 140 | P168: 0 | Q168: 0 | R168: 0 | S168: 0 | T168: 4 | U168: 2 | V168: 복합식 | W168: 123
A169: [대청동] | C169: 1 | D169: =HYPERLINK("https://land.naver.com/article/groundPlan.nhn?rletNo=17356&cortarNo=4825012900","갑오마을1단지푸르지오") -> 갑오마을1단지푸르지오 | E169: 2005.01 | F169: 236 | G169: 38.40606061 | H169: 126.74 | I169: 30.88484848 | J169: 101.92 | K169: 179 | P169: 0 | Q169: 0 | R169: 0 | S169: 0 | T169: 3 | U169: 2 | V169: 계단식 | W169: 147
A170: [대청동] | C170: 2 | D170: =HYPERLINK("https://land.naver.com/article/groundPlan.nhn?rletNo=17356&cortarNo=4825012900","갑오마을1단지푸르지오") -> 갑오마을1단지푸르지오 | E170: 2005.01 | F170: 236 | G170: 42.51818182 | H170: 140.31 | I170: 35.20606061 | J170: 116.18 | K170: 57 | P170: 0 | Q170: 0 | R170: 0 | S170: 0 | T170: 4 | U170: 2 | V170: 계단식 | W170: 160
A171: [동상동] | C171: 1 | D171: =HYPERLINK("https://land.naver.com/article/groundPlan.nhn?rletNo=17611&cortarNo=4825010100","롯데캐슬가야1단지") -> 롯데캐슬가야1단지 | E171: 2005.12 | F171: 482 | G171: 32.8030303 | H171: 108.25 | I171: 25.75151515 | J171: 84.98 | K171: 81 | P171: 0 | Q171: 0 | R171: 0 | S171: 0 | T171: 3 | U171: 2 | V171: 계단식 | W171: 108A
A172: [동상동] | C172: 2 | D172: 롯데캐슬가야1단지 | E172: 2005.12 | F172: 482 | G172: 32.8030303 | H172: 108.25 | I172: 25.75151515 | J172: 84.98 | K172: 27 | P172: 0 | Q172: 0 | R172: 0 | S172: 0 | T172: 3 | U172: 2 | V172: 계단식 | W172: 108B
A173: [동상동] | C173: 3 | D173: 롯데캐슬가야1단지 | E173: 2005.12 | F173: 482 | G173: 38.97878788 | H173: 128.63 | I173: 30.8030303 | J173: 101.65 | K173: 44 | P173: 0 | Q173: 0 | R173: 0 | S173: 0 | T173: 3 | U173: 2 | V173: 계단식 | W173: 128
A174: [동상동] | C174: 4 | D174: 롯데캐슬가야1단지 | E174: 2005.12 | F174: 482 | G174: 49.91515152 | H174: 164.72 | I174: 40.73636364 | J174: 134.43 | K174: 154 | P174: 0 | Q174: 0 | R174: 0 | S174: 0 | T174: 4 | U174: 2 | V174: 계단식 | W174: 164A
A175: [동상동] | C175: 5 | D175: 롯데캐슬가야1단지 | E175: 2005.12 | F175: 482 | G175: 49.91515152 | H175: 164.72 | I175: 40.73636364 | J175: 134.43 | K175: 22 | P175: 0 | Q175: 0 | R175: 0 | S175: 0 | T175: 4 | U175: 2 | V175: 계단식 | W175: 164B
A176: [동상동] | C176: 6 | D176: 롯데캐슬가야1단지 | E176: 2005.12 | F176: 482 | G176: 55.74545455 | H176: 183.96 | I176: 46.35454545 | J176: 152.97 | K176: 154 | P176: 0 | Q176: 0 | R176: 0 | S176: 0 | T176: 4 | U176: 2 | V176: 계단식 | W176: 183
A177: [동상동] | C177: 1 | D177: =HYPERLINK("https://land.naver.com/article/groundPlan.nhn?rletNo=6177&cortarNo=4825010100","한덕타워") -> 한덕타워 | E177: 1994.12 | F177: 298 | G177: 16.67575758 | H177: 55.03 | I177: 13.49090909 | J177: 44.52 | K177: 25 | P177: 0 | Q177: 0 | R177: 0 | S177: 0 | T177: 3 | U177: 1 | V177: 계단식 | W177: 55 | AX177: =IF(B177="","",_xlfn.NUMBERVALUE(IF(_xlfn.NUMBERVALUE(LEFT(RIGHT(B177,5),2))>70,"19"&LEFT(RIGHT(B177,5),2),"20"&LEFT(RIGHT(B177,5),2)))) ->  | AY177: =IF(B177="","",_xlfn.NUMBERVALUE(RIGHT(B177,2))) ->  | BB177: 10년 이하 | BC177: 10~20년 | BD177: 20~30년 | BE177: 30년 이상 | BF177: 합계
A178: [동상동] | C178: 2 | D178: 한덕타워 | E178: 1994.12 | F178: 298 | G178: =H178/3.3 -> 22.6030303 | H178: 74.59 | I178: =J178/3.3 -> 18.1 | J178: 59.73 | K178: 104 | P178: 0 | Q178: 0 | R178: 0 | S178: 0 | T178: 3 | U178: 1 | V178: 계단식 | W178: 74 | AX178: =IF(B178="","",_xlfn.NUMBERVALUE(IF(_xlfn.NUMBERVALUE(LEFT(RIGHT(B178,5),2))>70,"19"&LEFT(RIGHT(B178,5),2),"20"&LEFT(RIGHT(B178,5),2)))) ->  | AY178: =IF(B178="","",_xlfn.NUMBERVALUE(RIGHT(B178,2))) ->  | BA178: 10평대 | BB178: =BB172/BF176 ->  | BC178: =BC172/BF176 ->  | BD178: =BD172/BF176 ->  | BE178: =BE172/BF176 ->  | BF178: =BF172/BF176 -> 
A179: [동상동] | C179: 3 | D179: 한덕타워 | E179: 1994.12 | F179: 298 | G179: 23.95757576 | H179: 79.06 | I179: 19.38181818 | J179: 63.96 | K179: 17 | P179: 0 | Q179: 0 | R179: 0 | S179: 0 | T179: 3 | U179: 1 | V179: 계단식 | W179: 79
A180: [동상동] | C180: 4 | D180: 한덕타워 | E180: 1994.12 | F180: 298 | G180: 29.56060606 | H180: 97.55 | I180: 24.92727273 | J180: 82.26 | K180: 2 | P180: 0 | Q180: 0 | R180: 0 | S180: 0 | T180: 3 | U180: 2 | V180: 계단식 | W180: 97A
A181: [동상동] | C181: 5 | D181: 한덕타워 | E181: 1994.12 | F181: 298 | G181: 30.42727273 | H181: 100.41 | I181: 25.66363636 | J181: 84.69 | K181: 50 | P181: 0 | Q181: 0 | R181: 0 | S181: 0 | T181: 3 | U181: 2 | V181: 계단식 | W181: 100B
A182: [동상동] | C182: 6 | D182: 한덕타워 | E182: 1994.12 | F182: 298 | G182: 30.46363636 | H182: 100.53 | I182: 25.75454545 | J182: 84.99 | K182: 68 | P182: 0 | Q182: 0 | R182: 0 | S182: 0 | T182: 3 | U182: 2 | V182: 계단식 | W182: 100C
A183: [동상동] | C183: 7 | D183: 한덕타워 | E183: 1994.12 | F183: 298 | G183: 34.95454545 | H183: 115.35 | I183: 25.75454545 | J183: 84.99 | K183: 7 | P183: 0 | Q183: 0 | R183: 0 | S183: 0 | T183: 3 | U183: 2 | V183: 계단식 | W183: 115
A184: [동상동] | C184: 8 | D184: 한덕타워 | E184: 1994.12 | F184: 298 | G184: 42.83333333 | H184: 141.35 | I184: 37.32727273 | J184: 123.18 | K184: 25 | P184: 0 | Q184: 0 | R184: 0 | S184: 0 | T184: 4 | U184: 2 | V184: 계단식 | W184: 141
A185: [동상동] | C185: 1 | D185: =HYPERLINK("https://land.naver.com/article/groundPlan.nhn?rletNo=17614&cortarNo=4825010100","롯데캐슬가야2단지") -> 롯데캐슬가야2단지 | E185: 2005.12 | F185: 214 | G185: 32.8030303 | H185: 108.25 | I185: 25.75151515 | J185: 84.98 | K185: 120 | P185: 0 | Q185: 0 | R185: 0 | S185: 0 | T185: 3 | U185: 2 | V185: 계단식 | W185: 108
A186: [동상동] | C186: 2 | D186: =HYPERLINK("https://land.naver.com/article/groundPlan.nhn?rletNo=17614&cortarNo=4825010100","롯데캐슬가야2단지") -> 롯데캐슬가야2단지 | E186: 2005.12 | F186: 214 | G186: 38.9969697 | H186: 128.69 | I186: 30.8030303 | J186: 101.65 | K186: 20 | P186: 0 | Q186: 0 | R186: 0 | S186: 0 | T186: 3 | U186: 2 | V186: 계단식 | W186: 128
A187: [동상동] | C187: 3 | D187: =HYPERLINK("https://land.naver.com/article/groundPlan.nhn?rletNo=17614&cortarNo=4825010100","롯데캐슬가야2단지") -> 롯데캐슬가야2단지 | E187: 2005.12 | F187: 214 | G187: 49.93333333 | H187: 164.78 | I187: 40.73636364 | J187: 134.43 | K187: 20 | P187: 0 | Q187: 0 | R187: 0 | S187: 0 | T187: 4 | U187: 2 | V187: 계단식 | W187: 164
A188: [동상동] | C188: 4 | D188: =HYPERLINK("https://land.naver.com/article/groundPlan.nhn?rletNo=17614&cortarNo=4825010100","롯데캐슬가야2단지") -> 롯데캐슬가야2단지 | E188: 2005.12 | F188: 214 | G188: 55.78787879 | H188: 184.1 | I188: 46.35454545 | J188: 152.97 | K188: 54 | P188: 0 | Q188: 0 | R188: 0 | S188: 0 | T188: 4 | U188: 2 | V188: 계단식 | W188: 184
A189: [동상동] | C189: 1 | D189: =HYPERLINK("https://land.naver.com/article/groundPlan.nhn?rletNo=114963&cortarNo=4825010100","동상베스티움") -> 동상베스티움 | E189: 2017.05 | F189: 203 | G189: 24.3030303 | H189: 80.2 | I189: 17.98787879 | J189: 59.36 | K189: 80 | P189: 0 | Q189: 0 | R189: 0 | S189: 0 | T189: 3 | U189: 2 | V189: 계단식 | W189: 80B
A190: [동상동] | C190: 2 | D190: =HYPERLINK("https://land.naver.com/article/groundPlan.nhn?rletNo=114963&cortarNo=4825010100","동상베스티움") -> 동상베스티움 | E190: 2017.05 | F190: 203 | G190: 24.48787879 | H190: 80.81 | I190: 18.17878788 | J190: 59.99 | K190: 9 | P190: 0 | Q190: 0 | R190: 0 | S190: 0 | T190: 3 | U190: 2 | V190: 계단식 | W190: 80C
A191: [동상동] | C191: 3 | D191: =HYPERLINK("https://land.naver.com/article/groundPlan.nhn?rletNo=114963&cortarNo=4825010100","동상베스티움") -> 동상베스티움 | E191: 2017.05 | F191: 203 | G191: 24.6030303 | H191: 81.19 | I191: 18.15454545 | J191: 59.91 | K191: 92 | P191: 0 | Q191: 0 | R191: 0 | S191: 0 | T191: 3 | U191: 2 | V191: 계단식 | W191: 81A
A192: [동상동] | C192: 4 | D192: =HYPERLINK("https://land.naver.com/article/groundPlan.nhn?rletNo=114963&cortarNo=4825010100","동상베스티움") -> 동상베스티움 | E192: 2017.05 | F192: 203 | G192: 28.46969697 | H192: 93.95 | I192: 21.24848485 | J192: 70.12 | K192: 11 | P192: 0 | Q192: 0 | R192: 0 | S192: 0 | T192: 3 | U192: 2 | V192: 계단식 | W192: 93A
A193: [동상동] | C193: 5 | D193: =HYPERLINK("https://land.naver.com/article/groundPlan.nhn?rletNo=114963&cortarNo=4825010100","동상베스티움") -> 동상베스티움 | E193: 2017.05 | F193: 203 | G193: 28.53333333 | H193: 94.16 | I193: =J193/3.3 -> 21.2969697 | J193: 70.28 | K193: 11 | P193: 0 | Q193: 0 | R193: 0 | S193: 0 | T193: 3 | U193: 2 | V193: 계단식 | W193: 94B
A194: [동상동] | C194: 1 | D194: =HYPERLINK("https://land.naver.com/article/groundPlan.nhn?rletNo=113127&cortarNo=4825010100","김해캐슬아리스타궁") -> 김해캐슬아리스타궁 | E194: 2017.12 | F194: 184 | G194: 27.94545455 | H194: 92.22 | I194: 21.31212121 | J194: 70.33 | K194: 2 | P194: 0 | Q194: 0 | R194: 0 | S194: 0 | T194: 3 | U194: 2 | V194: 계단식 | W194: 92F
A195: [동상동] | C195: 2 | D195: 김해캐슬아리스타궁 | E195: 2017.12 | F195: 184 | G195: 31.97575758 | H195: 105.52 | I195: 24.34545455 | J195: 80.34 | K195: 2 | P195: 0 | Q195: 0 | R195: 0 | S195: 0 | T195: 3 | U195: 2 | V195: 계단식 | W195: 105C-1
A196: [동상동] | C196: 3 | D196: 김해캐슬아리스타궁 | E196: 2017.12 | F196: 184 | G196: 32.18181818 | H196: 106.2 | I196: 24.21818182 | J196: 79.92 | K196: 34 | P196: 0 | Q196: 0 | R196: 0 | S196: 0 | T196: 3 | U196: 2 | V196: 계단식 | W196: 106D
A197: [동상동] | C197: 4 | D197: 김해캐슬아리스타궁 | E197: 2017.12 | F197: 184 | G197: 33.55454545 | H197: 110.73 | I197: 25.61212121 | J197: 84.52 | K197: 38 | P197: 0 | Q197: 0 | R197: 0 | S197: 0 | T197: 3 | U197: 2 | V197: 계단식 | W197: 110A
A198: [동상동] | C198: 5 | D198: 김해캐슬아리스타궁 | E198: 2017.12 | F198: 184 | G198: 33.66363636 | H198: 111.09 | I198: 25.66666667 | J198: 84.7 | K198: 32 | P198: 0 | Q198: 0 | R198: 0 | S198: 0 | T198: 3 | U198: 2 | V198: 계단식 | W198: 111C
A199: [동상동] | C199: 6 | D199: 김해캐슬아리스타궁 | E199: 2017.12 | F199: 184 | G199: 33.96060606 | H199: 112.07 | I199: 25.72727273 | J199: 84.9 | K199: 72 | P199: 0 | Q199: 0 | R199: 0 | S199: 0 | T199: 3 | U199: 2 | V199: 계단식 | W199: 112B
A200: [동상동] | C200: 7 | D200: 김해캐슬아리스타궁 | E200: 2017.12 | F200: 184 | G200: 39.57878788 | H200: 130.61 | I200: 30.3969697 | J200: 100.31 | K200: 2 | P200: 0 | Q200: 0 | R200: 0 | S200: 0 | T200: 4 | U200: 2 | V200: 계단식 | W200: 130G
... 503 more rows

Sheet 옥계동
A1: =단지추출!A1 -> 구미시 | I1: 추출대상 | X1: 매매가 최대(색상 최대) | AA1: =단지추출!AA1 -> 70000 | AH1: =A1 -> 구미시 | AJ1: =A1&" 전체 등급" -> 구미시 전체 등급 | AO1: =단지추출!AO1 -> 80 | AP1: =단지추출!AP1 -> 45000 | AQ1: =단지추출!AQ1 -> 1000 | AR1: =단지추출!AR1 -> 6000 | AU1: =단지추출!AU1 -> 300
A2: =단지추출!A2 -> 2022-01-01 | X2: 매매가 최소(색상 최소) | AA2: =단지추출!AA2 -> 10000 | AH2: =AH1 &" " &A4 -> 구미시 옥계동 | AJ2: =단지추출!AJ2 -> A- | AK2: =단지추출!AK2 -> A | AL2: =단지추출!AL2 -> A | AM2: =단지추출!AM2 -> A | AN2: =단지추출!AN2 -> C | AO2: 원금보전 | AR2: 수익성 | AT2: 환금성
A3: 단지명 | B3: 입주 연도 | C3: 총세 대수 | D3: 공급 (m2) | E3: 공급 면적 | F3: 전용 (m2) | G3: 전용 면적 | H3: 세대 | I3: 매매 최저가 | J3: 층 | K3: 전세 최고가 | L3: 층 | M3: 매전갭 | N3: 전세 가율 | O3: 매매 평단 | P3: 전세 평단 | Q3: 방 | R3: 욕 실 | S3: 구 조 | T3: 매/전/월 Type | U3: 비고 | W3: 공급 (m2) | X3: 공급 면적 | Y3: 세대 | Z3: 매매가 | AA3: 전세가 | AB3: 매전갭 | AC3: 전세 가율 | AD3: 평단가 | AE3: 구 조 | AF3: 방/ 욕실 | AH3: =IF(A3="","",A3) -> 단지명 | AI3: =IF(E3="","",E3) -> 공급 면적 | AJ3: 직장 | AK3: 교통 | AL3: 학군 | AM3: 환경 | AN3: 공급 | AO3: ="전세가율★ ("&AO1&"%↑)" -> 전세가율★ (80%↑) | AP3: ="절대가★ ("&AP1/10000&"억↓)" -> 절대가★ (4.5억↓) | AQ3: ="지역평단가 ("&AQ1&"↓)" -> 지역평단가 (1000↓) | AR3: ="투자규모★ (갭"&AR1/1000&"천↓)" -> 투자규모★ (갭6천↓) | AS3: 전고점 이하 | AT3: 평형★ (15~34평) | AU3: ="단지규모★ ("&AU1&"^↑)" -> 단지규모★ (300^↑) | AV3: 투자후보
A4: 옥계동
W5: =$A$4&" "&A6&"("&B6&","&C6&"^)" -> 옥계동 대동한마음타운('95.05,690^) | AH5: =IF(A5="","",A5) -> 
A6: 대동한마음타운 | B6: '95.05 | C6: 690 | D6: 83.7 | E6: 25 | F6: 59.63 | G6: 18 | H6: 420 | I6: 7200 | J6: 6 | K6: 7000 | L6: 1 | M6: =I6-K6 -> 200 | N6: =IF(ISERROR(K6/I6),"",K6/I6) -> 0.9722222222 | O6: =I6/E6 -> 288 | P6: =K6/E6 -> 280 | Q6: 3 | R6: 1 | S6: 계 | T6: 83A | W6: =D6 -> 83.7 | X6: 25 | Y6: =H6 -> 420 | Z6: 7200 | AA6: =K6 -> 7000 | AB6: =M6 -> 200 | AC6: 0.9722222222 | AD6: 288 | AE6: =S6 -> 계 | AF6: =Q6&"/"&R6 -> 3/1 | AH6: 대동한마음타운 | AI6: 25 | AJ6: =IF(AI6="","",$AJ$2) -> A- | AK6: A | AL6: A+ | AM6: B+ | AN6: =IF(AI6="","",$AN$2) -> C | AO6: =IF(N6="","",IF(N6>=$AO$1/100,"O","X")) -> O | AP6: =IF(I6="","",IF(I6<=$AP$1,"O","X")) -> O | AQ6: =IF(O6="","",IF(O6<=$AQ$1,"O","X")) -> O | AR6: =IF(M6="","",IF(M6<=$AR$1,"O","X")) -> O | AS6: X | AT6: =IF(OR(F6="",AI6=""),"",IF(AND((F6<=85),(AI6>=15)),"O","X")) -> O | AU6: =IF(C6="","",IF(C6>=$AU$1,"O","X")) -> O | AV6: =IF(AO6="","",IF(AND(AO6="O",AP6="O",AR6="O",AT6="O",AU6="O"),"후보","X")) -> 후보
A7: 대동한마음타운 | B7: '95.05 | C7: 690 | D7: 83.94 | E7: 25 | F7: 59.6 | G7: 18 | H7: 270 | I7: 7200 | J7: 6 | K7: 7000 | L7: 1 | M7: =I7-K7 -> 200 | N7: =IF(ISERROR(K7/I7),"",K7/I7) -> 0.9722222222 | O7: =I7/E7 -> 288 | P7: =K7/E7 -> 280 | Q7: 3 | R7: 1 | S7: 계 | T7: 83B | W7: 83.94 | X7: 25 | Y7: 270 | Z7: 7200 | AA7: =K7 -> 7000 | AB7: 200 | AC7: 0.9722222222 | AD7: 288 | AE7: =S7 -> 계 | AF7: =Q7&"/"&R7 -> 3/1 | AH7: 대동한마음타운 | AI7: 25 | AJ7: =IF(AI7="","",$AJ$2) -> A- | AK7: A | AL7: A+ | AM7: B+ | AN7: =IF(AI7="","",$AN$2) -> C | AO7: =IF(N7="","",IF(N7>=$AO$1/100,"O","X")) -> O | AP7: =IF(I7="","",IF(I7<=$AP$1,"O","X")) -> O | AQ7: =IF(O7="","",IF(O7<=$AQ$1,"O","X")) -> O | AR7: =IF(M7="","",IF(M7<=$AR$1,"O","X")) -> O | AS7: X | AT7: =IF(OR(F7="",AI7=""),"",IF(AND((F7<=85),(AI7>=15)),"O","X")) -> O | AU7: =IF(C7="","",IF(C7>=$AU$1,"O","X")) -> O | AV7: =IF(AO7="","",IF(AND(AO7="O",AP7="O",AR7="O",AT7="O",AU7="O"),"후보","X")) -> 후보
W8: =$A$4&" "&A9&"("&B9&","&C9&"^)" -> 옥계동 동우대백('94.06,730^)
A9: 동우대백 | B9: '94.06 | C9: 730 | D9: 79.34 | E9: 24 | F9: 59.85 | G9: 18.1 | H9: 730 | I9: 6500 | J9: 4 | K9: 6500 | L9: 3 | M9: =I9-K9 -> 0 | N9: =IF(ISERROR(K9/I9),"",K9/I9) -> 1 | O9: =I9/E9 -> 270.8333333 | P9: =K9/E9 -> 270.8333333 | Q9: 2 | R9: 1 | S9: 복 | T9: 76 | U9: 복도식 | W9: =D9 -> 79.34 | X9: =E9 -> 24 | Y9: =H9 -> 730 | Z9: =I9 -> 6500 | AA9: =K9 -> 6500 | AB9: =M9 -> 0 | AC9: =N9 -> 1 | AD9: =O9 -> 270.8333333 | AE9: =S9 -> 복 | AF9: =Q9&"/"&R9 -> 2/1 | AH9: 동우대백 | AI9: 24 | AJ9: =IF(AI9="","",$AJ$2) -> A- | AK9: A | AL9: A+ | AM9: B+ | AN9: =IF(AI9="","",$AN$2) -> C | AO9: =IF(N9="","",IF(N9>=$AO$1/100,"O","X")) -> O | AP9: =IF(I9="","",IF(I9<=$AP$1,"O","X")) -> O | AQ9: =IF(O9="","",IF(O9<=$AQ$1,"O","X")) -> O | AR9: =IF(M9="","",IF(M9<=$AR$1,"O","X")) -> O | AS9: X | AT9: =IF(OR(F9="",AI9=""),"",IF(AND((F9<=85),(AI9>=15)),"O","X")) -> O | AU9: =IF(C9="","",IF(C9>=$AU$1,"O","X")) -> O | AV9: =IF(AO9="","",IF(AND(AO9="O",AP9="O",AR9="O",AT9="O",AU9="O"),"후보","X")) -> 후보
W10: =$A$4&" "&A11&"("&B11&","&C11&"^)" -> 옥계동 에덴('96.09,1050^)
A11: 에덴 | B11: '96.09 | C11: 1050 | D11: 72.14 | E11: 21.82 | F11: 60 | G11: 18.15 | H11: 1050 | I11: 10500 | J11: 6 | K11: 9500 | L11: 15 | M11: =I11-K11 -> 1000 | N11: =IF(ISERROR(K11/I11),"",K11/I11) -> 0.9047619048 | O11: =I11/E11 -> 481.2098992 | P11: =K11/E11 -> 435.380385 | Q11: 3 | R11: 2 | S11: 계 | T11: 105 | W11: =D11 -> 72.14 | X11: =E11 -> 21.82 | Y11: =H11 -> 1050 | Z11: =I11 -> 10500 | AA11: =K11 -> 9500 | AB11: =M11 -> 1000 | AC11: =N11 -> 0.9047619048 | AD11: =O11 -> 481.2098992 | AE11: =S11 -> 계 | AF11: =Q11&"/"&R11 -> 3/2 | AH11: 에덴 | AI11: 21.82 | AJ11: =IF(AI11="","",$AJ$2) -> A- | AK11: A | AL11: A+ | AM11: B+ | AN11: =IF(AI11="","",$AN$2) -> C | AO11: =IF(N11="","",IF(N11>=$AO$1/100,"O","X")) -> O | AP11: =IF(I11="","",IF(I11<=$AP$1,"O","X")) -> O | AQ11: =IF(O11="","",IF(O11<=$AQ$1,"O","X")) -> O | AR11: =IF(M11="","",IF(M11<=$AR$1,"O","X")) -> O | AS11: X | AT11: =IF(OR(F11="",AI11=""),"",IF(AND((F11<=85),(AI11>=15)),"O","X")) -> O | AU11: =IF(C11="","",IF(C11>=$AU$1,"O","X")) -> O | AV11: =IF(AO11="","",IF(AND(AO11="O",AP11="O",AR11="O",AT11="O",AU11="O"),"후보","X")) -> 후보
W12: =$A$4&" "&A13&"("&B13&","&C13&"^)" -> 옥계동 옥계동화타운('98.12,570^)
A13: 옥계동화타운 | B13: '98.12 | C13: 570 | D13: 76.64 | E13: 23 | F13: 59.64 | G13: 18.13 | H13: 370 | I13: 10500 | J13: 6 | K13: 11000 | L13: 9 | M13: =I13-K13 -> -500 | N13: =IF(ISERROR(K13/I13),"",K13/I13) -> 1.047619048 | O13: =I13/E13 -> 456.5217391 | P13: =K13/E13 -> 478.2608696 | Q13: 3 | R13: 2 | S13: 계 | T13: 92A | W13: =D13 -> 76.64 | X13: =E13 -> 23 | Y13: =H13 -> 370 | Z13: =I13 -> 10500 | AA13: =K13 -> 11000 | AB13: =M13 -> -500 | AC13: =N13 -> 1.047619048 | AD13: =O13 -> 456.5217391 | AE13: =S13 -> 계 | AF13: =Q13&"/"&R13 -> 3/2 | AH13: 옥계동화타운 | AI13: 23 | AJ13: =IF(AI13="","",$AJ$2) -> A- | AK13: A | AL13: A+ | AM13: B+ | AN13: =IF(AI13="","",$AN$2) -> C | AO13: =IF(N13="","",IF(N13>=$AO$1/100,"O","X")) -> O | AP13: =IF(I13="","",IF(I13<=$AP$1,"O","X")) -> O | AQ13: =IF(O13="","",IF(O13<=$AQ$1,"O","X")) -> O | AR13: =IF(M13="","",IF(M13<=$AR$1,"O","X")) -> O | AS13: X | AT13: =IF(OR(F13="",AI13=""),"",IF(AND((F13<=85),(AI13>=15)),"O","X")) -> O | AU13: =IF(C13="","",IF(C13>=$AU$1,"O","X")) -> O | AV13: =IF(AO13="","",IF(AND(AO13="O",AP13="O",AR13="O",AT13="O",AU13="O"),"후보","X")) -> 후보
A14: 옥계동화타운 | B14: '98.12 | C14: 570 | D14: 76.04 | E14: 23 | F14: 59.74 | G14: 18.07 | H14: 140 | I14: 11000 | J14: 9 | K14: 11000 | L14: 3 | M14: =I14-K14 -> 0 | N14: =IF(ISERROR(K14/I14),"",K14/I14) -> 1 | W14: =$A$4&" "&A15&"("&B15&","&C15&"^)" -> 옥계동 옥계동화타운('98.12,570^) | AH14: 옥계동화타운 | AI14: 23
A15: 옥계동화타운 | B15: '98.12 | C15: 570 | D15: 104.21 | E15: 31 | F15: 84.8 | G15: 25.66 | H15: 60 | I15: 19000 | J15: 10 | K15: 17600 | L15: 13 | M15: =I15-K15 -> 1400 | N15: =IF(ISERROR(K15/I15),"",K15/I15) -> 0.9263157895 | O15: =I15/E15 -> 612.9032258 | P15: =K15/E15 -> 567.7419355 | Q15: 3 | R15: 2 | S15: 계 | T15: 111B | W15: =D15 -> 104.21 | X15: =E15 -> 31 | Y15: =H15 -> 60 | Z15: =I15 -> 19000 | AA15: =K15 -> 17600 | AB15: =M15 -> 1400 | AC15: =N15 -> 0.9263157895 | AD15: =O15 -> 612.9032258 | AE15: =S15 -> 계 | AF15: =Q15&"/"&R15 -> 3/2 | AH15: 옥계동화타운 | AI15: 31 | AJ15: =IF(AI15="","",$AJ$2) -> A- | AK15: A | AL15: A+ | AM15: B+ | AN15: =IF(AI15="","",$AN$2) -> C | AO15: =IF(N15="","",IF(N15>=$AO$1/100,"O","X")) -> O | AP15: =IF(I15="","",IF(I15<=$AP$1,"O","X")) -> O | AQ15: =IF(O15="","",IF(O15<=$AQ$1,"O","X")) -> O | AR15: =IF(M15="","",IF(M15<=$AR$1,"O","X")) -> O | AS15: X | AT15: =IF(OR(F15="",AI15=""),"",IF(AND((F15<=85),(AI15>=15)),"O","X")) -> O | AU15: =IF(C15="","",IF(C15>=$AU$1,"O","X")) -> O | AV15: =IF(AO15="","",IF(AND(AO15="O",AP15="O",AR15="O",AT15="O",AU15="O"),"후보","X")) -> 후보
W16: =$A$4&" "&A17&"("&B17&","&C17&"^)" -> 옥계동 옥계부영1차('99.05,896^)
A17: 옥계부영1차 | B17: '99.05 | C17: 896 | D17: 67.7 | E17: 20.48 | F17: 49.14 | G17: 14.86 | H17: 129 | I17: 8000 | J17: 14 | K17: 7500 | L17: 5 | M17: =I17-K17 -> 500 | N17: =IF(ISERROR(K17/I17),"",K17/I17) -> 0.9375 | O17: =I17/E17 -> 390.625 | P17: =K17/E17 -> 366.2109375 | Q17: 4 | R17: 2 | S17: 복 | T17: 111D | U17: 복도식,임대162 포함 | W17: =D17 -> 67.7 | X17: =E17 -> 20.48 | Y17: =H17 -> 129 | Z17: =I17 -> 8000 | AA17: =K17 -> 7500 | AB17: =M17 -> 500 | AC17: 0.9375 | AD17: 390.625 | AE17: =S17 -> 복 | AF17: =Q17&"/"&R17 -> 4/2 | AH17: 옥계부영1차 | AI17: 20.48 | AJ17: =IF(AI17="","",$AJ$2) -> A- | AK17: A | AL17: A+ | AM17: B+ | AN17: =IF(AI17="","",$AN$2) -> C | AO17: =IF(N17="","",IF(N17>=$AO$1/100,"O","X")) -> O | AP17: =IF(I17="","",IF(I17<=$AP$1,"O","X")) -> O | AQ17: =IF(O17="","",IF(O17<=$AQ$1,"O","X")) -> O | AR17: =IF(M17="","",IF(M17<=$AR$1,"O","X")) -> O | AS17: X | AT17: =IF(OR(F17="",AI17=""),"",IF(AND((F17<=85),(AI17>=15)),"O","X")) -> O | AU17: =IF(C17="","",IF(C17>=$AU$1,"O","X")) -> O | AV17: =IF(AO17="","",IF(AND(AO17="O",AP17="O",AR17="O",AT17="O",AU17="O"),"후보","X")) -> 후보
A18: 옥계부영1차 | B18: '99.05 | C18: 896 | D18: 105.34 | E18: 31.86 | F18: 85.35 | G18: 25.81 | H18: 263 | M18: =I18-K18 -> 0 | N18: =IF(ISERROR(K18/I18),"",K18/I18) ->  | O18: =I18/E18 -> 0 | P18: =K18/E18 -> 0 | Q18: 4 | R18: 2 | S18: 계 | T18: 111C | U18: 임대162포함 | W18: =D18 -> 105.34 | X18: =E18 -> 31.86 | Y18: =H18 -> 263 | Z18: =I18 -> 0 | AA18: =K18 -> 0 | AB18: 0 | AD18: 0 | AE18: =S18 -> 계 | AF18: =Q18&"/"&R18 -> 4/2 | AH18: 옥계부영1차 | AI18: 31.86 | AJ18: =IF(AI18="","",$AJ$2) -> A- | AK18: A | AL18: A+ | AM18: B+ | AN18: =IF(AI18="","",$AN$2) -> C | AO18: =IF(N18="","",IF(N18>=$AO$1/100,"O","X")) ->  | AP18: =IF(I18="","",IF(I18<=$AP$1,"O","X")) ->  | AQ18: =IF(O18="","",IF(O18<=$AQ$1,"O","X")) -> O | AR18: =IF(M18="","",IF(M18<=$AR$1,"O","X")) -> O | AS18: X | AT18: =IF(OR(F18="",AI18=""),"",IF(AND((F18<=85),(AI18>=15)),"O","X")) -> X | AU18: =IF(C18="","",IF(C18>=$AU$1,"O","X")) -> O | AV18: =IF(AO18="","",IF(AND(AO18="O",AP18="O",AR18="O",AT18="O",AU18="O"),"후보","X")) -> 
W19: =$A$4&" "&A20&"("&B20&","&C20&"^)" -> 옥계동 옥계부영2차('99.05,723^)
A20: 옥계부영2차 | B20: '99.05 | C20: 723 | D20: 68.56 | E20: 20.07 | F20: 49.14 | G20: 14.86 | H20: 461 | M20: =I20-K20 -> 0 | N20: =IF(ISERROR(K20/I20),"",K20/I20) ->  | O20: =I20/E20 -> 0 | P20: =K20/E20 -> 0 | Q20: 3 | R20: 2 | S20: 계 | T20: 80B | W20: =D20 -> 68.56 | X20: 20.07 | Y20: =H20 -> 461 | Z20: 0 | AA20: =K20 -> 0 | AB20: =M20 -> 0 | AD20: 0 | AE20: =S20 -> 계 | AF20: =Q20&"/"&R20 -> 3/2 | AH20: 옥계부영2차 | AI20: 20.07 | AJ20: =IF(AI20="","",$AJ$2) -> A- | AK20: A | AL20: A+ | AM20: B+ | AN20: =IF(AI20="","",$AN$2) -> C | AO20: =IF(N20="","",IF(N20>=$AO$1/100,"O","X")) ->  | AP20: =IF(I20="","",IF(I20<=$AP$1,"O","X")) ->  | AQ20: =IF(O20="","",IF(O20<=$AQ$1,"O","X")) -> O | AR20: =IF(M20="","",IF(M20<=$AR$1,"O","X")) -> O | AS20: X | AT20: =IF(OR(F20="",AI20=""),"",IF(AND((F20<=85),(AI20>=15)),"O","X")) -> O | AU20: =IF(C20="","",IF(C20>=$AU$1,"O","X")) -> O | AV20: =IF(AO20="","",IF(AND(AO20="O",AP20="O",AR20="O",AT20="O",AU20="O"),"후보","X")) -> 
A21: 옥계부영2차 | B21: '99.05 | C21: 723 | D21: 105.99 | E21: 32.06 | F21: 85.35 | G21: 25.81 | H21: 100 | M21: =I21-K21 -> 0 | N21: =IF(ISERROR(K21/I21),"",K21/I21) ->  | O21: =I21/E21 -> 0 | P21: =K21/E21 -> 0 | Q21: 3 | R21: 2 | S21: 계 | T21: 81A | W21: 105.99 | X21: 32.06 | Y21: 100 | Z21: 0 | AA21: =K21 -> 0 | AB21: 0 | AD21: 0 | AE21: =S21 -> 계 | AF21: =Q21&"/"&R21 -> 3/2 | AH21: 옥계부영2차 | AI21: 32.06 | AJ21: =IF(AI21="","",$AJ$2) -> A- | AK21: A | AL21: A+ | AM21: B+ | AN21: =IF(AI21="","",$AN$2) -> C | AO21: =IF(N21="","",IF(N21>=$AO$1/100,"O","X")) ->  | AP21: =IF(I21="","",IF(I21<=$AP$1,"O","X")) ->  | AQ21: =IF(O21="","",IF(O21<=$AQ$1,"O","X")) -> O | AR21: =IF(M21="","",IF(M21<=$AR$1,"O","X")) -> O | AS21: X | AT21: =IF(OR(F21="",AI21=""),"",IF(AND((F21<=85),(AI21>=15)),"O","X")) -> X | AU21: =IF(C21="","",IF(C21>=$AU$1,"O","X")) -> O | AV21: =IF(AO21="","",IF(AND(AO21="O",AP21="O",AR21="O",AT21="O",AU21="O"),"후보","X")) -> 
W22: =$A$4&" "&A23&"("&B23&","&C23&"^)" -> 옥계동 신나리2차('05.08,340^)
A23: 신나리2차 | B23: '05.08 | C23: 340 | D23: 66.23 | E23: =D23/3.305785 -> 20.03457575 | F23: 48.46 | G23: =F23/3.305785 -> 14.65915055 | H23: 114 | I23: 13000 | J23: 13 | K23: 12000 | L23: 7 | M23: =I23-K23 -> 1000 | N23: =IF(ISERROR(K23/I23),"",K23/I23) -> 0.9230769231 | O23: =I23/E23 -> 648.8782274 | P23: =K23/E23 -> 598.9645176 | Q23: 2 | R23: 1 | S23: 계 | T23: 66 | W23: =D23 -> 66.23 | X23: 20.03457575 | Y23: =H23 -> 114 | Z23: 13000 | AA23: =K23 -> 12000 | AB23: =M23 -> 1000 | AC23: 0.9230769231 | AD23: 648.8782274 | AE23: =S23 -> 계 | AF23: =Q23&"/"&R23 -> 2/1 | AH23: 신나리2차 | AI23: 20.03457575 | AJ23: =IF(AI23="","",$AJ$2) -> A- | AK23: A | AL23: A+ | AM23: B+ | AN23: =IF(AI23="","",$AN$2) -> C | AO23: =IF(N23="","",IF(N23>=$AO$1/100,"O","X")) -> O | AP23: =IF(I23="","",IF(I23<=$AP$1,"O","X")) -> O | AQ23: =IF(O23="","",IF(O23<=$AQ$1,"O","X")) -> O | AR23: =IF(M23="","",IF(M23<=$AR$1,"O","X")) -> O | AS23: X | AT23: =IF(OR(F23="",AI23=""),"",IF(AND((F23<=85),(AI23>=15)),"O","X")) -> O | AU23: =IF(C23="","",IF(C23>=$AU$1,"O","X")) -> O | AV23: =IF(AO23="","",IF(AND(AO23="O",AP23="O",AR23="O",AT23="O",AU23="O"),"후보","X")) -> 후보
A24: 신나리2차 | B24: '05.08 | C24: 340 | D24: 69.84 | E24: =D24/3.305785 -> 21.12660079 | F24: 49.21 | G24: =F24/3.305785 -> 14.88602556 | H24: 58 | I24: 13000 | J24: 6 | K24: 11500 | L24: 10 | M24: =I24-K24 -> 1500 | N24: =IF(ISERROR(K24/I24),"",K24/I24) -> 0.8846153846 | O24: =I24/E24 -> 615.3379868 | P24: =K24/E24 -> 544.3374499 | Q24: 2 | R24: 1 | S24: 계 | T24: 69 | W24: 69.84 | X24: 21.12660079 | Y24: 58 | Z24: 13000 | AA24: =K24 -> 11500 | AB24: 1500 | AC24: 0.8846153846 | AD24: 615.3379868 | AE24: =S24 -> 계 | AF24: =Q24&"/"&R24 -> 2/1 | AH24: 신나리2차 | AI24: 21.12660079 | AJ24: =IF(AI24="","",$AJ$2) -> A- | AK24: A | AL24: A+ | AM24: B+ | AN24: =IF(AI24="","",$AN$2) -> C | AO24: =IF(N24="","",IF(N24>=$AO$1/100,"O","X")) -> O | AP24: =IF(I24="","",IF(I24<=$AP$1,"O","X")) -> O | AQ24: =IF(O24="","",IF(O24<=$AQ$1,"O","X")) -> O | AR24: =IF(M24="","",IF(M24<=$AR$1,"O","X")) -> O | AS24: X | AT24: =IF(OR(F24="",AI24=""),"",IF(AND((F24<=85),(AI24>=15)),"O","X")) -> O | AU24: =IF(C24="","",IF(C24>=$AU$1,"O","X")) -> O | AV24: =IF(AO24="","",IF(AND(AO24="O",AP24="O",AR24="O",AT24="O",AU24="O"),"후보","X")) -> 후보
A25: 신나리2차 | B25: '05.08 | C25: 340 | D25: 75.05 | E25: 22.70262585 | F25: 56.83 | G25: 17.19107564 | H25: 58 | I25: 15500 | J25: 13 | K25: 11700 | L25: 1 | M25: =I25-K25 -> 3800 | N25: =IF(ISERROR(K25/I25),"",K25/I25) -> 0.7548387097 | O25: =I25/E25 -> 682.7404064 | P25: =K25/E25 -> 515.3588874 | Q25: 2 | R25: 1 | S25: 계 | T25: 75 | W25: 75.05 | X25: 22.70262585 | Y25: 58 | Z25: 15500 | AA25: =K25 -> 11700 | AB25: 3800 | AC25: 0.7548387097 | AD25: 682.7404064 | AE25: =S25 -> 계 | AF25: =Q25&"/"&R25 -> 2/1 | AH25: 신나리2차 | AI25: 22.70262585 | AJ25: =IF(AI25="","",$AJ$2) -> A- | AK25: A | AL25: A+ | AM25: B+ | AN25: =IF(AI25="","",$AN$2) -> C | AO25: =IF(N25="","",IF(N25>=$AO$1/100,"O","X")) -> X | AP25: =IF(I25="","",IF(I25<=$AP$1,"O","X")) -> O | AQ25: =IF(O25="","",IF(O25<=$AQ$1,"O","X")) -> O | AR25: =IF(M25="","",IF(M25<=$AR$1,"O","X")) -> O | AS25: X | AT25: =IF(OR(F25="",AI25=""),"",IF(AND((F25<=85),(AI25>=15)),"O","X")) -> O | AU25: =IF(C25="","",IF(C25>=$AU$1,"O","X")) -> O | AV25: =IF(AO25="","",IF(AND(AO25="O",AP25="O",AR25="O",AT25="O",AU25="O"),"후보","X")) -> X
A26: 신나리2차 | B26: '05.08 | C26: 340 | D26: 94.69 | E26: 28.64372607 | F26: 75.94 | G26: 22.97185086 | H26: 110 | I26: 17800 | J26: 3 | K26: 16000 | L26: 6 | M26: =I26-K26 -> 1800 | N26: =IF(ISERROR(K26/I26),"",K26/I26) -> 0.8988764045 | O26: =I26/E26 -> 621.4275319 | P26: =K26/E26 -> 558.5865456 | Q26: 3 | R26: 2 | S26: 계 | T26: 94 | W26: 94.69 | X26: 28.64372607 | Y26: 110 | Z26: 17800 | AA26: =K26 -> 16000 | AB26: 1800 | AC26: 0.8988764045 | AD26: 621.4275319 | AE26: =S26 -> 계 | AF26: =Q26&"/"&R26 -> 3/2 | AH26: 신나리2차 | AI26: 28.64372607 | AJ26: =IF(AI26="","",$AJ$2) -> A- | AK26: A | AL26: A+ | AM26: B+ | AN26: =IF(AI26="","",$AN$2) -> C | AO26: =IF(N26="","",IF(N26>=$AO$1/100,"O","X")) -> O | AP26: =IF(I26="","",IF(I26<=$AP$1,"O","X")) -> O | AQ26: =IF(O26="","",IF(O26<=$AQ$1,"O","X")) -> O | AR26: =IF(M26="","",IF(M26<=$AR$1,"O","X")) -> O | AS26: X | AT26: =IF(OR(F26="",AI26=""),"",IF(AND((F26<=85),(AI26>=15)),"O","X")) -> O | AU26: =IF(C26="","",IF(C26>=$AU$1,"O","X")) -> O | AV26: =IF(AO26="","",IF(AND(AO26="O",AP26="O",AR26="O",AT26="O",AU26="O"),"후보","X")) -> 후보
E27: 0 | G27: 0 | W27: =$A$4&" "&A28&"("&B28&","&C28&"^)" -> 옥계동 삼구트리니엔('08.10,642^) | AI27: 0
A28: 삼구트리니엔 | B28: '08.10 | C28: 642 | D28: 121.92 | E28: 36.88080138 | F28: 84.96 | G28: 25.70040096 | H28: 336 | I28: 29500 | J28: 9 | K28: 28000 | L28: 12 | M28: =I28-K28 -> 1500 | N28: =IF(ISERROR(K28/I28),"",K28/I28) -> 0.9491525424 | O28: =I28/E28 -> 799.8741593 | P28: =K28/E28 -> 759.2025919 | Q28: 3 | R28: 2 | S28: 계 | T28: 121A | W28: =D28 -> 121.92 | X28: 36.88080138 | Y28: =H28 -> 336 | Z28: 29500 | AA28: =K28 -> 28000 | AB28: =M28 -> 1500 | AC28: 0.9491525424 | AD28: 799.8741593 | AE28: =S28 -> 계 | AF28: =Q28&"/"&R28 -> 3/2 | AH28: 삼구트리니엔 | AI28: 36.88080138 | AJ28: =IF(AI28="","",$AJ$2) -> A- | AK28: A | AL28: A+ | AM28: B+ | AN28: =IF(AI28="","",$AN$2) -> C | AO28: =IF(N28="","",IF(N28>=$AO$1/100,"O","X")) -> O | AP28: =IF(I28="","",IF(I28<=$AP$1,"O","X")) -> O | AQ28: =IF(O28="","",IF(O28<=$AQ$1,"O","X")) -> O | AR28: =IF(M28="","",IF(M28<=$AR$1,"O","X")) -> O | AS28: X | AT28: =IF(OR(F28="",AI28=""),"",IF(AND((F28<=85),(AI28>=15)),"O","X")) -> O | AU28: =IF(C28="","",IF(C28>=$AU$1,"O","X")) -> O | AV28: =IF(AO28="","",IF(AND(AO28="O",AP28="O",AR28="O",AT28="O",AU28="O"),"후보","X")) -> 후보
A29: 삼구트리니엔 | B29: '08.10 | C29: 642 | D29: 121.5 | E29: 36.75375138 | F29: 84.95 | G29: 25.69737596 | H29: 114 | I29: 28000 | J29: 5 | K29: 29000 | L29: 중 | M29: =I29-K29 -> -1000 | N29: =IF(ISERROR(K29/I29),"",K29/I29) -> 1.035714286 | O29: =I29/E29 -> 761.8269959 | P29: =K29/E29 -> 789.0351029 | Q29: 3 | R29: 2 | S29: 계 | T29: 121B | W29: 121.5 | X29: 36.75375138 | Y29: 114 | Z29: 28000 | AA29: =K29 -> 29000 | AB29: -1000 | AC29: 1.035714286 | AD29: 761.8269959 | AE29: =S29 -> 계 | AF29: =Q29&"/"&R29 -> 3/2 | AH29: 삼구트리니엔 | AI29: 36.75375138 | AJ29: =IF(AI29="","",$AJ$2) -> A- | AK29: A | AL29: A+ | AM29: B+ | AN29: =IF(AI29="","",$AN$2) -> C | AO29: =IF(N29="","",IF(N29>=$AO$1/100,"O","X")) -> O | AP29: =IF(I29="","",IF(I29<=$AP$1,"O","X")) -> O | AQ29: =IF(O29="","",IF(O29<=$AQ$1,"O","X")) -> O | AR29: =IF(M29="","",IF(M29<=$AR$1,"O","X")) -> O | AS29: X | AT29: =IF(OR(F29="",AI29=""),"",IF(AND((F29<=85),(AI29>=15)),"O","X")) -> O | AU29: =IF(C29="","",IF(C29>=$AU$1,"O","X")) -> O | AV29: =IF(AO29="","",IF(AND(AO29="O",AP29="O",AR29="O",AT29="O",AU29="O"),"후보","X")) -> 후보
A30: 삼구트리니엔 | B30: '08.10 | C30: 642 | D30: 171.1 | E30: 51.75775194 | F30: 131.76 | G30: 39.85740149 | H30: 44 | I30: 43500 | J30: 4 | K30: 34000 | L30: 26 | M30: =I30-K30 -> 9500 | N30: =IF(ISERROR(K30/I30),"",K30/I30) -> 0.7816091954 | O30: =I30/E30 -> 840.4538136 | P30: =K30/E30 -> 656.906429 | Q30: 4 | R30: 2 | S30: 계 | T30: 171A | W30: 171.1 | X30: 51.75775194 | Y30: 44 | Z30: 43500 | AA30: =K30 -> 34000 | AB30: 9500 | AC30: 0.7816091954 | AD30: 840.4538136 | AE30: =S30 -> 계 | AF30: =Q30&"/"&R30 -> 4/2 | AH30: 삼구트리니엔 | AI30: =IF(E30="","",E30) -> 51.75775194 | AJ30: =IF(AI30="","",$AJ$2) -> A- | AK30: A | AL30: A+ | AM30: B+ | AN30: =IF(AI30="","",$AN$2) -> C | AO30: =IF(N30="","",IF(N30>=$AO$1/100,"O","X")) -> X | AP30: =IF(I30="","",IF(I30<=$AP$1,"O","X")) -> O | AQ30: =IF(O30="","",IF(O30<=$AQ$1,"O","X")) -> O | AR30: =IF(M30="","",IF(M30<=$AR$1,"O","X")) -> X | AS30: X | AT30: =IF(OR(F30="",AI30=""),"",IF(AND((F30<=85),(AI30>=15)),"O","X")) -> X | AU30: =IF(C30="","",IF(C30>=$AU$1,"O","X")) -> O | AV30: =IF(AO30="","",IF(AND(AO30="O",AP30="O",AR30="O",AT30="O",AU30="O"),"후보","X")) -> X
A31: 삼구트리니엔 | B31: '08.10 | C31: 642 | D31: 173.12 | E31: 52.36880196 | F31: 132.4 | G31: 40.0510015 | H31: 100 | I31: 41000 | J31: 8 | K31: 35000 | L31: 4 | M31: =I31-K31 -> 6000 | N31: =IF(ISERROR(K31/I31),"",K31/I31) -> 0.8536585366 | O31: =I31/E31 -> 782.9088782 | P31: =K31/E31 -> 668.3368473 | Q31: 4 | R31: 2 | S31: 계 | T31: 173B | W31: 173.12 | X31: 52.36880196 | Y31: 100 | Z31: 41000 | AA31: =K31 -> 35000 | AB31: 6000 | AC31: 0.8536585366 | AD31: 782.9088782 | AE31: =S31 -> 계 | AF31: =Q31&"/"&R31 -> 4/2 | AH31: 삼구트리니엔 | AI31: 52.36880196 | AJ31: =IF(AI31="","",$AJ$2) -> A- | AK31: A | AL31: A+ | AM31: B+ | AN31: =IF(AI31="","",$AN$2) -> C | AO31: =IF(N31="","",IF(N31>=$AO$1/100,"O","X")) -> O | AP31: =IF(I31="","",IF(I31<=$AP$1,"O","X")) -> O | AQ31: =IF(O31="","",IF(O31<=$AQ$1,"O","X")) -> O | AR31: =IF(M31="","",IF(M31<=$AR$1,"O","X")) -> O | AS31: X | AT31: =IF(OR(F31="",AI31=""),"",IF(AND((F31<=85),(AI31>=15)),"O","X")) -> X | AU31: =IF(C31="","",IF(C31>=$AU$1,"O","X")) -> O | AV31: =IF(AO31="","",IF(AND(AO31="O",AP31="O",AR31="O",AT31="O",AU31="O"),"후보","X")) -> X
A32: 삼구트리니엔 | B32: '08.10 | C32: 642 | D32: 200.54 | E32: 60.66335227 | F32: 158.54 | G32: 47.9583518 | H32: 48 | I32: 48000 | J32: 6 | K32: 35000 | L32: 3 | M32: =I32-K32 -> 13000 | N32: =IF(ISERROR(K32/I32),"",K32/I32) -> 0.7291666667 | O32: =I32/E32 -> 791.2520195 | P32: =K32/E32 -> 576.9545976 | Q32: 4 | R32: 2 | S32: 계 | T32: 200 | W32: 200.54 | X32: 60.66335227 | Y32: 48 | Z32: 48000 | AA32: =K32 -> 35000 | AB32: 13000 | AC32: 0.7291666667 | AD32: 791.2520195 | AE32: =S32 -> 계 | AF32: =Q32&"/"&R32 -> 4/2 | AH32: =IF(A32="","",A32) -> 삼구트리니엔 | AI32: 60.66335227 | AJ32: =IF(AI32="","",$AJ$2) -> A- | AK32: A | AL32: A+ | AM32: B+ | AN32: =IF(AI32="","",$AN$2) -> C | AO32: =IF(N32="","",IF(N32>=$AO$1/100,"O","X")) -> X | AP32: =IF(I32="","",IF(I32<=$AP$1,"O","X")) -> X | AQ32: =IF(O32="","",IF(O32<=$AQ$1,"O","X")) -> O | AR32: =IF(M32="","",IF(M32<=$AR$1,"O","X")) -> X | AS32: X | AT32: =IF(OR(F32="",AI32=""),"",IF(AND((F32<=85),(AI32>=15)),"O","X")) -> X | AU32: =IF(C32="","",IF(C32>=$AU$1,"O","X")) -> O | AV32: =IF(AO32="","",IF(AND(AO32="O",AP32="O",AR32="O",AT32="O",AU32="O"),"후보","X")) -> X
W33: =$A$4&" "&A34&"("&B34&","&C34&"^)" -> 옥계동 옥계현진에버빌('09.04,1378^)
A34: 옥계현진에버빌 | B34: '09.04 | C34: 1378 | D34: 117.16 | E34: =D34/3.305785 -> 35.44090133 | F34: 91.58 | G34: =F34/3.305785 -> 27.70295104 | H34: 297 | I34: 36000 | J34: 16 | K34: 32000 | L34: 중 | M34: =I34-K34 -> 4000 | N34: =IF(ISERROR(K34/I34),"",K34/I34) -> 0.8888888889 | O34: =I34/E34 -> 1015.775521 | P34: =K34/E34 -> 902.9115739 | Q34: 3 | R34: 2 | S34: 계 | T34: 117 | W34: =D34 -> 117.16 | X34: 35.44090133 | Y34: =H34 -> 297 | Z34: 36000 | AA34: =K34 -> 32000 | AB34: =M34 -> 4000 | AC34: 0.8888888889 | AD34: 1015.775521 | AE34: =S34 -> 계 | AF34: =Q34&"/"&R34 -> 3/2 | AH34: 옥계현진에버빌 | AI34: 35.44090133 | AJ34: =IF(AI34="","",$AJ$2) -> A- | AK34: A | AL34: A+ | AM34: B+ | AN34: =IF(AI34="","",$AN$2) -> C | AO34: =IF(N34="","",IF(N34>=$AO$1/100,"O","X")) -> O | AP34: =IF(I34="","",IF(I34<=$AP$1,"O","X")) -> O | AQ34: =IF(O34="","",IF(O34<=$AQ$1,"O","X")) -> X | AR34: =IF(M34="","",IF(M34<=$AR$1,"O","X")) -> O | AS34: X | AT34: =IF(OR(F34="",AI34=""),"",IF(AND((F34<=85),(AI34>=15)),"O","X")) -> X | AU34: =IF(C34="","",IF(C34>=$AU$1,"O","X")) -> O | AV34: =IF(AO34="","",IF(AND(AO34="O",AP34="O",AR34="O",AT34="O",AU34="O"),"후보","X")) -> X
A35: 옥계현진에버빌 | B35: '09.04 | C35: 1378 | D35: 124.96 | E35: =D35/3.305785 -> 37.80040142 | F35: 98.83 | G35: =F35/3.305785 -> 29.89607612 | H35: 134 | I35: 36000 | J35: 16 | K35: 34000 | L35: 10 | M35: =I35-K35 -> 2000 | N35: =IF(ISERROR(K35/I35),"",K35/I35) -> 0.9444444444 | O35: =I35/E35 -> 952.3708387 | P35: =K35/E35 -> 899.4613476 | Q35: 3 | R35: 2 | S35: 계 | T35: 124 | W35: 124.96 | X35: 37.80040142 | Y35: 134 | Z35: 36000 | AA35: 34000 | AB35: 2000 | AC35: 0.9444444444 | AD35: 952.3708387 | AE35: =S35 -> 계 | AF35: =Q35&"/"&R35 -> 3/2 | AH35: 옥계현진에버빌 | AI35: 37.80040142 | AJ35: =IF(AI35="","",$AJ$2) -> A- | AK35: A | AL35: A+ | AM35: B+ | AN35: =IF(AI35="","",$AN$2) -> C | AO35: =IF(N35="","",IF(N35>=$AO$1/100,"O","X")) -> O | AP35: O | AQ35: =IF(O35="","",IF(O35<=$AQ$1,"O","X")) -> O | AR35: =IF(M35="","",IF(M35<=$AR$1,"O","X")) -> O | AS35: X | AT35: =IF(OR(F35="",AI35=""),"",IF(AND((F35<=85),(AI35>=15)),"O","X")) -> X | AU35: =IF(C35="","",IF(C35>=$AU$1,"O","X")) -> O | AV35: =IF(AO35="","",IF(AND(AO35="O",AP35="O",AR35="O",AT35="O",AU35="O"),"후보","X")) -> X
A36: 옥계현진에버빌 | B36: '09.04 | C36: 1378 | D36: 131.89 | E36: 39.8967265 | F36: 103.51 | G36: 31.31177617 | H36: 345 | I36: 40300 | J36: 4 | K36: 35000 | L36: 5 | M36: =I36-K36 -> 5300 | N36: =IF(ISERROR(K36/I36),"",K36/I36) -> 0.8684863524 | O36: =I36/E36 -> 1010.107935 | P36: =K36/E36 -> 877.2649556 | Q36: 3 | R36: 2 | S36: 계 | T36: 131B | W36: 131.89 | X36: 39.8967265 | Y36: 345 | Z36: 40300 | AA36: 35000 | AB36: 5300 | AC36: 0.8684863524 | AD36: 1010.107935 | AE36: =S36 -> 계 | AF36: =Q36&"/"&R36 -> 3/2 | AH36: 옥계현진에버빌 | AI36: 39.8967265 | AJ36: =IF(AI36="","",$AJ$2) -> A- | AK36: A | AL36: A+ | AM36: B+ | AN36: =IF(AI36="","",$AN$2) -> C | AO36: =IF(N36="","",IF(N36>=$AO$1/100,"O","X")) -> O | AP36: O | AQ36: =IF(O36="","",IF(O36<=$AQ$1,"O","X")) -> X | AR36: =IF(M36="","",IF(M36<=$AR$1,"O","X")) -> O | AS36: X | AT36: =IF(OR(F36="",AI36=""),"",IF(AND((F36<=85),(AI36>=15)),"O","X")) -> X | AU36: =IF(C36="","",IF(C36>=$AU$1,"O","X")) -> O | AV36: =IF(AO36="","",IF(AND(AO36="O",AP36="O",AR36="O",AT36="O",AU36="O"),"후보","X")) -> X
A37: 옥계현진에버빌 | B37: '09.04 | C37: 1378 | D37: 131.72 | E37: 39.84530149 | F37: 102.52 | G37: 31.01230116 | H37: 133 | I37: 39500 | J37: 중 | K37: 30000 | L37: 16 | M37: =I37-K37 -> 9500 | N37: =IF(ISERROR(K37/I37),"",K37/I37) -> 0.7594936709 | O37: =I37/E37 -> 991.333947 | P37: =K37/E37 -> 752.9118585 | Q37: 3 | R37: 2 | S37: 계 | T37: 131A | W37: 131.72 | X37: 39.84530149 | Y37: 133 | Z37: 39500 | AA37: 30000 | AB37: 9500 | AC37: 0.7594936709 | AD37: 991.333947 | AE37: =S37 -> 계 | AF37: =Q37&"/"&R37 -> 3/2 | AH37: 옥계현진에버빌 | AI37: 39.84530149 | AJ37: =IF(AI37="","",$AJ$2) -> A- | AK37: A | AL37: A+ | AM37: B+ | AN37: =IF(AI37="","",$AN$2) -> C | AO37: =IF(N37="","",IF(N37>=$AO$1/100,"O","X")) -> X | AP37: O | AQ37: =IF(O37="","",IF(O37<=$AQ$1,"O","X")) -> O | AR37: =IF(M37="","",IF(M37<=$AR$1,"O","X")) -> X | AS37: X | AT37: =IF(OR(F37="",AI37=""),"",IF(AND((F37<=85),(AI37>=15)),"O","X")) -> X | AU37: =IF(C37="","",IF(C37>=$AU$1,"O","X")) -> O | AV37: =IF(AO37="","",IF(AND(AO37="O",AP37="O",AR37="O",AT37="O",AU37="O"),"후보","X")) -> X
A38: 옥계현진에버빌 | B38: '09.04 | C38: 1378 | D38: 142.27 | E38: 43.03667661 | F38: 113.69 | G38: 34.39122629 | H38: 61 | I38: 45000 | J38: 9 | K38: 40000 | L38: 8 | M38: =I38-K38 -> 5000 | N38: =IF(ISERROR(K38/I38),"",K38/I38) -> 0.8888888889 | O38: =I38/E38 -> 1045.619772 | P38: =K38/E38 -> 929.4397976 | Q38: 3 | R38: 2 | S38: 계 | T38: 142 | W38: =$A$4&" "&A39&"("&B39&","&C39&"^)" -> 옥계동 옥계현진에버빌('09.04,1378^) | AA38: 40000 | AH38: 옥계현진에버빌 | AI38: 43.03667661 | AP38: O
A39: 옥계현진에버빌 | B39: '09.04 | C39: 1378 | D39: 161.36 | E39: 48.81140183 | F39: 129.78 | G39: 39.25845147 | H39: 256 | I39: 50000 | J39: 23 | K39: 40000 | L39: 27 | M39: 10000 | N39: 0.8 | O39: 1024.35083 | P39: 819.4806644 | Q39: 4 | R39: 2 | S39: 계 | T39: 161 | W39: =D39 -> 161.36 | X39: 48.81140183 | Y39: =H39 -> 256 | Z39: 50000 | AA39: 40000 | AB39: =M39 -> 10000 | AC39: 0.8 | AD39: 1024.35083 | AE39: =S39 -> 계 | AF39: =Q39&"/"&R39 -> 4/2 | AH39: 옥계현진에버빌 | AI39: 48.81140183 | AJ39: =IF(AI39="","",$AJ$2) -> A- | AK39: A | AL39: A+ | AM39: B+ | AN39: =IF(AI39="","",$AN$2) -> C | AO39: =IF(N39="","",IF(N39>=$AO$1/100,"O","X")) -> O | AP39: X | AQ39: =IF(O39="","",IF(O39<=$AQ$1,"O","X")) -> X | AR39: =IF(M39="","",IF(M39<=$AR$1,"O","X")) -> X | AS39: X | AT39: =IF(OR(F39="",AI39=""),"",IF(AND((F39<=85),(AI39>=15)),"O","X")) -> X | AU39: =IF(C39="","",IF(C39>=$AU$1,"O","X")) -> O | AV39: =IF(AO39="","",IF(AND(AO39="O",AP39="O",AR39="O",AT39="O",AU39="O"),"후보","X")) -> X
A40: 옥계현진에버빌 | B40: '09.04 | C40: 1378 | D40: 194.88 | E40: 58.95120221 | F40: 154.88 | G40: 46.85120176 | H40: 128 | I40: 58500 | J40: 4 | K40: 48000 | L40: 33 | M40: 10500 | N40: 0.8205128205 | O40: 992.3461746 | P40: 814.2327586 | Q40: 4 | R40: 2 | S40: 계 | T40: 194 | W40: 194.88 | X40: 58.95120221 | Y40: 128 | Z40: 58500 | AA40: 48000 | AB40: 10500 | AC40: 0.8205128205 | AD40: 992.3461746 | AE40: =S40 -> 계 | AF40: =Q40&"/"&R40 -> 4/2 | AH40: 옥계현진에버빌 | AI40: 58.95120221 | AJ40: =IF(AI40="","",$AJ$2) -> A- | AK40: A | AL40: A+ | AM40: B+ | AN40: =IF(AI40="","",$AN$2) -> C | AO40: =IF(N40="","",IF(N40>=$AO$1/100,"O","X")) -> O | AP40: X | AQ40: =IF(O40="","",IF(O40<=$AQ$1,"O","X")) -> O | AR40: =IF(M40="","",IF(M40<=$AR$1,"O","X")) -> X | AS40: X | AT40: =IF(OR(F40="",AI40=""),"",IF(AND((F40<=85),(AI40>=15)),"O","X")) -> X | AU40: =IF(C40="","",IF(C40>=$AU$1,"O","X")) -> O | AV40: =IF(AO40="","",IF(AND(AO40="O",AP40="O",AR40="O",AT40="O",AU40="O"),"후보","X")) -> X
A41: 옥계현진에버빌 | B41: '09.04 | C41: 1378 | D41: 226.67 | E41: 68.56767757 | F41: 187.67 | G41: 56.77017713 | H41: 12 | I41: 62000 | J41: 37 | M41: 62000 | N41: 0 | O41: 904.2161292 | P41: 0 | Q41: 4 | R41: 3 | S41: 계 | T41: 226B | W41: 226.67 | X41: 68.56767757 | Y41: 12 | Z41: 62000 | AA41: 0 | AB41: 62000 | AC41: 0 | AD41: 904.2161292 | AE41: =S41 -> 계 | AF41: =Q41&"/"&R41 -> 4/3 | AH41: 옥계현진에버빌 | AI41: 68.56767757 | AJ41: =IF(AI41="","",$AJ$2) -> A- | AK41: A | AL41: A+ | AM41: B+ | AN41: =IF(AI41="","",$AN$2) -> C | AO41: =IF(N41="","",IF(N41>=$AO$1/100,"O","X")) -> X | AP41: X | AQ41: =IF(O41="","",IF(O41<=$AQ$1,"O","X")) -> O | AR41: =IF(M41="","",IF(M41<=$AR$1,"O","X")) -> X | AS41: X | AT41: =IF(OR(F41="",AI41=""),"",IF(AND((F41<=85),(AI41>=15)),"O","X")) -> X | AU41: =IF(C41="","",IF(C41>=$AU$1,"O","X")) -> O | AV41: =IF(AO41="","",IF(AND(AO41="O",AP41="O",AR41="O",AT41="O",AU41="O"),"후보","X")) -> X
A42: 옥계현진에버빌 | B42: '09.04 | C42: 1378 | D42: 227.49 | E42: 68.81572758 | F42: 183.07 | G42: 55.37867708 | H42: 12 | I42: 63000 | J42: 35 | M42: 63000 | N42: 0 | O42: 915.4883951 | P42: 0 | Q42: 4 | R42: 3 | S42: 계 | T42: 227A | W42: =$A$4&" "&A44&"("&B44&","&C44&"^)" -> 옥계동 김해관동일동미라주더스타('17.1,286^) | AH42: 옥계현진에버빌 | AI42: 68.81572758 | AP42: X
A44: 김해관동일동미라주더스타 | B44: '17.1 | C44: 286 | D44: 111.6 | E44: 33.75900127 | F44: 85 | G44: 25.71250096 | H44: 187 | M44: =I44-K44 -> 0 | N44: =IF(ISERROR(K44/I44),"",K44/I44) ->  | O44: =I44/E44 -> 0 | P44: =K44/E44 -> 0 | Q44: 3 | R44: 2 | S44: 계 | T44: 111A | W44: =D44 -> 111.6 | X44: 33.75900127 | Y44: =H44 -> 187 | Z44: 0 | AA44: =K44 -> 0 | AB44: =M44 -> 0 | AD44: 0 | AE44: =S44 -> 계 | AF44: =Q44&"/"&R44 -> 3/2 | AH44: 김해관동일동미라주더스타 | AI44: 33.75900127 | AJ44: =IF(AI44="","",$AJ$2) -> A- | AK44: A | AL44: A+ | AM44: B+ | AN44: =IF(AI44="","",$AN$2) -> C | AO44: =IF(N44="","",IF(N44>=$AO$1/100,"O","X")) ->  | AP44: =IF(I44="","",IF(I44<=$AP$1,"O","X")) ->  | AQ44: =IF(O44="","",IF(O44<=$AQ$1,"O","X")) -> O | AR44: =IF(M44="","",IF(M44<=$AR$1,"O","X")) -> O | AS44: X | AT44: =IF(OR(F44="",AI44=""),"",IF(AND((F44<=85),(AI44>=15)),"O","X")) -> O | AU44: =IF(C44="","",IF(C44>=$AU$1,"O","X")) -> X | AV44: =IF(AO44="","",IF(AND(AO44="O",AP44="O",AR44="O",AT44="O",AU44="O"),"후보","X")) -> 
A45: 김해관동일동미라주더스타 | B45: '17.1 | C45: 286 | D45: 112.5 | E45: 34.03125128 | F45: 84.9 | G45: 25.68225096 | H45: 71 | M45: =I45-K45 -> 0 | N45: =IF(ISERROR(K45/I45),"",K45/I45) ->  | O45: =I45/E45 -> 0 | P45: =K45/E45 -> 0 | Q45: 3 | R45: 2 | S45: 계 | T45: 112B | W45: 112.5 | X45: 34.03125128 | Y45: 71 | Z45: 0 | AA45: =K45 -> 0 | AB45: 0 | AD45: 0 | AE45: =S45 -> 계 | AF45: =Q45&"/"&R45 -> 3/2 | AH45: 김해관동일동미라주더스타 | AI45: 34.03125128 | AJ45: =IF(AI45="","",$AJ$2) -> A- | AK45: A | AL45: A+ | AM45: B+ | AN45: =IF(AI45="","",$AN$2) -> C | AO45: =IF(N45="","",IF(N45>=$AO$1/100,"O","X")) ->  | AP45: =IF(I45="","",IF(I45<=$AP$1,"O","X")) ->  | AQ45: =IF(O45="","",IF(O45<=$AQ$1,"O","X")) -> O | AR45: =IF(M45="","",IF(M45<=$AR$1,"O","X")) -> O | AS45: X | AT45: =IF(OR(F45="",AI45=""),"",IF(AND((F45<=85),(AI45>=15)),"O","X")) -> O | AU45: =IF(C45="","",IF(C45>=$AU$1,"O","X")) -> X | AV45: =IF(AO45="","",IF(AND(AO45="O",AP45="O",AR45="O",AT45="O",AU45="O"),"후보","X")) -> 
A46: 김해관동일동미라주더스타 | B46: '17.1 | C46: 286 | D46: 131.3 | E46: 39.71825149 | F46: 99.8 | G46: 30.18950113 | H46: 20 | M46: =I46-K46 -> 0 | N46: =IF(ISERROR(K46/I46),"",K46/I46) ->  | O46: =I46/E46 -> 0 | P46: =K46/E46 -> 0 | Q46: 3 | R46: 2 | S46: 계 | T46: 131 | W46: 131.3 | X46: 39.71825149 | Y46: 20 | Z46: 0 | AA46: =K46 -> 0 | AB46: 0 | AD46: 0 | AE46: =S46 -> 계 | AF46: =Q46&"/"&R46 -> 3/2 | AH46: 김해관동일동미라주더스타 | AI46: 39.71825149 | AJ46: =IF(AI46="","",$AJ$2) -> A- | AK46: A | AL46: A+ | AM46: B+ | AN46: =IF(AI46="","",$AN$2) -> C | AO46: =IF(N46="","",IF(N46>=$AO$1/100,"O","X")) ->  | AP46: =IF(I46="","",IF(I46<=$AP$1,"O","X")) ->  | AQ46: =IF(O46="","",IF(O46<=$AQ$1,"O","X")) -> O | AR46: =IF(M46="","",IF(M46<=$AR$1,"O","X")) -> O | AS46: X | AT46: =IF(OR(F46="",AI46=""),"",IF(AND((F46<=85),(AI46>=15)),"O","X")) -> X | AU46: =IF(C46="","",IF(C46>=$AU$1,"O","X")) -> X | AV46: =IF(AO46="","",IF(AND(AO46="O",AP46="O",AR46="O",AT46="O",AU46="O"),"후보","X")) -> 
A47: 김해관동일동미라주더스타 | B47: '17.1 | C47: 286 | D47: 134 | E47: 40.53500152 | F47: 102.6 | G47: 31.03650116 | H47: 8 | M47: =I47-K47 -> 0 | N47: =IF(ISERROR(K47/I47),"",K47/I47) ->  | O47: =I47/E47 -> 0 | P47: =K47/E47 -> 0 | Q47: 3 | R47: 2 | S47: 계 | T47: 134 | W47: 134 | X47: 40.53500152 | Y47: 8 | Z47: 0 | AA47: =K47 -> 0 | AB47: 0 | AD47: 0 | AE47: =S47 -> 계 | AF47: =Q47&"/"&R47 -> 3/2 | AH47: 김해관동일동미라주더스타 | AI47: 40.53500152 | AJ47: =IF(AI47="","",$AJ$2) -> A- | AK47: A | AL47: A+ | AM47: B+ | AN47: =IF(AI47="","",$AN$2) -> C | AO47: =IF(N47="","",IF(N47>=$AO$1/100,"O","X")) ->  | AP47: =IF(I47="","",IF(I47<=$AP$1,"O","X")) ->  | AQ47: =IF(O47="","",IF(O47<=$AQ$1,"O","X")) -> O | AR47: =IF(M47="","",IF(M47<=$AR$1,"O","X")) -> O | AS47: X | AT47: =IF(OR(F47="",AI47=""),"",IF(AND((F47<=85),(AI47>=15)),"O","X")) -> X | AU47: =IF(C47="","",IF(C47>=$AU$1,"O","X")) -> X | AV47: =IF(AO47="","",IF(AND(AO47="O",AP47="O",AR47="O",AT47="O",AU47="O"),"후보","X")) -> 
W48: =$A$4&" "&A49&"("&B49&","&C49&"^)" -> 옥계동 죽림마을14단지동원로얄듀크('13.06,230^)
A49: 죽림마을14단지동원로얄듀크 | B49: '13.06 | C49: 230 | D49: 111.1 | E49: 33.60775126 | F49: 85 | G49: 25.71250096 | H49: 94 | M49: =I49-K49 -> 0 | N49: =IF(ISERROR(K49/I49),"",K49/I49) ->  | O49: =I49/E49 -> 0 | P49: =K49/E49 -> 0 | Q49: 3 | R49: 2 | S49: 계 | T49: 111A | W49: =D49 -> 111.1 | X49: 33.60775126 | Y49: =H49 -> 94 | Z49: 0 | AA49: =K49 -> 0 | AB49: =M49 -> 0 | AD49: 0 | AE49: =S49 -> 계 | AF49: =Q49&"/"&R49 -> 3/2 | AH49: 죽림마을14단지동원로얄듀크 | AI49: 33.60775126 | AJ49: =IF(AI49="","",$AJ$2) -> A- | AK49: A | AL49: A+ | AM49: B+ | AN49: =IF(AI49="","",$AN$2) -> C | AO49: =IF(N49="","",IF(N49>=$AO$1/100,"O","X")) ->  | AP49: =IF(I49="","",IF(I49<=$AP$1,"O","X")) ->  | AQ49: =IF(O49="","",IF(O49<=$AQ$1,"O","X")) -> O | AR49: =IF(M49="","",IF(M49<=$AR$1,"O","X")) -> O | AS49: X | AT49: =IF(OR(F49="",AI49=""),"",IF(AND((F49<=85),(AI49>=15)),"O","X")) -> O | AU49: =IF(C49="","",IF(C49>=$AU$1,"O","X")) -> X | AV49: =IF(AO49="","",IF(AND(AO49="O",AP49="O",AR49="O",AT49="O",AU49="O"),"후보","X")) -> 
A50: 죽림마을14단지동원로얄듀크 | B50: '13.06 | C50: 230 | D50: 111.2 | E50: 33.63800126 | F50: 85 | G50: 25.71250096 | H50: 50 | M50: =I50-K50 -> 0 | N50: =IF(ISERROR(K50/I50),"",K50/I50) ->  | O50: =I50/E50 -> 0 | P50: =K50/E50 -> 0 | Q50: 3 | R50: 2 | S50: 계 | T50: 111C | W50: 111.2 | X50: 33.63800126 | Y50: 50 | Z50: 0 | AA50: =K50 -> 0 | AB50: 0 | AD50: 0 | AE50: =S50 -> 계 | AF50: =Q50&"/"&R50 -> 3/2 | AH50: 죽림마을14단지동원로얄듀크 | AI50: 33.63800126 | AJ50: =IF(AI50="","",$AJ$2) -> A- | AK50: A | AL50: A+ | AM50: B+ | AN50: =IF(AI50="","",$AN$2) -> C | AO50: =IF(N50="","",IF(N50>=$AO$1/100,"O","X")) ->  | AP50: =IF(I50="","",IF(I50<=$AP$1,"O","X")) ->  | AQ50: =IF(O50="","",IF(O50<=$AQ$1,"O","X")) -> O | AR50: =IF(M50="","",IF(M50<=$AR$1,"O","X")) -> O | AS50: X | AT50: =IF(OR(F50="",AI50=""),"",IF(AND((F50<=85),(AI50>=15)),"O","X")) -> O | AU50: =IF(C50="","",IF(C50>=$AU$1,"O","X")) -> X | AV50: =IF(AO50="","",IF(AND(AO50="O",AP50="O",AR50="O",AT50="O",AU50="O"),"후보","X")) -> 
A51: 죽림마을14단지동원로얄듀크 | B51: '13.06 | C51: 230 | D51: 111.6 | E51: 33.75900127 | F51: 85 | G51: 25.71250096 | H51: 86 | M51: =I51-K51 -> 0 | N51: =IF(ISERROR(K51/I51),"",K51/I51) ->  | O51: =I51/E51 -> 0 | P51: =K51/E51 -> 0 | Q51: 3 | R51: 2 | S51: 계 | T51: 111B | W51: 111.6 | X51: 33.75900127 | Y51: 86 | Z51: 0 | AA51: =K51 -> 0 | AB51: 0 | AD51: 0 | AE51: =S51 -> 계 | AF51: =Q51&"/"&R51 -> 3/2 | AH51: 죽림마을14단지동원로얄듀크 | AI51: 33.75900127 | AJ51: =IF(AI51="","",$AJ$2) -> A- | AK51: A | AL51: A+ | AM51: B+ | AN51: =IF(AI51="","",$AN$2) -> C | AO51: =IF(N51="","",IF(N51>=$AO$1/100,"O","X")) ->  | AP51: =IF(I51="","",IF(I51<=$AP$1,"O","X")) ->  | AQ51: =IF(O51="","",IF(O51<=$AQ$1,"O","X")) -> O | AR51: =IF(M51="","",IF(M51<=$AR$1,"O","X")) -> O | AS51: X | AT51: =IF(OR(F51="",AI51=""),"",IF(AND((F51<=85),(AI51>=15)),"O","X")) -> O | AU51: =IF(C51="","",IF(C51>=$AU$1,"O","X")) -> X | AV51: =IF(AO51="","",IF(AND(AO51="O",AP51="O",AR51="O",AT51="O",AU51="O"),"후보","X")) -> 
W52: =$A$4&" "&A53&"("&B53&","&C53&"^)" -> 옥계동 팔판마을2단지부영그린타운8차('05.06,224^)
A53: 팔판마을2단지부영그린타운8차 | B53: '05.06 | C53: 224 | D53: 104.7 | E53: 31.67175119 | F53: 84.8 | G53: 25.65200096 | H53: 224 | M53: =I53-K53 -> 0 | N53: =IF(ISERROR(K53/I53),"",K53/I53) ->  | O53: =I53/E53 -> 0 | P53: =K53/E53 -> 0 | Q53: 3 | R53: 2 | S53: 계 | T53: 104 | W53: =D53 -> 104.7 | X53: =E53 -> 31.67175119 | Y53: =H53 -> 224 | Z53: =I53 -> 0 | AA53: =K53 -> 0 | AB53: =M53 -> 0 | AC53: =N53 ->  | AD53: =O53 -> 0 | AE53: =S53 -> 계 | AF53: =Q53&"/"&R53 -> 3/2 | AH53: 팔판마을2단지부영그린타운8차 | AI53: 31.67175119 | AJ53: =IF(AI53="","",$AJ$2) -> A- | AK53: A | AL53: A+ | AM53: B+ | AN53: =IF(AI53="","",$AN$2) -> C | AO53: =IF(N53="","",IF(N53>=$AO$1/100,"O","X")) ->  | AP53: =IF(I53="","",IF(I53<=$AP$1,"O","X")) ->  | AQ53: =IF(O53="","",IF(O53<=$AQ$1,"O","X")) -> O | AR53: =IF(M53="","",IF(M53<=$AR$1,"O","X")) -> O | AS53: X | AT53: =IF(OR(F53="",AI53=""),"",IF(AND((F53<=85),(AI53>=15)),"O","X")) -> O | AU53: =IF(C53="","",IF(C53>=$AU$1,"O","X")) -> X | AV53: =IF(AO53="","",IF(AND(AO53="O",AP53="O",AR53="O",AT53="O",AU53="O"),"후보","X")) -> 

Sheet 봉곡동
A1: =단지추출!A1 -> 구미시 | I1: 추출대상 | X1: 매매가 최대(색상 최대) | AA1: =단지추출!AA1 -> 70000 | AH1: =A1 -> 구미시 | AJ1: =A1&" 전체 등급" -> 구미시 전체 등급 | AO1: =단지추출!AO1 -> 80 | AP1: =단지추출!AP1 -> 45000 | AQ1: =단지추출!AQ1 -> 1000 | AR1: =단지추출!AR1 -> 6000 | AU1: =단지추출!AU1 -> 300
A2: =단지추출!A2 -> 2022-01-01 | X2: 매매가 최소(색상 최소) | AA2: =단지추출!AA2 -> 10000 | AH2: =AH1 &" " &A4 -> 구미시 구산동 | AJ2: =단지추출!AJ2 -> A- | AK2: =단지추출!AK2 -> A | AL2: =단지추출!AL2 -> A | AM2: =단지추출!AM2 -> A | AN2: =단지추출!AN2 -> C | AO2: 원금보전 | AR2: 수익성 | AT2: 환금성
A3: 단지명 | B3: 입주 연도 | C3: 총세 대수 | D3: 공급 (m2) | E3: 공급 면적 | F3: 전용 (m2) | G3: 전용 면적 | H3: 세대 | I3: 매매 최저가 | J3: 층 | K3: 전세 최고가 | L3: 층 | M3: 매전갭 | N3: 전세 가율 | O3: 매매 평단 | P3: 전세 평단 | Q3: 방 | R3: 욕 실 | S3: 구 조 | T3: 매/전/월 Type | U3: 비고 | W3: 공급 (m2) | X3: 공급 면적 | Y3: 세대 | Z3: 매매가 | AA3: 전세가 | AB3: 매전갭 | AC3: 전세 가율 | AD3: 평단가 | AE3: 구 조 | AF3: 방/ 욕실 | AH3: =IF(A3="","",A3) -> 단지명 | AI3: =IF(E3="","",E3) -> 공급 면적 | AJ3: 직장 | AK3: 교통 | AL3: 학군 | AM3: 환경 | AN3: 공급 | AO3: ="전세가율★ ("&AO1&"%↑)" -> 전세가율★ (80%↑) | AP3: ="절대가★ ("&AP1/10000&"억↓)" -> 절대가★ (4.5억↓) | AQ3: ="지역평단가 ("&AQ1&"↓)" -> 지역평단가 (1000↓) | AR3: ="투자규모★ (갭"&AR1/1000&"천↓)" -> 투자규모★ (갭6천↓) | AS3: 전고점 이하 | AT3: 평형★ (15~34평) | AU3: ="단지규모★ ("&AU1&"^↑)" -> 단지규모★ (300^↑) | AV3: 투자후보
A4: 구산동
W5: =$A$4&" "&A6&"("&B6&","&C6&"^)" -> 구산동 구지마을2단지한일유앤아이('04.06,1308^) | AH5: =IF(A5="","",A5) -> 
A6: 구지마을2단지한일유앤아이 | B6: '04.06 | C6: 1308 | D6: 78.4 | E6: 24 | F6: 59.8 | G6: 18 | H6: 1308 | M6: =I6-K6 -> 0 | N6: =IF(ISERROR(K6/I6),"",K6/I6) ->  | O6: =I6/E6 -> 0 | P6: =K6/E6 -> 0 | Q6: 3 | R6: 2 | S6: 계 | T6: 78 | W6: =D6 -> 78.4 | X6: =E6 -> 24 | Y6: =H6 -> 1308 | Z6: =I6 -> 0 | AA6: =K6 -> 0 | AB6: =M6 -> 0 | AC6: =N6 ->  | AD6: =O6 -> 0 | AE6: =S6 -> 계 | AF6: =Q6&"/"&R6 -> 3/2 | AH6: 구지마을2단지한일유앤아이 | AI6: 24 | AJ6: =IF(AI6="","",$AJ$2) -> A- | AK6: A | AL6: A+ | AM6: B+ | AN6: =IF(AI6="","",$AN$2) -> C | AO6: =IF(N6="","",IF(N6>=$AO$1/100,"O","X")) ->  | AP6: =IF(I6="","",IF(I6<=$AP$1,"O","X")) ->  | AQ6: =IF(O6="","",IF(O6<=$AQ$1,"O","X")) -> O | AR6: =IF(M6="","",IF(M6<=$AR$1,"O","X")) -> O | AS6: X | AT6: =IF(OR(F6="",AI6=""),"",IF(AND((F6<=85),(AI6>=15)),"O","X")) -> O | AU6: =IF(C6="","",IF(C6>=$AU$1,"O","X")) -> O | AV6: =IF(AO6="","",IF(AND(AO6="O",AP6="O",AR6="O",AT6="O",AU6="O"),"후보","X")) -> 
W7: =$A$4&" "&A8&"("&B8&","&C8&"^)" -> 구산동 구지마을1단지동원('01.12,954^)
A8: 구지마을1단지동원 | B8: '01.12 | C8: 954 | D8: 70 | E8: 21 | F8: 49.9 | G8: 15 | H8: 400 | M8: =I8-K8 -> 0 | N8: =IF(ISERROR(K8/I8),"",K8/I8) ->  | O8: =I8/E8 -> 0 | P8: =K8/E8 -> 0 | Q8: 2 | R8: 1 | S8: 계 | T8: 70 | W8: =D8 -> 70 | X8: =E8 -> 21 | Y8: =H8 -> 400 | Z8: =I8 -> 0 | AA8: =K8 -> 0 | AB8: =M8 -> 0 | AD8: 0 | AE8: =S8 -> 계 | AF8: =Q8&"/"&R8 -> 2/1 | AH8: 구지마을1단지동원 | AI8: 21 | AJ8: =IF(AI8="","",$AJ$2) -> A- | AK8: A | AL8: A+ | AM8: B+ | AN8: =IF(AI8="","",$AN$2) -> C | AO8: =IF(N8="","",IF(N8>=$AO$1/100,"O","X")) ->  | AP8: =IF(I8="","",IF(I8<=$AP$1,"O","X")) ->  | AQ8: =IF(O8="","",IF(O8<=$AQ$1,"O","X")) -> O | AR8: =IF(M8="","",IF(M8<=$AR$1,"O","X")) -> O | AS8: X | AT8: =IF(OR(F8="",AI8=""),"",IF(AND((F8<=85),(AI8>=15)),"O","X")) -> O | AU8: =IF(C8="","",IF(C8>=$AU$1,"O","X")) -> O | AV8: =IF(AO8="","",IF(AND(AO8="O",AP8="O",AR8="O",AT8="O",AU8="O"),"후보","X")) -> 
A9: 구지마을1단지동원 | B9: '01.12 | C9: 954 | D9: 81 | E9: 25 | F9: 60 | G9: 18 | H9: 554 | M9: =I9-K9 -> 0 | N9: =IF(ISERROR(K9/I9),"",K9/I9) ->  | O9: =I9/E9 -> 0 | P9: =K9/E9 -> 0 | Q9: 3 | R9: 1 | S9: 계 | T9: 80 | W9: =D9 -> 81 | X9: =E9 -> 25 | Y9: =H9 -> 554 | Z9: =I9 -> 0 | AA9: =K9 -> 0 | AB9: 0 | AD9: 0 | AE9: =S9 -> 계 | AF9: =Q9&"/"&R9 -> 3/1 | AH9: 구지마을1단지동원 | AI9: 25 | AJ9: =IF(AI9="","",$AJ$2) -> A- | AK9: A | AL9: A+ | AM9: B+ | AN9: =IF(AI9="","",$AN$2) -> C | AO9: =IF(N9="","",IF(N9>=$AO$1/100,"O","X")) ->  | AP9: =IF(I9="","",IF(I9<=$AP$1,"O","X")) ->  | AQ9: =IF(O9="","",IF(O9<=$AQ$1,"O","X")) -> O | AR9: =IF(M9="","",IF(M9<=$AR$1,"O","X")) -> O | AS9: X | AT9: =IF(OR(F9="",AI9=""),"",IF(AND((F9<=85),(AI9>=15)),"O","X")) -> O | AU9: =IF(C9="","",IF(C9>=$AU$1,"O","X")) -> O | AV9: =IF(AO9="","",IF(AND(AO9="O",AP9="O",AR9="O",AT9="O",AU9="O"),"후보","X")) -> 
W10: =$A$4&" "&A11&"("&B11&","&C11&"^)" -> 구산동 광남백조('94.01,836^)
A11: 광남백조 | B11: '94.01 | C11: 836 | D11: 49.3 | E11: 15 | F11: 38 | G11: 12 | H11: 24 | M11: =I11-K11 -> 0 | N11: =IF(ISERROR(K11/I11),"",K11/I11) ->  | O11: =I11/E11 -> 0 | P11: =K11/E11 -> 0 | Q11: 2 | R11: 1 | S11: 계 | T11: 49 | W11: =D11 -> 49.3 | X11: =E11 -> 15 | Y11: =H11 -> 24 | Z11: =I11 -> 0 | AA11: =K11 -> 0 | AB11: =M11 -> 0 | AD11: 0 | AE11: =S11 -> 계 | AF11: =Q11&"/"&R11 -> 2/1 | AH11: 광남백조 | AI11: 15 | AJ11: =IF(AI11="","",$AJ$2) -> A- | AK11: A | AL11: A+ | AM11: B+ | AN11: =IF(AI11="","",$AN$2) -> C | AO11: =IF(N11="","",IF(N11>=$AO$1/100,"O","X")) ->  | AP11: =IF(I11="","",IF(I11<=$AP$1,"O","X")) ->  | AQ11: =IF(O11="","",IF(O11<=$AQ$1,"O","X")) -> O | AR11: =IF(M11="","",IF(M11<=$AR$1,"O","X")) -> O | AS11: X | AT11: =IF(OR(F11="",AI11=""),"",IF(AND((F11<=85),(AI11>=15)),"O","X")) -> O | AU11: =IF(C11="","",IF(C11>=$AU$1,"O","X")) -> O | AV11: =IF(AO11="","",IF(AND(AO11="O",AP11="O",AR11="O",AT11="O",AU11="O"),"후보","X")) -> 
A12: 광남백조 | B12: '94.01 | C12: 836 | D12: 72.2 | E12: 22 | F12: 60.1 | G12: 18 | H12: 812 | M12: =I12-K12 -> 0 | N12: =IF(ISERROR(K12/I12),"",K12/I12) ->  | O12: =I12/E12 -> 0 | P12: =K12/E12 -> 0 | Q12: 3 | R12: 1 | S12: 계 | T12: 72 | W12: =D12 -> 72.2 | X12: =E12 -> 22 | Y12: =H12 -> 812 | Z12: =I12 -> 0 | AA12: =K12 -> 0 | AB12: 0 | AD12: 0 | AE12: =S12 -> 계 | AF12: =Q12&"/"&R12 -> 3/1 | AH12: 광남백조 | AI12: 22 | AJ12: =IF(AI12="","",$AJ$2) -> A- | AK12: A | AL12: A+ | AM12: B+ | AN12: =IF(AI12="","",$AN$2) -> C | AO12: =IF(N12="","",IF(N12>=$AO$1/100,"O","X")) ->  | AP12: =IF(I12="","",IF(I12<=$AP$1,"O","X")) ->  | AQ12: =IF(O12="","",IF(O12<=$AQ$1,"O","X")) -> O | AR12: =IF(M12="","",IF(M12<=$AR$1,"O","X")) -> O | AS12: X | AT12: =IF(OR(F12="",AI12=""),"",IF(AND((F12<=85),(AI12>=15)),"O","X")) -> O | AU12: =IF(C12="","",IF(C12>=$AU$1,"O","X")) -> O | AV12: =IF(AO12="","",IF(AND(AO12="O",AP12="O",AR12="O",AT12="O",AU12="O"),"후보","X")) -> 
W13: =$A$4&" "&A14&"("&B14&","&C14&"^)" -> 구산동 김해구산주공3단지('00.03,810^)
A14: 김해구산주공3단지 | B14: '00.03 | C14: 810 | D14: 68.3 | E14: 21 | F14: 56 | G14: 17 | H14: 1 | M14: =I14-K14 -> 0 | N14: =IF(ISERROR(K14/I14),"",K14/I14) ->  | O14: =I14/E14 -> 0 | P14: =K14/E14 -> 0 | Q14: 3 | R14: 1 | S14: 계 | T14: 68B | W14: =D14 -> 68.3 | X14: 21 | Y14: =H14 -> 1 | Z14: 0 | AA14: =K14 -> 0 | AB14: =M14 -> 0 | AD14: 0 | AE14: =S14 -> 계 | AF14: =Q14&"/"&R14 -> 3/1 | AH14: 김해구산주공3단지 | AI14: 21 | AJ14: =IF(AI14="","",$AJ$2) -> A- | AK14: A | AL14: A+ | AM14: B+ | AN14: =IF(AI14="","",$AN$2) -> C | AO14: =IF(N14="","",IF(N14>=$AO$1/100,"O","X")) ->  | AP14: =IF(I14="","",IF(I14<=$AP$1,"O","X")) ->  | AQ14: =IF(O14="","",IF(O14<=$AQ$1,"O","X")) -> O | AR14: =IF(M14="","",IF(M14<=$AR$1,"O","X")) -> O | AS14: X | AT14: =IF(OR(F14="",AI14=""),"",IF(AND((F14<=85),(AI14>=15)),"O","X")) -> O | AU14: =IF(C14="","",IF(C14>=$AU$1,"O","X")) -> O | AV14: =IF(AO14="","",IF(AND(AO14="O",AP14="O",AR14="O",AT14="O",AU14="O"),"후보","X")) -> 
A15: 김해구산주공3단지 | B15: '00.03 | C15: 810 | D15: 72.1 | E15: 22 | F15: 59.8 | G15: 18 | H15: 30 | M15: =I15-K15 -> 0 | N15: =IF(ISERROR(K15/I15),"",K15/I15) ->  | O15: =I15/E15 -> 0 | P15: =K15/E15 -> 0 | Q15: 3 | R15: 1 | S15: 계 | T15: 72C | W15: 72.1 | X15: 22 | Y15: 30 | Z15: 0 | AA15: =K15 -> 0 | AB15: 0 | AD15: 0 | AE15: =S15 -> 계 | AF15: =Q15&"/"&R15 -> 3/1 | AH15: 김해구산주공3단지 | AI15: 22 | AJ15: =IF(AI15="","",$AJ$2) -> A- | AK15: A | AL15: A+ | AM15: B+ | AN15: =IF(AI15="","",$AN$2) -> C | AO15: =IF(N15="","",IF(N15>=$AO$1/100,"O","X")) ->  | AP15: =IF(I15="","",IF(I15<=$AP$1,"O","X")) ->  | AQ15: =IF(O15="","",IF(O15<=$AQ$1,"O","X")) -> O | AR15: =IF(M15="","",IF(M15<=$AR$1,"O","X")) -> O | AS15: X | AT15: =IF(OR(F15="",AI15=""),"",IF(AND((F15<=85),(AI15>=15)),"O","X")) -> O | AU15: =IF(C15="","",IF(C15>=$AU$1,"O","X")) -> O | AV15: =IF(AO15="","",IF(AND(AO15="O",AP15="O",AR15="O",AT15="O",AU15="O"),"후보","X")) -> 
A16: 김해구산주공3단지 | B16: '00.03 | C16: 810 | D16: 72.3 | E16: 22 | F16: 60 | G16: 18 | H16: 599 | M16: =I16-K16 -> 0 | N16: =IF(ISERROR(K16/I16),"",K16/I16) ->  | O16: =I16/E16 -> 0 | P16: =K16/E16 -> 0 | Q16: 3 | R16: 1 | S16: 계 | T16: 72A | W16: 72.3 | X16: 22 | Y16: 599 | Z16: 0 | AA16: =K16 -> 0 | AB16: 0 | AD16: 0 | AE16: =S16 -> 계 | AF16: =Q16&"/"&R16 -> 3/1 | AH16: 김해구산주공3단지 | AI16: 22 | AJ16: =IF(AI16="","",$AJ$2) -> A- | AK16: A | AL16: A+ | AM16: B+ | AN16: =IF(AI16="","",$AN$2) -> C | AO16: =IF(N16="","",IF(N16>=$AO$1/100,"O","X")) ->  | AP16: =IF(I16="","",IF(I16<=$AP$1,"O","X")) ->  | AQ16: =IF(O16="","",IF(O16<=$AQ$1,"O","X")) -> O | AR16: =IF(M16="","",IF(M16<=$AR$1,"O","X")) -> O | AS16: X | AT16: =IF(OR(F16="",AI16=""),"",IF(AND((F16<=85),(AI16>=15)),"O","X")) -> O | AU16: =IF(C16="","",IF(C16>=$AU$1,"O","X")) -> O | AV16: =IF(AO16="","",IF(AND(AO16="O",AP16="O",AR16="O",AT16="O",AU16="O"),"후보","X")) -> 
A17: 김해구산주공3단지 | B17: '00.03 | C17: 810 | D17: 97.4 | E17: 30 | F17: 84.9 | G17: 26 | H17: 180 | M17: =I17-K17 -> 0 | N17: =IF(ISERROR(K17/I17),"",K17/I17) ->  | O17: =I17/E17 -> 0 | P17: =K17/E17 -> 0 | Q17: 3 | R17: 2 | S17: 계 | T17: 97 | W17: 97.4 | X17: 30 | Y17: 180 | Z17: 0 | AA17: =K17 -> 0 | AB17: 0 | AD17: 0 | AE17: =S17 -> 계 | AF17: =Q17&"/"&R17 -> 3/2 | AH17: 김해구산주공3단지 | AI17: 30 | AJ17: =IF(AI17="","",$AJ$2) -> A- | AK17: A | AL17: A+ | AM17: B+ | AN17: =IF(AI17="","",$AN$2) -> C | AO17: =IF(N17="","",IF(N17>=$AO$1/100,"O","X")) ->  | AP17: =IF(I17="","",IF(I17<=$AP$1,"O","X")) ->  | AQ17: =IF(O17="","",IF(O17<=$AQ$1,"O","X")) -> O | AR17: =IF(M17="","",IF(M17<=$AR$1,"O","X")) -> O | AS17: X | AT17: =IF(OR(F17="",AI17=""),"",IF(AND((F17<=85),(AI17>=15)),"O","X")) -> O | AU17: =IF(C17="","",IF(C17>=$AU$1,"O","X")) -> O | AV17: =IF(AO17="","",IF(AND(AO17="O",AP17="O",AR17="O",AT17="O",AU17="O"),"후보","X")) -> 
W18: =$A$4&" "&A19&"("&B19&","&C19&"^)" -> 구산동 한라비발디('07.08,749^)
A19: 한라비발디 | B19: '07.08 | C19: 749 | D19: 112.9 | E19: 34 | F19: 85 | G19: 26 | H19: 389 | M19: =I19-K19 -> 0 | N19: =IF(ISERROR(K19/I19),"",K19/I19) ->  | O19: =I19/E19 -> 0 | P19: =K19/E19 -> 0 | Q19: 3 | R19: 2 | S19: 계 | T19: 112 | W19: =D19 -> 112.9 | X19: 34 | Y19: =H19 -> 389 | Z19: 0 | AA19: =K19 -> 0 | AB19: =M19 -> 0 | AD19: 0 | AE19: =S19 -> 계 | AF19: =Q19&"/"&R19 -> 3/2 | AH19: 한라비발디 | AI19: 34 | AJ19: =IF(AI19="","",$AJ$2) -> A- | AK19: A | AL19: A+ | AM19: B+ | AN19: =IF(AI19="","",$AN$2) -> C | AO19: =IF(N19="","",IF(N19>=$AO$1/100,"O","X")) ->  | AP19: =IF(I19="","",IF(I19<=$AP$1,"O","X")) ->  | AQ19: =IF(O19="","",IF(O19<=$AQ$1,"O","X")) -> O | AR19: =IF(M19="","",IF(M19<=$AR$1,"O","X")) -> O | AS19: X | AT19: =IF(OR(F19="",AI19=""),"",IF(AND((F19<=85),(AI19>=15)),"O","X")) -> O | AU19: =IF(C19="","",IF(C19>=$AU$1,"O","X")) -> O | AV19: =IF(AO19="","",IF(AND(AO19="O",AP19="O",AR19="O",AT19="O",AU19="O"),"후보","X")) -> 
A20: 한라비발디 | B20: '07.08 | C20: 749 | D20: 152.4 | E20: 46 | F20: 127.2 | G20: 39 | H20: 210 | M20: =I20-K20 -> 0 | N20: =IF(ISERROR(K20/I20),"",K20/I20) ->  | O20: =I20/E20 -> 0 | P20: =K20/E20 -> 0 | Q20: 4 | R20: 2 | S20: 계 | T20: 152 | W20: 152.4 | X20: 46 | Y20: 210 | Z20: 0 | AA20: =K20 -> 0 | AB20: 0 | AD20: 0 | AE20: =S20 -> 계 | AF20: =Q20&"/"&R20 -> 4/2 | AH20: 한라비발디 | AI20: 46 | AJ20: =IF(AI20="","",$AJ$2) -> A- | AK20: A | AL20: A+ | AM20: B+ | AN20: =IF(AI20="","",$AN$2) -> C | AO20: =IF(N20="","",IF(N20>=$AO$1/100,"O","X")) ->  | AP20: =IF(I20="","",IF(I20<=$AP$1,"O","X")) ->  | AQ20: =IF(O20="","",IF(O20<=$AQ$1,"O","X")) -> O | AR20: =IF(M20="","",IF(M20<=$AR$1,"O","X")) -> O | AS20: X | AT20: =IF(OR(F20="",AI20=""),"",IF(AND((F20<=85),(AI20>=15)),"O","X")) -> X | AU20: =IF(C20="","",IF(C20>=$AU$1,"O","X")) -> O | AV20: =IF(AO20="","",IF(AND(AO20="O",AP20="O",AR20="O",AT20="O",AU20="O"),"후보","X")) -> 
A21: 한라비발디 | B21: '07.08 | C21: 749 | D21: 182.8 | E21: 55 | F21: 155.6 | G21: 47 | H21: 150 | M21: =I21-K21 -> 0 | N21: =IF(ISERROR(K21/I21),"",K21/I21) ->  | O21: =I21/E21 -> 0 | P21: =K21/E21 -> 0 | Q21: 4 | R21: 2 | S21: 계 | T21: 182 | W21: 182.8 | X21: 55 | Y21: 150 | Z21: 0 | AA21: =K21 -> 0 | AB21: 0 | AD21: 0 | AE21: =S21 -> 계 | AF21: =Q21&"/"&R21 -> 4/2 | AH21: 한라비발디 | AI21: 55 | AJ21: =IF(AI21="","",$AJ$2) -> A- | AK21: A | AL21: A+ | AM21: B+ | AN21: =IF(AI21="","",$AN$2) -> C | AO21: =IF(N21="","",IF(N21>=$AO$1/100,"O","X")) ->  | AP21: =IF(I21="","",IF(I21<=$AP$1,"O","X")) ->  | AQ21: =IF(O21="","",IF(O21<=$AQ$1,"O","X")) -> O | AR21: =IF(M21="","",IF(M21<=$AR$1,"O","X")) -> O | AS21: X | AT21: =IF(OR(F21="",AI21=""),"",IF(AND((F21<=85),(AI21>=15)),"O","X")) -> X | AU21: =IF(C21="","",IF(C21>=$AU$1,"O","X")) -> O | AV21: =IF(AO21="","",IF(AND(AO21="O",AP21="O",AR21="O",AT21="O",AU21="O"),"후보","X")) -> 
W22: =$A$4&" "&A23&"("&B23&","&C23&"^)" -> 구산동 구산이진캐스빌2단지('13.09,668^)
A23: 구산이진캐스빌2단지 | B23: '13.09 | C23: 668 | D23: 94.3 | E23: 29 | F23: 73.1 | G23: 22 | H23: 122 | M23: =I23-K23 -> 0 | N23: =IF(ISERROR(K23/I23),"",K23/I23) ->  | O23: =I23/E23 -> 0 | P23: =K23/E23 -> 0 | Q23: 3 | R23: 2 | S23: 계 | T23: 94 | W23: =D23 -> 94.3 | X23: 29 | Y23: =H23 -> 122 | Z23: 0 | AA23: =K23 -> 0 | AB23: =M23 -> 0 | AD23: 0 | AE23: =S23 -> 계 | AF23: =Q23&"/"&R23 -> 3/2 | AH23: 구산이진캐스빌2단지 | AI23: 29 | AJ23: =IF(AI23="","",$AJ$2) -> A- | AK23: A | AL23: A+ | AM23: B+ | AN23: =IF(AI23="","",$AN$2) -> C | AO23: =IF(N23="","",IF(N23>=$AO$1/100,"O","X")) ->  | AP23: =IF(I23="","",IF(I23<=$AP$1,"O","X")) ->  | AQ23: =IF(O23="","",IF(O23<=$AQ$1,"O","X")) -> O | AR23: =IF(M23="","",IF(M23<=$AR$1,"O","X")) -> O | AS23: X | AT23: =IF(OR(F23="",AI23=""),"",IF(AND((F23<=85),(AI23>=15)),"O","X")) -> O | AU23: =IF(C23="","",IF(C23>=$AU$1,"O","X")) -> O | AV23: =IF(AO23="","",IF(AND(AO23="O",AP23="O",AR23="O",AT23="O",AU23="O"),"후보","X")) -> 
A24: 구산이진캐스빌2단지 | B24: '13.09 | C24: 668 | D24: 109.8 | E24: 33 | F24: 85 | G24: 26 | H24: 242 | M24: 0 | O24: 0 | P24: 0 | Q24: 3 | R24: 2 | S24: 계 | T24: 109A | W24: 109.8 | X24: 33 | Y24: 242 | Z24: 0 | AA24: 0 | AB24: 0 | AD24: 0 | AE24: 계 | AF24: 3/2 | AH24: 구산이진캐스빌2단지 | AI24: 33 | AJ24: A- | AK24: A | AL24: A+ | AM24: B+ | AN24: C | AQ24: O | AR24: O | AS24: X | AT24: O | AU24: O
A25: 구산이진캐스빌2단지 | B25: '13.09 | C25: 668 | D25: 111 | E25: 34 | F25: 85 | G25: 26 | H25: 235 | M25: 0 | O25: 0 | P25: 0 | Q25: 3 | R25: 2 | S25: 계 | T25: 110B | W25: 111 | X25: 34 | Y25: 235 | Z25: 0 | AA25: 0 | AB25: 0 | AD25: 0 | AE25: 계 | AF25: 3/2 | AH25: 구산이진캐스빌2단지 | AI25: 34 | AJ25: A- | AK25: A | AL25: A+ | AM25: B+ | AN25: C | AQ25: O | AR25: O | AS25: X | AT25: O | AU25: O
A26: 구산이진캐스빌2단지 | B26: '13.09 | C26: 668 | D26: 144.3 | E26: 44 | F26: 113.7 | G26: 34 | H26: 62 | M26: 0 | O26: 0 | P26: 0 | Q26: 4 | R26: 2 | S26: 계 | T26: 144 | W26: 144.3 | X26: 44 | Y26: 62 | Z26: 0 | AA26: 0 | AB26: 0 | AD26: 0 | AE26: 계 | AF26: 4/2 | AH26: 구산이진캐스빌2단지 | AI26: 44 | AJ26: A- | AK26: A | AL26: A+ | AM26: B+ | AN26: C | AQ26: O | AR26: O | AS26: X | AT26: X | AU26: O
A27: 구산이진캐스빌2단지 | B27: '13.09 | C27: 668 | D27: 213 | E27: 65 | F27: 166.4 | G27: 50 | H27: 5 | M27: 0 | O27: 0 | P27: 0 | Q27: 4 | R27: 2 | S27: 계 | T27: 213 | W27: 213 | X27: 65 | Y27: 5 | Z27: 0 | AA27: 0 | AB27: 0 | AD27: 0 | AE27: 계 | AF27: 4/2 | AH27: 구산이진캐스빌2단지 | AI27: 65 | AJ27: A- | AK27: A | AL27: A+ | AM27: B+ | AN27: C | AQ27: O | AR27: O | AS27: X | AT27: X | AU27: O
A28: 구산이진캐스빌2단지 | B28: '13.09 | C28: 668 | D28: 278.6 | E28: 84 | F28: 220 | G28: 67 | H28: 2 | M28: 0 | O28: 0 | P28: 0 | Q28: 4 | R28: 2 | S28: 계 | T28: 278 | W28: 278.6 | X28: 84 | Y28: 2 | Z28: 0 | AA28: 0 | AB28: 0 | AD28: 0 | AE28: 계 | AF28: 4/2 | AH28: 구산이진캐스빌2단지 | AI28: 84 | AJ28: A- | AK28: A | AL28: A+ | AM28: B+ | AN28: C | AQ28: O | AR28: O | AS28: X | AT28: X | AU28: O
W29: =$A$4&" "&A30&"("&B30&","&C30&"^)" -> 구산동 구산주공2단지('92.05,623^)
A30: 구산주공2단지 | B30: '92.05 | C30: 623 | D30: 57.5 | E30: 17 | F30: 41.9 | G30: 13 | H30: 623 | M30: =I30-K30 -> 0 | N30: =IF(ISERROR(K30/I30),"",K30/I30) ->  | O30: =I30/E30 -> 0 | P30: =K30/E30 -> 0 | Q30: 2 | R30: 1 | S30: 복 | T30: 57 | W30: =D30 -> 57.5 | X30: =E30 -> 17 | Y30: =H30 -> 623 | Z30: =I30 -> 0 | AA30: =K30 -> 0 | AB30: =M30 -> 0 | AC30: =N30 ->  | AD30: =O30 -> 0 | AE30: =S30 -> 복 | AF30: =Q30&"/"&R30 -> 2/1 | AH30: 구산주공2단지 | AI30: 17 | AJ30: =IF(AI30="","",$AJ$2) -> A- | AK30: A | AL30: A+ | AM30: B+ | AN30: =IF(AI30="","",$AN$2) -> C | AO30: =IF(N30="","",IF(N30>=$AO$1/100,"O","X")) ->  | AP30: =IF(I30="","",IF(I30<=$AP$1,"O","X")) ->  | AQ30: =IF(O30="","",IF(O30<=$AQ$1,"O","X")) -> O | AR30: =IF(M30="","",IF(M30<=$AR$1,"O","X")) -> O | AS30: X | AT30: =IF(OR(F30="",AI30=""),"",IF(AND((F30<=85),(AI30>=15)),"O","X")) -> O | AU30: =IF(C30="","",IF(C30>=$AU$1,"O","X")) -> O | AV30: =IF(AO30="","",IF(AND(AO30="O",AP30="O",AR30="O",AT30="O",AU30="O"),"후보","X")) -> 
W31: =$A$4&" "&A32&"("&B32&","&C32&"^)" -> 구산동 일동미라주('13.06,596^)
A32: 일동미라주 | B32: '13.06 | C32: 596 | D32: 115.1 | E32: 35 | F32: 84.5 | G32: 26 | H32: 116 | M32: =I32-K32 -> 0 | N32: =IF(ISERROR(K32/I32),"",K32/I32) ->  | O32: =I32/E32 -> 0 | P32: =K32/E32 -> 0 | Q32: 3 | R32: 2 | S32: 계 | T32: 115C | W32: =D32 -> 115.1 | X32: =E32 -> 35 | Y32: =H32 -> 116 | Z32: =I32 -> 0 | AA32: =K32 -> 0 | AB32: =M32 -> 0 | AC32: =N32 ->  | AD32: =O32 -> 0 | AE32: =S32 -> 계 | AF32: =Q32&"/"&R32 -> 3/2 | AH32: 일동미라주 | AI32: 35 | AJ32: =IF(AI32="","",$AJ$2) -> A- | AK32: A | AL32: A+ | AM32: B+ | AN32: =IF(AI32="","",$AN$2) -> C | AO32: =IF(N32="","",IF(N32>=$AO$1/100,"O","X")) ->  | AP32: =IF(I32="","",IF(I32<=$AP$1,"O","X")) ->  | AQ32: =IF(O32="","",IF(O32<=$AQ$1,"O","X")) -> O | AR32: =IF(M32="","",IF(M32<=$AR$1,"O","X")) -> O | AS32: X | AT32: =IF(OR(F32="",AI32=""),"",IF(AND((F32<=85),(AI32>=15)),"O","X")) -> O | AU32: =IF(C32="","",IF(C32>=$AU$1,"O","X")) -> O | AV32: =IF(AO32="","",IF(AND(AO32="O",AP32="O",AR32="O",AT32="O",AU32="O"),"후보","X")) -> 
A33: 일동미라주 | B33: '13.06 | C33: 596 | D33: 83.9 | E33: 25 | F33: 59.5 | G33: 18 | H33: 2 | M33: 0 | O33: 0 | P33: 0 | Q33: 3 | R33: 2 | S33: 계 | T33: 83F | W33: 83.9 | X33: 25 | Y33: 2 | Z33: 0 | AA33: 0 | AB33: 0 | AD33: 0 | AE33: 계 | AF33: 3/2 | AH33: 일동미라주 | AI33: 25 | AJ33: A- | AK33: A | AL33: A+ | AM33: B+ | AN33: C | AQ33: O | AR33: O | AS33: X | AT33: O | AU33: O
A34: 일동미라주 | B34: '13.06 | C34: 596 | D34: 84.4 | E34: 26 | F34: 59.9 | G34: 18 | H34: 60 | M34: 0 | O34: 0 | P34: 0 | Q34: 3 | R34: 2 | S34: 계 | T34: 84E | W34: 84.4 | X34: 26 | Y34: 60 | Z34: 0 | AA34: 0 | AB34: 0 | AD34: 0 | AE34: 계 | AF34: 3/2 | AH34: 일동미라주 | AI34: 26 | AJ34: A- | AK34: A | AL34: A+ | AM34: B+ | AN34: C | AQ34: O | AR34: O | AS34: X | AT34: O | AU34: O
A35: 일동미라주 | B35: '13.06 | C35: 596 | D35: 85.1 | E35: 26 | F35: 60 | G35: 18 | H35: 117 | M35: 0 | O35: 0 | P35: 0 | Q35: 3 | R35: 2 | S35: 계 | T35: 85D | W35: 85.1 | X35: 26 | Y35: 117 | Z35: 0 | AA35: 0 | AB35: 0 | AD35: 0 | AE35: 계 | AF35: 3/2 | AH35: 일동미라주 | AI35: =IF(E35="","",E35) -> 26 | AJ35: A- | AK35: A | AL35: A+ | AM35: B+ | AN35: C | AQ35: O | AR35: O | AS35: X | AT35: O | AU35: O
A36: 일동미라주 | B36: '13.06 | C36: 596 | D36: 85.4 | E36: 26 | F36: 59.5 | G36: 18 | H36: 2 | M36: 0 | O36: 0 | P36: 0 | Q36: 3 | R36: 2 | S36: 계 | T36: 85B | W36: 85.4 | X36: 26 | Y36: 2 | Z36: 0 | AA36: 0 | AB36: 0 | AD36: 0 | AE36: 계 | AF36: 3/2 | AH36: 일동미라주 | AI36: 26 | AJ36: A- | AK36: A | AL36: A+ | AM36: B+ | AN36: C | AQ36: O | AR36: O | AS36: X | AT36: O | AU36: O
A37: 일동미라주 | B37: '13.06 | C37: 596 | D37: 85.8 | E37: 26 | F37: 59.8 | G37: 18 | H37: 127 | M37: 0 | O37: 0 | P37: 0 | Q37: 3 | R37: 2 | S37: 계 | T37: 85A | W37: 85.8 | X37: 26 | Y37: 127 | Z37: 0 | AA37: 0 | AB37: 0 | AD37: 0 | AE37: 계 | AF37: 3/2 | AH37: =IF(A37="","",A37) -> 일동미라주 | AI37: 26 | AJ37: A- | AK37: A | AL37: A+ | AM37: B+ | AN37: C | AQ37: O | AR37: O | AS37: X | AT37: O | AU37: O
A38: 일동미라주 | B38: '13.06 | C38: 596 | D38: 85.8 | E38: 26 | F38: 59.8 | G38: 18 | H38: 6 | M38: 0 | O38: 0 | P38: 0 | Q38: 3 | R38: 2 | S38: 계 | T38: 85C | W38: 85.8 | X38: 26 | Y38: 6 | Z38: 0 | AA38: 0 | AB38: 0 | AD38: 0 | AE38: 계 | AF38: 3/2 | AH38: 일동미라주 | AI38: 26 | AJ38: A- | AK38: A | AL38: A+ | AM38: B+ | AN38: C | AQ38: O | AR38: O | AS38: X | AT38: O | AU38: O
A39: 일동미라주 | B39: '13.06 | C39: 596 | D39: 105.5 | E39: 32 | F39: 82.1 | G39: 25 | H39: 59 | M39: 0 | O39: 0 | P39: 0 | Q39: 3 | R39: 2 | S39: 계 | T39: 105A | W39: 105.5 | X39: 32 | Y39: 59 | Z39: 0 | AA39: 0 | AB39: 0 | AD39: 0 | AE39: 계 | AF39: 3/2 | AH39: 일동미라주 | AI39: 32 | AJ39: A- | AK39: A | AL39: A+ | AM39: B+ | AN39: C | AQ39: O | AR39: O | AS39: X | AT39: O | AU39: O
A40: 일동미라주 | B40: '13.06 | C40: 596 | D40: 105.5 | E40: 32 | F40: 82.1 | G40: 25 | H40: 1 | M40: 0 | O40: 0 | P40: 0 | Q40: 3 | R40: 2 | S40: 계 | T40: 105B | W40: 105.5 | X40: 32 | Y40: 1 | Z40: 0 | AA40: 0 | AB40: 0 | AD40: 0 | AE40: 계 | AF40: 3/2 | AH40: 일동미라주 | AI40: 32 | AJ40: A- | AK40: A | AL40: A+ | AM40: B+ | AN40: C | AQ40: O | AR40: O | AS40: X | AT40: O | AU40: O
A41: 일동미라주 | B41: '13.06 | C41: 596 | D41: 115.1 | E41: 35 | F41: 84.9 | G41: 26 | H41: 104 | M41: 0 | O41: 0 | P41: 0 | Q41: 3 | R41: 2 | S41: 계 | T41: 115A | W41: 115.1 | X41: 35 | Y41: 104 | Z41: 0 | AA41: 0 | AB41: 0 | AD41: 0 | AE41: 계 | AF41: 3/2 | AH41: 일동미라주 | AI41: 35 | AJ41: A- | AK41: A | AL41: A+ | AM41: B+ | AN41: C | AQ41: O | AR41: O | AS41: X | AT41: O | AU41: O
A42: 일동미라주 | B42: '13.06 | C42: 596 | D42: 115.1 | E42: 35 | F42: 84.9 | G42: 26 | H42: 2 | M42: 0 | O42: 0 | P42: 0 | Q42: 3 | R42: 2 | S42: 계 | T42: 115B | W42: 115.1 | X42: 35 | Y42: 2 | Z42: 0 | AA42: 0 | AB42: 0 | AD42: 0 | AE42: 계 | AF42: 3/2 | AH42: 일동미라주 | AI42: 35 | AJ42: A- | AK42: A | AL42: A+ | AM42: B+ | AN42: C | AQ42: O | AR42: O | AS42: X | AT42: O | AU42: O
W43: =$A$4&" "&A44&"("&B44&","&C44&"^)" -> 구산동 시영('94.01,567^)
A44: 시영 | B44: '94.01 | C44: 567 | D44: 66.1 | E44: 20 | F44: 49.9 | G44: 15 | H44: 413 | M44: =I44-K44 -> 0 | N44: =IF(ISERROR(K44/I44),"",K44/I44) ->  | O44: =I44/E44 -> 0 | P44: =K44/E44 -> 0 | Q44: 2 | R44: 1 | S44: 복 | T44: 66 | W44: =D44 -> 66.1 | X44: =E44 -> 20 | Y44: =H44 -> 413 | Z44: =I44 -> 0 | AA44: =K44 -> 0 | AB44: =M44 -> 0 | AD44: 0 | AE44: =S44 -> 복 | AF44: =Q44&"/"&R44 -> 2/1 | AH44: 시영 | AI44: 20 | AJ44: =IF(AI44="","",$AJ$2) -> A- | AK44: A | AL44: A+ | AM44: B+ | AN44: =IF(AI44="","",$AN$2) -> C | AO44: =IF(N44="","",IF(N44>=$AO$1/100,"O","X")) ->  | AP44: =IF(I44="","",IF(I44<=$AP$1,"O","X")) ->  | AQ44: =IF(O44="","",IF(O44<=$AQ$1,"O","X")) -> O | AR44: =IF(M44="","",IF(M44<=$AR$1,"O","X")) -> O | AS44: X | AT44: =IF(OR(F44="",AI44=""),"",IF(AND((F44<=85),(AI44>=15)),"O","X")) -> O | AU44: =IF(C44="","",IF(C44>=$AU$1,"O","X")) -> O | AV44: =IF(AO44="","",IF(AND(AO44="O",AP44="O",AR44="O",AT44="O",AU44="O"),"후보","X")) -> 
A45: 시영 | B45: '94.01 | C45: 567 | D45: 78.3 | E45: 24 | F45: 59.8 | G45: 18 | H45: 154 | M45: =I45-K45 -> 0 | N45: =IF(ISERROR(K45/I45),"",K45/I45) ->  | O45: =I45/E45 -> 0 | P45: =K45/E45 -> 0 | Q45: 3 | R45: 1 | S45: 복 | T45: 78 | W45: =D45 -> 78.3 | X45: =E45 -> 24 | Y45: =H45 -> 154 | Z45: =I45 -> 0 | AA45: =K45 -> 0 | AB45: 0 | AD45: 0 | AE45: =S45 -> 복 | AF45: =Q45&"/"&R45 -> 3/1 | AH45: 시영 | AI45: 24 | AJ45: =IF(AI45="","",$AJ$2) -> A- | AK45: A | AL45: A+ | AM45: B+ | AN45: =IF(AI45="","",$AN$2) -> C | AO45: =IF(N45="","",IF(N45>=$AO$1/100,"O","X")) ->  | AP45: =IF(I45="","",IF(I45<=$AP$1,"O","X")) ->  | AQ45: =IF(O45="","",IF(O45<=$AQ$1,"O","X")) -> O | AR45: =IF(M45="","",IF(M45<=$AR$1,"O","X")) -> O | AS45: X | AT45: =IF(OR(F45="",AI45=""),"",IF(AND((F45<=85),(AI45>=15)),"O","X")) -> O | AU45: =IF(C45="","",IF(C45>=$AU$1,"O","X")) -> O | AV45: =IF(AO45="","",IF(AND(AO45="O",AP45="O",AR45="O",AT45="O",AU45="O"),"후보","X")) -> 
W46: =$A$4&" "&A47&"("&B47&","&C47&"^)" -> 구산동 김해구산주공5단지('99.02,560^)
A47: 김해구산주공5단지 | B47: '99.02 | C47: 560 | D47: 61.2 | E47: 19 | F47: 49.1 | G47: 15 | H47: 140 | M47: =I47-K47 -> 0 | N47: =IF(ISERROR(K47/I47),"",K47/I47) ->  | O47: =I47/E47 -> 0 | P47: =K47/E47 -> 0 | Q47: 2 | R47: 1 | S47: 복 | T47: 61 | W47: =D47 -> 61.2 | X47: 19 | Y47: =H47 -> 140 | Z47: 0 | AA47: =K47 -> 0 | AB47: =M47 -> 0 | AD47: 0 | AE47: =S47 -> 복 | AF47: =Q47&"/"&R47 -> 2/1 | AH47: 김해구산주공5단지 | AI47: 19 | AJ47: =IF(AI47="","",$AJ$2) -> A- | AK47: A | AL47: A+ | AM47: B+ | AN47: =IF(AI47="","",$AN$2) -> C | AO47: =IF(N47="","",IF(N47>=$AO$1/100,"O","X")) ->  | AP47: =IF(I47="","",IF(I47<=$AP$1,"O","X")) ->  | AQ47: =IF(O47="","",IF(O47<=$AQ$1,"O","X")) -> O | AR47: =IF(M47="","",IF(M47<=$AR$1,"O","X")) -> O | AS47: X | AT47: =IF(OR(F47="",AI47=""),"",IF(AND((F47<=85),(AI47>=15)),"O","X")) -> O | AU47: =IF(C47="","",IF(C47>=$AU$1,"O","X")) -> O | AV47: =IF(AO47="","",IF(AND(AO47="O",AP47="O",AR47="O",AT47="O",AU47="O"),"후보","X")) -> 
A48: 김해구산주공5단지 | B48: '99.02 | C48: 560 | D48: 72.3 | E48: 22 | F48: 60 | G48: 18 | H48: 120 | M48: =I48-K48 -> 0 | N48: =IF(ISERROR(K48/I48),"",K48/I48) ->  | O48: =I48/E48 -> 0 | P48: =K48/E48 -> 0 | Q48: 3 | R48: 1 | S48: 복 | T48: 72 | W48: 72.3 | X48: 22 | Y48: 120 | Z48: 0 | AA48: =K48 -> 0 | AB48: 0 | AD48: 0 | AE48: =S48 -> 복 | AF48: =Q48&"/"&R48 -> 3/1 | AH48: 김해구산주공5단지 | AI48: 22 | AJ48: =IF(AI48="","",$AJ$2) -> A- | AK48: A | AL48: A+ | AM48: B+ | AN48: =IF(AI48="","",$AN$2) -> C | AO48: =IF(N48="","",IF(N48>=$AO$1/100,"O","X")) ->  | AP48: =IF(I48="","",IF(I48<=$AP$1,"O","X")) ->  | AQ48: =IF(O48="","",IF(O48<=$AQ$1,"O","X")) -> O | AR48: =IF(M48="","",IF(M48<=$AR$1,"O","X")) -> O | AS48: X | AT48: =IF(OR(F48="",AI48=""),"",IF(AND((F48<=85),(AI48>=15)),"O","X")) -> O | AU48: =IF(C48="","",IF(C48>=$AU$1,"O","X")) -> O | AV48: =IF(AO48="","",IF(AND(AO48="O",AP48="O",AR48="O",AT48="O",AU48="O"),"후보","X")) -> 
A49: 김해구산주공5단지 | B49: '99.02 | C49: 560 | D49: 74.7 | E49: 23 | F49: 60 | G49: 18 | H49: 300 | M49: =I49-K49 -> 0 | N49: =IF(ISERROR(K49/I49),"",K49/I49) ->  | O49: =I49/E49 -> 0 | P49: =K49/E49 -> 0 | Q49: 3 | R49: 1 | S49: 복 | T49: 74 | W49: 74.7 | X49: 23 | Y49: 300 | Z49: 0 | AA49: =K49 -> 0 | AB49: 0 | AD49: 0 | AE49: =S49 -> 복 | AF49: =Q49&"/"&R49 -> 3/1 | AH49: 김해구산주공5단지 | AI49: 23 | AJ49: =IF(AI49="","",$AJ$2) -> A- | AK49: A | AL49: A+ | AM49: B+ | AN49: =IF(AI49="","",$AN$2) -> C | AO49: =IF(N49="","",IF(N49>=$AO$1/100,"O","X")) ->  | AP49: =IF(I49="","",IF(I49<=$AP$1,"O","X")) ->  | AQ49: =IF(O49="","",IF(O49<=$AQ$1,"O","X")) -> O | AR49: =IF(M49="","",IF(M49<=$AR$1,"O","X")) -> O | AS49: X | AT49: =IF(OR(F49="",AI49=""),"",IF(AND((F49<=85),(AI49>=15)),"O","X")) -> O | AU49: =IF(C49="","",IF(C49>=$AU$1,"O","X")) -> O | AV49: =IF(AO49="","",IF(AND(AO49="O",AP49="O",AR49="O",AT49="O",AU49="O"),"후보","X")) -> 
W50: =$A$4&" "&A51&"("&B51&","&C51&"^)" -> 구산동 구산이진캐스빌1단지('13.09,510^)
A51: 구산이진캐스빌1단지 | B51: '13.09 | C51: 510 | D51: 95.8 | E51: 29 | F51: 73.1 | G51: 22 | H51: 223 | M51: =I51-K51 -> 0 | N51: =IF(ISERROR(K51/I51),"",K51/I51) ->  | O51: =I51/E51 -> 0 | P51: =K51/E51 -> 0 | Q51: 3 | R51: 2 | S51: 계 | T51: 95 | W51: =D51 -> 95.8 | X51: 29 | Y51: =H51 -> 223 | Z51: 0 | AA51: =K51 -> 0 | AB51: =M51 -> 0 | AD51: 0 | AE51: =S51 -> 계 | AF51: =Q51&"/"&R51 -> 3/2 | AH51: 구산이진캐스빌1단지 | AI51: 29 | AJ51: =IF(AI51="","",$AJ$2) -> A- | AK51: A | AL51: A+ | AM51: B+ | AN51: =IF(AI51="","",$AN$2) -> C | AO51: =IF(N51="","",IF(N51>=$AO$1/100,"O","X")) ->  | AP51: =IF(I51="","",IF(I51<=$AP$1,"O","X")) ->  | AQ51: =IF(O51="","",IF(O51<=$AQ$1,"O","X")) -> O | AR51: =IF(M51="","",IF(M51<=$AR$1,"O","X")) -> O | AS51: X | AT51: =IF(OR(F51="",AI51=""),"",IF(AND((F51<=85),(AI51>=15)),"O","X")) -> O | AU51: =IF(C51="","",IF(C51>=$AU$1,"O","X")) -> O | AV51: =IF(AO51="","",IF(AND(AO51="O",AP51="O",AR51="O",AT51="O",AU51="O"),"후보","X")) -> 
A52: 구산이진캐스빌1단지 | B52: '13.09 | C52: 510 | D52: 109.5 | E52: 33 | F52: 85 | G52: 26 | H52: 113 | M52: 0 | O52: 0 | P52: 0 | Q52: 3 | R52: 2 | S52: 계 | T52: 109A | W52: 109.5 | X52: 33 | Y52: 113 | Z52: 0 | AA52: 0 | AB52: 0 | AD52: 0 | AE52: 계 | AF52: 3/2 | AH52: 구산이진캐스빌1단지 | AI52: 33 | AJ52: A- | AK52: A | AL52: A+ | AM52: B+ | AN52: C | AQ52: O | AR52: O | AS52: X | AT52: O | AU52: O
A53: 구산이진캐스빌1단지 | B53: '13.09 | C53: 510 | D53: 110.7 | E53: 34 | F53: 85 | G53: 26 | H53: 138 | M53: 0 | O53: 0 | P53: 0 | Q53: 3 | R53: 2 | S53: 계 | T53: 110B | W53: 110.7 | X53: 34 | Y53: 138 | Z53: 0 | AA53: 0 | AB53: 0 | AD53: 0 | AE53: 계 | AF53: 3/2 | AH53: 구산이진캐스빌1단지 | AI53: 34 | AJ53: A- | AK53: A | AL53: A+ | AM53: B+ | AN53: C | AQ53: O | AR53: O | AS53: X | AT53: O | AU53: O
A54: 구산이진캐스빌1단지 | B54: '13.09 | C54: 510 | D54: 144.9 | E54: 44 | F54: 113.7 | G54: 34 | H54: 32 | M54: 0 | O54: 0 | P54: 0 | Q54: 4 | R54: 2 | S54: 계 | T54: 144 | W54: 144.9 | X54: 44 | Y54: 32 | Z54: 0 | AA54: 0 | AB54: 0 | AD54: 0 | AE54: 계 | AF54: 4/2 | AH54: 구산이진캐스빌1단지 | AI54: 44 | AJ54: A- | AK54: A | AL54: A+ | AM54: B+ | AN54: C | AQ54: O | AR54: O | AS54: X | AT54: X | AU54: O
A55: 구산이진캐스빌1단지 | B55: '13.09 | C55: 510 | D55: 213.8 | E55: 65 | F55: 166.4 | G55: 50 | H55: 3 | M55: 0 | O55: 0 | P55: 0 | Q55: 4 | R55: 2 | S55: 계 | T55: 213 | W55: 213.8 | X55: 65 | Y55: 3 | Z55: 0 | AA55: 0 | AB55: 0 | AD55: 0 | AE55: 계 | AF55: 4/2 | AH55: 구산이진캐스빌1단지 | AI55: 65 | AJ55: A- | AK55: A | AL55: A+ | AM55: B+ | AN55: C | AQ55: O | AR55: O | AS55: X | AT55: X | AU55: O
A56: 구산이진캐스빌1단지 | B56: '13.09 | C56: 510 | D56: 278.3 | E56: 84 | F56: 220 | G56: 67 | H56: 1 | M56: 0 | O56: 0 | P56: 0 | Q56: 4 | R56: 2 | S56: 계 | T56: 278 | W56: 278.3 | X56: 84 | Y56: 1 | Z56: 0 | AA56: 0 | AB56: 0 | AD56: 0 | AE56: 계 | AF56: 4/2 | AH56: 구산이진캐스빌1단지 | AI56: 84 | AJ56: A- | AK56: A | AL56: A+ | AM56: B+ | AN56: C | AQ56: O | AR56: O | AS56: X | AT56: X | AU56: O
W57: =$A$4&" "&A58&"("&B58&","&C58&"^)" -> 구산동 김해구산주공4단지('99.02,503^)
A58: 김해구산주공4단지 | B58: '99.02 | C58: 503 | D58: 64 | E58: 19 | F58: 49.6 | G58: 15 | H58: 503 | M58: =I58-K58 -> 0 | N58: =IF(ISERROR(K58/I58),"",K58/I58) ->  | O58: =I58/E58 -> 0 | P58: =K58/E58 -> 0 | Q58: 2 | R58: 1 | S58: 복 | T58: 63 | W58: =D58 -> 64 | X58: =E58 -> 19 | Y58: =H58 -> 503 | Z58: =I58 -> 0 | AA58: =K58 -> 0 | AB58: =M58 -> 0 | AC58: =N58 ->  | AD58: =O58 -> 0 | AE58: =S58 -> 복 | AF58: =Q58&"/"&R58 -> 2/1 | AH58: 김해구산주공4단지 | AI58: 19 | AJ58: =IF(AI58="","",$AJ$2) -> A- | AK58: A | AL58: A+ | AM58: B+ | AN58: =IF(AI58="","",$AN$2) -> C | AO58: =IF(N58="","",IF(N58>=$AO$1/100,"O","X")) ->  | AP58: =IF(I58="","",IF(I58<=$AP$1,"O","X")) ->  | AQ58: =IF(O58="","",IF(O58<=$AQ$1,"O","X")) -> O | AR58: =IF(M58="","",IF(M58<=$AR$1,"O","X")) -> O | AS58: X | AT58: =IF(OR(F58="",AI58=""),"",IF(AND((F58<=85),(AI58>=15)),"O","X")) -> O | AU58: =IF(C58="","",IF(C58>=$AU$1,"O","X")) -> O | AV58: =IF(AO58="","",IF(AND(AO58="O",AP58="O",AR58="O",AT58="O",AU58="O"),"후보","X")) -> 
W59: =$A$4&" "&A60&"("&B60&","&C60&"^)" -> 구산동 대동('93.05,240^)
A60: 대동 | B60: '93.05 | C60: 240 | D60: 111.4 | E60: 34 | F60: 92.5 | G60: 28 | H60: 45 | M60: =I60-K60 -> 0 | N60: =IF(ISERROR(K60/I60),"",K60/I60) ->  | O60: =I60/E60 -> 0 | P60: =K60/E60 -> 0 | Q60: 3 | R60: 2 | S60: 계 | T60: 111 | W60: =D60 -> 111.4 | X60: 34 | Y60: =H60 -> 45 | Z60: 0 | AA60: =K60 -> 0 | AB60: =M60 -> 0 | AD60: 0 | AE60: =S60 -> 계 | AF60: =Q60&"/"&R60 -> 3/2 | AH60: 대동 | AI60: 34 | AJ60: =IF(AI60="","",$AJ$2) -> A- | AK60: A | AL60: A+ | AM60: B+ | AN60: =IF(AI60="","",$AN$2) -> C | AO60: =IF(N60="","",IF(N60>=$AO$1/100,"O","X")) ->  | AP60: =IF(I60="","",IF(I60<=$AP$1,"O","X")) ->  | AQ60: =IF(O60="","",IF(O60<=$AQ$1,"O","X")) -> O | AR60: =IF(M60="","",IF(M60<=$AR$1,"O","X")) -> O | AS60: X | AT60: =IF(OR(F60="",AI60=""),"",IF(AND((F60<=85),(AI60>=15)),"O","X")) -> X | AU60: =IF(C60="","",IF(C60>=$AU$1,"O","X")) -> X | AV60: =IF(AO60="","",IF(AND(AO60="O",AP60="O",AR60="O",AT60="O",AU60="O"),"후보","X")) -> 
A61: 대동 | B61: '93.05 | C61: 240 | D61: 123.7 | E61: 37 | F61: 104 | G61: 32 | H61: 60 | M61: =I61-K61 -> 0 | N61: =IF(ISERROR(K61/I61),"",K61/I61) ->  | O61: =I61/E61 -> 0 | P61: =K61/E61 -> 0 | Q61: 3 | R61: 2 | S61: 계 | T61: 123 | W61: 123.7 | X61: 37 | Y61: 60 | Z61: 0 | AA61: =K61 -> 0 | AB61: 0 | AD61: 0 | AE61: =S61 -> 계 | AF61: =Q61&"/"&R61 -> 3/2 | AH61: 대동 | AI61: 37 | AJ61: =IF(AI61="","",$AJ$2) -> A- | AK61: A | AL61: A+ | AM61: B+ | AN61: =IF(AI61="","",$AN$2) -> C | AO61: =IF(N61="","",IF(N61>=$AO$1/100,"O","X")) ->  | AP61: =IF(I61="","",IF(I61<=$AP$1,"O","X")) ->  | AQ61: =IF(O61="","",IF(O61<=$AQ$1,"O","X")) -> O | AR61: =IF(M61="","",IF(M61<=$AR$1,"O","X")) -> O | AS61: X | AT61: =IF(OR(F61="",AI61=""),"",IF(AND((F61<=85),(AI61>=15)),"O","X")) -> X | AU61: =IF(C61="","",IF(C61>=$AU$1,"O","X")) -> X | AV61: =IF(AO61="","",IF(AND(AO61="O",AP61="O",AR61="O",AT61="O",AU61="O"),"후보","X")) -> 
A62: 대동 | B62: '93.05 | C62: 240 | D62: 155.3 | E62: 47 | F62: 133.4 | G62: 40 | H62: 120 | M62: =I62-K62 -> 0 | N62: =IF(ISERROR(K62/I62),"",K62/I62) ->  | O62: =I62/E62 -> 0 | P62: =K62/E62 -> 0 | Q62: 4 | R62: 2 | S62: 계 | T62: 155A | W62: 155.3 | X62: 47 | Y62: 120 | Z62: 0 | AA62: =K62 -> 0 | AB62: 0 | AD62: 0 | AE62: =S62 -> 계 | AF62: =Q62&"/"&R62 -> 4/2 | AH62: 대동 | AI62: 47 | AJ62: =IF(AI62="","",$AJ$2) -> A- | AK62: A | AL62: A+ | AM62: B+ | AN62: =IF(AI62="","",$AN$2) -> C | AO62: =IF(N62="","",IF(N62>=$AO$1/100,"O","X")) ->  | AP62: =IF(I62="","",IF(I62<=$AP$1,"O","X")) ->  | AQ62: =IF(O62="","",IF(O62<=$AQ$1,"O","X")) -> O | AR62: =IF(M62="","",IF(M62<=$AR$1,"O","X")) -> O | AS62: X | AT62: =IF(OR(F62="",AI62=""),"",IF(AND((F62<=85),(AI62>=15)),"O","X")) -> X | AU62: =IF(C62="","",IF(C62>=$AU$1,"O","X")) -> X | AV62: =IF(AO62="","",IF(AND(AO62="O",AP62="O",AR62="O",AT62="O",AU62="O"),"후보","X")) -> 
A63: 대동 | B63: '93.05 | C63: 240 | D63: 155.6 | E63: 47 | F63: 133.7 | G63: 41 | H63: 15 | M63: =I63-K63 -> 0 | N63: =IF(ISERROR(K63/I63),"",K63/I63) ->  | O63: =I63/E63 -> 0 | P63: =K63/E63 -> 0 | Q63: 4 | R63: 2 | S63: 계 | T63: 155B | W63: 155.6 | X63: 47 | Y63: 15 | Z63: 0 | AA63: =K63 -> 0 | AB63: 0 | AD63: 0 | AE63: =S63 -> 계 | AF63: =Q63&"/"&R63 -> 4/2 | AH63: 대동 | AI63: 47 | AJ63: =IF(AI63="","",$AJ$2) -> A- | AK63: A | AL63: A+ | AM63: B+ | AN63: =IF(AI63="","",$AN$2) -> C | AO63: =IF(N63="","",IF(N63>=$AO$1/100,"O","X")) ->  | AP63: =IF(I63="","",IF(I63<=$AP$1,"O","X")) ->  | AQ63: =IF(O63="","",IF(O63<=$AQ$1,"O","X")) -> O | AR63: =IF(M63="","",IF(M63<=$AR$1,"O","X")) -> O | AS63: X | AT63: =IF(OR(F63="",AI63=""),"",IF(AND((F63<=85),(AI63>=15)),"O","X")) -> X | AU63: =IF(C63="","",IF(C63>=$AU$1,"O","X")) -> X | AV63: =IF(AO63="","",IF(AND(AO63="O",AP63="O",AR63="O",AT63="O",AU63="O"),"후보","X")) -> 
W64: =$A$4&" "&A65&"("&B65&","&C65&"^)" -> 구산동 구산아이파크('13.12,203^)
A65: 구산아이파크 | B65: '13.12 | C65: 203 | D65: 95.9 | E65: 29 | F65: 72.9 | G65: 22 | H65: 16 | M65: =I65-K65 -> 0 | N65: =IF(ISERROR(K65/I65),"",K65/I65) ->  | O65: =I65/E65 -> 0 | P65: =K65/E65 -> 0 | Q65: 3 | R65: 2 | S65: 계 | T65: 95B | W65: =D65 -> 95.9 | X65: 29 | Y65: =H65 -> 16 | Z65: 0 | AA65: =K65 -> 0 | AB65: =M65 -> 0 | AD65: 0 | AE65: =S65 -> 계 | AF65: =Q65&"/"&R65 -> 3/2 | AH65: 구산아이파크 | AI65: 29 | AJ65: =IF(AI65="","",$AJ$2) -> A- | AK65: A | AL65: A+ | AM65: B+ | AN65: =IF(AI65="","",$AN$2) -> C | AO65: =IF(N65="","",IF(N65>=$AO$1/100,"O","X")) ->  | AP65: =IF(I65="","",IF(I65<=$AP$1,"O","X")) ->  | AQ65: =IF(O65="","",IF(O65<=$AQ$1,"O","X")) -> O | AR65: =IF(M65="","",IF(M65<=$AR$1,"O","X")) -> O | AS65: X | AT65: =IF(OR(F65="",AI65=""),"",IF(AND((F65<=85),(AI65>=15)),"O","X")) -> O | AU65: =IF(C65="","",IF(C65>=$AU$1,"O","X")) -> X | AV65: =IF(AO65="","",IF(AND(AO65="O",AP65="O",AR65="O",AT65="O",AU65="O"),"후보","X")) -> 
A66: 구산아이파크 | B66: '13.12 | C66: 203 | D66: 98.2 | E66: 30 | F66: 72.8 | G66: 22 | H66: 34 | M66: =I66-K66 -> 0 | N66: =IF(ISERROR(K66/I66),"",K66/I66) ->  | O66: =I66/E66 -> 0 | P66: =K66/E66 -> 0 | Q66: 3 | R66: 2 | S66: 계 | T66: 98A | W66: 98.2 | X66: 30 | Y66: 34 | Z66: 0 | AA66: =K66 -> 0 | AB66: 0 | AD66: 0 | AE66: =S66 -> 계 | AF66: =Q66&"/"&R66 -> 3/2 | AH66: 구산아이파크 | AI66: 30 | AJ66: =IF(AI66="","",$AJ$2) -> A- | AK66: A | AL66: A+ | AM66: B+ | AN66: =IF(AI66="","",$AN$2) -> C | AO66: =IF(N66="","",IF(N66>=$AO$1/100,"O","X")) ->  | AP66: =IF(I66="","",IF(I66<=$AP$1,"O","X")) ->  | AQ66: =IF(O66="","",IF(O66<=$AQ$1,"O","X")) -> O | AR66: =IF(M66="","",IF(M66<=$AR$1,"O","X")) -> O | AS66: X | AT66: =IF(OR(F66="",AI66=""),"",IF(AND((F66<=85),(AI66>=15)),"O","X")) -> O | AU66: =IF(C66="","",IF(C66>=$AU$1,"O","X")) -> X | AV66: =IF(AO66="","",IF(AND(AO66="O",AP66="O",AR66="O",AT66="O",AU66="O"),"후보","X")) -> 
A67: 구산아이파크 | B67: '13.12 | C67: 203 | D67: 111.2 | E67: 34 | F67: 85 | G67: 26 | H67: 19 | M67: =I67-K67 -> 0 | N67: =IF(ISERROR(K67/I67),"",K67/I67) ->  | O67: =I67/E67 -> 0 | P67: =K67/E67 -> 0 | Q67: 3 | R67: 2 | S67: 계 | T67: 111A | W67: 111.2 | X67: 34 | Y67: 19 | Z67: 0 | AA67: =K67 -> 0 | AB67: 0 | AD67: 0 | AE67: =S67 -> 계 | AF67: =Q67&"/"&R67 -> 3/2 | AH67: 구산아이파크 | AI67: 34 | AJ67: =IF(AI67="","",$AJ$2) -> A- | AK67: A | AL67: A+ | AM67: B+ | AN67: =IF(AI67="","",$AN$2) -> C | AO67: =IF(N67="","",IF(N67>=$AO$1/100,"O","X")) ->  | AP67: =IF(I67="","",IF(I67<=$AP$1,"O","X")) ->  | AQ67: =IF(O67="","",IF(O67<=$AQ$1,"O","X")) -> O | AR67: =IF(M67="","",IF(M67<=$AR$1,"O","X")) -> O | AS67: X | AT67: =IF(OR(F67="",AI67=""),"",IF(AND((F67<=85),(AI67>=15)),"O","X")) -> O | AU67: =IF(C67="","",IF(C67>=$AU$1,"O","X")) -> X | AV67: =IF(AO67="","",IF(AND(AO67="O",AP67="O",AR67="O",AT67="O",AU67="O"),"후보","X")) -> 
A68: 구산아이파크 | B68: '13.12 | C68: 203 | D68: 111.6 | E68: 34 | F68: 85 | G68: 26 | H68: 78 | M68: =I68-K68 -> 0 | N68: =IF(ISERROR(K68/I68),"",K68/I68) ->  | O68: =I68/E68 -> 0 | P68: =K68/E68 -> 0 | Q68: 3 | R68: 2 | S68: 계 | T68: 111B | W68: 111.6 | X68: 34 | Y68: 78 | Z68: 0 | AA68: =K68 -> 0 | AB68: 0 | AD68: 0 | AE68: =S68 -> 계 | AF68: =Q68&"/"&R68 -> 3/2 | AH68: 구산아이파크 | AI68: 34 | AJ68: =IF(AI68="","",$AJ$2) -> A- | AK68: A | AL68: A+ | AM68: B+ | AN68: =IF(AI68="","",$AN$2) -> C | AO68: =IF(N68="","",IF(N68>=$AO$1/100,"O","X")) ->  | AP68: =IF(I68="","",IF(I68<=$AP$1,"O","X")) ->  | AQ68: =IF(O68="","",IF(O68<=$AQ$1,"O","X")) -> O | AR68: =IF(M68="","",IF(M68<=$AR$1,"O","X")) -> O | AS68: X | AT68: =IF(OR(F68="",AI68=""),"",IF(AND((F68<=85),(AI68>=15)),"O","X")) -> O | AU68: =IF(C68="","",IF(C68>=$AU$1,"O","X")) -> X | AV68: =IF(AO68="","",IF(AND(AO68="O",AP68="O",AR68="O",AT68="O",AU68="O"),"후보","X")) -> 
A69: 구산아이파크 | B69: '13.12 | C69: 203 | D69: 113.5 | E69: 34 | F69: 85 | G69: 26 | H69: 56 | M69: =I69-K69 -> 0 | N69: =IF(ISERROR(K69/I69),"",K69/I69) ->  | O69: =I69/E69 -> 0 | P69: =K69/E69 -> 0 | Q69: 3 | R69: 2 | S69: 계 | T69: 113C | W69: 113.5 | X69: 34 | Y69: 56 | Z69: 0 | AA69: =K69 -> 0 | AB69: 0 | AD69: 0 | AE69: =S69 -> 계 | AF69: =Q69&"/"&R69 -> 3/2 | AH69: 구산아이파크 | AI69: 34 | AJ69: =IF(AI69="","",$AJ$2) -> A- | AK69: A | AL69: A+ | AM69: B+ | AN69: =IF(AI69="","",$AN$2) -> C | AO69: =IF(N69="","",IF(N69>=$AO$1/100,"O","X")) ->  | AP69: =IF(I69="","",IF(I69<=$AP$1,"O","X")) ->  | AQ69: =IF(O69="","",IF(O69<=$AQ$1,"O","X")) -> O | AR69: =IF(M69="","",IF(M69<=$AR$1,"O","X")) -> O | AS69: X | AT69: =IF(OR(F69="",AI69=""),"",IF(AND((F69<=85),(AI69>=15)),"O","X")) -> O | AU69: =IF(C69="","",IF(C69>=$AU$1,"O","X")) -> X | AV69: =IF(AO69="","",IF(AND(AO69="O",AP69="O",AR69="O",AT69="O",AU69="O"),"후보","X")) -> 

Sheet 도량동
A1: =단지추출!A1 -> 구미시 | I1: 추출대상 | X1: 매매가 최대(색상 최대) | AA1: =단지추출!AA1 -> 70000 | AH1: =A1 -> 구미시 | AJ1: =A1&" 전체 등급" -> 구미시 전체 등급 | AO1: =단지추출!AO1 -> 80 | AP1: =단지추출!AP1 -> 45000 | AQ1: =단지추출!AQ1 -> 1000 | AR1: =단지추출!AR1 -> 6000 | AU1: =단지추출!AU1 -> 300
A2: =단지추출!A2 -> 2022-01-01 | X2: 매매가 최소(색상 최소) | AA2: =단지추출!AA2 -> 10000 | AH2: =AH1 &" " &A4 -> 구미시 내동 | AJ2: =단지추출!AJ2 -> A- | AK2: =단지추출!AK2 -> A | AL2: =단지추출!AL2 -> A | AM2: =단지추출!AM2 -> A | AN2: =단지추출!AN2 -> C | AO2: 원금보전 | AR2: 수익성 | AT2: 환금성
A3: 단지명 | B3: 입주 연도 | C3: 총세 대수 | D3: 공급 (m2) | E3: 공급 면적 | F3: 전용 (m2) | G3: 전용 면적 | H3: 세대 | I3: 매매 최저가 | J3: 층 | K3: 전세 최고가 | L3: 층 | M3: 매전갭 | N3: 전세 가율 | O3: 매매 평단 | P3: 전세 평단 | Q3: 방 | R3: 욕 실 | S3: 구 조 | T3: 매/전/월 Type | U3: 비고 | W3: 공급 (m2) | X3: 공급 면적 | Y3: 세대 | Z3: 매매가 | AA3: 전세가 | AB3: 매전갭 | AC3: 전세 가율 | AD3: 평단가 | AE3: 구 조 | AF3: 방/ 욕실 | AH3: =IF(A3="","",A3) -> 단지명 | AI3: =IF(E3="","",E3) -> 공급 면적 | AJ3: 직장 | AK3: 교통 | AL3: 학군 | AM3: 환경 | AN3: 공급 | AO3: ="전세가율★ ("&AO1&"%↑)" -> 전세가율★ (80%↑) | AP3: ="절대가★ ("&AP1/10000&"억↓)" -> 절대가★ (4.5억↓) | AQ3: ="지역평단가 ("&AQ1&"↓)" -> 지역평단가 (1000↓) | AR3: ="투자규모★ (갭"&AR1/1000&"천↓)" -> 투자규모★ (갭6천↓) | AS3: 전고점 이하 | AT3: 평형★ (15~34평) | AU3: ="단지규모★ ("&AU1&"^↑)" -> 단지규모★ (300^↑) | AV3: 투자후보
A4: 내동
W5: =$A$4&" "&A6&"("&B6&","&C6&"^)" -> 내동 내동한일('86.07,936^) | AH5: =IF(A5="","",A5) -> 
A6: 내동한일 | B6: '86.07 | C6: 936 | D6: 61.8 | E6: 19 | F6: 43.6 | G6: 13 | H6: 192 | M6: =I6-K6 -> 0 | N6: =IF(ISERROR(K6/I6),"",K6/I6) ->  | O6: =I6/E6 -> 0 | P6: =K6/E6 -> 0 | Q6: 2 | R6: 1 | S6: 복 | T6: 61 | W6: =D6 -> 61.8 | X6: =E6 -> 19 | Y6: =H6 -> 192 | Z6: =I6 -> 0 | AA6: =K6 -> 0 | AB6: =M6 -> 0 | AD6: 0 | AE6: =S6 -> 복 | AF6: =Q6&"/"&R6 -> 2/1 | AH6: 내동한일 | AI6: 19 | AJ6: =IF(AI6="","",$AJ$2) -> A- | AK6: A | AL6: A+ | AM6: B+ | AN6: =IF(AI6="","",$AN$2) -> C | AO6: =IF(N6="","",IF(N6>=$AO$1/100,"O","X")) ->  | AP6: =IF(I6="","",IF(I6<=$AP$1,"O","X")) ->  | AQ6: =IF(O6="","",IF(O6<=$AQ$1,"O","X")) -> O | AR6: =IF(M6="","",IF(M6<=$AR$1,"O","X")) -> O | AS6: X | AT6: =IF(OR(F6="",AI6=""),"",IF(AND((F6<=85),(AI6>=15)),"O","X")) -> O | AU6: =IF(C6="","",IF(C6>=$AU$1,"O","X")) -> O | AV6: =IF(AO6="","",IF(AND(AO6="O",AP6="O",AR6="O",AT6="O",AU6="O"),"후보","X")) -> 
A7: 내동한일 | B7: '86.07 | C7: 936 | D7: 76.3 | E7: 23 | F7: 57.3 | G7: 17 | H7: 744 | M7: =I7-K7 -> 0 | N7: =IF(ISERROR(K7/I7),"",K7/I7) ->  | O7: =I7/E7 -> 0 | P7: =K7/E7 -> 0 | Q7: 2 | R7: 1 | S7: 복 | T7: 76 | W7: =D7 -> 76.3 | X7: =E7 -> 23 | Y7: =H7 -> 744 | Z7: =I7 -> 0 | AA7: =K7 -> 0 | AB7: 0 | AD7: 0 | AE7: =S7 -> 복 | AF7: =Q7&"/"&R7 -> 2/1 | AH7: 내동한일 | AI7: 23 | AJ7: =IF(AI7="","",$AJ$2) -> A- | AK7: A | AL7: A+ | AM7: B+ | AN7: =IF(AI7="","",$AN$2) -> C | AO7: =IF(N7="","",IF(N7>=$AO$1/100,"O","X")) ->  | AP7: =IF(I7="","",IF(I7<=$AP$1,"O","X")) ->  | AQ7: =IF(O7="","",IF(O7<=$AQ$1,"O","X")) -> O | AR7: =IF(M7="","",IF(M7<=$AR$1,"O","X")) -> O | AS7: X | AT7: =IF(OR(F7="",AI7=""),"",IF(AND((F7<=85),(AI7>=15)),"O","X")) -> O | AU7: =IF(C7="","",IF(C7>=$AU$1,"O","X")) -> O | AV7: =IF(AO7="","",IF(AND(AO7="O",AP7="O",AR7="O",AT7="O",AU7="O"),"후보","X")) -> 
W8: =$A$4&" "&A9&"("&B9&","&C9&"^)" -> 내동 삼성('96.06,862^)
A9: 삼성 | B9: '96.06 | C9: 862 | D9: 74.1 | E9: 22 | F9: 59.7 | G9: 18 | H9: 220 | M9: =I9-K9 -> 0 | N9: =IF(ISERROR(K9/I9),"",K9/I9) ->  | O9: =I9/E9 -> 0 | P9: =K9/E9 -> 0 | Q9: 3 | R9: 1 | S9: 계 | T9: 74A | W9: =D9 -> 74.1 | X9: 22 | Y9: =H9 -> 220 | Z9: 0 | AA9: =K9 -> 0 | AB9: =M9 -> 0 | AD9: 0 | AE9: =S9 -> 계 | AF9: =Q9&"/"&R9 -> 3/1 | AH9: 삼성 | AI9: 22 | AJ9: =IF(AI9="","",$AJ$2) -> A- | AK9: A | AL9: A+ | AM9: B+ | AN9: =IF(AI9="","",$AN$2) -> C | AO9: =IF(N9="","",IF(N9>=$AO$1/100,"O","X")) ->  | AP9: =IF(I9="","",IF(I9<=$AP$1,"O","X")) ->  | AQ9: =IF(O9="","",IF(O9<=$AQ$1,"O","X")) -> O | AR9: =IF(M9="","",IF(M9<=$AR$1,"O","X")) -> O | AS9: X | AT9: =IF(OR(F9="",AI9=""),"",IF(AND((F9<=85),(AI9>=15)),"O","X")) -> O | AU9: =IF(C9="","",IF(C9>=$AU$1,"O","X")) -> O | AV9: =IF(AO9="","",IF(AND(AO9="O",AP9="O",AR9="O",AT9="O",AU9="O"),"후보","X")) -> 
A10: 삼성 | B10: '96.06 | C10: 862 | D10: 74.2 | E10: 22 | F10: 59.9 | G10: 18 | H10: 240 | M10: =I10-K10 -> 0 | N10: =IF(ISERROR(K10/I10),"",K10/I10) ->  | O10: =I10/E10 -> 0 | P10: =K10/E10 -> 0 | Q10: 3 | R10: 1 | S10: 계 | T10: 74B | W10: 74.2 | X10: 22 | Y10: 240 | Z10: 0 | AA10: =K10 -> 0 | AB10: 0 | AD10: 0 | AE10: =S10 -> 계 | AF10: =Q10&"/"&R10 -> 3/1 | AH10: 삼성 | AI10: 22 | AJ10: =IF(AI10="","",$AJ$2) -> A- | AK10: A | AL10: A+ | AM10: B+ | AN10: =IF(AI10="","",$AN$2) -> C | AO10: =IF(N10="","",IF(N10>=$AO$1/100,"O","X")) ->  | AP10: =IF(I10="","",IF(I10<=$AP$1,"O","X")) ->  | AQ10: =IF(O10="","",IF(O10<=$AQ$1,"O","X")) -> O | AR10: =IF(M10="","",IF(M10<=$AR$1,"O","X")) -> O | AS10: X | AT10: =IF(OR(F10="",AI10=""),"",IF(AND((F10<=85),(AI10>=15)),"O","X")) -> O | AU10: =IF(C10="","",IF(C10>=$AU$1,"O","X")) -> O | AV10: =IF(AO10="","",IF(AND(AO10="O",AP10="O",AR10="O",AT10="O",AU10="O"),"후보","X")) -> 
A11: 삼성 | B11: '96.06 | C11: 862 | D11: 99.4 | E11: 30 | F11: 85 | G11: 26 | H11: 402 | M11: =I11-K11 -> 0 | N11: =IF(ISERROR(K11/I11),"",K11/I11) ->  | O11: =I11/E11 -> 0 | P11: =K11/E11 -> 0 | Q11: 3 | R11: 2 | S11: 계 | T11: 99 | W11: 99.4 | X11: 30 | Y11: 402 | Z11: 0 | AA11: =K11 -> 0 | AB11: 0 | AD11: 0 | AE11: =S11 -> 계 | AF11: =Q11&"/"&R11 -> 3/2 | AH11: 삼성 | AI11: 30 | AJ11: =IF(AI11="","",$AJ$2) -> A- | AK11: A | AL11: A+ | AM11: B+ | AN11: =IF(AI11="","",$AN$2) -> C | AO11: =IF(N11="","",IF(N11>=$AO$1/100,"O","X")) ->  | AP11: =IF(I11="","",IF(I11<=$AP$1,"O","X")) ->  | AQ11: =IF(O11="","",IF(O11<=$AQ$1,"O","X")) -> O | AR11: =IF(M11="","",IF(M11<=$AR$1,"O","X")) -> O | AS11: X | AT11: =IF(OR(F11="",AI11=""),"",IF(AND((F11<=85),(AI11>=15)),"O","X")) -> O | AU11: =IF(C11="","",IF(C11>=$AU$1,"O","X")) -> O | AV11: =IF(AO11="","",IF(AND(AO11="O",AP11="O",AR11="O",AT11="O",AU11="O"),"후보","X")) -> 
W12: =$A$4&" "&A13&"("&B13&","&C13&"^)" -> 내동 동아1차('97.01,720^)
A13: 동아1차 | B13: '97.01 | C13: 720 | D13: 120.7 | E13: 37 | F13: 100 | G13: 30 | H13: 300 | M13: =I13-K13 -> 0 | N13: =IF(ISERROR(K13/I13),"",K13/I13) ->  | O13: =I13/E13 -> 0 | P13: =K13/E13 -> 0 | Q13: 4 | R13: 2 | S13: 계 | T13: 120 | W13: =D13 -> 120.7 | X13: 37 | Y13: =H13 -> 300 | Z13: 0 | AA13: =K13 -> 0 | AB13: =M13 -> 0 | AD13: 0 | AE13: =S13 -> 계 | AF13: =Q13&"/"&R13 -> 4/2 | AH13: 동아1차 | AI13: 37 | AJ13: =IF(AI13="","",$AJ$2) -> A- | AK13: A | AL13: A+ | AM13: B+ | AN13: =IF(AI13="","",$AN$2) -> C | AO13: =IF(N13="","",IF(N13>=$AO$1/100,"O","X")) ->  | AP13: =IF(I13="","",IF(I13<=$AP$1,"O","X")) ->  | AQ13: =IF(O13="","",IF(O13<=$AQ$1,"O","X")) -> O | AR13: =IF(M13="","",IF(M13<=$AR$1,"O","X")) -> O | AS13: X | AT13: =IF(OR(F13="",AI13=""),"",IF(AND((F13<=85),(AI13>=15)),"O","X")) -> X | AU13: =IF(C13="","",IF(C13>=$AU$1,"O","X")) -> O | AV13: =IF(AO13="","",IF(AND(AO13="O",AP13="O",AR13="O",AT13="O",AU13="O"),"후보","X")) -> 
A14: 동아1차 | B14: '97.01 | C14: 720 | D14: 150.7 | E14: 46 | F14: 127.7 | G14: 39 | H14: 360 | M14: =I14-K14 -> 0 | N14: =IF(ISERROR(K14/I14),"",K14/I14) ->  | O14: =I14/E14 -> 0 | P14: =K14/E14 -> 0 | Q14: 4 | R14: 2 | S14: 계 | T14: 150 | W14: 150.7 | X14: 46 | Y14: 360 | Z14: 0 | AA14: =K14 -> 0 | AB14: 0 | AD14: 0 | AE14: =S14 -> 계 | AF14: =Q14&"/"&R14 -> 4/2 | AH14: 동아1차 | AI14: 46 | AJ14: =IF(AI14="","",$AJ$2) -> A- | AK14: A | AL14: A+ | AM14: B+ | AN14: =IF(AI14="","",$AN$2) -> C | AO14: =IF(N14="","",IF(N14>=$AO$1/100,"O","X")) ->  | AP14: =IF(I14="","",IF(I14<=$AP$1,"O","X")) ->  | AQ14: =IF(O14="","",IF(O14<=$AQ$1,"O","X")) -> O | AR14: =IF(M14="","",IF(M14<=$AR$1,"O","X")) -> O | AS14: X | AT14: =IF(OR(F14="",AI14=""),"",IF(AND((F14<=85),(AI14>=15)),"O","X")) -> X | AU14: =IF(C14="","",IF(C14>=$AU$1,"O","X")) -> O | AV14: =IF(AO14="","",IF(AND(AO14="O",AP14="O",AR14="O",AT14="O",AU14="O"),"후보","X")) -> 
A15: 동아1차 | B15: '97.01 | C15: 720 | D15: 193.9 | E15: 59 | F15: 165 | G15: 50 | H15: 60 | M15: =I15-K15 -> 0 | N15: =IF(ISERROR(K15/I15),"",K15/I15) ->  | O15: =I15/E15 -> 0 | P15: =K15/E15 -> 0 | Q15: 5 | R15: 2 | S15: 계 | T15: 193 | W15: 193.9 | X15: 59 | Y15: 60 | Z15: 0 | AA15: =K15 -> 0 | AB15: 0 | AD15: 0 | AE15: =S15 -> 계 | AF15: =Q15&"/"&R15 -> 5/2 | AH15: 동아1차 | AI15: 59 | AJ15: =IF(AI15="","",$AJ$2) -> A- | AK15: A | AL15: A+ | AM15: B+ | AN15: =IF(AI15="","",$AN$2) -> C | AO15: =IF(N15="","",IF(N15>=$AO$1/100,"O","X")) ->  | AP15: =IF(I15="","",IF(I15<=$AP$1,"O","X")) ->  | AQ15: =IF(O15="","",IF(O15<=$AQ$1,"O","X")) -> O | AR15: =IF(M15="","",IF(M15<=$AR$1,"O","X")) -> O | AS15: X | AT15: =IF(OR(F15="",AI15=""),"",IF(AND((F15<=85),(AI15>=15)),"O","X")) -> X | AU15: =IF(C15="","",IF(C15>=$AU$1,"O","X")) -> O | AV15: =IF(AO15="","",IF(AND(AO15="O",AP15="O",AR15="O",AT15="O",AU15="O"),"후보","X")) -> 
W16: =$A$4&" "&A17&"("&B17&","&C17&"^)" -> 내동 홍익('90.07,708^)
A17: 홍익 | B17: '90.07 | C17: 708 | D17: 66.4 | E17: 20 | F17: 59.8 | G17: 18 | H17: 708 | M17: =I17-K17 -> 0 | N17: =IF(ISERROR(K17/I17),"",K17/I17) ->  | O17: =I17/E17 -> 0 | P17: =K17/E17 -> 0 | Q17: 3 | R17: 1 | S17: 계 | T17: 66 | W17: =D17 -> 66.4 | X17: =E17 -> 20 | Y17: =H17 -> 708 | Z17: =I17 -> 0 | AA17: =K17 -> 0 | AB17: =M17 -> 0 | AC17: =N17 ->  | AD17: =O17 -> 0 | AE17: =S17 -> 계 | AF17: =Q17&"/"&R17 -> 3/1 | AH17: 홍익 | AI17: 20 | AJ17: =IF(AI17="","",$AJ$2) -> A- | AK17: A | AL17: A+ | AM17: B+ | AN17: =IF(AI17="","",$AN$2) -> C | AO17: =IF(N17="","",IF(N17>=$AO$1/100,"O","X")) ->  | AP17: =IF(I17="","",IF(I17<=$AP$1,"O","X")) ->  | AQ17: =IF(O17="","",IF(O17<=$AQ$1,"O","X")) -> O | AR17: =IF(M17="","",IF(M17<=$AR$1,"O","X")) -> O | AS17: X | AT17: =IF(OR(F17="",AI17=""),"",IF(AND((F17<=85),(AI17>=15)),"O","X")) -> O | AU17: =IF(C17="","",IF(C17>=$AU$1,"O","X")) -> O | AV17: =IF(AO17="","",IF(AND(AO17="O",AP17="O",AR17="O",AT17="O",AU17="O"),"후보","X")) -> 
W18: =$A$4&" "&A19&"("&B19&","&C19&"^)" -> 내동 건영('98.12,558^)
A19: 건영 | B19: '98.12 | C19: 558 | D19: 85.8 | E19: 26 | F19: 84.9 | G19: 26 | H19: 120 | M19: =I19-K19 -> 0 | N19: =IF(ISERROR(K19/I19),"",K19/I19) ->  | O19: =I19/E19 -> 0 | P19: =K19/E19 -> 0 | Q19: 3 | R19: 2 | S19: 계 | T19: 85 | W19: =D19 -> 85.8 | X19: 26 | Y19: =H19 -> 120 | Z19: 0 | AA19: =K19 -> 0 | AB19: =M19 -> 0 | AD19: 0 | AE19: =S19 -> 계 | AF19: =Q19&"/"&R19 -> 3/2 | AH19: 건영 | AI19: 26 | AJ19: =IF(AI19="","",$AJ$2) -> A- | AK19: A | AL19: A+ | AM19: B+ | AN19: =IF(AI19="","",$AN$2) -> C | AO19: =IF(N19="","",IF(N19>=$AO$1/100,"O","X")) ->  | AP19: =IF(I19="","",IF(I19<=$AP$1,"O","X")) ->  | AQ19: =IF(O19="","",IF(O19<=$AQ$1,"O","X")) -> O | AR19: =IF(M19="","",IF(M19<=$AR$1,"O","X")) -> O | AS19: X | AT19: =IF(OR(F19="",AI19=""),"",IF(AND((F19<=85),(AI19>=15)),"O","X")) -> O | AU19: =IF(C19="","",IF(C19>=$AU$1,"O","X")) -> O | AV19: =IF(AO19="","",IF(AND(AO19="O",AP19="O",AR19="O",AT19="O",AU19="O"),"후보","X")) -> 
A20: 건영 | B20: '98.12 | C20: 558 | D20: 113.4 | E20: 34 | F20: 100 | G20: 30 | H20: 408 | M20: =I20-K20 -> 0 | N20: =IF(ISERROR(K20/I20),"",K20/I20) ->  | O20: =I20/E20 -> 0 | P20: =K20/E20 -> 0 | Q20: 4 | R20: 2 | S20: 계 | T20: 113 | W20: 113.4 | X20: 34 | Y20: 408 | Z20: 0 | AA20: =K20 -> 0 | AB20: 0 | AD20: 0 | AE20: =S20 -> 계 | AF20: =Q20&"/"&R20 -> 4/2 | AH20: 건영 | AI20: 34 | AJ20: =IF(AI20="","",$AJ$2) -> A- | AK20: A | AL20: A+ | AM20: B+ | AN20: =IF(AI20="","",$AN$2) -> C | AO20: =IF(N20="","",IF(N20>=$AO$1/100,"O","X")) ->  | AP20: =IF(I20="","",IF(I20<=$AP$1,"O","X")) ->  | AQ20: =IF(O20="","",IF(O20<=$AQ$1,"O","X")) -> O | AR20: =IF(M20="","",IF(M20<=$AR$1,"O","X")) -> O | AS20: X | AT20: =IF(OR(F20="",AI20=""),"",IF(AND((F20<=85),(AI20>=15)),"O","X")) -> X | AU20: =IF(C20="","",IF(C20>=$AU$1,"O","X")) -> O | AV20: =IF(AO20="","",IF(AND(AO20="O",AP20="O",AR20="O",AT20="O",AU20="O"),"후보","X")) -> 
A21: 건영 | B21: '98.12 | C21: 558 | D21: 148.5 | E21: 45 | F21: 134.8 | G21: 41 | H21: 30 | M21: =I21-K21 -> 0 | N21: =IF(ISERROR(K21/I21),"",K21/I21) ->  | O21: =I21/E21 -> 0 | P21: =K21/E21 -> 0 | Q21: 4 | R21: 2 | S21: 계 | T21: 148 | W21: 148.5 | X21: 45 | Y21: 30 | Z21: 0 | AA21: =K21 -> 0 | AB21: 0 | AD21: 0 | AE21: =S21 -> 계 | AF21: =Q21&"/"&R21 -> 4/2 | AH21: 건영 | AI21: 45 | AJ21: =IF(AI21="","",$AJ$2) -> A- | AK21: A | AL21: A+ | AM21: B+ | AN21: =IF(AI21="","",$AN$2) -> C | AO21: =IF(N21="","",IF(N21>=$AO$1/100,"O","X")) ->  | AP21: =IF(I21="","",IF(I21<=$AP$1,"O","X")) ->  | AQ21: =IF(O21="","",IF(O21<=$AQ$1,"O","X")) -> O | AR21: =IF(M21="","",IF(M21<=$AR$1,"O","X")) -> O | AS21: X | AT21: =IF(OR(F21="",AI21=""),"",IF(AND((F21<=85),(AI21>=15)),"O","X")) -> X | AU21: =IF(C21="","",IF(C21>=$AU$1,"O","X")) -> O | AV21: =IF(AO21="","",IF(AND(AO21="O",AP21="O",AR21="O",AT21="O",AU21="O"),"후보","X")) -> 
W22: =$A$4&" "&A23&"("&B23&","&C23&"^)" -> 내동 내외대우('96.06,504^)
A23: 내외대우 | B23: '96.06 | C23: 504 | D23: 97.9 | E23: 30 | F23: 85 | G23: 26 | H23: 150 | M23: =I23-K23 -> 0 | N23: =IF(ISERROR(K23/I23),"",K23/I23) ->  | O23: =I23/E23 -> 0 | P23: =K23/E23 -> 0 | Q23: 3 | R23: 2 | S23: 계 | T23: 97B | W23: =D23 -> 97.9 | X23: 30 | Y23: =H23 -> 150 | Z23: 0 | AA23: =K23 -> 0 | AB23: =M23 -> 0 | AD23: 0 | AE23: =S23 -> 계 | AF23: =Q23&"/"&R23 -> 3/2 | AH23: 내외대우 | AI23: 30 | AJ23: =IF(AI23="","",$AJ$2) -> A- | AK23: A | AL23: A+ | AM23: B+ | AN23: =IF(AI23="","",$AN$2) -> C | AO23: =IF(N23="","",IF(N23>=$AO$1/100,"O","X")) ->  | AP23: =IF(I23="","",IF(I23<=$AP$1,"O","X")) ->  | AQ23: =IF(O23="","",IF(O23<=$AQ$1,"O","X")) -> O | AR23: =IF(M23="","",IF(M23<=$AR$1,"O","X")) -> O | AS23: X | AT23: =IF(OR(F23="",AI23=""),"",IF(AND((F23<=85),(AI23>=15)),"O","X")) -> O | AU23: =IF(C23="","",IF(C23>=$AU$1,"O","X")) -> O | AV23: =IF(AO23="","",IF(AND(AO23="O",AP23="O",AR23="O",AT23="O",AU23="O"),"후보","X")) -> 
A24: 내외대우 | B24: '96.06 | C24: 504 | D24: 72.1 | E24: 22 | F24: 59.3 | G24: 18 | H24: 88 | M24: =I24-K24 -> 0 | N24: =IF(ISERROR(K24/I24),"",K24/I24) ->  | O24: =I24/E24 -> 0 | P24: =K24/E24 -> 0 | Q24: 3 | R24: 1 | S24: 계 | T24: 72A | W24: 72.1 | X24: 22 | Y24: 88 | Z24: 0 | AA24: =K24 -> 0 | AB24: 0 | AD24: 0 | AE24: =S24 -> 계 | AF24: =Q24&"/"&R24 -> 3/1 | AH24: 내외대우 | AI24: 22 | AJ24: =IF(AI24="","",$AJ$2) -> A- | AK24: A | AL24: A+ | AM24: B+ | AN24: =IF(AI24="","",$AN$2) -> C | AO24: =IF(N24="","",IF(N24>=$AO$1/100,"O","X")) ->  | AP24: =IF(I24="","",IF(I24<=$AP$1,"O","X")) ->  | AQ24: =IF(O24="","",IF(O24<=$AQ$1,"O","X")) -> O | AR24: =IF(M24="","",IF(M24<=$AR$1,"O","X")) -> O | AS24: X | AT24: =IF(OR(F24="",AI24=""),"",IF(AND((F24<=85),(AI24>=15)),"O","X")) -> O | AU24: =IF(C24="","",IF(C24>=$AU$1,"O","X")) -> O | AV24: =IF(AO24="","",IF(AND(AO24="O",AP24="O",AR24="O",AT24="O",AU24="O"),"후보","X")) -> 
A25: 내외대우 | B25: '96.06 | C25: 504 | D25: 72.8 | E25: 22 | F25: 59.8 | G25: 18 | H25: 116 | M25: =I25-K25 -> 0 | N25: =IF(ISERROR(K25/I25),"",K25/I25) ->  | O25: =I25/E25 -> 0 | P25: =K25/E25 -> 0 | Q25: 3 | R25: 1 | S25: 계 | T25: 72B | W25: 72.8 | X25: 22 | Y25: 116 | Z25: 0 | AA25: =K25 -> 0 | AB25: 0 | AD25: 0 | AE25: =S25 -> 계 | AF25: =Q25&"/"&R25 -> 3/1 | AH25: 내외대우 | AI25: 22 | AJ25: =IF(AI25="","",$AJ$2) -> A- | AK25: A | AL25: A+ | AM25: B+ | AN25: =IF(AI25="","",$AN$2) -> C | AO25: =IF(N25="","",IF(N25>=$AO$1/100,"O","X")) ->  | AP25: =IF(I25="","",IF(I25<=$AP$1,"O","X")) ->  | AQ25: =IF(O25="","",IF(O25<=$AQ$1,"O","X")) -> O | AR25: =IF(M25="","",IF(M25<=$AR$1,"O","X")) -> O | AS25: X | AT25: =IF(OR(F25="",AI25=""),"",IF(AND((F25<=85),(AI25>=15)),"O","X")) -> O | AU25: =IF(C25="","",IF(C25>=$AU$1,"O","X")) -> O | AV25: =IF(AO25="","",IF(AND(AO25="O",AP25="O",AR25="O",AT25="O",AU25="O"),"후보","X")) -> 
A26: 내외대우 | B26: '96.06 | C26: 504 | D26: 97.3 | E26: 29 | F26: 84.4 | G26: 26 | H26: 150 | M26: =I26-K26 -> 0 | N26: =IF(ISERROR(K26/I26),"",K26/I26) ->  | O26: =I26/E26 -> 0 | P26: =K26/E26 -> 0 | Q26: 3 | R26: 2 | S26: 계 | T26: 97A | W26: 97.3 | X26: 29 | Y26: 150 | Z26: 0 | AA26: =K26 -> 0 | AB26: 0 | AD26: 0 | AE26: =S26 -> 계 | AF26: =Q26&"/"&R26 -> 3/2 | AH26: 내외대우 | AI26: 29 | AJ26: =IF(AI26="","",$AJ$2) -> A- | AK26: A | AL26: A+ | AM26: B+ | AN26: =IF(AI26="","",$AN$2) -> C | AO26: =IF(N26="","",IF(N26>=$AO$1/100,"O","X")) ->  | AP26: =IF(I26="","",IF(I26<=$AP$1,"O","X")) ->  | AQ26: =IF(O26="","",IF(O26<=$AQ$1,"O","X")) -> O | AR26: =IF(M26="","",IF(M26<=$AR$1,"O","X")) -> O | AS26: X | AT26: =IF(OR(F26="",AI26=""),"",IF(AND((F26<=85),(AI26>=15)),"O","X")) -> O | AU26: =IF(C26="","",IF(C26>=$AU$1,"O","X")) -> O | AV26: =IF(AO26="","",IF(AND(AO26="O",AP26="O",AR26="O",AT26="O",AU26="O"),"후보","X")) -> 
W27: =$A$4&" "&A28&"("&B28&","&C28&"^)" -> 내동 현대2차('96.03,493^)
A28: 현대2차 | B28: '96.03 | C28: 493 | D28: 97.4 | E28: 30 | F28: 85 | G28: 26 | H28: 233 | M28: =I28-K28 -> 0 | N28: =IF(ISERROR(K28/I28),"",K28/I28) ->  | O28: =I28/E28 -> 0 | P28: =K28/E28 -> 0 | Q28: 3 | R28: 2 | S28: 계 | T28: 97 | W28: =D28 -> 97.4 | X28: 30 | Y28: =H28 -> 233 | Z28: 0 | AA28: =K28 -> 0 | AB28: =M28 -> 0 | AD28: 0 | AE28: =S28 -> 계 | AF28: =Q28&"/"&R28 -> 3/2 | AH28: 현대2차 | AI28: 30 | AJ28: =IF(AI28="","",$AJ$2) -> A- | AK28: A | AL28: A+ | AM28: B+ | AN28: =IF(AI28="","",$AN$2) -> C | AO28: =IF(N28="","",IF(N28>=$AO$1/100,"O","X")) ->  | AP28: =IF(I28="","",IF(I28<=$AP$1,"O","X")) ->  | AQ28: =IF(O28="","",IF(O28<=$AQ$1,"O","X")) -> O | AR28: =IF(M28="","",IF(M28<=$AR$1,"O","X")) -> O | AS28: X | AT28: =IF(OR(F28="",AI28=""),"",IF(AND((F28<=85),(AI28>=15)),"O","X")) -> O | AU28: =IF(C28="","",IF(C28>=$AU$1,"O","X")) -> O | AV28: =IF(AO28="","",IF(AND(AO28="O",AP28="O",AR28="O",AT28="O",AU28="O"),"후보","X")) -> 
A29: 현대2차 | B29: '96.03 | C29: 493 | D29: 114.2 | E29: 35 | F29: 101.9 | G29: 31 | H29: 204 | M29: =I29-K29 -> 0 | N29: =IF(ISERROR(K29/I29),"",K29/I29) ->  | O29: =I29/E29 -> 0 | P29: =K29/E29 -> 0 | Q29: 4 | R29: 2 | S29: 계 | T29: 114 | W29: 114.2 | X29: 35 | Y29: 204 | Z29: 0 | AA29: =K29 -> 0 | AB29: 0 | AD29: 0 | AE29: =S29 -> 계 | AF29: =Q29&"/"&R29 -> 4/2 | AH29: 현대2차 | AI29: 35 | AJ29: =IF(AI29="","",$AJ$2) -> A- | AK29: A | AL29: A+ | AM29: B+ | AN29: =IF(AI29="","",$AN$2) -> C | AO29: =IF(N29="","",IF(N29>=$AO$1/100,"O","X")) ->  | AP29: =IF(I29="","",IF(I29<=$AP$1,"O","X")) ->  | AQ29: =IF(O29="","",IF(O29<=$AQ$1,"O","X")) -> O | AR29: =IF(M29="","",IF(M29<=$AR$1,"O","X")) -> O | AS29: X | AT29: =IF(OR(F29="",AI29=""),"",IF(AND((F29<=85),(AI29>=15)),"O","X")) -> X | AU29: =IF(C29="","",IF(C29>=$AU$1,"O","X")) -> O | AV29: =IF(AO29="","",IF(AND(AO29="O",AP29="O",AR29="O",AT29="O",AU29="O"),"후보","X")) -> 
A30: 현대2차 | B30: '96.03 | C30: 493 | D30: 150 | E30: 45 | F30: 134.6 | G30: 41 | H30: 56 | M30: =I30-K30 -> 0 | N30: =IF(ISERROR(K30/I30),"",K30/I30) ->  | O30: =I30/E30 -> 0 | P30: =K30/E30 -> 0 | Q30: 4 | R30: 2 | S30: 계 | T30: 149 | W30: 150 | X30: 45 | Y30: 56 | Z30: 0 | AA30: =K30 -> 0 | AB30: 0 | AD30: 0 | AE30: =S30 -> 계 | AF30: =Q30&"/"&R30 -> 4/2 | AH30: 현대2차 | AI30: 45 | AJ30: =IF(AI30="","",$AJ$2) -> A- | AK30: A | AL30: A+ | AM30: B+ | AN30: =IF(AI30="","",$AN$2) -> C | AO30: =IF(N30="","",IF(N30>=$AO$1/100,"O","X")) ->  | AP30: =IF(I30="","",IF(I30<=$AP$1,"O","X")) ->  | AQ30: =IF(O30="","",IF(O30<=$AQ$1,"O","X")) -> O | AR30: =IF(M30="","",IF(M30<=$AR$1,"O","X")) -> O | AS30: X | AT30: =IF(OR(F30="",AI30=""),"",IF(AND((F30<=85),(AI30>=15)),"O","X")) -> X | AU30: =IF(C30="","",IF(C30>=$AU$1,"O","X")) -> O | AV30: =IF(AO30="","",IF(AND(AO30="O",AP30="O",AR30="O",AT30="O",AU30="O"),"후보","X")) -> 
W31: =$A$4&" "&A32&"("&B32&","&C32&"^)" -> 내동 한진('92.05,474^)
A32: 한진 | B32: '92.05 | C32: 474 | D32: 69.1 | E32: 21 | F32: 49.7 | G32: 15 | H32: 299 | M32: =I32-K32 -> 0 | N32: =IF(ISERROR(K32/I32),"",K32/I32) ->  | O32: =I32/E32 -> 0 | P32: =K32/E32 -> 0 | Q32: 2 | R32: 1 | S32: 복 | T32: 69 | W32: =D32 -> 69.1 | X32: =E32 -> 21 | Y32: =H32 -> 299 | Z32: =I32 -> 0 | AA32: =K32 -> 0 | AB32: =M32 -> 0 | AC32: =N32 ->  | AD32: =O32 -> 0 | AE32: =S32 -> 복 | AF32: =Q32&"/"&R32 -> 2/1 | AH32: 한진 | AI32: 21 | AJ32: =IF(AI32="","",$AJ$2) -> A- | AK32: A | AL32: A+ | AM32: B+ | AN32: =IF(AI32="","",$AN$2) -> C | AO32: =IF(N32="","",IF(N32>=$AO$1/100,"O","X")) ->  | AP32: =IF(I32="","",IF(I32<=$AP$1,"O","X")) ->  | AQ32: =IF(O32="","",IF(O32<=$AQ$1,"O","X")) -> O | AR32: =IF(M32="","",IF(M32<=$AR$1,"O","X")) -> O | AS32: X | AT32: =IF(OR(F32="",AI32=""),"",IF(AND((F32<=85),(AI32>=15)),"O","X")) -> O | AU32: =IF(C32="","",IF(C32>=$AU$1,"O","X")) -> O | AV32: =IF(AO32="","",IF(AND(AO32="O",AP32="O",AR32="O",AT32="O",AU32="O"),"후보","X")) -> 
W33: =$A$4&" "&A34&"("&B34&","&C34&"^)" -> 내동 현대4차('98.06,419^)
A34: 현대4차 | B34: '98.06 | C34: 419 | D34: 95.2 | E34: 29 | F34: 84 | G34: 25 | H34: 1 | M34: =I34-K34 -> 0 | N34: =IF(ISERROR(K34/I34),"",K34/I34) ->  | O34: =I34/E34 -> 0 | P34: =K34/E34 -> 0 | Q34: 3 | R34: 2 | S34: 계 | T34: 95A | W34: =D34 -> 95.2 | X34: 29 | Y34: =H34 -> 1 | Z34: 0 | AA34: =K34 -> 0 | AB34: =M34 -> 0 | AD34: 0 | AE34: =S34 -> 계 | AF34: =Q34&"/"&R34 -> 3/2 | AH34: 현대4차 | AI34: 29 | AJ34: =IF(AI34="","",$AJ$2) -> A- | AK34: A | AL34: A+ | AM34: B+ | AN34: =IF(AI34="","",$AN$2) -> C | AO34: =IF(N34="","",IF(N34>=$AO$1/100,"O","X")) ->  | AP34: =IF(I34="","",IF(I34<=$AP$1,"O","X")) ->  | AQ34: =IF(O34="","",IF(O34<=$AQ$1,"O","X")) -> O | AR34: =IF(M34="","",IF(M34<=$AR$1,"O","X")) -> O | AS34: X | AT34: =IF(OR(F34="",AI34=""),"",IF(AND((F34<=85),(AI34>=15)),"O","X")) -> O | AU34: =IF(C34="","",IF(C34>=$AU$1,"O","X")) -> O | AV34: =IF(AO34="","",IF(AND(AO34="O",AP34="O",AR34="O",AT34="O",AU34="O"),"후보","X")) -> 
A35: 현대4차 | B35: '98.06 | C35: 419 | D35: 96.3 | E35: 29 | F35: 85 | G35: 26 | H35: 209 | M35: 0 | O35: 0 | P35: 0 | Q35: 3 | R35: 1 | S35: 계 | T35: 96B | W35: 96.3 | X35: 29 | Y35: 209 | Z35: 0 | AA35: 0 | AB35: 0 | AD35: 0 | AE35: 계 | AF35: 3/1 | AH35: 현대4차 | AI35: =IF(E35="","",E35) -> 29 | AJ35: A- | AK35: A | AL35: A+ | AM35: B+ | AN35: C | AQ35: O | AR35: O | AS35: X | AT35: O | AU35: O
A36: 현대4차 | B36: '98.06 | C36: 419 | D36: 113.1 | E36: 34 | F36: 99.9 | G36: 30 | H36: 119 | M36: 0 | O36: 0 | P36: 0 | Q36: 3 | R36: 2 | S36: 계 | T36: 113A | W36: 113.1 | X36: 34 | Y36: 119 | Z36: 0 | AA36: 0 | AB36: 0 | AD36: 0 | AE36: 계 | AF36: 3/2 | AH36: 현대4차 | AI36: 34 | AJ36: A- | AK36: A | AL36: A+ | AM36: B+ | AN36: C | AQ36: O | AR36: O | AS36: X | AT36: X | AU36: O
A37: 현대4차 | B37: '98.06 | C37: 419 | D37: 113.2 | E37: 34 | F37: 99.9 | G37: 30 | H37: 30 | M37: 0 | O37: 0 | P37: 0 | Q37: 4 | R37: 2 | S37: 계 | T37: 113B | W37: 113.2 | X37: 34 | Y37: 30 | Z37: 0 | AA37: 0 | AB37: 0 | AD37: 0 | AE37: 계 | AF37: 4/2 | AH37: =IF(A37="","",A37) -> 현대4차 | AI37: 34 | AJ37: A- | AK37: A | AL37: A+ | AM37: B+ | AN37: C | AQ37: O | AR37: O | AS37: X | AT37: X | AU37: O
A38: 현대4차 | B38: '98.06 | C38: 419 | D38: 152.7 | E38: 46 | F38: 134.8 | G38: 41 | H38: 30 | M38: 0 | O38: 0 | P38: 0 | Q38: 4 | R38: 2 | S38: 계 | T38: 152 | W38: 152.7 | X38: 46 | Y38: 30 | Z38: 0 | AA38: 0 | AB38: 0 | AD38: 0 | AE38: 계 | AF38: 4/2 | AH38: 현대4차 | AI38: 46 | AJ38: A- | AK38: A | AL38: A+ | AM38: B+ | AN38: C | AQ38: O | AR38: O | AS38: X | AT38: X | AU38: O
A39: 현대4차 | B39: '98.06 | C39: 419 | D39: 186.7 | E39: 57 | F39: 164.8 | G39: 50 | H39: 30 | M39: 0 | O39: 0 | P39: 0 | Q39: 5 | R39: 2 | S39: 계 | T39: 186 | W39: 186.7 | X39: 57 | Y39: 30 | Z39: 0 | AA39: 0 | AB39: 0 | AD39: 0 | AE39: 계 | AF39: 5/2 | AH39: 현대4차 | AI39: 57 | AJ39: A- | AK39: A | AL39: A+ | AM39: B+ | AN39: C | AQ39: O | AR39: O | AS39: X | AT39: X | AU39: O
W40: =$A$4&" "&A41&"("&B41&","&C41&"^)" -> 내동 동부('96.12,402^)
A41: 동부 | B41: '96.12 | C41: 402 | D41: 74.3 | E41: 23 | F41: 60 | G41: 18 | H41: 134 | M41: =I41-K41 -> 0 | N41: =IF(ISERROR(K41/I41),"",K41/I41) ->  | O41: =I41/E41 -> 0 | P41: =K41/E41 -> 0 | Q41: 3 | R41: 1 | S41: 계 | T41: 74 | W41: =D41 -> 74.3 | X41: 23 | Y41: =H41 -> 134 | Z41: 0 | AA41: =K41 -> 0 | AB41: =M41 -> 0 | AD41: 0 | AE41: =S41 -> 계 | AF41: =Q41&"/"&R41 -> 3/1 | AH41: 동부 | AI41: 23 | AJ41: =IF(AI41="","",$AJ$2) -> A- | AK41: A | AL41: A+ | AM41: B+ | AN41: =IF(AI41="","",$AN$2) -> C | AO41: =IF(N41="","",IF(N41>=$AO$1/100,"O","X")) ->  | AP41: =IF(I41="","",IF(I41<=$AP$1,"O","X")) ->  | AQ41: =IF(O41="","",IF(O41<=$AQ$1,"O","X")) -> O | AR41: =IF(M41="","",IF(M41<=$AR$1,"O","X")) -> O | AS41: X | AT41: =IF(OR(F41="",AI41=""),"",IF(AND((F41<=85),(AI41>=15)),"O","X")) -> O | AU41: =IF(C41="","",IF(C41>=$AU$1,"O","X")) -> O | AV41: =IF(AO41="","",IF(AND(AO41="O",AP41="O",AR41="O",AT41="O",AU41="O"),"후보","X")) -> 
A42: 동부 | B42: '96.12 | C42: 402 | D42: 85.7 | E42: 26 | F42: 72.9 | G42: 22 | H42: 88 | M42: =I42-K42 -> 0 | N42: =IF(ISERROR(K42/I42),"",K42/I42) ->  | O42: =I42/E42 -> 0 | P42: =K42/E42 -> 0 | Q42: 3 | R42: 1 | S42: 계 | T42: 85 | W42: 85.7 | X42: 26 | Y42: 88 | Z42: 0 | AA42: =K42 -> 0 | AB42: 0 | AD42: 0 | AE42: =S42 -> 계 | AF42: =Q42&"/"&R42 -> 3/1 | AH42: 동부 | AI42: 26 | AJ42: =IF(AI42="","",$AJ$2) -> A- | AK42: A | AL42: A+ | AM42: B+ | AN42: =IF(AI42="","",$AN$2) -> C | AO42: =IF(N42="","",IF(N42>=$AO$1/100,"O","X")) ->  | AP42: =IF(I42="","",IF(I42<=$AP$1,"O","X")) ->  | AQ42: =IF(O42="","",IF(O42<=$AQ$1,"O","X")) -> O | AR42: =IF(M42="","",IF(M42<=$AR$1,"O","X")) -> O | AS42: X | AT42: =IF(OR(F42="",AI42=""),"",IF(AND((F42<=85),(AI42>=15)),"O","X")) -> O | AU42: =IF(C42="","",IF(C42>=$AU$1,"O","X")) -> O | AV42: =IF(AO42="","",IF(AND(AO42="O",AP42="O",AR42="O",AT42="O",AU42="O"),"후보","X")) -> 
A43: 동부 | B43: '96.12 | C43: 402 | D43: 100 | E43: 30 | F43: 84.9 | G43: 26 | H43: 180 | M43: =I43-K43 -> 0 | N43: =IF(ISERROR(K43/I43),"",K43/I43) ->  | O43: =I43/E43 -> 0 | P43: =K43/E43 -> 0 | Q43: 3 | R43: 2 | S43: 계 | T43: 100 | W43: 100 | X43: 30 | Y43: 180 | Z43: 0 | AA43: =K43 -> 0 | AB43: 0 | AD43: 0 | AE43: =S43 -> 계 | AF43: =Q43&"/"&R43 -> 3/2 | AH43: 동부 | AI43: 30 | AJ43: =IF(AI43="","",$AJ$2) -> A- | AK43: A | AL43: A+ | AM43: B+ | AN43: =IF(AI43="","",$AN$2) -> C | AO43: =IF(N43="","",IF(N43>=$AO$1/100,"O","X")) ->  | AP43: =IF(I43="","",IF(I43<=$AP$1,"O","X")) ->  | AQ43: =IF(O43="","",IF(O43<=$AQ$1,"O","X")) -> O | AR43: =IF(M43="","",IF(M43<=$AR$1,"O","X")) -> O | AS43: X | AT43: =IF(OR(F43="",AI43=""),"",IF(AND((F43<=85),(AI43>=15)),"O","X")) -> O | AU43: =IF(C43="","",IF(C43>=$AU$1,"O","X")) -> O | AV43: =IF(AO43="","",IF(AND(AO43="O",AP43="O",AR43="O",AT43="O",AU43="O"),"후보","X")) -> 
W44: =$A$4&" "&A45&"("&B45&","&C45&"^)" -> 내동 현대1차('95.09,402^)
A45: 현대1차 | B45: '95.09 | C45: 402 | D45: 75.2 | E45: 23 | F45: 60 | G45: 18 | H45: 180 | M45: =I45-K45 -> 0 | N45: =IF(ISERROR(K45/I45),"",K45/I45) ->  | O45: =I45/E45 -> 0 | P45: =K45/E45 -> 0 | Q45: 3 | R45: 1 | S45: 계 | T45: 75 | W45: =D45 -> 75.2 | X45: =E45 -> 23 | Y45: =H45 -> 180 | Z45: =I45 -> 0 | AA45: =K45 -> 0 | AB45: =M45 -> 0 | AD45: 0 | AE45: =S45 -> 계 | AF45: =Q45&"/"&R45 -> 3/1 | AH45: 현대1차 | AI45: 23 | AJ45: =IF(AI45="","",$AJ$2) -> A- | AK45: A | AL45: A+ | AM45: B+ | AN45: =IF(AI45="","",$AN$2) -> C | AO45: =IF(N45="","",IF(N45>=$AO$1/100,"O","X")) ->  | AP45: =IF(I45="","",IF(I45<=$AP$1,"O","X")) ->  | AQ45: =IF(O45="","",IF(O45<=$AQ$1,"O","X")) -> O | AR45: =IF(M45="","",IF(M45<=$AR$1,"O","X")) -> O | AS45: X | AT45: =IF(OR(F45="",AI45=""),"",IF(AND((F45<=85),(AI45>=15)),"O","X")) -> O | AU45: =IF(C45="","",IF(C45>=$AU$1,"O","X")) -> O | AV45: =IF(AO45="","",IF(AND(AO45="O",AP45="O",AR45="O",AT45="O",AU45="O"),"후보","X")) -> 
A46: 현대1차 | B46: '95.09 | C46: 402 | D46: 106.6 | E46: 32 | F46: 85 | G46: 26 | H46: 222 | M46: =I46-K46 -> 0 | N46: =IF(ISERROR(K46/I46),"",K46/I46) ->  | O46: =I46/E46 -> 0 | P46: =K46/E46 -> 0 | Q46: 3 | R46: 2 | S46: 계 | T46: 106 | W46: =D46 -> 106.6 | X46: =E46 -> 32 | Y46: =H46 -> 222 | Z46: =I46 -> 0 | AA46: =K46 -> 0 | AB46: 0 | AD46: 0 | AE46: =S46 -> 계 | AF46: =Q46&"/"&R46 -> 3/2 | AH46: 현대1차 | AI46: 32 | AJ46: =IF(AI46="","",$AJ$2) -> A- | AK46: A | AL46: A+ | AM46: B+ | AN46: =IF(AI46="","",$AN$2) -> C | AO46: =IF(N46="","",IF(N46>=$AO$1/100,"O","X")) ->  | AP46: =IF(I46="","",IF(I46<=$AP$1,"O","X")) ->  | AQ46: =IF(O46="","",IF(O46<=$AQ$1,"O","X")) -> O | AR46: =IF(M46="","",IF(M46<=$AR$1,"O","X")) -> O | AS46: X | AT46: =IF(OR(F46="",AI46=""),"",IF(AND((F46<=85),(AI46>=15)),"O","X")) -> O | AU46: =IF(C46="","",IF(C46>=$AU$1,"O","X")) -> O | AV46: =IF(AO46="","",IF(AND(AO46="O",AP46="O",AR46="O",AT46="O",AU46="O"),"후보","X")) -> 
W47: =$A$4&" "&A48&"("&B48&","&C48&"^)" -> 내동 현대3차('98.04,376^)
A48: 현대3차 | B48: '98.04 | C48: 376 | D48: 95.6 | E48: 29 | F48: 84 | G48: 25 | H48: 1 | M48: =I48-K48 -> 0 | N48: =IF(ISERROR(K48/I48),"",K48/I48) ->  | O48: =I48/E48 -> 0 | P48: =K48/E48 -> 0 | Q48: 3 | R48: 2 | S48: 계 | T48: 95A | W48: =D48 -> 95.6 | X48: 29 | Y48: =H48 -> 1 | Z48: 0 | AA48: =K48 -> 0 | AB48: =M48 -> 0 | AD48: 0 | AE48: =S48 -> 계 | AF48: =Q48&"/"&R48 -> 3/2 | AH48: 현대3차 | AI48: 29 | AJ48: =IF(AI48="","",$AJ$2) -> A- | AK48: A | AL48: A+ | AM48: B+ | AN48: =IF(AI48="","",$AN$2) -> C | AO48: =IF(N48="","",IF(N48>=$AO$1/100,"O","X")) ->  | AP48: =IF(I48="","",IF(I48<=$AP$1,"O","X")) ->  | AQ48: =IF(O48="","",IF(O48<=$AQ$1,"O","X")) -> O | AR48: =IF(M48="","",IF(M48<=$AR$1,"O","X")) -> O | AS48: X | AT48: =IF(OR(F48="",AI48=""),"",IF(AND((F48<=85),(AI48>=15)),"O","X")) -> O | AU48: =IF(C48="","",IF(C48>=$AU$1,"O","X")) -> O | AV48: =IF(AO48="","",IF(AND(AO48="O",AP48="O",AR48="O",AT48="O",AU48="O"),"후보","X")) -> 
A49: 현대3차 | B49: '98.04 | C49: 376 | D49: 96.6 | E49: 29 | F49: 85 | G49: 26 | H49: 166 | M49: =I49-K49 -> 0 | N49: =IF(ISERROR(K49/I49),"",K49/I49) ->  | O49: =I49/E49 -> 0 | P49: =K49/E49 -> 0 | Q49: 3 | R49: 2 | S49: 계 | T49: 96B | W49: 96.6 | X49: 29 | Y49: 166 | Z49: 0 | AA49: =K49 -> 0 | AB49: 0 | AD49: 0 | AE49: =S49 -> 계 | AF49: =Q49&"/"&R49 -> 3/2 | AH49: 현대3차 | AI49: 29 | AJ49: =IF(AI49="","",$AJ$2) -> A- | AK49: A | AL49: A+ | AM49: B+ | AN49: =IF(AI49="","",$AN$2) -> C | AO49: =IF(N49="","",IF(N49>=$AO$1/100,"O","X")) ->  | AP49: =IF(I49="","",IF(I49<=$AP$1,"O","X")) ->  | AQ49: =IF(O49="","",IF(O49<=$AQ$1,"O","X")) -> O | AR49: =IF(M49="","",IF(M49<=$AR$1,"O","X")) -> O | AS49: X | AT49: =IF(OR(F49="",AI49=""),"",IF(AND((F49<=85),(AI49>=15)),"O","X")) -> O | AU49: =IF(C49="","",IF(C49>=$AU$1,"O","X")) -> O | AV49: =IF(AO49="","",IF(AND(AO49="O",AP49="O",AR49="O",AT49="O",AU49="O"),"후보","X")) -> 
A50: 현대3차 | B50: '98.04 | C50: 376 | D50: 113.6 | E50: 34 | F50: 99.9 | G50: 30 | H50: 89 | M50: =I50-K50 -> 0 | N50: =IF(ISERROR(K50/I50),"",K50/I50) ->  | O50: =I50/E50 -> 0 | P50: =K50/E50 -> 0 | Q50: 3 | R50: 2 | S50: 계 | T50: 113A | W50: 113.6 | X50: 34 | Y50: 89 | Z50: 0 | AA50: =K50 -> 0 | AB50: 0 | AD50: 0 | AE50: =S50 -> 계 | AF50: =Q50&"/"&R50 -> 3/2 | AH50: 현대3차 | AI50: 34 | AJ50: =IF(AI50="","",$AJ$2) -> A- | AK50: A | AL50: A+ | AM50: B+ | AN50: =IF(AI50="","",$AN$2) -> C | AO50: =IF(N50="","",IF(N50>=$AO$1/100,"O","X")) ->  | AP50: =IF(I50="","",IF(I50<=$AP$1,"O","X")) ->  | AQ50: =IF(O50="","",IF(O50<=$AQ$1,"O","X")) -> O | AR50: =IF(M50="","",IF(M50<=$AR$1,"O","X")) -> O | AS50: X | AT50: =IF(OR(F50="",AI50=""),"",IF(AND((F50<=85),(AI50>=15)),"O","X")) -> X | AU50: =IF(C50="","",IF(C50>=$AU$1,"O","X")) -> O | AV50: =IF(AO50="","",IF(AND(AO50="O",AP50="O",AR50="O",AT50="O",AU50="O"),"후보","X")) -> 
A51: 현대3차 | B51: '98.04 | C51: 376 | D51: 113.7 | E51: 34 | F51: 99.9 | G51: 30 | H51: 60 | M51: =I51-K51 -> 0 | N51: =IF(ISERROR(K51/I51),"",K51/I51) ->  | O51: =I51/E51 -> 0 | P51: =K51/E51 -> 0 | Q51: 4 | R51: 2 | S51: 계 | T51: 113B | W51: 113.7 | X51: 34 | Y51: 60 | Z51: 0 | AA51: =K51 -> 0 | AB51: 0 | AD51: 0 | AE51: =S51 -> 계 | AF51: =Q51&"/"&R51 -> 4/2 | AH51: 현대3차 | AI51: 34 | AJ51: =IF(AI51="","",$AJ$2) -> A- | AK51: A | AL51: A+ | AM51: B+ | AN51: =IF(AI51="","",$AN$2) -> C | AO51: =IF(N51="","",IF(N51>=$AO$1/100,"O","X")) ->  | AP51: =IF(I51="","",IF(I51<=$AP$1,"O","X")) ->  | AQ51: =IF(O51="","",IF(O51<=$AQ$1,"O","X")) -> O | AR51: =IF(M51="","",IF(M51<=$AR$1,"O","X")) -> O | AS51: X | AT51: =IF(OR(F51="",AI51=""),"",IF(AND((F51<=85),(AI51>=15)),"O","X")) -> X | AU51: =IF(C51="","",IF(C51>=$AU$1,"O","X")) -> O | AV51: =IF(AO51="","",IF(AND(AO51="O",AP51="O",AR51="O",AT51="O",AU51="O"),"후보","X")) -> 
A52: 현대3차 | B52: '98.04 | C52: 376 | D52: 153.3 | E52: 46 | F52: 134.8 | G52: 41 | H52: 60 | M52: =I52-K52 -> 0 | N52: =IF(ISERROR(K52/I52),"",K52/I52) ->  | O52: =I52/E52 -> 0 | P52: =K52/E52 -> 0 | Q52: 4 | R52: 2 | S52: 계 | T52: 153 | W52: 153.3 | X52: 46 | Y52: 60 | Z52: 0 | AA52: =K52 -> 0 | AB52: 0 | AD52: 0 | AE52: =S52 -> 계 | AF52: =Q52&"/"&R52 -> 4/2 | AH52: 현대3차 | AI52: 46 | AJ52: =IF(AI52="","",$AJ$2) -> A- | AK52: A | AL52: A+ | AM52: B+ | AN52: =IF(AI52="","",$AN$2) -> C | AO52: =IF(N52="","",IF(N52>=$AO$1/100,"O","X")) ->  | AP52: =IF(I52="","",IF(I52<=$AP$1,"O","X")) ->  | AQ52: =IF(O52="","",IF(O52<=$AQ$1,"O","X")) -> O | AR52: =IF(M52="","",IF(M52<=$AR$1,"O","X")) -> O | AS52: X | AT52: =IF(OR(F52="",AI52=""),"",IF(AND((F52<=85),(AI52>=15)),"O","X")) -> X | AU52: =IF(C52="","",IF(C52>=$AU$1,"O","X")) -> O | AV52: =IF(AO52="","",IF(AND(AO52="O",AP52="O",AR52="O",AT52="O",AU52="O"),"후보","X")) -> 
W53: =$A$4&" "&A54&"("&B54&","&C54&"^)" -> 내동 동아2차('98.01,324^)
A54: 동아2차 | B54: '98.01 | C54: 324 | D54: 98 | E54: 30 | F54: 85 | G54: 26 | H54: 150 | M54: =I54-K54 -> 0 | N54: =IF(ISERROR(K54/I54),"",K54/I54) ->  | O54: =I54/E54 -> 0 | P54: =K54/E54 -> 0 | Q54: 3 | R54: 2 | S54: 계 | T54: 98 | W54: =D54 -> 98 | X54: 30 | Y54: =H54 -> 150 | Z54: 0 | AA54: =K54 -> 0 | AB54: =M54 -> 0 | AD54: 0 | AE54: =S54 -> 계 | AF54: =Q54&"/"&R54 -> 3/2 | AH54: 동아2차 | AI54: 30 | AJ54: =IF(AI54="","",$AJ$2) -> A- | AK54: A | AL54: A+ | AM54: B+ | AN54: =IF(AI54="","",$AN$2) -> C | AO54: =IF(N54="","",IF(N54>=$AO$1/100,"O","X")) ->  | AP54: =IF(I54="","",IF(I54<=$AP$1,"O","X")) ->  | AQ54: =IF(O54="","",IF(O54<=$AQ$1,"O","X")) -> O | AR54: =IF(M54="","",IF(M54<=$AR$1,"O","X")) -> O | AS54: X | AT54: =IF(OR(F54="",AI54=""),"",IF(AND((F54<=85),(AI54>=15)),"O","X")) -> O | AU54: =IF(C54="","",IF(C54>=$AU$1,"O","X")) -> O | AV54: =IF(AO54="","",IF(AND(AO54="O",AP54="O",AR54="O",AT54="O",AU54="O"),"후보","X")) -> 
